{"text_format":"1","workbook":"xlsx","n_sheets":2,"sheets":["التفاصيل","البيانات"],"not_rendered":{"charts":0,"images":0,"macros":1,"external_links":1,"defined_names":3,"comments":0,"pivot_tables":0},"unopened":[],"bounds":{"document_bytes":16777216,"sheet_cells":100000,"rows_first":2000,"rows_last":500,"rows_between":2000,"halvings":0,"cell_chars":16384,"cell_head_chars":4096},"cells_cut":0,"cells_raw":0,"read":"whole","date_system":"1900"}

{"sheet":"التفاصيل","index":0,"n_rows":2311,"n_cols":2,"rows_kept":2311,"cut":false,"hidden":false,"merged":[]}
["نوع الكابينة ","مبلغ التكلفة "]
["AB 1*10*10",{"$f":"IFERROR(VLOOKUP($A2,[1]البيانات!$B$2:$L$350,11,FALSE),\"\")","v":335.03400000000005}]
["AB 1*10*11",{"$f":"IFERROR(VLOOKUP($A3,[1]البيانات!$B$2:$L$350,11,FALSE),\"\")","v":19.759700000000002}]
["AB 1*10*14",{"$f":"IFERROR(VLOOKUP($A4,[1]البيانات!$B$2:$L$350,11,FALSE),\"\")","v":16.6236}]
["AW 45*33*75",{"$f":"IFERROR(VLOOKUP($A5,[1]البيانات!$B$2:$L$350,11,FALSE),\"\")","v":""}]
["AW 50*33*75",{"$f":"IFERROR(VLOOKUP($A6,[1]البيانات!$B$2:$L$350,11,FALSE),\"\")","v":""}]
["AB 1*10*14",{"$f":"IFERROR(VLOOKUP($A7,[1]البيانات!$B$2:$L$350,11,FALSE),\"\")","v":16.6236}]
["AB 100*56*75",{"$f":"IFERROR(VLOOKUP($A8,[1]البيانات!$B$2:$L$350,11,FALSE),\"\")","v":""}]
["AB 100*56*75",{"$f":"IFERROR(VLOOKUP($A9,[1]البيانات!$B$2:$L$350,11,FALSE),\"\")","v":""}]
["AW 25*33*75",{"$f":"IFERROR(VLOOKUP($A10,[1]البيانات!$B$2:$L$350,11,FALSE),\"\")","v":""}]
["AW 20*33*75",{"$f":"IFERROR(VLOOKUP($A11,[1]البيانات!$B$2:$L$350,11,FALSE),\"\")","v":""}]
["ASB 100*56*75",{"$f":"IFERROR(VLOOKUP($A12,[1]البيانات!$B$2:$L$350,11,FALSE),\"\")","v":""}]
["AW 90*33*75",{"$f":"IFERROR(VLOOKUP($A13,[1]البيانات!$B$2:$L$350,11,FALSE),\"\")","v":""}]
["AW 40*33*75",{"$f":"IFERROR(VLOOKUP($A14,[1]البيانات!$B$2:$L$350,11,FALSE),\"\")","v":""}]
["AB 1*10*16",{"$f":"IFERROR(VLOOKUP($A15,[1]البيانات!$B$2:$L$350,11,FALSE),\"\")","v":13.9375}]
[null,{"$f":"IFERROR(VLOOKUP($A16,[1]البيانات!$B$2:$L$350,11,FALSE),\"\")","v":""}]
[null,{"$f":"IFERROR(VLOOKUP($A17,[1]البيانات!$B$2:$L$350,11,FALSE),\"\")","v":""}]
[null,{"$f":"IFERROR(VLOOKUP($A18,[1]البيانات!$B$2:$L$350,11,FALSE),\"\")","v":""}]
[null,{"$f":"IFERROR(VLOOKUP($A19,[1]البيانات!$B$2:$L$350,11,FALSE),\"\")","v":""}]
[null,{"$f":"IFERROR(VLOOKUP($A20,[1]البيانات!$B$2:$L$350,11,FALSE),\"\")","v":""}]
[null,{"$f":"IFERROR(VLOOKUP($A21,[1]البيانات!$B$2:$L$350,11,FALSE),\"\")","v":""}]
[null,{"$f":"IFERROR(VLOOKUP($A22,[1]البيانات!$B$2:$L$350,11,FALSE),\"\")","v":""}]
[null,{"$f":"IFERROR(VLOOKUP($A23,[1]البيانات!$B$2:$L$350,11,FALSE),\"\")","v":""}]
[null,{"$f":"IFERROR(VLOOKUP($A24,[1]البيانات!$B$2:$L$350,11,FALSE),\"\")","v":""}]
[null,{"$f":"IFERROR(VLOOKUP($A25,[1]البيانات!$B$2:$L$350,11,FALSE),\"\")","v":""}]
[null,{"$f":"IFERROR(VLOOKUP($A26,[1]البيانات!$B$2:$L$350,11,FALSE),\"\")","v":""}]
[null,{"$f":"IFERROR(VLOOKUP($A27,[1]البيانات!$B$2:$L$350,11,FALSE),\"\")","v":""}]
[null,{"$f":"IFERROR(VLOOKUP($A28,[1]البيانات!$B$2:$L$350,11,FALSE),\"\")","v":""}]
[null,{"$f":"IFERROR(VLOOKUP($A29,[1]البيانات!$B$2:$L$350,11,FALSE),\"\")","v":""}]
[null,{"$f":"IFERROR(VLOOKUP($A30,[1]البيانات!$B$2:$L$350,11,FALSE),\"\")","v":""}]
[null,{"$f":"IFERROR(VLOOKUP($A31,[1]البيانات!$B$2:$L$350,11,FALSE),\"\")","v":""}]
[null,{"$f":"IFERROR(VLOOKUP($A32,[1]البيانات!$B$2:$L$350,11,FALSE),\"\")","v":""}]
[null,{"$f":"IFERROR(VLOOKUP($A33,[1]البيانات!$B$2:$L$350,11,FALSE),\"\")","v":""}]
[null,{"$f":"IFERROR(VLOOKUP($A34,[1]البيانات!$B$2:$L$350,11,FALSE),\"\")","v":""}]
[null,{"$f":"IFERROR(VLOOKUP($A35,[1]البيانات!$B$2:$L$350,11,FALSE),\"\")","v":""}]
[null,{"$f":"IFERROR(VLOOKUP($A36,[1]البيانات!$B$2:$L$350,11,FALSE),\"\")","v":""}]
[null,{"$f":"IFERROR(VLOOKUP($A37,[1]البيانات!$B$2:$L$350,11,FALSE),\"\")","v":""}]
[null,{"$f":"IFERROR(VLOOKUP($A38,[1]البيانات!$B$2:$L$350,11,FALSE),\"\")","v":""}]
[null,{"$f":"IFERROR(VLOOKUP($A39,[1]البيانات!$B$2:$L$350,11,FALSE),\"\")","v":""}]
[null,{"$f":"IFERROR(VLOOKUP($A40,[1]البيانات!$B$2:$L$350,11,FALSE),\"\")","v":""}]
[null,{"$f":"IFERROR(VLOOKUP($A41,[1]البيانات!$B$2:$L$350,11,FALSE),\"\")","v":""}]
[null,{"$f":"IFERROR(VLOOKUP($A42,[1]البيانات!$B$2:$L$350,11,FALSE),\"\")","v":""}]
[null,{"$f":"IFERROR(VLOOKUP($A43,[1]البيانات!$B$2:$L$350,11,FALSE),\"\")","v":""}]
[null,{"$f":"IFERROR(VLOOKUP($A44,[1]البيانات!$B$2:$L$350,11,FALSE),\"\")","v":""}]
[null,{"$f":"IFERROR(VLOOKUP($A45,[1]البيانات!$B$2:$L$350,11,FALSE),\"\")","v":""}]
[null,{"$f":"IFERROR(VLOOKUP($A46,[1]البيانات!$B$2:$L$350,11,FALSE),\"\")","v":""}]
[null,{"$f":"IFERROR(VLOOKUP($A47,[1]البيانات!$B$2:$L$350,11,FALSE),\"\")","v":""}]
[null,{"$f":"IFERROR(VLOOKUP($A48,[1]البيانات!$B$2:$L$350,11,FALSE),\"\")","v":""}]
[null,{"$f":"IFERROR(VLOOKUP($A49,[1]البيانات!$B$2:$L$350,11,FALSE),\"\")","v":""}]
[null,{"$f":"IFERROR(VLOOKUP($A50,[1]البيانات!$B$2:$L$350,11,FALSE),\"\")","v":""}]
[null,{"$f":"IFERROR(VLOOKUP($A51,[1]البيانات!$B$2:$L$350,11,FALSE),\"\")","v":""}]
[null,{"$f":"IFERROR(VLOOKUP($A52,[1]البيانات!$B$2:$L$350,11,FALSE),\"\")","v":""}]
[null,{"$f":"IFERROR(VLOOKUP($A53,[1]البيانات!$B$2:$L$350,11,FALSE),\"\")","v":""}]
[null,{"$f":"IFERROR(VLOOKUP($A54,[1]البيانات!$B$2:$L$350,11,FALSE),\"\")","v":""}]
[null,{"$f":"IFERROR(VLOOKUP($A55,[1]البيانات!$B$2:$L$350,11,FALSE),\"\")","v":""}]
[null,{"$f":"IFERROR(VLOOKUP($A56,[1]البيانات!$B$2:$L$350,11,FALSE),\"\")","v":""}]
[null,{"$f":"IFERROR(VLOOKUP($A57,[1]البيانات!$B$2:$L$350,11,FALSE),\"\")","v":""}]
[null,{"$f":"IFERROR(VLOOKUP($A58,[1]البيانات!$B$2:$L$350,11,FALSE),\"\")","v":""}]
[null,{"$f":"IFERROR(VLOOKUP($A59,[1]البيانات!$B$2:$L$350,11,FALSE),\"\")","v":""}]
[null,{"$f":"IFERROR(VLOOKUP($A60,[1]البيانات!$B$2:$L$350,11,FALSE),\"\")","v":""}]
[null,{"$f":"IFERROR(VLOOKUP($A61,[1]البيانات!$B$2:$L$350,11,FALSE),\"\")","v":""}]
[null,{"$f":"IFERROR(VLOOKUP($A62,[1]البيانات!$B$2:$L$350,11,FALSE),\"\")","v":""}]
[null,{"$f":"IFERROR(VLOOKUP($A63,[1]البيانات!$B$2:$L$350,11,FALSE),\"\")","v":""}]
[null,{"$f":"IFERROR(VLOOKUP($A64,[1]البيانات!$B$2:$L$350,11,FALSE),\"\")","v":""}]
[null,{"$f":"IFERROR(VLOOKUP($A65,[1]البيانات!$B$2:$L$350,11,FALSE),\"\")","v":""}]
[null,{"$f":"IFERROR(VLOOKUP($A66,[1]البيانات!$B$2:$L$350,11,FALSE),\"\")","v":""}]
[null,{"$f":"IFERROR(VLOOKUP($A67,[1]البيانات!$B$2:$L$350,11,FALSE),\"\")","v":""}]
[null,{"$f":"IFERROR(VLOOKUP($A68,[1]البيانات!$B$2:$L$350,11,FALSE),\"\")","v":""}]
[null,{"$f":"IFERROR(VLOOKUP($A69,[1]البيانات!$B$2:$L$350,11,FALSE),\"\")","v":""}]
[null,{"$f":"IFERROR(VLOOKUP($A70,[1]البيانات!$B$2:$L$350,11,FALSE),\"\")","v":""}]
[null,{"$f":"IFERROR(VLOOKUP($A71,[1]البيانات!$B$2:$L$350,11,FALSE),\"\")","v":""}]
[null,{"$f":"IFERROR(VLOOKUP($A72,[1]البيانات!$B$2:$L$350,11,FALSE),\"\")","v":""}]
[null,{"$f":"IFERROR(VLOOKUP($A73,[1]البيانات!$B$2:$L$350,11,FALSE),\"\")","v":""}]
[null,{"$f":"IFERROR(VLOOKUP($A74,[1]البيانات!$B$2:$L$350,11,FALSE),\"\")","v":""}]
[null,{"$f":"IFERROR(VLOOKUP($A75,[1]البيانات!$B$2:$L$350,11,FALSE),\"\")","v":""}]
[null,{"$f":"IFERROR(VLOOKUP($A76,[1]البيانات!$B$2:$L$350,11,FALSE),\"\")","v":""}]
[null,{"$f":"IFERROR(VLOOKUP($A77,[1]البيانات!$B$2:$L$350,11,FALSE),\"\")","v":""}]
[null,{"$f":"IFERROR(VLOOKUP($A78,[1]البيانات!$B$2:$L$350,11,FALSE),\"\")","v":""}]
[null,{"$f":"IFERROR(VLOOKUP($A79,[1]البيانات!$B$2:$L$350,11,FALSE),\"\")","v":""}]
[null,{"$f":"IFERROR(VLOOKUP($A80,[1]البيانات!$B$2:$L$350,11,FALSE),\"\")","v":""}]
[null,{"$f":"IFERROR(VLOOKUP($A81,[1]البيانات!$B$2:$L$350,11,FALSE),\"\")","v":""}]
[null,{"$f":"IFERROR(VLOOKUP($A82,[1]البيانات!$B$2:$L$350,11,FALSE),\"\")","v":""}]
[null,{"$f":"IFERROR(VLOOKUP($A83,[1]البيانات!$B$2:$L$350,11,FALSE),\"\")","v":""}]
[null,{"$f":"IFERROR(VLOOKUP($A84,[1]البيانات!$B$2:$L$350,11,FALSE),\"\")","v":""}]
[null,{"$f":"IFERROR(VLOOKUP($A85,[1]البيانات!$B$2:$L$350,11,FALSE),\"\")","v":""}]
[null,{"$f":"IFERROR(VLOOKUP($A86,[1]البيانات!$B$2:$L$350,11,FALSE),\"\")","v":""}]
[null,{"$f":"IFERROR(VLOOKUP($A87,[1]البيانات!$B$2:$L$350,11,FALSE),\"\")","v":""}]
[null,{"$f":"IFERROR(VLOOKUP($A88,[1]البيانات!$B$2:$L$350,11,FALSE),\"\")","v":""}]
[null,{"$f":"IFERROR(VLOOKUP($A89,[1]البيانات!$B$2:$L$350,11,FALSE),\"\")","v":""}]
[null,{"$f":"IFERROR(VLOOKUP($A90,[1]البيانات!$B$2:$L$350,11,FALSE),\"\")","v":""}]
[null,{"$f":"IFERROR(VLOOKUP($A91,[1]البيانات!$B$2:$L$350,11,FALSE),\"\")","v":""}]
[null,{"$f":"IFERROR(VLOOKUP($A92,[1]البيانات!$B$2:$L$350,11,FALSE),\"\")","v":""}]
[null,{"$f":"IFERROR(VLOOKUP($A93,[1]البيانات!$B$2:$L$350,11,FALSE),\"\")","v":""}]
[null,{"$f":"IFERROR(VLOOKUP($A94,[1]البيانات!$B$2:$L$350,11,FALSE),\"\")","v":""}]
[null,{"$f":"IFERROR(VLOOKUP($A95,[1]البيانات!$B$2:$L$350,11,FALSE),\"\")","v":""}]
[null,{"$f":"IFERROR(VLOOKUP($A96,[1]البيانات!$B$2:$L$350,11,FALSE),\"\")","v":""}]
[null,{"$f":"IFERROR(VLOOKUP($A97,[1]البيانات!$B$2:$L$350,11,FALSE),\"\")","v":""}]
[null,{"$f":"IFERROR(VLOOKUP($A98,[1]البيانات!$B$2:$L$350,11,FALSE),\"\")","v":""}]
[null,{"$f":"IFERROR(VLOOKUP($A99,[1]البيانات!$B$2:$L$350,11,FALSE),\"\")","v":""}]
[null,{"$f":"IFERROR(VLOOKUP($A100,[1]البيانات!$B$2:$L$350,11,FALSE),\"\")","v":""}]
[null,{"$f":"IFERROR(VLOOKUP($A101,[1]البيانات!$B$2:$L$350,11,FALSE),\"\")","v":""}]
[null,{"$f":"IFERROR(VLOOKUP($A102,[1]البيانات!$B$2:$L$350,11,FALSE),\"\")","v":""}]
[null,{"$f":"IFERROR(VLOOKUP($A103,[1]البيانات!$B$2:$L$350,11,FALSE),\"\")","v":""}]
[null,{"$f":"IFERROR(VLOOKUP($A104,[1]البيانات!$B$2:$L$350,11,FALSE),\"\")","v":""}]
[null,{"$f":"IFERROR(VLOOKUP($A105,[1]البيانات!$B$2:$L$350,11,FALSE),\"\")","v":""}]
[null,{"$f":"IFERROR(VLOOKUP($A106,[1]البيانات!$B$2:$L$350,11,FALSE),\"\")","v":""}]
[null,{"$f":"IFERROR(VLOOKUP($A107,[1]البيانات!$B$2:$L$350,11,FALSE),\"\")","v":""}]
[null,{"$f":"IFERROR(VLOOKUP($A108,[1]البيانات!$B$2:$L$350,11,FALSE),\"\")","v":""}]
[null,{"$f":"IFERROR(VLOOKUP($A109,[1]البيانات!$B$2:$L$350,11,FALSE),\"\")","v":""}]
[null,{"$f":"IFERROR(VLOOKUP($A110,[1]البيانات!$B$2:$L$350,11,FALSE),\"\")","v":""}]
[null,{"$f":"IFERROR(VLOOKUP($A111,[1]البيانات!$B$2:$L$350,11,FALSE),\"\")","v":""}]
[null,{"$f":"IFERROR(VLOOKUP($A112,[1]البيانات!$B$2:$L$350,11,FALSE),\"\")","v":""}]
[null,{"$f":"IFERROR(VLOOKUP($A113,[1]البيانات!$B$2:$L$350,11,FALSE),\"\")","v":""}]
[null,{"$f":"IFERROR(VLOOKUP($A114,[1]البيانات!$B$2:$L$350,11,FALSE),\"\")","v":""}]
[null,{"$f":"IFERROR(VLOOKUP($A115,[1]البيانات!$B$2:$L$350,11,FALSE),\"\")","v":""}]
[null,{"$f":"IFERROR(VLOOKUP($A116,[1]البيانات!$B$2:$L$350,11,FALSE),\"\")","v":""}]
[null,{"$f":"IFERROR(VLOOKUP($A117,[1]البيانات!$B$2:$L$350,11,FALSE),\"\")","v":""}]
[null,{"$f":"IFERROR(VLOOKUP($A118,[1]البيانات!$B$2:$L$350,11,FALSE),\"\")","v":""}]
[null,{"$f":"IFERROR(VLOOKUP($A119,[1]البيانات!$B$2:$L$350,11,FALSE),\"\")","v":""}]
[null,{"$f":"IFERROR(VLOOKUP($A120,[1]البيانات!$B$2:$L$350,11,FALSE),\"\")","v":""}]
[null,{"$f":"IFERROR(VLOOKUP($A121,[1]البيانات!$B$2:$L$350,11,FALSE),\"\")","v":""}]
[null,{"$f":"IFERROR(VLOOKUP($A122,[1]البيانات!$B$2:$L$350,11,FALSE),\"\")","v":""}]
[null,{"$f":"IFERROR(VLOOKUP($A123,[1]البيانات!$B$2:$L$350,11,FALSE),\"\")","v":""}]
[null,{"$f":"IFERROR(VLOOKUP($A124,[1]البيانات!$B$2:$L$350,11,FALSE),\"\")","v":""}]
[null,{"$f":"IFERROR(VLOOKUP($A125,[1]البيانات!$B$2:$L$350,11,FALSE),\"\")","v":""}]
[null,{"$f":"IFERROR(VLOOKUP($A126,[1]البيانات!$B$2:$L$350,11,FALSE),\"\")","v":""}]
[null,{"$f":"IFERROR(VLOOKUP($A127,[1]البيانات!$B$2:$L$350,11,FALSE),\"\")","v":""}]
[null,{"$f":"IFERROR(VLOOKUP($A128,[1]البيانات!$B$2:$L$350,11,FALSE),\"\")","v":""}]
[null,{"$f":"IFERROR(VLOOKUP($A129,[1]البيانات!$B$2:$L$350,11,FALSE),\"\")","v":""}]
[null,{"$f":"IFERROR(VLOOKUP($A130,[1]البيانات!$B$2:$L$350,11,FALSE),\"\")","v":""}]
[null,{"$f":"IFERROR(VLOOKUP($A131,[1]البيانات!$B$2:$L$350,11,FALSE),\"\")","v":""}]
[null,{"$f":"IFERROR(VLOOKUP($A132,[1]البيانات!$B$2:$L$350,11,FALSE),\"\")","v":""}]
[null,{"$f":"IFERROR(VLOOKUP($A133,[1]البيانات!$B$2:$L$350,11,FALSE),\"\")","v":""}]
[null,{"$f":"IFERROR(VLOOKUP($A134,[1]البيانات!$B$2:$L$350,11,FALSE),\"\")","v":""}]
[null,{"$f":"IFERROR(VLOOKUP($A135,[1]البيانات!$B$2:$L$350,11,FALSE),\"\")","v":""}]
[null,{"$f":"IFERROR(VLOOKUP($A136,[1]البيانات!$B$2:$L$350,11,FALSE),\"\")","v":""}]
[null,{"$f":"IFERROR(VLOOKUP($A137,[1]البيانات!$B$2:$L$350,11,FALSE),\"\")","v":""}]
[null,{"$f":"IFERROR(VLOOKUP($A138,[1]البيانات!$B$2:$L$350,11,FALSE),\"\")","v":""}]
[null,{"$f":"IFERROR(VLOOKUP($A139,[1]البيانات!$B$2:$L$350,11,FALSE),\"\")","v":""}]
[null,{"$f":"IFERROR(VLOOKUP($A140,[1]البيانات!$B$2:$L$350,11,FALSE),\"\")","v":""}]
[null,{"$f":"IFERROR(VLOOKUP($A141,[1]البيانات!$B$2:$L$350,11,FALSE),\"\")","v":""}]
[null,{"$f":"IFERROR(VLOOKUP($A142,[1]البيانات!$B$2:$L$350,11,FALSE),\"\")","v":""}]
[null,{"$f":"IFERROR(VLOOKUP($A143,[1]البيانات!$B$2:$L$350,11,FALSE),\"\")","v":""}]
[null,{"$f":"IFERROR(VLOOKUP($A144,[1]البيانات!$B$2:$L$350,11,FALSE),\"\")","v":""}]
[null,{"$f":"IFERROR(VLOOKUP($A145,[1]البيانات!$B$2:$L$350,11,FALSE),\"\")","v":""}]
[null,{"$f":"IFERROR(VLOOKUP($A146,[1]البيانات!$B$2:$L$350,11,FALSE),\"\")","v":""}]
[null,{"$f":"IFERROR(VLOOKUP($A147,[1]البيانات!$B$2:$L$350,11,FALSE),\"\")","v":""}]
[null,{"$f":"IFERROR(VLOOKUP($A148,[1]البيانات!$B$2:$L$350,11,FALSE),\"\")","v":""}]
[null,{"$f":"IFERROR(VLOOKUP($A149,[1]البيانات!$B$2:$L$350,11,FALSE),\"\")","v":""}]
[null,{"$f":"IFERROR(VLOOKUP($A150,[1]البيانات!$B$2:$L$350,11,FALSE),\"\")","v":""}]
[null,{"$f":"IFERROR(VLOOKUP($A151,[1]البيانات!$B$2:$L$350,11,FALSE),\"\")","v":""}]
[null,{"$f":"IFERROR(VLOOKUP($A152,[1]البيانات!$B$2:$L$350,11,FALSE),\"\")","v":""}]
[null,{"$f":"IFERROR(VLOOKUP($A153,[1]البيانات!$B$2:$L$350,11,FALSE),\"\")","v":""}]
[null,{"$f":"IFERROR(VLOOKUP($A154,[1]البيانات!$B$2:$L$350,11,FALSE),\"\")","v":""}]
[null,{"$f":"IFERROR(VLOOKUP($A155,[1]البيانات!$B$2:$L$350,11,FALSE),\"\")","v":""}]
[null,{"$f":"IFERROR(VLOOKUP($A156,[1]البيانات!$B$2:$L$350,11,FALSE),\"\")","v":""}]
[null,{"$f":"IFERROR(VLOOKUP($A157,[1]البيانات!$B$2:$L$350,11,FALSE),\"\")","v":""}]
[null,{"$f":"IFERROR(VLOOKUP($A158,[1]البيانات!$B$2:$L$350,11,FALSE),\"\")","v":""}]
[null,{"$f":"IFERROR(VLOOKUP($A159,[1]البيانات!$B$2:$L$350,11,FALSE),\"\")","v":""}]
[null,{"$f":"IFERROR(VLOOKUP($A160,[1]البيانات!$B$2:$L$350,11,FALSE),\"\")","v":""}]
[null,{"$f":"IFERROR(VLOOKUP($A161,[1]البيانات!$B$2:$L$350,11,FALSE),\"\")","v":""}]
[null,{"$f":"IFERROR(VLOOKUP($A162,[1]البيانات!$B$2:$L$350,11,FALSE),\"\")","v":""}]
[null,{"$f":"IFERROR(VLOOKUP($A163,[1]البيانات!$B$2:$L$350,11,FALSE),\"\")","v":""}]
[null,{"$f":"IFERROR(VLOOKUP($A164,[1]البيانات!$B$2:$L$350,11,FALSE),\"\")","v":""}]
[null,{"$f":"IFERROR(VLOOKUP($A165,[1]البيانات!$B$2:$L$350,11,FALSE),\"\")","v":""}]
[null,{"$f":"IFERROR(VLOOKUP($A166,[1]البيانات!$B$2:$L$350,11,FALSE),\"\")","v":""}]
[null,{"$f":"IFERROR(VLOOKUP($A167,[1]البيانات!$B$2:$L$350,11,FALSE),\"\")","v":""}]
[null,{"$f":"IFERROR(VLOOKUP($A168,[1]البيانات!$B$2:$L$350,11,FALSE),\"\")","v":""}]
[null,{"$f":"IFERROR(VLOOKUP($A169,[1]البيانات!$B$2:$L$350,11,FALSE),\"\")","v":""}]
[null,{"$f":"IFERROR(VLOOKUP($A170,[1]البيانات!$B$2:$L$350,11,FALSE),\"\")","v":""}]
[null,{"$f":"IFERROR(VLOOKUP($A171,[1]البيانات!$B$2:$L$350,11,FALSE),\"\")","v":""}]
[null,{"$f":"IFERROR(VLOOKUP($A172,[1]البيانات!$B$2:$L$350,11,FALSE),\"\")","v":""}]
[null,{"$f":"IFERROR(VLOOKUP($A173,[1]البيانات!$B$2:$L$350,11,FALSE),\"\")","v":""}]
[null,{"$f":"IFERROR(VLOOKUP($A174,[1]البيانات!$B$2:$L$350,11,FALSE),\"\")","v":""}]
[null,{"$f":"IFERROR(VLOOKUP($A175,[1]البيانات!$B$2:$L$350,11,FALSE),\"\")","v":""}]
[null,{"$f":"IFERROR(VLOOKUP($A176,[1]البيانات!$B$2:$L$350,11,FALSE),\"\")","v":""}]
[null,{"$f":"IFERROR(VLOOKUP($A177,[1]البيانات!$B$2:$L$350,11,FALSE),\"\")","v":""}]
[null,{"$f":"IFERROR(VLOOKUP($A178,[1]البيانات!$B$2:$L$350,11,FALSE),\"\")","v":""}]
[null,{"$f":"IFERROR(VLOOKUP($A179,[1]البيانات!$B$2:$L$350,11,FALSE),\"\")","v":""}]
[null,{"$f":"IFERROR(VLOOKUP($A180,[1]البيانات!$B$2:$L$350,11,FALSE),\"\")","v":""}]
[null,{"$f":"IFERROR(VLOOKUP($A181,[1]البيانات!$B$2:$L$350,11,FALSE),\"\")","v":""}]
[null,{"$f":"IFERROR(VLOOKUP($A182,[1]البيانات!$B$2:$L$350,11,FALSE),\"\")","v":""}]
[null,{"$f":"IFERROR(VLOOKUP($A183,[1]البيانات!$B$2:$L$350,11,FALSE),\"\")","v":""}]
[null,{"$f":"IFERROR(VLOOKUP($A184,[1]البيانات!$B$2:$L$350,11,FALSE),\"\")","v":""}]
[null,{"$f":"IFERROR(VLOOKUP($A185,[1]البيانات!$B$2:$L$350,11,FALSE),\"\")","v":""}]
[null,{"$f":"IFERROR(VLOOKUP($A186,[1]البيانات!$B$2:$L$350,11,FALSE),\"\")","v":""}]
[null,{"$f":"IFERROR(VLOOKUP($A187,[1]البيانات!$B$2:$L$350,11,FALSE),\"\")","v":""}]
[null,{"$f":"IFERROR(VLOOKUP($A188,[1]البيانات!$B$2:$L$350,11,FALSE),\"\")","v":""}]
[null,{"$f":"IFERROR(VLOOKUP($A189,[1]البيانات!$B$2:$L$350,11,FALSE),\"\")","v":""}]
[null,{"$f":"IFERROR(VLOOKUP($A190,[1]البيانات!$B$2:$L$350,11,FALSE),\"\")","v":""}]
[null,{"$f":"IFERROR(VLOOKUP($A191,[1]البيانات!$B$2:$L$350,11,FALSE),\"\")","v":""}]
[null,{"$f":"IFERROR(VLOOKUP($A192,[1]البيانات!$B$2:$L$350,11,FALSE),\"\")","v":""}]
[null,{"$f":"IFERROR(VLOOKUP($A193,[1]البيانات!$B$2:$L$350,11,FALSE),\"\")","v":""}]
[null,{"$f":"IFERROR(VLOOKUP($A194,[1]البيانات!$B$2:$L$350,11,FALSE),\"\")","v":""}]
[null,{"$f":"IFERROR(VLOOKUP($A195,[1]البيانات!$B$2:$L$350,11,FALSE),\"\")","v":""}]
[null,{"$f":"IFERROR(VLOOKUP($A196,[1]البيانات!$B$2:$L$350,11,FALSE),\"\")","v":""}]
[null,{"$f":"IFERROR(VLOOKUP($A197,[1]البيانات!$B$2:$L$350,11,FALSE),\"\")","v":""}]
[null,{"$f":"IFERROR(VLOOKUP($A198,[1]البيانات!$B$2:$L$350,11,FALSE),\"\")","v":""}]
[null,{"$f":"IFERROR(VLOOKUP($A199,[1]البيانات!$B$2:$L$350,11,FALSE),\"\")","v":""}]
[null,{"$f":"IFERROR(VLOOKUP($A200,[1]البيانات!$B$2:$L$350,11,FALSE),\"\")","v":""}]
[null,{"$f":"IFERROR(VLOOKUP($A201,[1]البيانات!$B$2:$L$350,11,FALSE),\"\")","v":""}]
[null,{"$f":"IFERROR(VLOOKUP($A202,[1]البيانات!$B$2:$L$350,11,FALSE),\"\")","v":""}]
[null,{"$f":"IFERROR(VLOOKUP($A203,[1]البيانات!$B$2:$L$350,11,FALSE),\"\")","v":""}]
[null,{"$f":"IFERROR(VLOOKUP($A204,[1]البيانات!$B$2:$L$350,11,FALSE),\"\")","v":""}]
[null,{"$f":"IFERROR(VLOOKUP($A205,[1]البيانات!$B$2:$L$350,11,FALSE),\"\")","v":""}]
[null,{"$f":"IFERROR(VLOOKUP($A206,[1]البيانات!$B$2:$L$350,11,FALSE),\"\")","v":""}]
[null,{"$f":"IFERROR(VLOOKUP($A207,[1]البيانات!$B$2:$L$350,11,FALSE),\"\")","v":""}]
[null,{"$f":"IFERROR(VLOOKUP($A208,[1]البيانات!$B$2:$L$350,11,FALSE),\"\")","v":""}]
[null,{"$f":"IFERROR(VLOOKUP($A209,[1]البيانات!$B$2:$L$350,11,FALSE),\"\")","v":""}]
[null,{"$f":"IFERROR(VLOOKUP($A210,[1]البيانات!$B$2:$L$350,11,FALSE),\"\")","v":""}]
[null,{"$f":"IFERROR(VLOOKUP($A211,[1]البيانات!$B$2:$L$350,11,FALSE),\"\")","v":""}]
[null,{"$f":"IFERROR(VLOOKUP($A212,[1]البيانات!$B$2:$L$350,11,FALSE),\"\")","v":""}]
[null,{"$f":"IFERROR(VLOOKUP($A213,[1]البيانات!$B$2:$L$350,11,FALSE),\"\")","v":""}]
[null,{"$f":"IFERROR(VLOOKUP($A214,[1]البيانات!$B$2:$L$350,11,FALSE),\"\")","v":""}]
[null,{"$f":"IFERROR(VLOOKUP($A215,[1]البيانات!$B$2:$L$350,11,FALSE),\"\")","v":""}]
[null,{"$f":"IFERROR(VLOOKUP($A216,[1]البيانات!$B$2:$L$350,11,FALSE),\"\")","v":""}]
[null,{"$f":"IFERROR(VLOOKUP($A217,[1]البيانات!$B$2:$L$350,11,FALSE),\"\")","v":""}]
[null,{"$f":"IFERROR(VLOOKUP($A218,[1]البيانات!$B$2:$L$350,11,FALSE),\"\")","v":""}]
[null,{"$f":"IFERROR(VLOOKUP($A219,[1]البيانات!$B$2:$L$350,11,FALSE),\"\")","v":""}]
[null,{"$f":"IFERROR(VLOOKUP($A220,[1]البيانات!$B$2:$L$350,11,FALSE),\"\")","v":""}]
[null,{"$f":"IFERROR(VLOOKUP($A221,[1]البيانات!$B$2:$L$350,11,FALSE),\"\")","v":""}]
[null,{"$f":"IFERROR(VLOOKUP($A222,[1]البيانات!$B$2:$L$350,11,FALSE),\"\")","v":""}]
[null,{"$f":"IFERROR(VLOOKUP($A223,[1]البيانات!$B$2:$L$350,11,FALSE),\"\")","v":""}]
[null,{"$f":"IFERROR(VLOOKUP($A224,[1]البيانات!$B$2:$L$350,11,FALSE),\"\")","v":""}]
[null,{"$f":"IFERROR(VLOOKUP($A225,[1]البيانات!$B$2:$L$350,11,FALSE),\"\")","v":""}]
[null,{"$f":"IFERROR(VLOOKUP($A226,[1]البيانات!$B$2:$L$350,11,FALSE),\"\")","v":""}]
[null,{"$f":"IFERROR(VLOOKUP($A227,[1]البيانات!$B$2:$L$350,11,FALSE),\"\")","v":""}]
[null,{"$f":"IFERROR(VLOOKUP($A228,[1]البيانات!$B$2:$L$350,11,FALSE),\"\")","v":""}]
[null,{"$f":"IFERROR(VLOOKUP($A229,[1]البيانات!$B$2:$L$350,11,FALSE),\"\")","v":""}]
[null,{"$f":"IFERROR(VLOOKUP($A230,[1]البيانات!$B$2:$L$350,11,FALSE),\"\")","v":""}]
[null,{"$f":"IFERROR(VLOOKUP($A231,[1]البيانات!$B$2:$L$350,11,FALSE),\"\")","v":""}]
[null,{"$f":"IFERROR(VLOOKUP($A232,[1]البيانات!$B$2:$L$350,11,FALSE),\"\")","v":""}]
[null,{"$f":"IFERROR(VLOOKUP($A233,[1]البيانات!$B$2:$L$350,11,FALSE),\"\")","v":""}]
[null,{"$f":"IFERROR(VLOOKUP($A234,[1]البيانات!$B$2:$L$350,11,FALSE),\"\")","v":""}]
[null,{"$f":"IFERROR(VLOOKUP($A235,[1]البيانات!$B$2:$L$350,11,FALSE),\"\")","v":""}]
[null,{"$f":"IFERROR(VLOOKUP($A236,[1]البيانات!$B$2:$L$350,11,FALSE),\"\")","v":""}]
[null,{"$f":"IFERROR(VLOOKUP($A237,[1]البيانات!$B$2:$L$350,11,FALSE),\"\")","v":""}]
[null,{"$f":"IFERROR(VLOOKUP($A238,[1]البيانات!$B$2:$L$350,11,FALSE),\"\")","v":""}]
[null,{"$f":"IFERROR(VLOOKUP($A239,[1]البيانات!$B$2:$L$350,11,FALSE),\"\")","v":""}]
[null,{"$f":"IFERROR(VLOOKUP($A240,[1]البيانات!$B$2:$L$350,11,FALSE),\"\")","v":""}]
[null,{"$f":"IFERROR(VLOOKUP($A241,[1]البيانات!$B$2:$L$350,11,FALSE),\"\")","v":""}]
[null,{"$f":"IFERROR(VLOOKUP($A242,[1]البيانات!$B$2:$L$350,11,FALSE),\"\")","v":""}]
[null,{"$f":"IFERROR(VLOOKUP($A243,[1]البيانات!$B$2:$L$350,11,FALSE),\"\")","v":""}]
[null,{"$f":"IFERROR(VLOOKUP($A244,[1]البيانات!$B$2:$L$350,11,FALSE),\"\")","v":""}]
[null,{"$f":"IFERROR(VLOOKUP($A245,[1]البيانات!$B$2:$L$350,11,FALSE),\"\")","v":""}]
[null,{"$f":"IFERROR(VLOOKUP($A246,[1]البيانات!$B$2:$L$350,11,FALSE),\"\")","v":""}]
[null,{"$f":"IFERROR(VLOOKUP($A247,[1]البيانات!$B$2:$L$350,11,FALSE),\"\")","v":""}]
[null,{"$f":"IFERROR(VLOOKUP($A248,[1]البيانات!$B$2:$L$350,11,FALSE),\"\")","v":""}]
[null,{"$f":"IFERROR(VLOOKUP($A249,[1]البيانات!$B$2:$L$350,11,FALSE),\"\")","v":""}]
[null,{"$f":"IFERROR(VLOOKUP($A250,[1]البيانات!$B$2:$L$350,11,FALSE),\"\")","v":""}]
[null,{"$f":"IFERROR(VLOOKUP($A251,[1]البيانات!$B$2:$L$350,11,FALSE),\"\")","v":""}]
[null,{"$f":"IFERROR(VLOOKUP($A252,[1]البيانات!$B$2:$L$350,11,FALSE),\"\")","v":""}]
[null,{"$f":"IFERROR(VLOOKUP($A253,[1]البيانات!$B$2:$L$350,11,FALSE),\"\")","v":""}]
[null,{"$f":"IFERROR(VLOOKUP($A254,[1]البيانات!$B$2:$L$350,11,FALSE),\"\")","v":""}]
[null,{"$f":"IFERROR(VLOOKUP($A255,[1]البيانات!$B$2:$L$350,11,FALSE),\"\")","v":""}]
[null,{"$f":"IFERROR(VLOOKUP($A256,[1]البيانات!$B$2:$L$350,11,FALSE),\"\")","v":""}]
[null,{"$f":"IFERROR(VLOOKUP($A257,[1]البيانات!$B$2:$L$350,11,FALSE),\"\")","v":""}]
[null,{"$f":"IFERROR(VLOOKUP($A258,[1]البيانات!$B$2:$L$350,11,FALSE),\"\")","v":""}]
[null,{"$f":"IFERROR(VLOOKUP($A259,[1]البيانات!$B$2:$L$350,11,FALSE),\"\")","v":""}]
[null,{"$f":"IFERROR(VLOOKUP($A260,[1]البيانات!$B$2:$L$350,11,FALSE),\"\")","v":""}]
[null,{"$f":"IFERROR(VLOOKUP($A261,[1]البيانات!$B$2:$L$350,11,FALSE),\"\")","v":""}]
[null,{"$f":"IFERROR(VLOOKUP($A262,[1]البيانات!$B$2:$L$350,11,FALSE),\"\")","v":""}]
[null,{"$f":"IFERROR(VLOOKUP($A263,[1]البيانات!$B$2:$L$350,11,FALSE),\"\")","v":""}]
[null,{"$f":"IFERROR(VLOOKUP($A264,[1]البيانات!$B$2:$L$350,11,FALSE),\"\")","v":""}]
[null,{"$f":"IFERROR(VLOOKUP($A265,[1]البيانات!$B$2:$L$350,11,FALSE),\"\")","v":""}]
[null,{"$f":"IFERROR(VLOOKUP($A266,[1]البيانات!$B$2:$L$350,11,FALSE),\"\")","v":""}]
[null,{"$f":"IFERROR(VLOOKUP($A267,[1]البيانات!$B$2:$L$350,11,FALSE),\"\")","v":""}]
[null,{"$f":"IFERROR(VLOOKUP($A268,[1]البيانات!$B$2:$L$350,11,FALSE),\"\")","v":""}]
[null,{"$f":"IFERROR(VLOOKUP($A269,[1]البيانات!$B$2:$L$350,11,FALSE),\"\")","v":""}]
[null,{"$f":"IFERROR(VLOOKUP($A270,[1]البيانات!$B$2:$L$350,11,FALSE),\"\")","v":""}]
[null,{"$f":"IFERROR(VLOOKUP($A271,[1]البيانات!$B$2:$L$350,11,FALSE),\"\")","v":""}]
[null,{"$f":"IFERROR(VLOOKUP($A272,[1]البيانات!$B$2:$L$350,11,FALSE),\"\")","v":""}]
[null,{"$f":"IFERROR(VLOOKUP($A273,[1]البيانات!$B$2:$L$350,11,FALSE),\"\")","v":""}]
[null,{"$f":"IFERROR(VLOOKUP($A274,[1]البيانات!$B$2:$L$350,11,FALSE),\"\")","v":""}]
[null,{"$f":"IFERROR(VLOOKUP($A275,[1]البيانات!$B$2:$L$350,11,FALSE),\"\")","v":""}]
[null,{"$f":"IFERROR(VLOOKUP($A276,[1]البيانات!$B$2:$L$350,11,FALSE),\"\")","v":""}]
[null,{"$f":"IFERROR(VLOOKUP($A277,[1]البيانات!$B$2:$L$350,11,FALSE),\"\")","v":""}]
[null,{"$f":"IFERROR(VLOOKUP($A278,[1]البيانات!$B$2:$L$350,11,FALSE),\"\")","v":""}]
[null,{"$f":"IFERROR(VLOOKUP($A279,[1]البيانات!$B$2:$L$350,11,FALSE),\"\")","v":""}]
[null,{"$f":"IFERROR(VLOOKUP($A280,[1]البيانات!$B$2:$L$350,11,FALSE),\"\")","v":""}]
[null,{"$f":"IFERROR(VLOOKUP($A281,[1]البيانات!$B$2:$L$350,11,FALSE),\"\")","v":""}]
[null,{"$f":"IFERROR(VLOOKUP($A282,[1]البيانات!$B$2:$L$350,11,FALSE),\"\")","v":""}]
[null,{"$f":"IFERROR(VLOOKUP($A283,[1]البيانات!$B$2:$L$350,11,FALSE),\"\")","v":""}]
[null,{"$f":"IFERROR(VLOOKUP($A284,[1]البيانات!$B$2:$L$350,11,FALSE),\"\")","v":""}]
[null,{"$f":"IFERROR(VLOOKUP($A285,[1]البيانات!$B$2:$L$350,11,FALSE),\"\")","v":""}]
[null,{"$f":"IFERROR(VLOOKUP($A286,[1]البيانات!$B$2:$L$350,11,FALSE),\"\")","v":""}]
[null,{"$f":"IFERROR(VLOOKUP($A287,[1]البيانات!$B$2:$L$350,11,FALSE),\"\")","v":""}]
[null,{"$f":"IFERROR(VLOOKUP($A288,[1]البيانات!$B$2:$L$350,11,FALSE),\"\")","v":""}]
[null,{"$f":"IFERROR(VLOOKUP($A289,[1]البيانات!$B$2:$L$350,11,FALSE),\"\")","v":""}]
[null,{"$f":"IFERROR(VLOOKUP($A290,[1]البيانات!$B$2:$L$350,11,FALSE),\"\")","v":""}]
[null,{"$f":"IFERROR(VLOOKUP($A291,[1]البيانات!$B$2:$L$350,11,FALSE),\"\")","v":""}]
[null,{"$f":"IFERROR(VLOOKUP($A292,[1]البيانات!$B$2:$L$350,11,FALSE),\"\")","v":""}]
[null,{"$f":"IFERROR(VLOOKUP($A293,[1]البيانات!$B$2:$L$350,11,FALSE),\"\")","v":""}]
[null,{"$f":"IFERROR(VLOOKUP($A294,[1]البيانات!$B$2:$L$350,11,FALSE),\"\")","v":""}]
[null,{"$f":"IFERROR(VLOOKUP($A295,[1]البيانات!$B$2:$L$350,11,FALSE),\"\")","v":""}]
[null,{"$f":"IFERROR(VLOOKUP($A296,[1]البيانات!$B$2:$L$350,11,FALSE),\"\")","v":""}]
[null,{"$f":"IFERROR(VLOOKUP($A297,[1]البيانات!$B$2:$L$350,11,FALSE),\"\")","v":""}]
[null,{"$f":"IFERROR(VLOOKUP($A298,[1]البيانات!$B$2:$L$350,11,FALSE),\"\")","v":""}]
[null,{"$f":"IFERROR(VLOOKUP($A299,[1]البيانات!$B$2:$L$350,11,FALSE),\"\")","v":""}]
[null,{"$f":"IFERROR(VLOOKUP($A300,[1]البيانات!$B$2:$L$350,11,FALSE),\"\")","v":""}]
[null,{"$f":"IFERROR(VLOOKUP($A301,[1]البيانات!$B$2:$L$350,11,FALSE),\"\")","v":""}]
[null,{"$f":"IFERROR(VLOOKUP($A302,[1]البيانات!$B$2:$L$350,11,FALSE),\"\")","v":""}]
[null,{"$f":"IFERROR(VLOOKUP($A303,[1]البيانات!$B$2:$L$350,11,FALSE),\"\")","v":""}]
[null,{"$f":"IFERROR(VLOOKUP($A304,[1]البيانات!$B$2:$L$350,11,FALSE),\"\")","v":""}]
[null,{"$f":"IFERROR(VLOOKUP($A305,[1]البيانات!$B$2:$L$350,11,FALSE),\"\")","v":""}]
[null,{"$f":"IFERROR(VLOOKUP($A306,[1]البيانات!$B$2:$L$350,11,FALSE),\"\")","v":""}]
[null,{"$f":"IFERROR(VLOOKUP($A307,[1]البيانات!$B$2:$L$350,11,FALSE),\"\")","v":""}]
[null,{"$f":"IFERROR(VLOOKUP($A308,[1]البيانات!$B$2:$L$350,11,FALSE),\"\")","v":""}]
[null,{"$f":"IFERROR(VLOOKUP($A309,[1]البيانات!$B$2:$L$350,11,FALSE),\"\")","v":""}]
[null,{"$f":"IFERROR(VLOOKUP($A310,[1]البيانات!$B$2:$L$350,11,FALSE),\"\")","v":""}]
[null,{"$f":"IFERROR(VLOOKUP($A311,[1]البيانات!$B$2:$L$350,11,FALSE),\"\")","v":""}]
[null,{"$f":"IFERROR(VLOOKUP($A312,[1]البيانات!$B$2:$L$350,11,FALSE),\"\")","v":""}]
[null,{"$f":"IFERROR(VLOOKUP($A313,[1]البيانات!$B$2:$L$350,11,FALSE),\"\")","v":""}]
[null,{"$f":"IFERROR(VLOOKUP($A314,[1]البيانات!$B$2:$L$350,11,FALSE),\"\")","v":""}]
[null,{"$f":"IFERROR(VLOOKUP($A315,[1]البيانات!$B$2:$L$350,11,FALSE),\"\")","v":""}]
[null,{"$f":"IFERROR(VLOOKUP($A316,[1]البيانات!$B$2:$L$350,11,FALSE),\"\")","v":""}]
[null,{"$f":"IFERROR(VLOOKUP($A317,[1]البيانات!$B$2:$L$350,11,FALSE),\"\")","v":""}]
[null,{"$f":"IFERROR(VLOOKUP($A318,[1]البيانات!$B$2:$L$350,11,FALSE),\"\")","v":""}]
[null,{"$f":"IFERROR(VLOOKUP($A319,[1]البيانات!$B$2:$L$350,11,FALSE),\"\")","v":""}]
[null,{"$f":"IFERROR(VLOOKUP($A320,[1]البيانات!$B$2:$L$350,11,FALSE),\"\")","v":""}]
[null,{"$f":"IFERROR(VLOOKUP($A321,[1]البيانات!$B$2:$L$350,11,FALSE),\"\")","v":""}]
[null,{"$f":"IFERROR(VLOOKUP($A322,[1]البيانات!$B$2:$L$350,11,FALSE),\"\")","v":""}]
[null,{"$f":"IFERROR(VLOOKUP($A323,[1]البيانات!$B$2:$L$350,11,FALSE),\"\")","v":""}]
[null,{"$f":"IFERROR(VLOOKUP($A324,[1]البيانات!$B$2:$L$350,11,FALSE),\"\")","v":""}]
[null,{"$f":"IFERROR(VLOOKUP($A325,[1]البيانات!$B$2:$L$350,11,FALSE),\"\")","v":""}]
[null,{"$f":"IFERROR(VLOOKUP($A326,[1]البيانات!$B$2:$L$350,11,FALSE),\"\")","v":""}]
[null,{"$f":"IFERROR(VLOOKUP($A327,[1]البيانات!$B$2:$L$350,11,FALSE),\"\")","v":""}]
[null,{"$f":"IFERROR(VLOOKUP($A328,[1]البيانات!$B$2:$L$350,11,FALSE),\"\")","v":""}]
[null,{"$f":"IFERROR(VLOOKUP($A329,[1]البيانات!$B$2:$L$350,11,FALSE),\"\")","v":""}]
[null,{"$f":"IFERROR(VLOOKUP($A330,[1]البيانات!$B$2:$L$350,11,FALSE),\"\")","v":""}]
[null,{"$f":"IFERROR(VLOOKUP($A331,[1]البيانات!$B$2:$L$350,11,FALSE),\"\")","v":""}]
[null,{"$f":"IFERROR(VLOOKUP($A332,[1]البيانات!$B$2:$L$350,11,FALSE),\"\")","v":""}]
[null,{"$f":"IFERROR(VLOOKUP($A333,[1]البيانات!$B$2:$L$350,11,FALSE),\"\")","v":""}]
[null,{"$f":"IFERROR(VLOOKUP($A334,[1]البيانات!$B$2:$L$350,11,FALSE),\"\")","v":""}]
[null,{"$f":"IFERROR(VLOOKUP($A335,[1]البيانات!$B$2:$L$350,11,FALSE),\"\")","v":""}]
[null,{"$f":"IFERROR(VLOOKUP($A336,[1]البيانات!$B$2:$L$350,11,FALSE),\"\")","v":""}]
[null,{"$f":"IFERROR(VLOOKUP($A337,[1]البيانات!$B$2:$L$350,11,FALSE),\"\")","v":""}]
[null,{"$f":"IFERROR(VLOOKUP($A338,[1]البيانات!$B$2:$L$350,11,FALSE),\"\")","v":""}]
[null,{"$f":"IFERROR(VLOOKUP($A339,[1]البيانات!$B$2:$L$350,11,FALSE),\"\")","v":""}]
[null,{"$f":"IFERROR(VLOOKUP($A340,[1]البيانات!$B$2:$L$350,11,FALSE),\"\")","v":""}]
[null,{"$f":"IFERROR(VLOOKUP($A341,[1]البيانات!$B$2:$L$350,11,FALSE),\"\")","v":""}]
[null,{"$f":"IFERROR(VLOOKUP($A342,[1]البيانات!$B$2:$L$350,11,FALSE),\"\")","v":""}]
[null,{"$f":"IFERROR(VLOOKUP($A343,[1]البيانات!$B$2:$L$350,11,FALSE),\"\")","v":""}]
[null,{"$f":"IFERROR(VLOOKUP($A344,[1]البيانات!$B$2:$L$350,11,FALSE),\"\")","v":""}]
[null,{"$f":"IFERROR(VLOOKUP($A345,[1]البيانات!$B$2:$L$350,11,FALSE),\"\")","v":""}]
[null,{"$f":"IFERROR(VLOOKUP($A346,[1]البيانات!$B$2:$L$350,11,FALSE),\"\")","v":""}]
[null,{"$f":"IFERROR(VLOOKUP($A347,[1]البيانات!$B$2:$L$350,11,FALSE),\"\")","v":""}]
[null,{"$f":"IFERROR(VLOOKUP($A348,[1]البيانات!$B$2:$L$350,11,FALSE),\"\")","v":""}]
[null,{"$f":"IFERROR(VLOOKUP($A349,[1]البيانات!$B$2:$L$350,11,FALSE),\"\")","v":""}]
[null,{"$f":"IFERROR(VLOOKUP($A350,[1]البيانات!$B$2:$L$350,11,FALSE),\"\")","v":""}]
[null,{"$f":"IFERROR(VLOOKUP($A351,[1]البيانات!$B$2:$L$350,11,FALSE),\"\")","v":""}]
[null,{"$f":"IFERROR(VLOOKUP($A352,[1]البيانات!$B$2:$L$350,11,FALSE),\"\")","v":""}]
[null,{"$f":"IFERROR(VLOOKUP($A353,[1]البيانات!$B$2:$L$350,11,FALSE),\"\")","v":""}]
[null,{"$f":"IFERROR(VLOOKUP($A354,[1]البيانات!$B$2:$L$350,11,FALSE),\"\")","v":""}]
[null,{"$f":"IFERROR(VLOOKUP($A355,[1]البيانات!$B$2:$L$350,11,FALSE),\"\")","v":""}]
[null,{"$f":"IFERROR(VLOOKUP($A356,[1]البيانات!$B$2:$L$350,11,FALSE),\"\")","v":""}]
[null,{"$f":"IFERROR(VLOOKUP($A357,[1]البيانات!$B$2:$L$350,11,FALSE),\"\")","v":""}]
[null,{"$f":"IFERROR(VLOOKUP($A358,[1]البيانات!$B$2:$L$350,11,FALSE),\"\")","v":""}]
[null,{"$f":"IFERROR(VLOOKUP($A359,[1]البيانات!$B$2:$L$350,11,FALSE),\"\")","v":""}]
[null,{"$f":"IFERROR(VLOOKUP($A360,[1]البيانات!$B$2:$L$350,11,FALSE),\"\")","v":""}]
[null,{"$f":"IFERROR(VLOOKUP($A361,[1]البيانات!$B$2:$L$350,11,FALSE),\"\")","v":""}]
[null,{"$f":"IFERROR(VLOOKUP($A362,[1]البيانات!$B$2:$L$350,11,FALSE),\"\")","v":""}]
[null,{"$f":"IFERROR(VLOOKUP($A363,[1]البيانات!$B$2:$L$350,11,FALSE),\"\")","v":""}]
[null,{"$f":"IFERROR(VLOOKUP($A364,[1]البيانات!$B$2:$L$350,11,FALSE),\"\")","v":""}]
[null,{"$f":"IFERROR(VLOOKUP($A365,[1]البيانات!$B$2:$L$350,11,FALSE),\"\")","v":""}]
[null,{"$f":"IFERROR(VLOOKUP($A366,[1]البيانات!$B$2:$L$350,11,FALSE),\"\")","v":""}]
[null,{"$f":"IFERROR(VLOOKUP($A367,[1]البيانات!$B$2:$L$350,11,FALSE),\"\")","v":""}]
[null,{"$f":"IFERROR(VLOOKUP($A368,[1]البيانات!$B$2:$L$350,11,FALSE),\"\")","v":""}]
[null,{"$f":"IFERROR(VLOOKUP($A369,[1]البيانات!$B$2:$L$350,11,FALSE),\"\")","v":""}]
[null,{"$f":"IFERROR(VLOOKUP($A370,[1]البيانات!$B$2:$L$350,11,FALSE),\"\")","v":""}]
[null,{"$f":"IFERROR(VLOOKUP($A371,[1]البيانات!$B$2:$L$350,11,FALSE),\"\")","v":""}]
[null,{"$f":"IFERROR(VLOOKUP($A372,[1]البيانات!$B$2:$L$350,11,FALSE),\"\")","v":""}]
[null,{"$f":"IFERROR(VLOOKUP($A373,[1]البيانات!$B$2:$L$350,11,FALSE),\"\")","v":""}]
[null,{"$f":"IFERROR(VLOOKUP($A374,[1]البيانات!$B$2:$L$350,11,FALSE),\"\")","v":""}]
[null,{"$f":"IFERROR(VLOOKUP($A375,[1]البيانات!$B$2:$L$350,11,FALSE),\"\")","v":""}]
[null,{"$f":"IFERROR(VLOOKUP($A376,[1]البيانات!$B$2:$L$350,11,FALSE),\"\")","v":""}]
[null,{"$f":"IFERROR(VLOOKUP($A377,[1]البيانات!$B$2:$L$350,11,FALSE),\"\")","v":""}]
[null,{"$f":"IFERROR(VLOOKUP($A378,[1]البيانات!$B$2:$L$350,11,FALSE),\"\")","v":""}]
[null,{"$f":"IFERROR(VLOOKUP($A379,[1]البيانات!$B$2:$L$350,11,FALSE),\"\")","v":""}]
[null,{"$f":"IFERROR(VLOOKUP($A380,[1]البيانات!$B$2:$L$350,11,FALSE),\"\")","v":""}]
[null,{"$f":"IFERROR(VLOOKUP($A381,[1]البيانات!$B$2:$L$350,11,FALSE),\"\")","v":""}]
[null,{"$f":"IFERROR(VLOOKUP($A382,[1]البيانات!$B$2:$L$350,11,FALSE),\"\")","v":""}]
[null,{"$f":"IFERROR(VLOOKUP($A383,[1]البيانات!$B$2:$L$350,11,FALSE),\"\")","v":""}]
[null,{"$f":"IFERROR(VLOOKUP($A384,[1]البيانات!$B$2:$L$350,11,FALSE),\"\")","v":""}]
[null,{"$f":"IFERROR(VLOOKUP($A385,[1]البيانات!$B$2:$L$350,11,FALSE),\"\")","v":""}]
[null,{"$f":"IFERROR(VLOOKUP($A386,[1]البيانات!$B$2:$L$350,11,FALSE),\"\")","v":""}]
[null,{"$f":"IFERROR(VLOOKUP($A387,[1]البيانات!$B$2:$L$350,11,FALSE),\"\")","v":""}]
[null,{"$f":"IFERROR(VLOOKUP($A388,[1]البيانات!$B$2:$L$350,11,FALSE),\"\")","v":""}]
[null,{"$f":"IFERROR(VLOOKUP($A389,[1]البيانات!$B$2:$L$350,11,FALSE),\"\")","v":""}]
[null,{"$f":"IFERROR(VLOOKUP($A390,[1]البيانات!$B$2:$L$350,11,FALSE),\"\")","v":""}]
[null,{"$f":"IFERROR(VLOOKUP($A391,[1]البيانات!$B$2:$L$350,11,FALSE),\"\")","v":""}]
[null,{"$f":"IFERROR(VLOOKUP($A392,[1]البيانات!$B$2:$L$350,11,FALSE),\"\")","v":""}]
[null,{"$f":"IFERROR(VLOOKUP($A393,[1]البيانات!$B$2:$L$350,11,FALSE),\"\")","v":""}]
[null,{"$f":"IFERROR(VLOOKUP($A394,[1]البيانات!$B$2:$L$350,11,FALSE),\"\")","v":""}]
[null,{"$f":"IFERROR(VLOOKUP($A395,[1]البيانات!$B$2:$L$350,11,FALSE),\"\")","v":""}]
[null,{"$f":"IFERROR(VLOOKUP($A396,[1]البيانات!$B$2:$L$350,11,FALSE),\"\")","v":""}]
[null,{"$f":"IFERROR(VLOOKUP($A397,[1]البيانات!$B$2:$L$350,11,FALSE),\"\")","v":""}]
[null,{"$f":"IFERROR(VLOOKUP($A398,[1]البيانات!$B$2:$L$350,11,FALSE),\"\")","v":""}]
[null,{"$f":"IFERROR(VLOOKUP($A399,[1]البيانات!$B$2:$L$350,11,FALSE),\"\")","v":""}]
[null,{"$f":"IFERROR(VLOOKUP($A400,[1]البيانات!$B$2:$L$350,11,FALSE),\"\")","v":""}]
[null,{"$f":"IFERROR(VLOOKUP($A401,[1]البيانات!$B$2:$L$350,11,FALSE),\"\")","v":""}]
[null,{"$f":"IFERROR(VLOOKUP($A402,[1]البيانات!$B$2:$L$350,11,FALSE),\"\")","v":""}]
[null,{"$f":"IFERROR(VLOOKUP($A403,[1]البيانات!$B$2:$L$350,11,FALSE),\"\")","v":""}]
[null,{"$f":"IFERROR(VLOOKUP($A404,[1]البيانات!$B$2:$L$350,11,FALSE),\"\")","v":""}]
[null,{"$f":"IFERROR(VLOOKUP($A405,[1]البيانات!$B$2:$L$350,11,FALSE),\"\")","v":""}]
[null,{"$f":"IFERROR(VLOOKUP($A406,[1]البيانات!$B$2:$L$350,11,FALSE),\"\")","v":""}]
[null,{"$f":"IFERROR(VLOOKUP($A407,[1]البيانات!$B$2:$L$350,11,FALSE),\"\")","v":""}]
[null,{"$f":"IFERROR(VLOOKUP($A408,[1]البيانات!$B$2:$L$350,11,FALSE),\"\")","v":""}]
[null,{"$f":"IFERROR(VLOOKUP($A409,[1]البيانات!$B$2:$L$350,11,FALSE),\"\")","v":""}]
[null,{"$f":"IFERROR(VLOOKUP($A410,[1]البيانات!$B$2:$L$350,11,FALSE),\"\")","v":""}]
[null,{"$f":"IFERROR(VLOOKUP($A411,[1]البيانات!$B$2:$L$350,11,FALSE),\"\")","v":""}]
[null,{"$f":"IFERROR(VLOOKUP($A412,[1]البيانات!$B$2:$L$350,11,FALSE),\"\")","v":""}]
[null,{"$f":"IFERROR(VLOOKUP($A413,[1]البيانات!$B$2:$L$350,11,FALSE),\"\")","v":""}]
[null,{"$f":"IFERROR(VLOOKUP($A414,[1]البيانات!$B$2:$L$350,11,FALSE),\"\")","v":""}]
[null,{"$f":"IFERROR(VLOOKUP($A415,[1]البيانات!$B$2:$L$350,11,FALSE),\"\")","v":""}]
[null,{"$f":"IFERROR(VLOOKUP($A416,[1]البيانات!$B$2:$L$350,11,FALSE),\"\")","v":""}]
[null,{"$f":"IFERROR(VLOOKUP($A417,[1]البيانات!$B$2:$L$350,11,FALSE),\"\")","v":""}]
[null,{"$f":"IFERROR(VLOOKUP($A418,[1]البيانات!$B$2:$L$350,11,FALSE),\"\")","v":""}]
[null,{"$f":"IFERROR(VLOOKUP($A419,[1]البيانات!$B$2:$L$350,11,FALSE),\"\")","v":""}]
[null,{"$f":"IFERROR(VLOOKUP($A420,[1]البيانات!$B$2:$L$350,11,FALSE),\"\")","v":""}]
[null,{"$f":"IFERROR(VLOOKUP($A421,[1]البيانات!$B$2:$L$350,11,FALSE),\"\")","v":""}]
[null,{"$f":"IFERROR(VLOOKUP($A422,[1]البيانات!$B$2:$L$350,11,FALSE),\"\")","v":""}]
[null,{"$f":"IFERROR(VLOOKUP($A423,[1]البيانات!$B$2:$L$350,11,FALSE),\"\")","v":""}]
[null,{"$f":"IFERROR(VLOOKUP($A424,[1]البيانات!$B$2:$L$350,11,FALSE),\"\")","v":""}]
[null,{"$f":"IFERROR(VLOOKUP($A425,[1]البيانات!$B$2:$L$350,11,FALSE),\"\")","v":""}]
[null,{"$f":"IFERROR(VLOOKUP($A426,[1]البيانات!$B$2:$L$350,11,FALSE),\"\")","v":""}]
[null,{"$f":"IFERROR(VLOOKUP($A427,[1]البيانات!$B$2:$L$350,11,FALSE),\"\")","v":""}]
[null,{"$f":"IFERROR(VLOOKUP($A428,[1]البيانات!$B$2:$L$350,11,FALSE),\"\")","v":""}]
[null,{"$f":"IFERROR(VLOOKUP($A429,[1]البيانات!$B$2:$L$350,11,FALSE),\"\")","v":""}]
[null,{"$f":"IFERROR(VLOOKUP($A430,[1]البيانات!$B$2:$L$350,11,FALSE),\"\")","v":""}]
[null,{"$f":"IFERROR(VLOOKUP($A431,[1]البيانات!$B$2:$L$350,11,FALSE),\"\")","v":""}]
[null,{"$f":"IFERROR(VLOOKUP($A432,[1]البيانات!$B$2:$L$350,11,FALSE),\"\")","v":""}]
[null,{"$f":"IFERROR(VLOOKUP($A433,[1]البيانات!$B$2:$L$350,11,FALSE),\"\")","v":""}]
[null,{"$f":"IFERROR(VLOOKUP($A434,[1]البيانات!$B$2:$L$350,11,FALSE),\"\")","v":""}]
[null,{"$f":"IFERROR(VLOOKUP($A435,[1]البيانات!$B$2:$L$350,11,FALSE),\"\")","v":""}]
[null,{"$f":"IFERROR(VLOOKUP($A436,[1]البيانات!$B$2:$L$350,11,FALSE),\"\")","v":""}]
[null,{"$f":"IFERROR(VLOOKUP($A437,[1]البيانات!$B$2:$L$350,11,FALSE),\"\")","v":""}]
[null,{"$f":"IFERROR(VLOOKUP($A438,[1]البيانات!$B$2:$L$350,11,FALSE),\"\")","v":""}]
[null,{"$f":"IFERROR(VLOOKUP($A439,[1]البيانات!$B$2:$L$350,11,FALSE),\"\")","v":""}]
[null,{"$f":"IFERROR(VLOOKUP($A440,[1]البيانات!$B$2:$L$350,11,FALSE),\"\")","v":""}]
[null,{"$f":"IFERROR(VLOOKUP($A441,[1]البيانات!$B$2:$L$350,11,FALSE),\"\")","v":""}]
[null,{"$f":"IFERROR(VLOOKUP($A442,[1]البيانات!$B$2:$L$350,11,FALSE),\"\")","v":""}]
[null,{"$f":"IFERROR(VLOOKUP($A443,[1]البيانات!$B$2:$L$350,11,FALSE),\"\")","v":""}]
[null,{"$f":"IFERROR(VLOOKUP($A444,[1]البيانات!$B$2:$L$350,11,FALSE),\"\")","v":""}]
[null,{"$f":"IFERROR(VLOOKUP($A445,[1]البيانات!$B$2:$L$350,11,FALSE),\"\")","v":""}]
[null,{"$f":"IFERROR(VLOOKUP($A446,[1]البيانات!$B$2:$L$350,11,FALSE),\"\")","v":""}]
[null,{"$f":"IFERROR(VLOOKUP($A447,[1]البيانات!$B$2:$L$350,11,FALSE),\"\")","v":""}]
[null,{"$f":"IFERROR(VLOOKUP($A448,[1]البيانات!$B$2:$L$350,11,FALSE),\"\")","v":""}]
[null,{"$f":"IFERROR(VLOOKUP($A449,[1]البيانات!$B$2:$L$350,11,FALSE),\"\")","v":""}]
[null,{"$f":"IFERROR(VLOOKUP($A450,[1]البيانات!$B$2:$L$350,11,FALSE),\"\")","v":""}]
[null,{"$f":"IFERROR(VLOOKUP($A451,[1]البيانات!$B$2:$L$350,11,FALSE),\"\")","v":""}]
[null,{"$f":"IFERROR(VLOOKUP($A452,[1]البيانات!$B$2:$L$350,11,FALSE),\"\")","v":""}]
[null,{"$f":"IFERROR(VLOOKUP($A453,[1]البيانات!$B$2:$L$350,11,FALSE),\"\")","v":""}]
[null,{"$f":"IFERROR(VLOOKUP($A454,[1]البيانات!$B$2:$L$350,11,FALSE),\"\")","v":""}]
[null,{"$f":"IFERROR(VLOOKUP($A455,[1]البيانات!$B$2:$L$350,11,FALSE),\"\")","v":""}]
[null,{"$f":"IFERROR(VLOOKUP($A456,[1]البيانات!$B$2:$L$350,11,FALSE),\"\")","v":""}]
[null,{"$f":"IFERROR(VLOOKUP($A457,[1]البيانات!$B$2:$L$350,11,FALSE),\"\")","v":""}]
[null,{"$f":"IFERROR(VLOOKUP($A458,[1]البيانات!$B$2:$L$350,11,FALSE),\"\")","v":""}]
[null,{"$f":"IFERROR(VLOOKUP($A459,[1]البيانات!$B$2:$L$350,11,FALSE),\"\")","v":""}]
[null,{"$f":"IFERROR(VLOOKUP($A460,[1]البيانات!$B$2:$L$350,11,FALSE),\"\")","v":""}]
[null,{"$f":"IFERROR(VLOOKUP($A461,[1]البيانات!$B$2:$L$350,11,FALSE),\"\")","v":""}]
[null,{"$f":"IFERROR(VLOOKUP($A462,[1]البيانات!$B$2:$L$350,11,FALSE),\"\")","v":""}]
[null,{"$f":"IFERROR(VLOOKUP($A463,[1]البيانات!$B$2:$L$350,11,FALSE),\"\")","v":""}]
[null,{"$f":"IFERROR(VLOOKUP($A464,[1]البيانات!$B$2:$L$350,11,FALSE),\"\")","v":""}]
[null,{"$f":"IFERROR(VLOOKUP($A465,[1]البيانات!$B$2:$L$350,11,FALSE),\"\")","v":""}]
[null,{"$f":"IFERROR(VLOOKUP($A466,[1]البيانات!$B$2:$L$350,11,FALSE),\"\")","v":""}]
[null,{"$f":"IFERROR(VLOOKUP($A467,[1]البيانات!$B$2:$L$350,11,FALSE),\"\")","v":""}]
[null,{"$f":"IFERROR(VLOOKUP($A468,[1]البيانات!$B$2:$L$350,11,FALSE),\"\")","v":""}]
[null,{"$f":"IFERROR(VLOOKUP($A469,[1]البيانات!$B$2:$L$350,11,FALSE),\"\")","v":""}]
[null,{"$f":"IFERROR(VLOOKUP($A470,[1]البيانات!$B$2:$L$350,11,FALSE),\"\")","v":""}]
[null,{"$f":"IFERROR(VLOOKUP($A471,[1]البيانات!$B$2:$L$350,11,FALSE),\"\")","v":""}]
[null,{"$f":"IFERROR(VLOOKUP($A472,[1]البيانات!$B$2:$L$350,11,FALSE),\"\")","v":""}]
[null,{"$f":"IFERROR(VLOOKUP($A473,[1]البيانات!$B$2:$L$350,11,FALSE),\"\")","v":""}]
[null,{"$f":"IFERROR(VLOOKUP($A474,[1]البيانات!$B$2:$L$350,11,FALSE),\"\")","v":""}]
[null,{"$f":"IFERROR(VLOOKUP($A475,[1]البيانات!$B$2:$L$350,11,FALSE),\"\")","v":""}]
[null,{"$f":"IFERROR(VLOOKUP($A476,[1]البيانات!$B$2:$L$350,11,FALSE),\"\")","v":""}]
[null,{"$f":"IFERROR(VLOOKUP($A477,[1]البيانات!$B$2:$L$350,11,FALSE),\"\")","v":""}]
[null,{"$f":"IFERROR(VLOOKUP($A478,[1]البيانات!$B$2:$L$350,11,FALSE),\"\")","v":""}]
[null,{"$f":"IFERROR(VLOOKUP($A479,[1]البيانات!$B$2:$L$350,11,FALSE),\"\")","v":""}]
[null,{"$f":"IFERROR(VLOOKUP($A480,[1]البيانات!$B$2:$L$350,11,FALSE),\"\")","v":""}]
[null,{"$f":"IFERROR(VLOOKUP($A481,[1]البيانات!$B$2:$L$350,11,FALSE),\"\")","v":""}]
[null,{"$f":"IFERROR(VLOOKUP($A482,[1]البيانات!$B$2:$L$350,11,FALSE),\"\")","v":""}]
[null,{"$f":"IFERROR(VLOOKUP($A483,[1]البيانات!$B$2:$L$350,11,FALSE),\"\")","v":""}]
[null,{"$f":"IFERROR(VLOOKUP($A484,[1]البيانات!$B$2:$L$350,11,FALSE),\"\")","v":""}]
[null,{"$f":"IFERROR(VLOOKUP($A485,[1]البيانات!$B$2:$L$350,11,FALSE),\"\")","v":""}]
[null,{"$f":"IFERROR(VLOOKUP($A486,[1]البيانات!$B$2:$L$350,11,FALSE),\"\")","v":""}]
[null,{"$f":"IFERROR(VLOOKUP($A487,[1]البيانات!$B$2:$L$350,11,FALSE),\"\")","v":""}]
[null,{"$f":"IFERROR(VLOOKUP($A488,[1]البيانات!$B$2:$L$350,11,FALSE),\"\")","v":""}]
[null,{"$f":"IFERROR(VLOOKUP($A489,[1]البيانات!$B$2:$L$350,11,FALSE),\"\")","v":""}]
[null,{"$f":"IFERROR(VLOOKUP($A490,[1]البيانات!$B$2:$L$350,11,FALSE),\"\")","v":""}]
[null,{"$f":"IFERROR(VLOOKUP($A491,[1]البيانات!$B$2:$L$350,11,FALSE),\"\")","v":""}]
[null,{"$f":"IFERROR(VLOOKUP($A492,[1]البيانات!$B$2:$L$350,11,FALSE),\"\")","v":""}]
[null,{"$f":"IFERROR(VLOOKUP($A493,[1]البيانات!$B$2:$L$350,11,FALSE),\"\")","v":""}]
[null,{"$f":"IFERROR(VLOOKUP($A494,[1]البيانات!$B$2:$L$350,11,FALSE),\"\")","v":""}]
[null,{"$f":"IFERROR(VLOOKUP($A495,[1]البيانات!$B$2:$L$350,11,FALSE),\"\")","v":""}]
[null,{"$f":"IFERROR(VLOOKUP($A496,[1]البيانات!$B$2:$L$350,11,FALSE),\"\")","v":""}]
[null,{"$f":"IFERROR(VLOOKUP($A497,[1]البيانات!$B$2:$L$350,11,FALSE),\"\")","v":""}]
[null,{"$f":"IFERROR(VLOOKUP($A498,[1]البيانات!$B$2:$L$350,11,FALSE),\"\")","v":""}]
[null,{"$f":"IFERROR(VLOOKUP($A499,[1]البيانات!$B$2:$L$350,11,FALSE),\"\")","v":""}]
[null,{"$f":"IFERROR(VLOOKUP($A500,[1]البيانات!$B$2:$L$350,11,FALSE),\"\")","v":""}]
[null,{"$f":"IFERROR(VLOOKUP($A501,[1]البيانات!$B$2:$L$350,11,FALSE),\"\")","v":""}]
[null,{"$f":"IFERROR(VLOOKUP($A502,[1]البيانات!$B$2:$L$350,11,FALSE),\"\")","v":""}]
[null,{"$f":"IFERROR(VLOOKUP($A503,[1]البيانات!$B$2:$L$350,11,FALSE),\"\")","v":""}]
[null,{"$f":"IFERROR(VLOOKUP($A504,[1]البيانات!$B$2:$L$350,11,FALSE),\"\")","v":""}]
[null,{"$f":"IFERROR(VLOOKUP($A505,[1]البيانات!$B$2:$L$350,11,FALSE),\"\")","v":""}]
[null,{"$f":"IFERROR(VLOOKUP($A506,[1]البيانات!$B$2:$L$350,11,FALSE),\"\")","v":""}]
[null,{"$f":"IFERROR(VLOOKUP($A507,[1]البيانات!$B$2:$L$350,11,FALSE),\"\")","v":""}]
[null,{"$f":"IFERROR(VLOOKUP($A508,[1]البيانات!$B$2:$L$350,11,FALSE),\"\")","v":""}]
[null,{"$f":"IFERROR(VLOOKUP($A509,[1]البيانات!$B$2:$L$350,11,FALSE),\"\")","v":""}]
[null,{"$f":"IFERROR(VLOOKUP($A510,[1]البيانات!$B$2:$L$350,11,FALSE),\"\")","v":""}]
[null,{"$f":"IFERROR(VLOOKUP($A511,[1]البيانات!$B$2:$L$350,11,FALSE),\"\")","v":""}]
[null,{"$f":"IFERROR(VLOOKUP($A512,[1]البيانات!$B$2:$L$350,11,FALSE),\"\")","v":""}]
[null,{"$f":"IFERROR(VLOOKUP($A513,[1]البيانات!$B$2:$L$350,11,FALSE),\"\")","v":""}]
[null,{"$f":"IFERROR(VLOOKUP($A514,[1]البيانات!$B$2:$L$350,11,FALSE),\"\")","v":""}]
[null,{"$f":"IFERROR(VLOOKUP($A515,[1]البيانات!$B$2:$L$350,11,FALSE),\"\")","v":""}]
[null,{"$f":"IFERROR(VLOOKUP($A516,[1]البيانات!$B$2:$L$350,11,FALSE),\"\")","v":""}]
[null,{"$f":"IFERROR(VLOOKUP($A517,[1]البيانات!$B$2:$L$350,11,FALSE),\"\")","v":""}]
[null,{"$f":"IFERROR(VLOOKUP($A518,[1]البيانات!$B$2:$L$350,11,FALSE),\"\")","v":""}]
[null,{"$f":"IFERROR(VLOOKUP($A519,[1]البيانات!$B$2:$L$350,11,FALSE),\"\")","v":""}]
[null,{"$f":"IFERROR(VLOOKUP($A520,[1]البيانات!$B$2:$L$350,11,FALSE),\"\")","v":""}]
[null,{"$f":"IFERROR(VLOOKUP($A521,[1]البيانات!$B$2:$L$350,11,FALSE),\"\")","v":""}]
[null,{"$f":"IFERROR(VLOOKUP($A522,[1]البيانات!$B$2:$L$350,11,FALSE),\"\")","v":""}]
[null,{"$f":"IFERROR(VLOOKUP($A523,[1]البيانات!$B$2:$L$350,11,FALSE),\"\")","v":""}]
[null,{"$f":"IFERROR(VLOOKUP($A524,[1]البيانات!$B$2:$L$350,11,FALSE),\"\")","v":""}]
[null,{"$f":"IFERROR(VLOOKUP($A525,[1]البيانات!$B$2:$L$350,11,FALSE),\"\")","v":""}]
[null,{"$f":"IFERROR(VLOOKUP($A526,[1]البيانات!$B$2:$L$350,11,FALSE),\"\")","v":""}]
[null,{"$f":"IFERROR(VLOOKUP($A527,[1]البيانات!$B$2:$L$350,11,FALSE),\"\")","v":""}]
[null,{"$f":"IFERROR(VLOOKUP($A528,[1]البيانات!$B$2:$L$350,11,FALSE),\"\")","v":""}]
[null,{"$f":"IFERROR(VLOOKUP($A529,[1]البيانات!$B$2:$L$350,11,FALSE),\"\")","v":""}]
[null,{"$f":"IFERROR(VLOOKUP($A530,[1]البيانات!$B$2:$L$350,11,FALSE),\"\")","v":""}]
[null,{"$f":"IFERROR(VLOOKUP($A531,[1]البيانات!$B$2:$L$350,11,FALSE),\"\")","v":""}]
[null,{"$f":"IFERROR(VLOOKUP($A532,[1]البيانات!$B$2:$L$350,11,FALSE),\"\")","v":""}]
[null,{"$f":"IFERROR(VLOOKUP($A533,[1]البيانات!$B$2:$L$350,11,FALSE),\"\")","v":""}]
[null,{"$f":"IFERROR(VLOOKUP($A534,[1]البيانات!$B$2:$L$350,11,FALSE),\"\")","v":""}]
[null,{"$f":"IFERROR(VLOOKUP($A535,[1]البيانات!$B$2:$L$350,11,FALSE),\"\")","v":""}]
[null,{"$f":"IFERROR(VLOOKUP($A536,[1]البيانات!$B$2:$L$350,11,FALSE),\"\")","v":""}]
[null,{"$f":"IFERROR(VLOOKUP($A537,[1]البيانات!$B$2:$L$350,11,FALSE),\"\")","v":""}]
[null,{"$f":"IFERROR(VLOOKUP($A538,[1]البيانات!$B$2:$L$350,11,FALSE),\"\")","v":""}]
[null,{"$f":"IFERROR(VLOOKUP($A539,[1]البيانات!$B$2:$L$350,11,FALSE),\"\")","v":""}]
[null,{"$f":"IFERROR(VLOOKUP($A540,[1]البيانات!$B$2:$L$350,11,FALSE),\"\")","v":""}]
[null,{"$f":"IFERROR(VLOOKUP($A541,[1]البيانات!$B$2:$L$350,11,FALSE),\"\")","v":""}]
[null,{"$f":"IFERROR(VLOOKUP($A542,[1]البيانات!$B$2:$L$350,11,FALSE),\"\")","v":""}]
[null,{"$f":"IFERROR(VLOOKUP($A543,[1]البيانات!$B$2:$L$350,11,FALSE),\"\")","v":""}]
[null,{"$f":"IFERROR(VLOOKUP($A544,[1]البيانات!$B$2:$L$350,11,FALSE),\"\")","v":""}]
[null,{"$f":"IFERROR(VLOOKUP($A545,[1]البيانات!$B$2:$L$350,11,FALSE),\"\")","v":""}]
[null,{"$f":"IFERROR(VLOOKUP($A546,[1]البيانات!$B$2:$L$350,11,FALSE),\"\")","v":""}]
[null,{"$f":"IFERROR(VLOOKUP($A547,[1]البيانات!$B$2:$L$350,11,FALSE),\"\")","v":""}]
[null,{"$f":"IFERROR(VLOOKUP($A548,[1]البيانات!$B$2:$L$350,11,FALSE),\"\")","v":""}]
[null,{"$f":"IFERROR(VLOOKUP($A549,[1]البيانات!$B$2:$L$350,11,FALSE),\"\")","v":""}]
[null,{"$f":"IFERROR(VLOOKUP($A550,[1]البيانات!$B$2:$L$350,11,FALSE),\"\")","v":""}]
[null,{"$f":"IFERROR(VLOOKUP($A551,[1]البيانات!$B$2:$L$350,11,FALSE),\"\")","v":""}]
[null,{"$f":"IFERROR(VLOOKUP($A552,[1]البيانات!$B$2:$L$350,11,FALSE),\"\")","v":""}]
[null,{"$f":"IFERROR(VLOOKUP($A553,[1]البيانات!$B$2:$L$350,11,FALSE),\"\")","v":""}]
[null,{"$f":"IFERROR(VLOOKUP($A554,[1]البيانات!$B$2:$L$350,11,FALSE),\"\")","v":""}]
[null,{"$f":"IFERROR(VLOOKUP($A555,[1]البيانات!$B$2:$L$350,11,FALSE),\"\")","v":""}]
[null,{"$f":"IFERROR(VLOOKUP($A556,[1]البيانات!$B$2:$L$350,11,FALSE),\"\")","v":""}]
[null,{"$f":"IFERROR(VLOOKUP($A557,[1]البيانات!$B$2:$L$350,11,FALSE),\"\")","v":""}]
[null,{"$f":"IFERROR(VLOOKUP($A558,[1]البيانات!$B$2:$L$350,11,FALSE),\"\")","v":""}]
[null,{"$f":"IFERROR(VLOOKUP($A559,[1]البيانات!$B$2:$L$350,11,FALSE),\"\")","v":""}]
[null,{"$f":"IFERROR(VLOOKUP($A560,[1]البيانات!$B$2:$L$350,11,FALSE),\"\")","v":""}]
[null,{"$f":"IFERROR(VLOOKUP($A561,[1]البيانات!$B$2:$L$350,11,FALSE),\"\")","v":""}]
[null,{"$f":"IFERROR(VLOOKUP($A562,[1]البيانات!$B$2:$L$350,11,FALSE),\"\")","v":""}]
[null,{"$f":"IFERROR(VLOOKUP($A563,[1]البيانات!$B$2:$L$350,11,FALSE),\"\")","v":""}]
[null,{"$f":"IFERROR(VLOOKUP($A564,[1]البيانات!$B$2:$L$350,11,FALSE),\"\")","v":""}]
[null,{"$f":"IFERROR(VLOOKUP($A565,[1]البيانات!$B$2:$L$350,11,FALSE),\"\")","v":""}]
[null,{"$f":"IFERROR(VLOOKUP($A566,[1]البيانات!$B$2:$L$350,11,FALSE),\"\")","v":""}]
[null,{"$f":"IFERROR(VLOOKUP($A567,[1]البيانات!$B$2:$L$350,11,FALSE),\"\")","v":""}]
[null,{"$f":"IFERROR(VLOOKUP($A568,[1]البيانات!$B$2:$L$350,11,FALSE),\"\")","v":""}]
[null,{"$f":"IFERROR(VLOOKUP($A569,[1]البيانات!$B$2:$L$350,11,FALSE),\"\")","v":""}]
[null,{"$f":"IFERROR(VLOOKUP($A570,[1]البيانات!$B$2:$L$350,11,FALSE),\"\")","v":""}]
[null,{"$f":"IFERROR(VLOOKUP($A571,[1]البيانات!$B$2:$L$350,11,FALSE),\"\")","v":""}]
[null,{"$f":"IFERROR(VLOOKUP($A572,[1]البيانات!$B$2:$L$350,11,FALSE),\"\")","v":""}]
[null,{"$f":"IFERROR(VLOOKUP($A573,[1]البيانات!$B$2:$L$350,11,FALSE),\"\")","v":""}]
[null,{"$f":"IFERROR(VLOOKUP($A574,[1]البيانات!$B$2:$L$350,11,FALSE),\"\")","v":""}]
[null,{"$f":"IFERROR(VLOOKUP($A575,[1]البيانات!$B$2:$L$350,11,FALSE),\"\")","v":""}]
[null,{"$f":"IFERROR(VLOOKUP($A576,[1]البيانات!$B$2:$L$350,11,FALSE),\"\")","v":""}]
[null,{"$f":"IFERROR(VLOOKUP($A577,[1]البيانات!$B$2:$L$350,11,FALSE),\"\")","v":""}]
[null,{"$f":"IFERROR(VLOOKUP($A578,[1]البيانات!$B$2:$L$350,11,FALSE),\"\")","v":""}]
[null,{"$f":"IFERROR(VLOOKUP($A579,[1]البيانات!$B$2:$L$350,11,FALSE),\"\")","v":""}]
[null,{"$f":"IFERROR(VLOOKUP($A580,[1]البيانات!$B$2:$L$350,11,FALSE),\"\")","v":""}]
[null,{"$f":"IFERROR(VLOOKUP($A581,[1]البيانات!$B$2:$L$350,11,FALSE),\"\")","v":""}]
[null,{"$f":"IFERROR(VLOOKUP($A582,[1]البيانات!$B$2:$L$350,11,FALSE),\"\")","v":""}]
[null,{"$f":"IFERROR(VLOOKUP($A583,[1]البيانات!$B$2:$L$350,11,FALSE),\"\")","v":""}]
[null,{"$f":"IFERROR(VLOOKUP($A584,[1]البيانات!$B$2:$L$350,11,FALSE),\"\")","v":""}]
[null,{"$f":"IFERROR(VLOOKUP($A585,[1]البيانات!$B$2:$L$350,11,FALSE),\"\")","v":""}]
[null,{"$f":"IFERROR(VLOOKUP($A586,[1]البيانات!$B$2:$L$350,11,FALSE),\"\")","v":""}]
[null,{"$f":"IFERROR(VLOOKUP($A587,[1]البيانات!$B$2:$L$350,11,FALSE),\"\")","v":""}]
[null,{"$f":"IFERROR(VLOOKUP($A588,[1]البيانات!$B$2:$L$350,11,FALSE),\"\")","v":""}]
[null,{"$f":"IFERROR(VLOOKUP($A589,[1]البيانات!$B$2:$L$350,11,FALSE),\"\")","v":""}]
[null,{"$f":"IFERROR(VLOOKUP($A590,[1]البيانات!$B$2:$L$350,11,FALSE),\"\")","v":""}]
[null,{"$f":"IFERROR(VLOOKUP($A591,[1]البيانات!$B$2:$L$350,11,FALSE),\"\")","v":""}]
[null,{"$f":"IFERROR(VLOOKUP($A592,[1]البيانات!$B$2:$L$350,11,FALSE),\"\")","v":""}]
[null,{"$f":"IFERROR(VLOOKUP($A593,[1]البيانات!$B$2:$L$350,11,FALSE),\"\")","v":""}]
[null,{"$f":"IFERROR(VLOOKUP($A594,[1]البيانات!$B$2:$L$350,11,FALSE),\"\")","v":""}]
[null,{"$f":"IFERROR(VLOOKUP($A595,[1]البيانات!$B$2:$L$350,11,FALSE),\"\")","v":""}]
[null,{"$f":"IFERROR(VLOOKUP($A596,[1]البيانات!$B$2:$L$350,11,FALSE),\"\")","v":""}]
[null,{"$f":"IFERROR(VLOOKUP($A597,[1]البيانات!$B$2:$L$350,11,FALSE),\"\")","v":""}]
[null,{"$f":"IFERROR(VLOOKUP($A598,[1]البيانات!$B$2:$L$350,11,FALSE),\"\")","v":""}]
[null,{"$f":"IFERROR(VLOOKUP($A599,[1]البيانات!$B$2:$L$350,11,FALSE),\"\")","v":""}]
[null,{"$f":"IFERROR(VLOOKUP($A600,[1]البيانات!$B$2:$L$350,11,FALSE),\"\")","v":""}]
[null,{"$f":"IFERROR(VLOOKUP($A601,[1]البيانات!$B$2:$L$350,11,FALSE),\"\")","v":""}]
[null,{"$f":"IFERROR(VLOOKUP($A602,[1]البيانات!$B$2:$L$350,11,FALSE),\"\")","v":""}]
[null,{"$f":"IFERROR(VLOOKUP($A603,[1]البيانات!$B$2:$L$350,11,FALSE),\"\")","v":""}]
[null,{"$f":"IFERROR(VLOOKUP($A604,[1]البيانات!$B$2:$L$350,11,FALSE),\"\")","v":""}]
[null,{"$f":"IFERROR(VLOOKUP($A605,[1]البيانات!$B$2:$L$350,11,FALSE),\"\")","v":""}]
[null,{"$f":"IFERROR(VLOOKUP($A606,[1]البيانات!$B$2:$L$350,11,FALSE),\"\")","v":""}]
[null,{"$f":"IFERROR(VLOOKUP($A607,[1]البيانات!$B$2:$L$350,11,FALSE),\"\")","v":""}]
[null,{"$f":"IFERROR(VLOOKUP($A608,[1]البيانات!$B$2:$L$350,11,FALSE),\"\")","v":""}]
[null,{"$f":"IFERROR(VLOOKUP($A609,[1]البيانات!$B$2:$L$350,11,FALSE),\"\")","v":""}]
[null,{"$f":"IFERROR(VLOOKUP($A610,[1]البيانات!$B$2:$L$350,11,FALSE),\"\")","v":""}]
[null,{"$f":"IFERROR(VLOOKUP($A611,[1]البيانات!$B$2:$L$350,11,FALSE),\"\")","v":""}]
[null,{"$f":"IFERROR(VLOOKUP($A612,[1]البيانات!$B$2:$L$350,11,FALSE),\"\")","v":""}]
[null,{"$f":"IFERROR(VLOOKUP($A613,[1]البيانات!$B$2:$L$350,11,FALSE),\"\")","v":""}]
[null,{"$f":"IFERROR(VLOOKUP($A614,[1]البيانات!$B$2:$L$350,11,FALSE),\"\")","v":""}]
[null,{"$f":"IFERROR(VLOOKUP($A615,[1]البيانات!$B$2:$L$350,11,FALSE),\"\")","v":""}]
[null,{"$f":"IFERROR(VLOOKUP($A616,[1]البيانات!$B$2:$L$350,11,FALSE),\"\")","v":""}]
[null,{"$f":"IFERROR(VLOOKUP($A617,[1]البيانات!$B$2:$L$350,11,FALSE),\"\")","v":""}]
[null,{"$f":"IFERROR(VLOOKUP($A618,[1]البيانات!$B$2:$L$350,11,FALSE),\"\")","v":""}]
[null,{"$f":"IFERROR(VLOOKUP($A619,[1]البيانات!$B$2:$L$350,11,FALSE),\"\")","v":""}]
[null,{"$f":"IFERROR(VLOOKUP($A620,[1]البيانات!$B$2:$L$350,11,FALSE),\"\")","v":""}]
[null,{"$f":"IFERROR(VLOOKUP($A621,[1]البيانات!$B$2:$L$350,11,FALSE),\"\")","v":""}]
[null,{"$f":"IFERROR(VLOOKUP($A622,[1]البيانات!$B$2:$L$350,11,FALSE),\"\")","v":""}]
[null,{"$f":"IFERROR(VLOOKUP($A623,[1]البيانات!$B$2:$L$350,11,FALSE),\"\")","v":""}]
[null,{"$f":"IFERROR(VLOOKUP($A624,[1]البيانات!$B$2:$L$350,11,FALSE),\"\")","v":""}]
[null,{"$f":"IFERROR(VLOOKUP($A625,[1]البيانات!$B$2:$L$350,11,FALSE),\"\")","v":""}]
[null,{"$f":"IFERROR(VLOOKUP($A626,[1]البيانات!$B$2:$L$350,11,FALSE),\"\")","v":""}]
[null,{"$f":"IFERROR(VLOOKUP($A627,[1]البيانات!$B$2:$L$350,11,FALSE),\"\")","v":""}]
[null,{"$f":"IFERROR(VLOOKUP($A628,[1]البيانات!$B$2:$L$350,11,FALSE),\"\")","v":""}]
[null,{"$f":"IFERROR(VLOOKUP($A629,[1]البيانات!$B$2:$L$350,11,FALSE),\"\")","v":""}]
[null,{"$f":"IFERROR(VLOOKUP($A630,[1]البيانات!$B$2:$L$350,11,FALSE),\"\")","v":""}]
[null,{"$f":"IFERROR(VLOOKUP($A631,[1]البيانات!$B$2:$L$350,11,FALSE),\"\")","v":""}]
[null,{"$f":"IFERROR(VLOOKUP($A632,[1]البيانات!$B$2:$L$350,11,FALSE),\"\")","v":""}]
[null,{"$f":"IFERROR(VLOOKUP($A633,[1]البيانات!$B$2:$L$350,11,FALSE),\"\")","v":""}]
[null,{"$f":"IFERROR(VLOOKUP($A634,[1]البيانات!$B$2:$L$350,11,FALSE),\"\")","v":""}]
[null,{"$f":"IFERROR(VLOOKUP($A635,[1]البيانات!$B$2:$L$350,11,FALSE),\"\")","v":""}]
[null,{"$f":"IFERROR(VLOOKUP($A636,[1]البيانات!$B$2:$L$350,11,FALSE),\"\")","v":""}]
[null,{"$f":"IFERROR(VLOOKUP($A637,[1]البيانات!$B$2:$L$350,11,FALSE),\"\")","v":""}]
[null,{"$f":"IFERROR(VLOOKUP($A638,[1]البيانات!$B$2:$L$350,11,FALSE),\"\")","v":""}]
[null,{"$f":"IFERROR(VLOOKUP($A639,[1]البيانات!$B$2:$L$350,11,FALSE),\"\")","v":""}]
[null,{"$f":"IFERROR(VLOOKUP($A640,[1]البيانات!$B$2:$L$350,11,FALSE),\"\")","v":""}]
[null,{"$f":"IFERROR(VLOOKUP($A641,[1]البيانات!$B$2:$L$350,11,FALSE),\"\")","v":""}]
[null,{"$f":"IFERROR(VLOOKUP($A642,[1]البيانات!$B$2:$L$350,11,FALSE),\"\")","v":""}]
[null,{"$f":"IFERROR(VLOOKUP($A643,[1]البيانات!$B$2:$L$350,11,FALSE),\"\")","v":""}]
[null,{"$f":"IFERROR(VLOOKUP($A644,[1]البيانات!$B$2:$L$350,11,FALSE),\"\")","v":""}]
[null,{"$f":"IFERROR(VLOOKUP($A645,[1]البيانات!$B$2:$L$350,11,FALSE),\"\")","v":""}]
[null,{"$f":"IFERROR(VLOOKUP($A646,[1]البيانات!$B$2:$L$350,11,FALSE),\"\")","v":""}]
[null,{"$f":"IFERROR(VLOOKUP($A647,[1]البيانات!$B$2:$L$350,11,FALSE),\"\")","v":""}]
[null,{"$f":"IFERROR(VLOOKUP($A648,[1]البيانات!$B$2:$L$350,11,FALSE),\"\")","v":""}]
[null,{"$f":"IFERROR(VLOOKUP($A649,[1]البيانات!$B$2:$L$350,11,FALSE),\"\")","v":""}]
[null,{"$f":"IFERROR(VLOOKUP($A650,[1]البيانات!$B$2:$L$350,11,FALSE),\"\")","v":""}]
[null,{"$f":"IFERROR(VLOOKUP($A651,[1]البيانات!$B$2:$L$350,11,FALSE),\"\")","v":""}]
[null,{"$f":"IFERROR(VLOOKUP($A652,[1]البيانات!$B$2:$L$350,11,FALSE),\"\")","v":""}]
[null,{"$f":"IFERROR(VLOOKUP($A653,[1]البيانات!$B$2:$L$350,11,FALSE),\"\")","v":""}]
[null,{"$f":"IFERROR(VLOOKUP($A654,[1]البيانات!$B$2:$L$350,11,FALSE),\"\")","v":""}]
[null,{"$f":"IFERROR(VLOOKUP($A655,[1]البيانات!$B$2:$L$350,11,FALSE),\"\")","v":""}]
[null,{"$f":"IFERROR(VLOOKUP($A656,[1]البيانات!$B$2:$L$350,11,FALSE),\"\")","v":""}]
[null,{"$f":"IFERROR(VLOOKUP($A657,[1]البيانات!$B$2:$L$350,11,FALSE),\"\")","v":""}]
[null,{"$f":"IFERROR(VLOOKUP($A658,[1]البيانات!$B$2:$L$350,11,FALSE),\"\")","v":""}]
[null,{"$f":"IFERROR(VLOOKUP($A659,[1]البيانات!$B$2:$L$350,11,FALSE),\"\")","v":""}]
[null,{"$f":"IFERROR(VLOOKUP($A660,[1]البيانات!$B$2:$L$350,11,FALSE),\"\")","v":""}]
[null,{"$f":"IFERROR(VLOOKUP($A661,[1]البيانات!$B$2:$L$350,11,FALSE),\"\")","v":""}]
[null,{"$f":"IFERROR(VLOOKUP($A662,[1]البيانات!$B$2:$L$350,11,FALSE),\"\")","v":""}]
[null,{"$f":"IFERROR(VLOOKUP($A663,[1]البيانات!$B$2:$L$350,11,FALSE),\"\")","v":""}]
[null,{"$f":"IFERROR(VLOOKUP($A664,[1]البيانات!$B$2:$L$350,11,FALSE),\"\")","v":""}]
[null,{"$f":"IFERROR(VLOOKUP($A665,[1]البيانات!$B$2:$L$350,11,FALSE),\"\")","v":""}]
[null,{"$f":"IFERROR(VLOOKUP($A666,[1]البيانات!$B$2:$L$350,11,FALSE),\"\")","v":""}]
[null,{"$f":"IFERROR(VLOOKUP($A667,[1]البيانات!$B$2:$L$350,11,FALSE),\"\")","v":""}]
[null,{"$f":"IFERROR(VLOOKUP($A668,[1]البيانات!$B$2:$L$350,11,FALSE),\"\")","v":""}]
[null,{"$f":"IFERROR(VLOOKUP($A669,[1]البيانات!$B$2:$L$350,11,FALSE),\"\")","v":""}]
[null,{"$f":"IFERROR(VLOOKUP($A670,[1]البيانات!$B$2:$L$350,11,FALSE),\"\")","v":""}]
[null,{"$f":"IFERROR(VLOOKUP($A671,[1]البيانات!$B$2:$L$350,11,FALSE),\"\")","v":""}]
[null,{"$f":"IFERROR(VLOOKUP($A672,[1]البيانات!$B$2:$L$350,11,FALSE),\"\")","v":""}]
[null,{"$f":"IFERROR(VLOOKUP($A673,[1]البيانات!$B$2:$L$350,11,FALSE),\"\")","v":""}]
[null,{"$f":"IFERROR(VLOOKUP($A674,[1]البيانات!$B$2:$L$350,11,FALSE),\"\")","v":""}]
[null,{"$f":"IFERROR(VLOOKUP($A675,[1]البيانات!$B$2:$L$350,11,FALSE),\"\")","v":""}]
[null,{"$f":"IFERROR(VLOOKUP($A676,[1]البيانات!$B$2:$L$350,11,FALSE),\"\")","v":""}]
[null,{"$f":"IFERROR(VLOOKUP($A677,[1]البيانات!$B$2:$L$350,11,FALSE),\"\")","v":""}]
[null,{"$f":"IFERROR(VLOOKUP($A678,[1]البيانات!$B$2:$L$350,11,FALSE),\"\")","v":""}]
[null,{"$f":"IFERROR(VLOOKUP($A679,[1]البيانات!$B$2:$L$350,11,FALSE),\"\")","v":""}]
[null,{"$f":"IFERROR(VLOOKUP($A680,[1]البيانات!$B$2:$L$350,11,FALSE),\"\")","v":""}]
[null,{"$f":"IFERROR(VLOOKUP($A681,[1]البيانات!$B$2:$L$350,11,FALSE),\"\")","v":""}]
[null,{"$f":"IFERROR(VLOOKUP($A682,[1]البيانات!$B$2:$L$350,11,FALSE),\"\")","v":""}]
[null,{"$f":"IFERROR(VLOOKUP($A683,[1]البيانات!$B$2:$L$350,11,FALSE),\"\")","v":""}]
[null,{"$f":"IFERROR(VLOOKUP($A684,[1]البيانات!$B$2:$L$350,11,FALSE),\"\")","v":""}]
[null,{"$f":"IFERROR(VLOOKUP($A685,[1]البيانات!$B$2:$L$350,11,FALSE),\"\")","v":""}]
[null,{"$f":"IFERROR(VLOOKUP($A686,[1]البيانات!$B$2:$L$350,11,FALSE),\"\")","v":""}]
[null,{"$f":"IFERROR(VLOOKUP($A687,[1]البيانات!$B$2:$L$350,11,FALSE),\"\")","v":""}]
[null,{"$f":"IFERROR(VLOOKUP($A688,[1]البيانات!$B$2:$L$350,11,FALSE),\"\")","v":""}]
[null,{"$f":"IFERROR(VLOOKUP($A689,[1]البيانات!$B$2:$L$350,11,FALSE),\"\")","v":""}]
[null,{"$f":"IFERROR(VLOOKUP($A690,[1]البيانات!$B$2:$L$350,11,FALSE),\"\")","v":""}]
[null,{"$f":"IFERROR(VLOOKUP($A691,[1]البيانات!$B$2:$L$350,11,FALSE),\"\")","v":""}]
[null,{"$f":"IFERROR(VLOOKUP($A692,[1]البيانات!$B$2:$L$350,11,FALSE),\"\")","v":""}]
[null,{"$f":"IFERROR(VLOOKUP($A693,[1]البيانات!$B$2:$L$350,11,FALSE),\"\")","v":""}]
[null,{"$f":"IFERROR(VLOOKUP($A694,[1]البيانات!$B$2:$L$350,11,FALSE),\"\")","v":""}]
[null,{"$f":"IFERROR(VLOOKUP($A695,[1]البيانات!$B$2:$L$350,11,FALSE),\"\")","v":""}]
[null,{"$f":"IFERROR(VLOOKUP($A696,[1]البيانات!$B$2:$L$350,11,FALSE),\"\")","v":""}]
[null,{"$f":"IFERROR(VLOOKUP($A697,[1]البيانات!$B$2:$L$350,11,FALSE),\"\")","v":""}]
[null,{"$f":"IFERROR(VLOOKUP($A698,[1]البيانات!$B$2:$L$350,11,FALSE),\"\")","v":""}]
[null,{"$f":"IFERROR(VLOOKUP($A699,[1]البيانات!$B$2:$L$350,11,FALSE),\"\")","v":""}]
[null,{"$f":"IFERROR(VLOOKUP($A700,[1]البيانات!$B$2:$L$350,11,FALSE),\"\")","v":""}]
[null,{"$f":"IFERROR(VLOOKUP($A701,[1]البيانات!$B$2:$L$350,11,FALSE),\"\")","v":""}]
[null,{"$f":"IFERROR(VLOOKUP($A702,[1]البيانات!$B$2:$L$350,11,FALSE),\"\")","v":""}]
[null,{"$f":"IFERROR(VLOOKUP($A703,[1]البيانات!$B$2:$L$350,11,FALSE),\"\")","v":""}]
[null,{"$f":"IFERROR(VLOOKUP($A704,[1]البيانات!$B$2:$L$350,11,FALSE),\"\")","v":""}]
[null,{"$f":"IFERROR(VLOOKUP($A705,[1]البيانات!$B$2:$L$350,11,FALSE),\"\")","v":""}]
[null,{"$f":"IFERROR(VLOOKUP($A706,[1]البيانات!$B$2:$L$350,11,FALSE),\"\")","v":""}]
[null,{"$f":"IFERROR(VLOOKUP($A707,[1]البيانات!$B$2:$L$350,11,FALSE),\"\")","v":""}]
[null,{"$f":"IFERROR(VLOOKUP($A708,[1]البيانات!$B$2:$L$350,11,FALSE),\"\")","v":""}]
[null,{"$f":"IFERROR(VLOOKUP($A709,[1]البيانات!$B$2:$L$350,11,FALSE),\"\")","v":""}]
[null,{"$f":"IFERROR(VLOOKUP($A710,[1]البيانات!$B$2:$L$350,11,FALSE),\"\")","v":""}]
[null,{"$f":"IFERROR(VLOOKUP($A711,[1]البيانات!$B$2:$L$350,11,FALSE),\"\")","v":""}]
[null,{"$f":"IFERROR(VLOOKUP($A712,[1]البيانات!$B$2:$L$350,11,FALSE),\"\")","v":""}]
[null,{"$f":"IFERROR(VLOOKUP($A713,[1]البيانات!$B$2:$L$350,11,FALSE),\"\")","v":""}]
[null,{"$f":"IFERROR(VLOOKUP($A714,[1]البيانات!$B$2:$L$350,11,FALSE),\"\")","v":""}]
[null,{"$f":"IFERROR(VLOOKUP($A715,[1]البيانات!$B$2:$L$350,11,FALSE),\"\")","v":""}]
[null,{"$f":"IFERROR(VLOOKUP($A716,[1]البيانات!$B$2:$L$350,11,FALSE),\"\")","v":""}]
[null,{"$f":"IFERROR(VLOOKUP($A717,[1]البيانات!$B$2:$L$350,11,FALSE),\"\")","v":""}]
[null,{"$f":"IFERROR(VLOOKUP($A718,[1]البيانات!$B$2:$L$350,11,FALSE),\"\")","v":""}]
[null,{"$f":"IFERROR(VLOOKUP($A719,[1]البيانات!$B$2:$L$350,11,FALSE),\"\")","v":""}]
[null,{"$f":"IFERROR(VLOOKUP($A720,[1]البيانات!$B$2:$L$350,11,FALSE),\"\")","v":""}]
[null,{"$f":"IFERROR(VLOOKUP($A721,[1]البيانات!$B$2:$L$350,11,FALSE),\"\")","v":""}]
[null,{"$f":"IFERROR(VLOOKUP($A722,[1]البيانات!$B$2:$L$350,11,FALSE),\"\")","v":""}]
[null,{"$f":"IFERROR(VLOOKUP($A723,[1]البيانات!$B$2:$L$350,11,FALSE),\"\")","v":""}]
[null,{"$f":"IFERROR(VLOOKUP($A724,[1]البيانات!$B$2:$L$350,11,FALSE),\"\")","v":""}]
[null,{"$f":"IFERROR(VLOOKUP($A725,[1]البيانات!$B$2:$L$350,11,FALSE),\"\")","v":""}]
[null,{"$f":"IFERROR(VLOOKUP($A726,[1]البيانات!$B$2:$L$350,11,FALSE),\"\")","v":""}]
[null,{"$f":"IFERROR(VLOOKUP($A727,[1]البيانات!$B$2:$L$350,11,FALSE),\"\")","v":""}]
[null,{"$f":"IFERROR(VLOOKUP($A728,[1]البيانات!$B$2:$L$350,11,FALSE),\"\")","v":""}]
[null,{"$f":"IFERROR(VLOOKUP($A729,[1]البيانات!$B$2:$L$350,11,FALSE),\"\")","v":""}]
[null,{"$f":"IFERROR(VLOOKUP($A730,[1]البيانات!$B$2:$L$350,11,FALSE),\"\")","v":""}]
[null,{"$f":"IFERROR(VLOOKUP($A731,[1]البيانات!$B$2:$L$350,11,FALSE),\"\")","v":""}]
[null,{"$f":"IFERROR(VLOOKUP($A732,[1]البيانات!$B$2:$L$350,11,FALSE),\"\")","v":""}]
[null,{"$f":"IFERROR(VLOOKUP($A733,[1]البيانات!$B$2:$L$350,11,FALSE),\"\")","v":""}]
[null,{"$f":"IFERROR(VLOOKUP($A734,[1]البيانات!$B$2:$L$350,11,FALSE),\"\")","v":""}]
[null,{"$f":"IFERROR(VLOOKUP($A735,[1]البيانات!$B$2:$L$350,11,FALSE),\"\")","v":""}]
[null,{"$f":"IFERROR(VLOOKUP($A736,[1]البيانات!$B$2:$L$350,11,FALSE),\"\")","v":""}]
[null,{"$f":"IFERROR(VLOOKUP($A737,[1]البيانات!$B$2:$L$350,11,FALSE),\"\")","v":""}]
[null,{"$f":"IFERROR(VLOOKUP($A738,[1]البيانات!$B$2:$L$350,11,FALSE),\"\")","v":""}]
[null,{"$f":"IFERROR(VLOOKUP($A739,[1]البيانات!$B$2:$L$350,11,FALSE),\"\")","v":""}]
[null,{"$f":"IFERROR(VLOOKUP($A740,[1]البيانات!$B$2:$L$350,11,FALSE),\"\")","v":""}]
[null,{"$f":"IFERROR(VLOOKUP($A741,[1]البيانات!$B$2:$L$350,11,FALSE),\"\")","v":""}]
[null,{"$f":"IFERROR(VLOOKUP($A742,[1]البيانات!$B$2:$L$350,11,FALSE),\"\")","v":""}]
[null,{"$f":"IFERROR(VLOOKUP($A743,[1]البيانات!$B$2:$L$350,11,FALSE),\"\")","v":""}]
[null,{"$f":"IFERROR(VLOOKUP($A744,[1]البيانات!$B$2:$L$350,11,FALSE),\"\")","v":""}]
[null,{"$f":"IFERROR(VLOOKUP($A745,[1]البيانات!$B$2:$L$350,11,FALSE),\"\")","v":""}]
[null,{"$f":"IFERROR(VLOOKUP($A746,[1]البيانات!$B$2:$L$350,11,FALSE),\"\")","v":""}]
[null,{"$f":"IFERROR(VLOOKUP($A747,[1]البيانات!$B$2:$L$350,11,FALSE),\"\")","v":""}]
[null,{"$f":"IFERROR(VLOOKUP($A748,[1]البيانات!$B$2:$L$350,11,FALSE),\"\")","v":""}]
[null,{"$f":"IFERROR(VLOOKUP($A749,[1]البيانات!$B$2:$L$350,11,FALSE),\"\")","v":""}]
[null,{"$f":"IFERROR(VLOOKUP($A750,[1]البيانات!$B$2:$L$350,11,FALSE),\"\")","v":""}]
[null,{"$f":"IFERROR(VLOOKUP($A751,[1]البيانات!$B$2:$L$350,11,FALSE),\"\")","v":""}]
[null,{"$f":"IFERROR(VLOOKUP($A752,[1]البيانات!$B$2:$L$350,11,FALSE),\"\")","v":""}]
[null,{"$f":"IFERROR(VLOOKUP($A753,[1]البيانات!$B$2:$L$350,11,FALSE),\"\")","v":""}]
[null,{"$f":"IFERROR(VLOOKUP($A754,[1]البيانات!$B$2:$L$350,11,FALSE),\"\")","v":""}]
[null,{"$f":"IFERROR(VLOOKUP($A755,[1]البيانات!$B$2:$L$350,11,FALSE),\"\")","v":""}]
[null,{"$f":"IFERROR(VLOOKUP($A756,[1]البيانات!$B$2:$L$350,11,FALSE),\"\")","v":""}]
[null,{"$f":"IFERROR(VLOOKUP($A757,[1]البيانات!$B$2:$L$350,11,FALSE),\"\")","v":""}]
[null,{"$f":"IFERROR(VLOOKUP($A758,[1]البيانات!$B$2:$L$350,11,FALSE),\"\")","v":""}]
[null,{"$f":"IFERROR(VLOOKUP($A759,[1]البيانات!$B$2:$L$350,11,FALSE),\"\")","v":""}]
[null,{"$f":"IFERROR(VLOOKUP($A760,[1]البيانات!$B$2:$L$350,11,FALSE),\"\")","v":""}]
[null,{"$f":"IFERROR(VLOOKUP($A761,[1]البيانات!$B$2:$L$350,11,FALSE),\"\")","v":""}]
[null,{"$f":"IFERROR(VLOOKUP($A762,[1]البيانات!$B$2:$L$350,11,FALSE),\"\")","v":""}]
[null,{"$f":"IFERROR(VLOOKUP($A763,[1]البيانات!$B$2:$L$350,11,FALSE),\"\")","v":""}]
[null,{"$f":"IFERROR(VLOOKUP($A764,[1]البيانات!$B$2:$L$350,11,FALSE),\"\")","v":""}]
[null,{"$f":"IFERROR(VLOOKUP($A765,[1]البيانات!$B$2:$L$350,11,FALSE),\"\")","v":""}]
[null,{"$f":"IFERROR(VLOOKUP($A766,[1]البيانات!$B$2:$L$350,11,FALSE),\"\")","v":""}]
[null,{"$f":"IFERROR(VLOOKUP($A767,[1]البيانات!$B$2:$L$350,11,FALSE),\"\")","v":""}]
[null,{"$f":"IFERROR(VLOOKUP($A768,[1]البيانات!$B$2:$L$350,11,FALSE),\"\")","v":""}]
[null,{"$f":"IFERROR(VLOOKUP($A769,[1]البيانات!$B$2:$L$350,11,FALSE),\"\")","v":""}]
[null,{"$f":"IFERROR(VLOOKUP($A770,[1]البيانات!$B$2:$L$350,11,FALSE),\"\")","v":""}]
[null,{"$f":"IFERROR(VLOOKUP($A771,[1]البيانات!$B$2:$L$350,11,FALSE),\"\")","v":""}]
[null,{"$f":"IFERROR(VLOOKUP($A772,[1]البيانات!$B$2:$L$350,11,FALSE),\"\")","v":""}]
[null,{"$f":"IFERROR(VLOOKUP($A773,[1]البيانات!$B$2:$L$350,11,FALSE),\"\")","v":""}]
[null,{"$f":"IFERROR(VLOOKUP($A774,[1]البيانات!$B$2:$L$350,11,FALSE),\"\")","v":""}]
[null,{"$f":"IFERROR(VLOOKUP($A775,[1]البيانات!$B$2:$L$350,11,FALSE),\"\")","v":""}]
[null,{"$f":"IFERROR(VLOOKUP($A776,[1]البيانات!$B$2:$L$350,11,FALSE),\"\")","v":""}]
[null,{"$f":"IFERROR(VLOOKUP($A777,[1]البيانات!$B$2:$L$350,11,FALSE),\"\")","v":""}]
[null,{"$f":"IFERROR(VLOOKUP($A778,[1]البيانات!$B$2:$L$350,11,FALSE),\"\")","v":""}]
[null,{"$f":"IFERROR(VLOOKUP($A779,[1]البيانات!$B$2:$L$350,11,FALSE),\"\")","v":""}]
[null,{"$f":"IFERROR(VLOOKUP($A780,[1]البيانات!$B$2:$L$350,11,FALSE),\"\")","v":""}]
[null,{"$f":"IFERROR(VLOOKUP($A781,[1]البيانات!$B$2:$L$350,11,FALSE),\"\")","v":""}]
[null,{"$f":"IFERROR(VLOOKUP($A782,[1]البيانات!$B$2:$L$350,11,FALSE),\"\")","v":""}]
[null,{"$f":"IFERROR(VLOOKUP($A783,[1]البيانات!$B$2:$L$350,11,FALSE),\"\")","v":""}]
[null,{"$f":"IFERROR(VLOOKUP($A784,[1]البيانات!$B$2:$L$350,11,FALSE),\"\")","v":""}]
[null,{"$f":"IFERROR(VLOOKUP($A785,[1]البيانات!$B$2:$L$350,11,FALSE),\"\")","v":""}]
[null,{"$f":"IFERROR(VLOOKUP($A786,[1]البيانات!$B$2:$L$350,11,FALSE),\"\")","v":""}]
[null,{"$f":"IFERROR(VLOOKUP($A787,[1]البيانات!$B$2:$L$350,11,FALSE),\"\")","v":""}]
[null,{"$f":"IFERROR(VLOOKUP($A788,[1]البيانات!$B$2:$L$350,11,FALSE),\"\")","v":""}]
[null,{"$f":"IFERROR(VLOOKUP($A789,[1]البيانات!$B$2:$L$350,11,FALSE),\"\")","v":""}]
[null,{"$f":"IFERROR(VLOOKUP($A790,[1]البيانات!$B$2:$L$350,11,FALSE),\"\")","v":""}]
[null,{"$f":"IFERROR(VLOOKUP($A791,[1]البيانات!$B$2:$L$350,11,FALSE),\"\")","v":""}]
[null,{"$f":"IFERROR(VLOOKUP($A792,[1]البيانات!$B$2:$L$350,11,FALSE),\"\")","v":""}]
[null,{"$f":"IFERROR(VLOOKUP($A793,[1]البيانات!$B$2:$L$350,11,FALSE),\"\")","v":""}]
[null,{"$f":"IFERROR(VLOOKUP($A794,[1]البيانات!$B$2:$L$350,11,FALSE),\"\")","v":""}]
[null,{"$f":"IFERROR(VLOOKUP($A795,[1]البيانات!$B$2:$L$350,11,FALSE),\"\")","v":""}]
[null,{"$f":"IFERROR(VLOOKUP($A796,[1]البيانات!$B$2:$L$350,11,FALSE),\"\")","v":""}]
[null,{"$f":"IFERROR(VLOOKUP($A797,[1]البيانات!$B$2:$L$350,11,FALSE),\"\")","v":""}]
[null,{"$f":"IFERROR(VLOOKUP($A798,[1]البيانات!$B$2:$L$350,11,FALSE),\"\")","v":""}]
[null,{"$f":"IFERROR(VLOOKUP($A799,[1]البيانات!$B$2:$L$350,11,FALSE),\"\")","v":""}]
[null,{"$f":"IFERROR(VLOOKUP($A800,[1]البيانات!$B$2:$L$350,11,FALSE),\"\")","v":""}]
[null,{"$f":"IFERROR(VLOOKUP($A801,[1]البيانات!$B$2:$L$350,11,FALSE),\"\")","v":""}]
[null,{"$f":"IFERROR(VLOOKUP($A802,[1]البيانات!$B$2:$L$350,11,FALSE),\"\")","v":""}]
[null,{"$f":"IFERROR(VLOOKUP($A803,[1]البيانات!$B$2:$L$350,11,FALSE),\"\")","v":""}]
[null,{"$f":"IFERROR(VLOOKUP($A804,[1]البيانات!$B$2:$L$350,11,FALSE),\"\")","v":""}]
[null,{"$f":"IFERROR(VLOOKUP($A805,[1]البيانات!$B$2:$L$350,11,FALSE),\"\")","v":""}]
[null,{"$f":"IFERROR(VLOOKUP($A806,[1]البيانات!$B$2:$L$350,11,FALSE),\"\")","v":""}]
[null,{"$f":"IFERROR(VLOOKUP($A807,[1]البيانات!$B$2:$L$350,11,FALSE),\"\")","v":""}]
[null,{"$f":"IFERROR(VLOOKUP($A808,[1]البيانات!$B$2:$L$350,11,FALSE),\"\")","v":""}]
[null,{"$f":"IFERROR(VLOOKUP($A809,[1]البيانات!$B$2:$L$350,11,FALSE),\"\")","v":""}]
[null,{"$f":"IFERROR(VLOOKUP($A810,[1]البيانات!$B$2:$L$350,11,FALSE),\"\")","v":""}]
[null,{"$f":"IFERROR(VLOOKUP($A811,[1]البيانات!$B$2:$L$350,11,FALSE),\"\")","v":""}]
[null,{"$f":"IFERROR(VLOOKUP($A812,[1]البيانات!$B$2:$L$350,11,FALSE),\"\")","v":""}]
[null,{"$f":"IFERROR(VLOOKUP($A813,[1]البيانات!$B$2:$L$350,11,FALSE),\"\")","v":""}]
[null,{"$f":"IFERROR(VLOOKUP($A814,[1]البيانات!$B$2:$L$350,11,FALSE),\"\")","v":""}]
[null,{"$f":"IFERROR(VLOOKUP($A815,[1]البيانات!$B$2:$L$350,11,FALSE),\"\")","v":""}]
[null,{"$f":"IFERROR(VLOOKUP($A816,[1]البيانات!$B$2:$L$350,11,FALSE),\"\")","v":""}]
[null,{"$f":"IFERROR(VLOOKUP($A817,[1]البيانات!$B$2:$L$350,11,FALSE),\"\")","v":""}]
[null,{"$f":"IFERROR(VLOOKUP($A818,[1]البيانات!$B$2:$L$350,11,FALSE),\"\")","v":""}]
[null,{"$f":"IFERROR(VLOOKUP($A819,[1]البيانات!$B$2:$L$350,11,FALSE),\"\")","v":""}]
[null,{"$f":"IFERROR(VLOOKUP($A820,[1]البيانات!$B$2:$L$350,11,FALSE),\"\")","v":""}]
[null,{"$f":"IFERROR(VLOOKUP($A821,[1]البيانات!$B$2:$L$350,11,FALSE),\"\")","v":""}]
[null,{"$f":"IFERROR(VLOOKUP($A822,[1]البيانات!$B$2:$L$350,11,FALSE),\"\")","v":""}]
[null,{"$f":"IFERROR(VLOOKUP($A823,[1]البيانات!$B$2:$L$350,11,FALSE),\"\")","v":""}]
[null,{"$f":"IFERROR(VLOOKUP($A824,[1]البيانات!$B$2:$L$350,11,FALSE),\"\")","v":""}]
[null,{"$f":"IFERROR(VLOOKUP($A825,[1]البيانات!$B$2:$L$350,11,FALSE),\"\")","v":""}]
[null,{"$f":"IFERROR(VLOOKUP($A826,[1]البيانات!$B$2:$L$350,11,FALSE),\"\")","v":""}]
[null,{"$f":"IFERROR(VLOOKUP($A827,[1]البيانات!$B$2:$L$350,11,FALSE),\"\")","v":""}]
[null,{"$f":"IFERROR(VLOOKUP($A828,[1]البيانات!$B$2:$L$350,11,FALSE),\"\")","v":""}]
[null,{"$f":"IFERROR(VLOOKUP($A829,[1]البيانات!$B$2:$L$350,11,FALSE),\"\")","v":""}]
[null,{"$f":"IFERROR(VLOOKUP($A830,[1]البيانات!$B$2:$L$350,11,FALSE),\"\")","v":""}]
[null,{"$f":"IFERROR(VLOOKUP($A831,[1]البيانات!$B$2:$L$350,11,FALSE),\"\")","v":""}]
[null,{"$f":"IFERROR(VLOOKUP($A832,[1]البيانات!$B$2:$L$350,11,FALSE),\"\")","v":""}]
[null,{"$f":"IFERROR(VLOOKUP($A833,[1]البيانات!$B$2:$L$350,11,FALSE),\"\")","v":""}]
[null,{"$f":"IFERROR(VLOOKUP($A834,[1]البيانات!$B$2:$L$350,11,FALSE),\"\")","v":""}]
[null,{"$f":"IFERROR(VLOOKUP($A835,[1]البيانات!$B$2:$L$350,11,FALSE),\"\")","v":""}]
[null,{"$f":"IFERROR(VLOOKUP($A836,[1]البيانات!$B$2:$L$350,11,FALSE),\"\")","v":""}]
[null,{"$f":"IFERROR(VLOOKUP($A837,[1]البيانات!$B$2:$L$350,11,FALSE),\"\")","v":""}]
[null,{"$f":"IFERROR(VLOOKUP($A838,[1]البيانات!$B$2:$L$350,11,FALSE),\"\")","v":""}]
[null,{"$f":"IFERROR(VLOOKUP($A839,[1]البيانات!$B$2:$L$350,11,FALSE),\"\")","v":""}]
[null,{"$f":"IFERROR(VLOOKUP($A840,[1]البيانات!$B$2:$L$350,11,FALSE),\"\")","v":""}]
[null,{"$f":"IFERROR(VLOOKUP($A841,[1]البيانات!$B$2:$L$350,11,FALSE),\"\")","v":""}]
[null,{"$f":"IFERROR(VLOOKUP($A842,[1]البيانات!$B$2:$L$350,11,FALSE),\"\")","v":""}]
[null,{"$f":"IFERROR(VLOOKUP($A843,[1]البيانات!$B$2:$L$350,11,FALSE),\"\")","v":""}]
[null,{"$f":"IFERROR(VLOOKUP($A844,[1]البيانات!$B$2:$L$350,11,FALSE),\"\")","v":""}]
[null,{"$f":"IFERROR(VLOOKUP($A845,[1]البيانات!$B$2:$L$350,11,FALSE),\"\")","v":""}]
[null,{"$f":"IFERROR(VLOOKUP($A846,[1]البيانات!$B$2:$L$350,11,FALSE),\"\")","v":""}]
[null,{"$f":"IFERROR(VLOOKUP($A847,[1]البيانات!$B$2:$L$350,11,FALSE),\"\")","v":""}]
[null,{"$f":"IFERROR(VLOOKUP($A848,[1]البيانات!$B$2:$L$350,11,FALSE),\"\")","v":""}]
[null,{"$f":"IFERROR(VLOOKUP($A849,[1]البيانات!$B$2:$L$350,11,FALSE),\"\")","v":""}]
[null,{"$f":"IFERROR(VLOOKUP($A850,[1]البيانات!$B$2:$L$350,11,FALSE),\"\")","v":""}]
[null,{"$f":"IFERROR(VLOOKUP($A851,[1]البيانات!$B$2:$L$350,11,FALSE),\"\")","v":""}]
[null,{"$f":"IFERROR(VLOOKUP($A852,[1]البيانات!$B$2:$L$350,11,FALSE),\"\")","v":""}]
[null,{"$f":"IFERROR(VLOOKUP($A853,[1]البيانات!$B$2:$L$350,11,FALSE),\"\")","v":""}]
[null,{"$f":"IFERROR(VLOOKUP($A854,[1]البيانات!$B$2:$L$350,11,FALSE),\"\")","v":""}]
[null,{"$f":"IFERROR(VLOOKUP($A855,[1]البيانات!$B$2:$L$350,11,FALSE),\"\")","v":""}]
[null,{"$f":"IFERROR(VLOOKUP($A856,[1]البيانات!$B$2:$L$350,11,FALSE),\"\")","v":""}]
[null,{"$f":"IFERROR(VLOOKUP($A857,[1]البيانات!$B$2:$L$350,11,FALSE),\"\")","v":""}]
[null,{"$f":"IFERROR(VLOOKUP($A858,[1]البيانات!$B$2:$L$350,11,FALSE),\"\")","v":""}]
[null,{"$f":"IFERROR(VLOOKUP($A859,[1]البيانات!$B$2:$L$350,11,FALSE),\"\")","v":""}]
[null,{"$f":"IFERROR(VLOOKUP($A860,[1]البيانات!$B$2:$L$350,11,FALSE),\"\")","v":""}]
[null,{"$f":"IFERROR(VLOOKUP($A861,[1]البيانات!$B$2:$L$350,11,FALSE),\"\")","v":""}]
[null,{"$f":"IFERROR(VLOOKUP($A862,[1]البيانات!$B$2:$L$350,11,FALSE),\"\")","v":""}]
[null,{"$f":"IFERROR(VLOOKUP($A863,[1]البيانات!$B$2:$L$350,11,FALSE),\"\")","v":""}]
[null,{"$f":"IFERROR(VLOOKUP($A864,[1]البيانات!$B$2:$L$350,11,FALSE),\"\")","v":""}]
[null,{"$f":"IFERROR(VLOOKUP($A865,[1]البيانات!$B$2:$L$350,11,FALSE),\"\")","v":""}]
[null,{"$f":"IFERROR(VLOOKUP($A866,[1]البيانات!$B$2:$L$350,11,FALSE),\"\")","v":""}]
[null,{"$f":"IFERROR(VLOOKUP($A867,[1]البيانات!$B$2:$L$350,11,FALSE),\"\")","v":""}]
[null,{"$f":"IFERROR(VLOOKUP($A868,[1]البيانات!$B$2:$L$350,11,FALSE),\"\")","v":""}]
[null,{"$f":"IFERROR(VLOOKUP($A869,[1]البيانات!$B$2:$L$350,11,FALSE),\"\")","v":""}]
[null,{"$f":"IFERROR(VLOOKUP($A870,[1]البيانات!$B$2:$L$350,11,FALSE),\"\")","v":""}]
[null,{"$f":"IFERROR(VLOOKUP($A871,[1]البيانات!$B$2:$L$350,11,FALSE),\"\")","v":""}]
[null,{"$f":"IFERROR(VLOOKUP($A872,[1]البيانات!$B$2:$L$350,11,FALSE),\"\")","v":""}]
[null,{"$f":"IFERROR(VLOOKUP($A873,[1]البيانات!$B$2:$L$350,11,FALSE),\"\")","v":""}]
[null,{"$f":"IFERROR(VLOOKUP($A874,[1]البيانات!$B$2:$L$350,11,FALSE),\"\")","v":""}]
[null,{"$f":"IFERROR(VLOOKUP($A875,[1]البيانات!$B$2:$L$350,11,FALSE),\"\")","v":""}]
[null,{"$f":"IFERROR(VLOOKUP($A876,[1]البيانات!$B$2:$L$350,11,FALSE),\"\")","v":""}]
[null,{"$f":"IFERROR(VLOOKUP($A877,[1]البيانات!$B$2:$L$350,11,FALSE),\"\")","v":""}]
[null,{"$f":"IFERROR(VLOOKUP($A878,[1]البيانات!$B$2:$L$350,11,FALSE),\"\")","v":""}]
[null,{"$f":"IFERROR(VLOOKUP($A879,[1]البيانات!$B$2:$L$350,11,FALSE),\"\")","v":""}]
[null,{"$f":"IFERROR(VLOOKUP($A880,[1]البيانات!$B$2:$L$350,11,FALSE),\"\")","v":""}]
[null,{"$f":"IFERROR(VLOOKUP($A881,[1]البيانات!$B$2:$L$350,11,FALSE),\"\")","v":""}]
[null,{"$f":"IFERROR(VLOOKUP($A882,[1]البيانات!$B$2:$L$350,11,FALSE),\"\")","v":""}]
[null,{"$f":"IFERROR(VLOOKUP($A883,[1]البيانات!$B$2:$L$350,11,FALSE),\"\")","v":""}]
[null,{"$f":"IFERROR(VLOOKUP($A884,[1]البيانات!$B$2:$L$350,11,FALSE),\"\")","v":""}]
[null,{"$f":"IFERROR(VLOOKUP($A885,[1]البيانات!$B$2:$L$350,11,FALSE),\"\")","v":""}]
[null,{"$f":"IFERROR(VLOOKUP($A886,[1]البيانات!$B$2:$L$350,11,FALSE),\"\")","v":""}]
[null,{"$f":"IFERROR(VLOOKUP($A887,[1]البيانات!$B$2:$L$350,11,FALSE),\"\")","v":""}]
[null,{"$f":"IFERROR(VLOOKUP($A888,[1]البيانات!$B$2:$L$350,11,FALSE),\"\")","v":""}]
[null,{"$f":"IFERROR(VLOOKUP($A889,[1]البيانات!$B$2:$L$350,11,FALSE),\"\")","v":""}]
[null,{"$f":"IFERROR(VLOOKUP($A890,[1]البيانات!$B$2:$L$350,11,FALSE),\"\")","v":""}]
[null,{"$f":"IFERROR(VLOOKUP($A891,[1]البيانات!$B$2:$L$350,11,FALSE),\"\")","v":""}]
[null,{"$f":"IFERROR(VLOOKUP($A892,[1]البيانات!$B$2:$L$350,11,FALSE),\"\")","v":""}]
[null,{"$f":"IFERROR(VLOOKUP($A893,[1]البيانات!$B$2:$L$350,11,FALSE),\"\")","v":""}]
[null,{"$f":"IFERROR(VLOOKUP($A894,[1]البيانات!$B$2:$L$350,11,FALSE),\"\")","v":""}]
[null,{"$f":"IFERROR(VLOOKUP($A895,[1]البيانات!$B$2:$L$350,11,FALSE),\"\")","v":""}]
[null,{"$f":"IFERROR(VLOOKUP($A896,[1]البيانات!$B$2:$L$350,11,FALSE),\"\")","v":""}]
[null,{"$f":"IFERROR(VLOOKUP($A897,[1]البيانات!$B$2:$L$350,11,FALSE),\"\")","v":""}]
[null,{"$f":"IFERROR(VLOOKUP($A898,[1]البيانات!$B$2:$L$350,11,FALSE),\"\")","v":""}]
[null,{"$f":"IFERROR(VLOOKUP($A899,[1]البيانات!$B$2:$L$350,11,FALSE),\"\")","v":""}]
[null,{"$f":"IFERROR(VLOOKUP($A900,[1]البيانات!$B$2:$L$350,11,FALSE),\"\")","v":""}]
[null,{"$f":"IFERROR(VLOOKUP($A901,[1]البيانات!$B$2:$L$350,11,FALSE),\"\")","v":""}]
[null,{"$f":"IFERROR(VLOOKUP($A902,[1]البيانات!$B$2:$L$350,11,FALSE),\"\")","v":""}]
[null,{"$f":"IFERROR(VLOOKUP($A903,[1]البيانات!$B$2:$L$350,11,FALSE),\"\")","v":""}]
[null,{"$f":"IFERROR(VLOOKUP($A904,[1]البيانات!$B$2:$L$350,11,FALSE),\"\")","v":""}]
[null,{"$f":"IFERROR(VLOOKUP($A905,[1]البيانات!$B$2:$L$350,11,FALSE),\"\")","v":""}]
[null,{"$f":"IFERROR(VLOOKUP($A906,[1]البيانات!$B$2:$L$350,11,FALSE),\"\")","v":""}]
[null,{"$f":"IFERROR(VLOOKUP($A907,[1]البيانات!$B$2:$L$350,11,FALSE),\"\")","v":""}]
[null,{"$f":"IFERROR(VLOOKUP($A908,[1]البيانات!$B$2:$L$350,11,FALSE),\"\")","v":""}]
[null,{"$f":"IFERROR(VLOOKUP($A909,[1]البيانات!$B$2:$L$350,11,FALSE),\"\")","v":""}]
[null,{"$f":"IFERROR(VLOOKUP($A910,[1]البيانات!$B$2:$L$350,11,FALSE),\"\")","v":""}]
[null,{"$f":"IFERROR(VLOOKUP($A911,[1]البيانات!$B$2:$L$350,11,FALSE),\"\")","v":""}]
[null,{"$f":"IFERROR(VLOOKUP($A912,[1]البيانات!$B$2:$L$350,11,FALSE),\"\")","v":""}]
[null,{"$f":"IFERROR(VLOOKUP($A913,[1]البيانات!$B$2:$L$350,11,FALSE),\"\")","v":""}]
[null,{"$f":"IFERROR(VLOOKUP($A914,[1]البيانات!$B$2:$L$350,11,FALSE),\"\")","v":""}]
[null,{"$f":"IFERROR(VLOOKUP($A915,[1]البيانات!$B$2:$L$350,11,FALSE),\"\")","v":""}]
[null,{"$f":"IFERROR(VLOOKUP($A916,[1]البيانات!$B$2:$L$350,11,FALSE),\"\")","v":""}]
[null,{"$f":"IFERROR(VLOOKUP($A917,[1]البيانات!$B$2:$L$350,11,FALSE),\"\")","v":""}]
[null,{"$f":"IFERROR(VLOOKUP($A918,[1]البيانات!$B$2:$L$350,11,FALSE),\"\")","v":""}]
[null,{"$f":"IFERROR(VLOOKUP($A919,[1]البيانات!$B$2:$L$350,11,FALSE),\"\")","v":""}]
[null,{"$f":"IFERROR(VLOOKUP($A920,[1]البيانات!$B$2:$L$350,11,FALSE),\"\")","v":""}]
[null,{"$f":"IFERROR(VLOOKUP($A921,[1]البيانات!$B$2:$L$350,11,FALSE),\"\")","v":""}]
[null,{"$f":"IFERROR(VLOOKUP($A922,[1]البيانات!$B$2:$L$350,11,FALSE),\"\")","v":""}]
[null,{"$f":"IFERROR(VLOOKUP($A923,[1]البيانات!$B$2:$L$350,11,FALSE),\"\")","v":""}]
[null,{"$f":"IFERROR(VLOOKUP($A924,[1]البيانات!$B$2:$L$350,11,FALSE),\"\")","v":""}]
[null,{"$f":"IFERROR(VLOOKUP($A925,[1]البيانات!$B$2:$L$350,11,FALSE),\"\")","v":""}]
[null,{"$f":"IFERROR(VLOOKUP($A926,[1]البيانات!$B$2:$L$350,11,FALSE),\"\")","v":""}]
[null,{"$f":"IFERROR(VLOOKUP($A927,[1]البيانات!$B$2:$L$350,11,FALSE),\"\")","v":""}]
[null,{"$f":"IFERROR(VLOOKUP($A928,[1]البيانات!$B$2:$L$350,11,FALSE),\"\")","v":""}]
[null,{"$f":"IFERROR(VLOOKUP($A929,[1]البيانات!$B$2:$L$350,11,FALSE),\"\")","v":""}]
[null,{"$f":"IFERROR(VLOOKUP($A930,[1]البيانات!$B$2:$L$350,11,FALSE),\"\")","v":""}]
[null,{"$f":"IFERROR(VLOOKUP($A931,[1]البيانات!$B$2:$L$350,11,FALSE),\"\")","v":""}]
[null,{"$f":"IFERROR(VLOOKUP($A932,[1]البيانات!$B$2:$L$350,11,FALSE),\"\")","v":""}]
[null,{"$f":"IFERROR(VLOOKUP($A933,[1]البيانات!$B$2:$L$350,11,FALSE),\"\")","v":""}]
[null,{"$f":"IFERROR(VLOOKUP($A934,[1]البيانات!$B$2:$L$350,11,FALSE),\"\")","v":""}]
[null,{"$f":"IFERROR(VLOOKUP($A935,[1]البيانات!$B$2:$L$350,11,FALSE),\"\")","v":""}]
[null,{"$f":"IFERROR(VLOOKUP($A936,[1]البيانات!$B$2:$L$350,11,FALSE),\"\")","v":""}]
[null,{"$f":"IFERROR(VLOOKUP($A937,[1]البيانات!$B$2:$L$350,11,FALSE),\"\")","v":""}]
[null,{"$f":"IFERROR(VLOOKUP($A938,[1]البيانات!$B$2:$L$350,11,FALSE),\"\")","v":""}]
[null,{"$f":"IFERROR(VLOOKUP($A939,[1]البيانات!$B$2:$L$350,11,FALSE),\"\")","v":""}]
[null,{"$f":"IFERROR(VLOOKUP($A940,[1]البيانات!$B$2:$L$350,11,FALSE),\"\")","v":""}]
[null,{"$f":"IFERROR(VLOOKUP($A941,[1]البيانات!$B$2:$L$350,11,FALSE),\"\")","v":""}]
[null,{"$f":"IFERROR(VLOOKUP($A942,[1]البيانات!$B$2:$L$350,11,FALSE),\"\")","v":""}]
[null,{"$f":"IFERROR(VLOOKUP($A943,[1]البيانات!$B$2:$L$350,11,FALSE),\"\")","v":""}]
[null,{"$f":"IFERROR(VLOOKUP($A944,[1]البيانات!$B$2:$L$350,11,FALSE),\"\")","v":""}]
[null,{"$f":"IFERROR(VLOOKUP($A945,[1]البيانات!$B$2:$L$350,11,FALSE),\"\")","v":""}]
[null,{"$f":"IFERROR(VLOOKUP($A946,[1]البيانات!$B$2:$L$350,11,FALSE),\"\")","v":""}]
[null,{"$f":"IFERROR(VLOOKUP($A947,[1]البيانات!$B$2:$L$350,11,FALSE),\"\")","v":""}]
[null,{"$f":"IFERROR(VLOOKUP($A948,[1]البيانات!$B$2:$L$350,11,FALSE),\"\")","v":""}]
[null,{"$f":"IFERROR(VLOOKUP($A949,[1]البيانات!$B$2:$L$350,11,FALSE),\"\")","v":""}]
[null,{"$f":"IFERROR(VLOOKUP($A950,[1]البيانات!$B$2:$L$350,11,FALSE),\"\")","v":""}]
[null,{"$f":"IFERROR(VLOOKUP($A951,[1]البيانات!$B$2:$L$350,11,FALSE),\"\")","v":""}]
[null,{"$f":"IFERROR(VLOOKUP($A952,[1]البيانات!$B$2:$L$350,11,FALSE),\"\")","v":""}]
[null,{"$f":"IFERROR(VLOOKUP($A953,[1]البيانات!$B$2:$L$350,11,FALSE),\"\")","v":""}]
[null,{"$f":"IFERROR(VLOOKUP($A954,[1]البيانات!$B$2:$L$350,11,FALSE),\"\")","v":""}]
[null,{"$f":"IFERROR(VLOOKUP($A955,[1]البيانات!$B$2:$L$350,11,FALSE),\"\")","v":""}]
[null,{"$f":"IFERROR(VLOOKUP($A956,[1]البيانات!$B$2:$L$350,11,FALSE),\"\")","v":""}]
[null,{"$f":"IFERROR(VLOOKUP($A957,[1]البيانات!$B$2:$L$350,11,FALSE),\"\")","v":""}]
[null,{"$f":"IFERROR(VLOOKUP($A958,[1]البيانات!$B$2:$L$350,11,FALSE),\"\")","v":""}]
[null,{"$f":"IFERROR(VLOOKUP($A959,[1]البيانات!$B$2:$L$350,11,FALSE),\"\")","v":""}]
[null,{"$f":"IFERROR(VLOOKUP($A960,[1]البيانات!$B$2:$L$350,11,FALSE),\"\")","v":""}]
[null,{"$f":"IFERROR(VLOOKUP($A961,[1]البيانات!$B$2:$L$350,11,FALSE),\"\")","v":""}]
[null,{"$f":"IFERROR(VLOOKUP($A962,[1]البيانات!$B$2:$L$350,11,FALSE),\"\")","v":""}]
[null,{"$f":"IFERROR(VLOOKUP($A963,[1]البيانات!$B$2:$L$350,11,FALSE),\"\")","v":""}]
[null,{"$f":"IFERROR(VLOOKUP($A964,[1]البيانات!$B$2:$L$350,11,FALSE),\"\")","v":""}]
[null,{"$f":"IFERROR(VLOOKUP($A965,[1]البيانات!$B$2:$L$350,11,FALSE),\"\")","v":""}]
[null,{"$f":"IFERROR(VLOOKUP($A966,[1]البيانات!$B$2:$L$350,11,FALSE),\"\")","v":""}]
[null,{"$f":"IFERROR(VLOOKUP($A967,[1]البيانات!$B$2:$L$350,11,FALSE),\"\")","v":""}]
[null,{"$f":"IFERROR(VLOOKUP($A968,[1]البيانات!$B$2:$L$350,11,FALSE),\"\")","v":""}]
[null,{"$f":"IFERROR(VLOOKUP($A969,[1]البيانات!$B$2:$L$350,11,FALSE),\"\")","v":""}]
[null,{"$f":"IFERROR(VLOOKUP($A970,[1]البيانات!$B$2:$L$350,11,FALSE),\"\")","v":""}]
[null,{"$f":"IFERROR(VLOOKUP($A971,[1]البيانات!$B$2:$L$350,11,FALSE),\"\")","v":""}]
[null,{"$f":"IFERROR(VLOOKUP($A972,[1]البيانات!$B$2:$L$350,11,FALSE),\"\")","v":""}]
[null,{"$f":"IFERROR(VLOOKUP($A973,[1]البيانات!$B$2:$L$350,11,FALSE),\"\")","v":""}]
[null,{"$f":"IFERROR(VLOOKUP($A974,[1]البيانات!$B$2:$L$350,11,FALSE),\"\")","v":""}]
[null,{"$f":"IFERROR(VLOOKUP($A975,[1]البيانات!$B$2:$L$350,11,FALSE),\"\")","v":""}]
[null,{"$f":"IFERROR(VLOOKUP($A976,[1]البيانات!$B$2:$L$350,11,FALSE),\"\")","v":""}]
[null,{"$f":"IFERROR(VLOOKUP($A977,[1]البيانات!$B$2:$L$350,11,FALSE),\"\")","v":""}]
[null,{"$f":"IFERROR(VLOOKUP($A978,[1]البيانات!$B$2:$L$350,11,FALSE),\"\")","v":""}]
[null,{"$f":"IFERROR(VLOOKUP($A979,[1]البيانات!$B$2:$L$350,11,FALSE),\"\")","v":""}]
[null,{"$f":"IFERROR(VLOOKUP($A980,[1]البيانات!$B$2:$L$350,11,FALSE),\"\")","v":""}]
[null,{"$f":"IFERROR(VLOOKUP($A981,[1]البيانات!$B$2:$L$350,11,FALSE),\"\")","v":""}]
[null,{"$f":"IFERROR(VLOOKUP($A982,[1]البيانات!$B$2:$L$350,11,FALSE),\"\")","v":""}]
[null,{"$f":"IFERROR(VLOOKUP($A983,[1]البيانات!$B$2:$L$350,11,FALSE),\"\")","v":""}]
[null,{"$f":"IFERROR(VLOOKUP($A984,[1]البيانات!$B$2:$L$350,11,FALSE),\"\")","v":""}]
[null,{"$f":"IFERROR(VLOOKUP($A985,[1]البيانات!$B$2:$L$350,11,FALSE),\"\")","v":""}]
[null,{"$f":"IFERROR(VLOOKUP($A986,[1]البيانات!$B$2:$L$350,11,FALSE),\"\")","v":""}]
[null,{"$f":"IFERROR(VLOOKUP($A987,[1]البيانات!$B$2:$L$350,11,FALSE),\"\")","v":""}]
[null,{"$f":"IFERROR(VLOOKUP($A988,[1]البيانات!$B$2:$L$350,11,FALSE),\"\")","v":""}]
[null,{"$f":"IFERROR(VLOOKUP($A989,[1]البيانات!$B$2:$L$350,11,FALSE),\"\")","v":""}]
[null,{"$f":"IFERROR(VLOOKUP($A990,[1]البيانات!$B$2:$L$350,11,FALSE),\"\")","v":""}]
[null,{"$f":"IFERROR(VLOOKUP($A991,[1]البيانات!$B$2:$L$350,11,FALSE),\"\")","v":""}]
[null,{"$f":"IFERROR(VLOOKUP($A992,[1]البيانات!$B$2:$L$350,11,FALSE),\"\")","v":""}]
[null,{"$f":"IFERROR(VLOOKUP($A993,[1]البيانات!$B$2:$L$350,11,FALSE),\"\")","v":""}]
[null,{"$f":"IFERROR(VLOOKUP($A994,[1]البيانات!$B$2:$L$350,11,FALSE),\"\")","v":""}]
[null,{"$f":"IFERROR(VLOOKUP($A995,[1]البيانات!$B$2:$L$350,11,FALSE),\"\")","v":""}]
[null,{"$f":"IFERROR(VLOOKUP($A996,[1]البيانات!$B$2:$L$350,11,FALSE),\"\")","v":""}]
[null,{"$f":"IFERROR(VLOOKUP($A997,[1]البيانات!$B$2:$L$350,11,FALSE),\"\")","v":""}]
[null,{"$f":"IFERROR(VLOOKUP($A998,[1]البيانات!$B$2:$L$350,11,FALSE),\"\")","v":""}]
[null,{"$f":"IFERROR(VLOOKUP($A999,[1]البيانات!$B$2:$L$350,11,FALSE),\"\")","v":""}]
[null,{"$f":"IFERROR(VLOOKUP($A1000,[1]البيانات!$B$2:$L$350,11,FALSE),\"\")","v":""}]
[null,{"$f":"IFERROR(VLOOKUP($A1001,[1]البيانات!$B$2:$L$350,11,FALSE),\"\")","v":""}]
[null,{"$f":"IFERROR(VLOOKUP($A1002,[1]البيانات!$B$2:$L$350,11,FALSE),\"\")","v":""}]
[null,{"$f":"IFERROR(VLOOKUP($A1003,[1]البيانات!$B$2:$L$350,11,FALSE),\"\")","v":""}]
[null,{"$f":"IFERROR(VLOOKUP($A1004,[1]البيانات!$B$2:$L$350,11,FALSE),\"\")","v":""}]
[null,{"$f":"IFERROR(VLOOKUP($A1005,[1]البيانات!$B$2:$L$350,11,FALSE),\"\")","v":""}]
[null,{"$f":"IFERROR(VLOOKUP($A1006,[1]البيانات!$B$2:$L$350,11,FALSE),\"\")","v":""}]
[null,{"$f":"IFERROR(VLOOKUP($A1007,[1]البيانات!$B$2:$L$350,11,FALSE),\"\")","v":""}]
[null,{"$f":"IFERROR(VLOOKUP($A1008,[1]البيانات!$B$2:$L$350,11,FALSE),\"\")","v":""}]
[null,{"$f":"IFERROR(VLOOKUP($A1009,[1]البيانات!$B$2:$L$350,11,FALSE),\"\")","v":""}]
[null,{"$f":"IFERROR(VLOOKUP($A1010,[1]البيانات!$B$2:$L$350,11,FALSE),\"\")","v":""}]
[null,{"$f":"IFERROR(VLOOKUP($A1011,[1]البيانات!$B$2:$L$350,11,FALSE),\"\")","v":""}]
[null,{"$f":"IFERROR(VLOOKUP($A1012,[1]البيانات!$B$2:$L$350,11,FALSE),\"\")","v":""}]
[null,{"$f":"IFERROR(VLOOKUP($A1013,[1]البيانات!$B$2:$L$350,11,FALSE),\"\")","v":""}]
[null,{"$f":"IFERROR(VLOOKUP($A1014,[1]البيانات!$B$2:$L$350,11,FALSE),\"\")","v":""}]
[null,{"$f":"IFERROR(VLOOKUP($A1015,[1]البيانات!$B$2:$L$350,11,FALSE),\"\")","v":""}]
[null,{"$f":"IFERROR(VLOOKUP($A1016,[1]البيانات!$B$2:$L$350,11,FALSE),\"\")","v":""}]
[null,{"$f":"IFERROR(VLOOKUP($A1017,[1]البيانات!$B$2:$L$350,11,FALSE),\"\")","v":""}]
[null,{"$f":"IFERROR(VLOOKUP($A1018,[1]البيانات!$B$2:$L$350,11,FALSE),\"\")","v":""}]
[null,{"$f":"IFERROR(VLOOKUP($A1019,[1]البيانات!$B$2:$L$350,11,FALSE),\"\")","v":""}]
[null,{"$f":"IFERROR(VLOOKUP($A1020,[1]البيانات!$B$2:$L$350,11,FALSE),\"\")","v":""}]
[null,{"$f":"IFERROR(VLOOKUP($A1021,[1]البيانات!$B$2:$L$350,11,FALSE),\"\")","v":""}]
[null,{"$f":"IFERROR(VLOOKUP($A1022,[1]البيانات!$B$2:$L$350,11,FALSE),\"\")","v":""}]
[null,{"$f":"IFERROR(VLOOKUP($A1023,[1]البيانات!$B$2:$L$350,11,FALSE),\"\")","v":""}]
[null,{"$f":"IFERROR(VLOOKUP($A1024,[1]البيانات!$B$2:$L$350,11,FALSE),\"\")","v":""}]
[null,{"$f":"IFERROR(VLOOKUP($A1025,[1]البيانات!$B$2:$L$350,11,FALSE),\"\")","v":""}]
[null,{"$f":"IFERROR(VLOOKUP($A1026,[1]البيانات!$B$2:$L$350,11,FALSE),\"\")","v":""}]
[null,{"$f":"IFERROR(VLOOKUP($A1027,[1]البيانات!$B$2:$L$350,11,FALSE),\"\")","v":""}]
[null,{"$f":"IFERROR(VLOOKUP($A1028,[1]البيانات!$B$2:$L$350,11,FALSE),\"\")","v":""}]
[null,{"$f":"IFERROR(VLOOKUP($A1029,[1]البيانات!$B$2:$L$350,11,FALSE),\"\")","v":""}]
[null,{"$f":"IFERROR(VLOOKUP($A1030,[1]البيانات!$B$2:$L$350,11,FALSE),\"\")","v":""}]
[null,{"$f":"IFERROR(VLOOKUP($A1031,[1]البيانات!$B$2:$L$350,11,FALSE),\"\")","v":""}]
[null,{"$f":"IFERROR(VLOOKUP($A1032,[1]البيانات!$B$2:$L$350,11,FALSE),\"\")","v":""}]
[null,{"$f":"IFERROR(VLOOKUP($A1033,[1]البيانات!$B$2:$L$350,11,FALSE),\"\")","v":""}]
[null,{"$f":"IFERROR(VLOOKUP($A1034,[1]البيانات!$B$2:$L$350,11,FALSE),\"\")","v":""}]
[null,{"$f":"IFERROR(VLOOKUP($A1035,[1]البيانات!$B$2:$L$350,11,FALSE),\"\")","v":""}]
[null,{"$f":"IFERROR(VLOOKUP($A1036,[1]البيانات!$B$2:$L$350,11,FALSE),\"\")","v":""}]
[null,{"$f":"IFERROR(VLOOKUP($A1037,[1]البيانات!$B$2:$L$350,11,FALSE),\"\")","v":""}]
[null,{"$f":"IFERROR(VLOOKUP($A1038,[1]البيانات!$B$2:$L$350,11,FALSE),\"\")","v":""}]
[null,{"$f":"IFERROR(VLOOKUP($A1039,[1]البيانات!$B$2:$L$350,11,FALSE),\"\")","v":""}]
[null,{"$f":"IFERROR(VLOOKUP($A1040,[1]البيانات!$B$2:$L$350,11,FALSE),\"\")","v":""}]
[null,{"$f":"IFERROR(VLOOKUP($A1041,[1]البيانات!$B$2:$L$350,11,FALSE),\"\")","v":""}]
[null,{"$f":"IFERROR(VLOOKUP($A1042,[1]البيانات!$B$2:$L$350,11,FALSE),\"\")","v":""}]
[null,{"$f":"IFERROR(VLOOKUP($A1043,[1]البيانات!$B$2:$L$350,11,FALSE),\"\")","v":""}]
[null,{"$f":"IFERROR(VLOOKUP($A1044,[1]البيانات!$B$2:$L$350,11,FALSE),\"\")","v":""}]
[null,{"$f":"IFERROR(VLOOKUP($A1045,[1]البيانات!$B$2:$L$350,11,FALSE),\"\")","v":""}]
[null,{"$f":"IFERROR(VLOOKUP($A1046,[1]البيانات!$B$2:$L$350,11,FALSE),\"\")","v":""}]
[null,{"$f":"IFERROR(VLOOKUP($A1047,[1]البيانات!$B$2:$L$350,11,FALSE),\"\")","v":""}]
[null,{"$f":"IFERROR(VLOOKUP($A1048,[1]البيانات!$B$2:$L$350,11,FALSE),\"\")","v":""}]
[null,{"$f":"IFERROR(VLOOKUP($A1049,[1]البيانات!$B$2:$L$350,11,FALSE),\"\")","v":""}]
[null,{"$f":"IFERROR(VLOOKUP($A1050,[1]البيانات!$B$2:$L$350,11,FALSE),\"\")","v":""}]
[null,{"$f":"IFERROR(VLOOKUP($A1051,[1]البيانات!$B$2:$L$350,11,FALSE),\"\")","v":""}]
[null,{"$f":"IFERROR(VLOOKUP($A1052,[1]البيانات!$B$2:$L$350,11,FALSE),\"\")","v":""}]
[null,{"$f":"IFERROR(VLOOKUP($A1053,[1]البيانات!$B$2:$L$350,11,FALSE),\"\")","v":""}]
[null,{"$f":"IFERROR(VLOOKUP($A1054,[1]البيانات!$B$2:$L$350,11,FALSE),\"\")","v":""}]
[null,{"$f":"IFERROR(VLOOKUP($A1055,[1]البيانات!$B$2:$L$350,11,FALSE),\"\")","v":""}]
[null,{"$f":"IFERROR(VLOOKUP($A1056,[1]البيانات!$B$2:$L$350,11,FALSE),\"\")","v":""}]
[null,{"$f":"IFERROR(VLOOKUP($A1057,[1]البيانات!$B$2:$L$350,11,FALSE),\"\")","v":""}]
[null,{"$f":"IFERROR(VLOOKUP($A1058,[1]البيانات!$B$2:$L$350,11,FALSE),\"\")","v":""}]
[null,{"$f":"IFERROR(VLOOKUP($A1059,[1]البيانات!$B$2:$L$350,11,FALSE),\"\")","v":""}]
[null,{"$f":"IFERROR(VLOOKUP($A1060,[1]البيانات!$B$2:$L$350,11,FALSE),\"\")","v":""}]
[null,{"$f":"IFERROR(VLOOKUP($A1061,[1]البيانات!$B$2:$L$350,11,FALSE),\"\")","v":""}]
[null,{"$f":"IFERROR(VLOOKUP($A1062,[1]البيانات!$B$2:$L$350,11,FALSE),\"\")","v":""}]
[null,{"$f":"IFERROR(VLOOKUP($A1063,[1]البيانات!$B$2:$L$350,11,FALSE),\"\")","v":""}]
[null,{"$f":"IFERROR(VLOOKUP($A1064,[1]البيانات!$B$2:$L$350,11,FALSE),\"\")","v":""}]
[null,{"$f":"IFERROR(VLOOKUP($A1065,[1]البيانات!$B$2:$L$350,11,FALSE),\"\")","v":""}]
[null,{"$f":"IFERROR(VLOOKUP($A1066,[1]البيانات!$B$2:$L$350,11,FALSE),\"\")","v":""}]
[null,{"$f":"IFERROR(VLOOKUP($A1067,[1]البيانات!$B$2:$L$350,11,FALSE),\"\")","v":""}]
[null,{"$f":"IFERROR(VLOOKUP($A1068,[1]البيانات!$B$2:$L$350,11,FALSE),\"\")","v":""}]
[null,{"$f":"IFERROR(VLOOKUP($A1069,[1]البيانات!$B$2:$L$350,11,FALSE),\"\")","v":""}]
[null,{"$f":"IFERROR(VLOOKUP($A1070,[1]البيانات!$B$2:$L$350,11,FALSE),\"\")","v":""}]
[null,{"$f":"IFERROR(VLOOKUP($A1071,[1]البيانات!$B$2:$L$350,11,FALSE),\"\")","v":""}]
[null,{"$f":"IFERROR(VLOOKUP($A1072,[1]البيانات!$B$2:$L$350,11,FALSE),\"\")","v":""}]
[null,{"$f":"IFERROR(VLOOKUP($A1073,[1]البيانات!$B$2:$L$350,11,FALSE),\"\")","v":""}]
[null,{"$f":"IFERROR(VLOOKUP($A1074,[1]البيانات!$B$2:$L$350,11,FALSE),\"\")","v":""}]
[null,{"$f":"IFERROR(VLOOKUP($A1075,[1]البيانات!$B$2:$L$350,11,FALSE),\"\")","v":""}]
[null,{"$f":"IFERROR(VLOOKUP($A1076,[1]البيانات!$B$2:$L$350,11,FALSE),\"\")","v":""}]
[null,{"$f":"IFERROR(VLOOKUP($A1077,[1]البيانات!$B$2:$L$350,11,FALSE),\"\")","v":""}]
[null,{"$f":"IFERROR(VLOOKUP($A1078,[1]البيانات!$B$2:$L$350,11,FALSE),\"\")","v":""}]
[null,{"$f":"IFERROR(VLOOKUP($A1079,[1]البيانات!$B$2:$L$350,11,FALSE),\"\")","v":""}]
[null,{"$f":"IFERROR(VLOOKUP($A1080,[1]البيانات!$B$2:$L$350,11,FALSE),\"\")","v":""}]
[null,{"$f":"IFERROR(VLOOKUP($A1081,[1]البيانات!$B$2:$L$350,11,FALSE),\"\")","v":""}]
[null,{"$f":"IFERROR(VLOOKUP($A1082,[1]البيانات!$B$2:$L$350,11,FALSE),\"\")","v":""}]
[null,{"$f":"IFERROR(VLOOKUP($A1083,[1]البيانات!$B$2:$L$350,11,FALSE),\"\")","v":""}]
[null,{"$f":"IFERROR(VLOOKUP($A1084,[1]البيانات!$B$2:$L$350,11,FALSE),\"\")","v":""}]
[null,{"$f":"IFERROR(VLOOKUP($A1085,[1]البيانات!$B$2:$L$350,11,FALSE),\"\")","v":""}]
[null,{"$f":"IFERROR(VLOOKUP($A1086,[1]البيانات!$B$2:$L$350,11,FALSE),\"\")","v":""}]
[null,{"$f":"IFERROR(VLOOKUP($A1087,[1]البيانات!$B$2:$L$350,11,FALSE),\"\")","v":""}]
[null,{"$f":"IFERROR(VLOOKUP($A1088,[1]البيانات!$B$2:$L$350,11,FALSE),\"\")","v":""}]
[null,{"$f":"IFERROR(VLOOKUP($A1089,[1]البيانات!$B$2:$L$350,11,FALSE),\"\")","v":""}]
[null,{"$f":"IFERROR(VLOOKUP($A1090,[1]البيانات!$B$2:$L$350,11,FALSE),\"\")","v":""}]
[null,{"$f":"IFERROR(VLOOKUP($A1091,[1]البيانات!$B$2:$L$350,11,FALSE),\"\")","v":""}]
[null,{"$f":"IFERROR(VLOOKUP($A1092,[1]البيانات!$B$2:$L$350,11,FALSE),\"\")","v":""}]
[null,{"$f":"IFERROR(VLOOKUP($A1093,[1]البيانات!$B$2:$L$350,11,FALSE),\"\")","v":""}]
[null,{"$f":"IFERROR(VLOOKUP($A1094,[1]البيانات!$B$2:$L$350,11,FALSE),\"\")","v":""}]
[null,{"$f":"IFERROR(VLOOKUP($A1095,[1]البيانات!$B$2:$L$350,11,FALSE),\"\")","v":""}]
[null,{"$f":"IFERROR(VLOOKUP($A1096,[1]البيانات!$B$2:$L$350,11,FALSE),\"\")","v":""}]
[null,{"$f":"IFERROR(VLOOKUP($A1097,[1]البيانات!$B$2:$L$350,11,FALSE),\"\")","v":""}]
[null,{"$f":"IFERROR(VLOOKUP($A1098,[1]البيانات!$B$2:$L$350,11,FALSE),\"\")","v":""}]
[null,{"$f":"IFERROR(VLOOKUP($A1099,[1]البيانات!$B$2:$L$350,11,FALSE),\"\")","v":""}]
[null,{"$f":"IFERROR(VLOOKUP($A1100,[1]البيانات!$B$2:$L$350,11,FALSE),\"\")","v":""}]
[null,{"$f":"IFERROR(VLOOKUP($A1101,[1]البيانات!$B$2:$L$350,11,FALSE),\"\")","v":""}]
[null,{"$f":"IFERROR(VLOOKUP($A1102,[1]البيانات!$B$2:$L$350,11,FALSE),\"\")","v":""}]
[null,{"$f":"IFERROR(VLOOKUP($A1103,[1]البيانات!$B$2:$L$350,11,FALSE),\"\")","v":""}]
[null,{"$f":"IFERROR(VLOOKUP($A1104,[1]البيانات!$B$2:$L$350,11,FALSE),\"\")","v":""}]
[null,{"$f":"IFERROR(VLOOKUP($A1105,[1]البيانات!$B$2:$L$350,11,FALSE),\"\")","v":""}]
[null,{"$f":"IFERROR(VLOOKUP($A1106,[1]البيانات!$B$2:$L$350,11,FALSE),\"\")","v":""}]
[null,{"$f":"IFERROR(VLOOKUP($A1107,[1]البيانات!$B$2:$L$350,11,FALSE),\"\")","v":""}]
[null,{"$f":"IFERROR(VLOOKUP($A1108,[1]البيانات!$B$2:$L$350,11,FALSE),\"\")","v":""}]
[null,{"$f":"IFERROR(VLOOKUP($A1109,[1]البيانات!$B$2:$L$350,11,FALSE),\"\")","v":""}]
[null,{"$f":"IFERROR(VLOOKUP($A1110,[1]البيانات!$B$2:$L$350,11,FALSE),\"\")","v":""}]
[null,{"$f":"IFERROR(VLOOKUP($A1111,[1]البيانات!$B$2:$L$350,11,FALSE),\"\")","v":""}]
[null,{"$f":"IFERROR(VLOOKUP($A1112,[1]البيانات!$B$2:$L$350,11,FALSE),\"\")","v":""}]
[null,{"$f":"IFERROR(VLOOKUP($A1113,[1]البيانات!$B$2:$L$350,11,FALSE),\"\")","v":""}]
[null,{"$f":"IFERROR(VLOOKUP($A1114,[1]البيانات!$B$2:$L$350,11,FALSE),\"\")","v":""}]
[null,{"$f":"IFERROR(VLOOKUP($A1115,[1]البيانات!$B$2:$L$350,11,FALSE),\"\")","v":""}]
[null,{"$f":"IFERROR(VLOOKUP($A1116,[1]البيانات!$B$2:$L$350,11,FALSE),\"\")","v":""}]
[null,{"$f":"IFERROR(VLOOKUP($A1117,[1]البيانات!$B$2:$L$350,11,FALSE),\"\")","v":""}]
[null,{"$f":"IFERROR(VLOOKUP($A1118,[1]البيانات!$B$2:$L$350,11,FALSE),\"\")","v":""}]
[null,{"$f":"IFERROR(VLOOKUP($A1119,[1]البيانات!$B$2:$L$350,11,FALSE),\"\")","v":""}]
[null,{"$f":"IFERROR(VLOOKUP($A1120,[1]البيانات!$B$2:$L$350,11,FALSE),\"\")","v":""}]
[null,{"$f":"IFERROR(VLOOKUP($A1121,[1]البيانات!$B$2:$L$350,11,FALSE),\"\")","v":""}]
[null,{"$f":"IFERROR(VLOOKUP($A1122,[1]البيانات!$B$2:$L$350,11,FALSE),\"\")","v":""}]
[null,{"$f":"IFERROR(VLOOKUP($A1123,[1]البيانات!$B$2:$L$350,11,FALSE),\"\")","v":""}]
[null,{"$f":"IFERROR(VLOOKUP($A1124,[1]البيانات!$B$2:$L$350,11,FALSE),\"\")","v":""}]
[null,{"$f":"IFERROR(VLOOKUP($A1125,[1]البيانات!$B$2:$L$350,11,FALSE),\"\")","v":""}]
[null,{"$f":"IFERROR(VLOOKUP($A1126,[1]البيانات!$B$2:$L$350,11,FALSE),\"\")","v":""}]
[null,{"$f":"IFERROR(VLOOKUP($A1127,[1]البيانات!$B$2:$L$350,11,FALSE),\"\")","v":""}]
[null,{"$f":"IFERROR(VLOOKUP($A1128,[1]البيانات!$B$2:$L$350,11,FALSE),\"\")","v":""}]
[null,{"$f":"IFERROR(VLOOKUP($A1129,[1]البيانات!$B$2:$L$350,11,FALSE),\"\")","v":""}]
[null,{"$f":"IFERROR(VLOOKUP($A1130,[1]البيانات!$B$2:$L$350,11,FALSE),\"\")","v":""}]
[null,{"$f":"IFERROR(VLOOKUP($A1131,[1]البيانات!$B$2:$L$350,11,FALSE),\"\")","v":""}]
[null,{"$f":"IFERROR(VLOOKUP($A1132,[1]البيانات!$B$2:$L$350,11,FALSE),\"\")","v":""}]
[null,{"$f":"IFERROR(VLOOKUP($A1133,[1]البيانات!$B$2:$L$350,11,FALSE),\"\")","v":""}]
[null,{"$f":"IFERROR(VLOOKUP($A1134,[1]البيانات!$B$2:$L$350,11,FALSE),\"\")","v":""}]
[null,{"$f":"IFERROR(VLOOKUP($A1135,[1]البيانات!$B$2:$L$350,11,FALSE),\"\")","v":""}]
[null,{"$f":"IFERROR(VLOOKUP($A1136,[1]البيانات!$B$2:$L$350,11,FALSE),\"\")","v":""}]
[null,{"$f":"IFERROR(VLOOKUP($A1137,[1]البيانات!$B$2:$L$350,11,FALSE),\"\")","v":""}]
[null,{"$f":"IFERROR(VLOOKUP($A1138,[1]البيانات!$B$2:$L$350,11,FALSE),\"\")","v":""}]
[null,{"$f":"IFERROR(VLOOKUP($A1139,[1]البيانات!$B$2:$L$350,11,FALSE),\"\")","v":""}]
[null,{"$f":"IFERROR(VLOOKUP($A1140,[1]البيانات!$B$2:$L$350,11,FALSE),\"\")","v":""}]
[null,{"$f":"IFERROR(VLOOKUP($A1141,[1]البيانات!$B$2:$L$350,11,FALSE),\"\")","v":""}]
[null,{"$f":"IFERROR(VLOOKUP($A1142,[1]البيانات!$B$2:$L$350,11,FALSE),\"\")","v":""}]
[null,{"$f":"IFERROR(VLOOKUP($A1143,[1]البيانات!$B$2:$L$350,11,FALSE),\"\")","v":""}]
[null,{"$f":"IFERROR(VLOOKUP($A1144,[1]البيانات!$B$2:$L$350,11,FALSE),\"\")","v":""}]
[null,{"$f":"IFERROR(VLOOKUP($A1145,[1]البيانات!$B$2:$L$350,11,FALSE),\"\")","v":""}]
[null,{"$f":"IFERROR(VLOOKUP($A1146,[1]البيانات!$B$2:$L$350,11,FALSE),\"\")","v":""}]
[null,{"$f":"IFERROR(VLOOKUP($A1147,[1]البيانات!$B$2:$L$350,11,FALSE),\"\")","v":""}]
[null,{"$f":"IFERROR(VLOOKUP($A1148,[1]البيانات!$B$2:$L$350,11,FALSE),\"\")","v":""}]
[null,{"$f":"IFERROR(VLOOKUP($A1149,[1]البيانات!$B$2:$L$350,11,FALSE),\"\")","v":""}]
[null,{"$f":"IFERROR(VLOOKUP($A1150,[1]البيانات!$B$2:$L$350,11,FALSE),\"\")","v":""}]
[null,{"$f":"IFERROR(VLOOKUP($A1151,[1]البيانات!$B$2:$L$350,11,FALSE),\"\")","v":""}]
[null,{"$f":"IFERROR(VLOOKUP($A1152,[1]البيانات!$B$2:$L$350,11,FALSE),\"\")","v":""}]
[null,{"$f":"IFERROR(VLOOKUP($A1153,[1]البيانات!$B$2:$L$350,11,FALSE),\"\")","v":""}]
[null,{"$f":"IFERROR(VLOOKUP($A1154,[1]البيانات!$B$2:$L$350,11,FALSE),\"\")","v":""}]
[null,{"$f":"IFERROR(VLOOKUP($A1155,[1]البيانات!$B$2:$L$350,11,FALSE),\"\")","v":""}]
[null,{"$f":"IFERROR(VLOOKUP($A1156,[1]البيانات!$B$2:$L$350,11,FALSE),\"\")","v":""}]
[null,{"$f":"IFERROR(VLOOKUP($A1157,[1]البيانات!$B$2:$L$350,11,FALSE),\"\")","v":""}]
[null,{"$f":"IFERROR(VLOOKUP($A1158,[1]البيانات!$B$2:$L$350,11,FALSE),\"\")","v":""}]
[null,{"$f":"IFERROR(VLOOKUP($A1159,[1]البيانات!$B$2:$L$350,11,FALSE),\"\")","v":""}]
[null,{"$f":"IFERROR(VLOOKUP($A1160,[1]البيانات!$B$2:$L$350,11,FALSE),\"\")","v":""}]
[null,{"$f":"IFERROR(VLOOKUP($A1161,[1]البيانات!$B$2:$L$350,11,FALSE),\"\")","v":""}]
[null,{"$f":"IFERROR(VLOOKUP($A1162,[1]البيانات!$B$2:$L$350,11,FALSE),\"\")","v":""}]
[null,{"$f":"IFERROR(VLOOKUP($A1163,[1]البيانات!$B$2:$L$350,11,FALSE),\"\")","v":""}]
[null,{"$f":"IFERROR(VLOOKUP($A1164,[1]البيانات!$B$2:$L$350,11,FALSE),\"\")","v":""}]
[null,{"$f":"IFERROR(VLOOKUP($A1165,[1]البيانات!$B$2:$L$350,11,FALSE),\"\")","v":""}]
[null,{"$f":"IFERROR(VLOOKUP($A1166,[1]البيانات!$B$2:$L$350,11,FALSE),\"\")","v":""}]
[null,{"$f":"IFERROR(VLOOKUP($A1167,[1]البيانات!$B$2:$L$350,11,FALSE),\"\")","v":""}]
[null,{"$f":"IFERROR(VLOOKUP($A1168,[1]البيانات!$B$2:$L$350,11,FALSE),\"\")","v":""}]
[null,{"$f":"IFERROR(VLOOKUP($A1169,[1]البيانات!$B$2:$L$350,11,FALSE),\"\")","v":""}]
[null,{"$f":"IFERROR(VLOOKUP($A1170,[1]البيانات!$B$2:$L$350,11,FALSE),\"\")","v":""}]
[null,{"$f":"IFERROR(VLOOKUP($A1171,[1]البيانات!$B$2:$L$350,11,FALSE),\"\")","v":""}]
[null,{"$f":"IFERROR(VLOOKUP($A1172,[1]البيانات!$B$2:$L$350,11,FALSE),\"\")","v":""}]
[null,{"$f":"IFERROR(VLOOKUP($A1173,[1]البيانات!$B$2:$L$350,11,FALSE),\"\")","v":""}]
[null,{"$f":"IFERROR(VLOOKUP($A1174,[1]البيانات!$B$2:$L$350,11,FALSE),\"\")","v":""}]
[null,{"$f":"IFERROR(VLOOKUP($A1175,[1]البيانات!$B$2:$L$350,11,FALSE),\"\")","v":""}]
[null,{"$f":"IFERROR(VLOOKUP($A1176,[1]البيانات!$B$2:$L$350,11,FALSE),\"\")","v":""}]
[null,{"$f":"IFERROR(VLOOKUP($A1177,[1]البيانات!$B$2:$L$350,11,FALSE),\"\")","v":""}]
[null,{"$f":"IFERROR(VLOOKUP($A1178,[1]البيانات!$B$2:$L$350,11,FALSE),\"\")","v":""}]
[null,{"$f":"IFERROR(VLOOKUP($A1179,[1]البيانات!$B$2:$L$350,11,FALSE),\"\")","v":""}]
[null,{"$f":"IFERROR(VLOOKUP($A1180,[1]البيانات!$B$2:$L$350,11,FALSE),\"\")","v":""}]
[null,{"$f":"IFERROR(VLOOKUP($A1181,[1]البيانات!$B$2:$L$350,11,FALSE),\"\")","v":""}]
[null,{"$f":"IFERROR(VLOOKUP($A1182,[1]البيانات!$B$2:$L$350,11,FALSE),\"\")","v":""}]
[null,{"$f":"IFERROR(VLOOKUP($A1183,[1]البيانات!$B$2:$L$350,11,FALSE),\"\")","v":""}]
[null,{"$f":"IFERROR(VLOOKUP($A1184,[1]البيانات!$B$2:$L$350,11,FALSE),\"\")","v":""}]
[null,{"$f":"IFERROR(VLOOKUP($A1185,[1]البيانات!$B$2:$L$350,11,FALSE),\"\")","v":""}]
[null,{"$f":"IFERROR(VLOOKUP($A1186,[1]البيانات!$B$2:$L$350,11,FALSE),\"\")","v":""}]
[null,{"$f":"IFERROR(VLOOKUP($A1187,[1]البيانات!$B$2:$L$350,11,FALSE),\"\")","v":""}]
[null,{"$f":"IFERROR(VLOOKUP($A1188,[1]البيانات!$B$2:$L$350,11,FALSE),\"\")","v":""}]
[null,{"$f":"IFERROR(VLOOKUP($A1189,[1]البيانات!$B$2:$L$350,11,FALSE),\"\")","v":""}]
[null,{"$f":"IFERROR(VLOOKUP($A1190,[1]البيانات!$B$2:$L$350,11,FALSE),\"\")","v":""}]
[null,{"$f":"IFERROR(VLOOKUP($A1191,[1]البيانات!$B$2:$L$350,11,FALSE),\"\")","v":""}]
[null,{"$f":"IFERROR(VLOOKUP($A1192,[1]البيانات!$B$2:$L$350,11,FALSE),\"\")","v":""}]
[null,{"$f":"IFERROR(VLOOKUP($A1193,[1]البيانات!$B$2:$L$350,11,FALSE),\"\")","v":""}]
[null,{"$f":"IFERROR(VLOOKUP($A1194,[1]البيانات!$B$2:$L$350,11,FALSE),\"\")","v":""}]
[null,{"$f":"IFERROR(VLOOKUP($A1195,[1]البيانات!$B$2:$L$350,11,FALSE),\"\")","v":""}]
[null,{"$f":"IFERROR(VLOOKUP($A1196,[1]البيانات!$B$2:$L$350,11,FALSE),\"\")","v":""}]
[null,{"$f":"IFERROR(VLOOKUP($A1197,[1]البيانات!$B$2:$L$350,11,FALSE),\"\")","v":""}]
[null,{"$f":"IFERROR(VLOOKUP($A1198,[1]البيانات!$B$2:$L$350,11,FALSE),\"\")","v":""}]
[null,{"$f":"IFERROR(VLOOKUP($A1199,[1]البيانات!$B$2:$L$350,11,FALSE),\"\")","v":""}]
[null,{"$f":"IFERROR(VLOOKUP($A1200,[1]البيانات!$B$2:$L$350,11,FALSE),\"\")","v":""}]
[null,{"$f":"IFERROR(VLOOKUP($A1201,[1]البيانات!$B$2:$L$350,11,FALSE),\"\")","v":""}]
[null,{"$f":"IFERROR(VLOOKUP($A1202,[1]البيانات!$B$2:$L$350,11,FALSE),\"\")","v":""}]
[null,{"$f":"IFERROR(VLOOKUP($A1203,[1]البيانات!$B$2:$L$350,11,FALSE),\"\")","v":""}]
[null,{"$f":"IFERROR(VLOOKUP($A1204,[1]البيانات!$B$2:$L$350,11,FALSE),\"\")","v":""}]
[null,{"$f":"IFERROR(VLOOKUP($A1205,[1]البيانات!$B$2:$L$350,11,FALSE),\"\")","v":""}]
[null,{"$f":"IFERROR(VLOOKUP($A1206,[1]البيانات!$B$2:$L$350,11,FALSE),\"\")","v":""}]
[null,{"$f":"IFERROR(VLOOKUP($A1207,[1]البيانات!$B$2:$L$350,11,FALSE),\"\")","v":""}]
[null,{"$f":"IFERROR(VLOOKUP($A1208,[1]البيانات!$B$2:$L$350,11,FALSE),\"\")","v":""}]
[null,{"$f":"IFERROR(VLOOKUP($A1209,[1]البيانات!$B$2:$L$350,11,FALSE),\"\")","v":""}]
[null,{"$f":"IFERROR(VLOOKUP($A1210,[1]البيانات!$B$2:$L$350,11,FALSE),\"\")","v":""}]
[null,{"$f":"IFERROR(VLOOKUP($A1211,[1]البيانات!$B$2:$L$350,11,FALSE),\"\")","v":""}]
[null,{"$f":"IFERROR(VLOOKUP($A1212,[1]البيانات!$B$2:$L$350,11,FALSE),\"\")","v":""}]
[null,{"$f":"IFERROR(VLOOKUP($A1213,[1]البيانات!$B$2:$L$350,11,FALSE),\"\")","v":""}]
[null,{"$f":"IFERROR(VLOOKUP($A1214,[1]البيانات!$B$2:$L$350,11,FALSE),\"\")","v":""}]
[null,{"$f":"IFERROR(VLOOKUP($A1215,[1]البيانات!$B$2:$L$350,11,FALSE),\"\")","v":""}]
[null,{"$f":"IFERROR(VLOOKUP($A1216,[1]البيانات!$B$2:$L$350,11,FALSE),\"\")","v":""}]
[null,{"$f":"IFERROR(VLOOKUP($A1217,[1]البيانات!$B$2:$L$350,11,FALSE),\"\")","v":""}]
[null,{"$f":"IFERROR(VLOOKUP($A1218,[1]البيانات!$B$2:$L$350,11,FALSE),\"\")","v":""}]
[null,{"$f":"IFERROR(VLOOKUP($A1219,[1]البيانات!$B$2:$L$350,11,FALSE),\"\")","v":""}]
[null,{"$f":"IFERROR(VLOOKUP($A1220,[1]البيانات!$B$2:$L$350,11,FALSE),\"\")","v":""}]
[null,{"$f":"IFERROR(VLOOKUP($A1221,[1]البيانات!$B$2:$L$350,11,FALSE),\"\")","v":""}]
[null,{"$f":"IFERROR(VLOOKUP($A1222,[1]البيانات!$B$2:$L$350,11,FALSE),\"\")","v":""}]
[null,{"$f":"IFERROR(VLOOKUP($A1223,[1]البيانات!$B$2:$L$350,11,FALSE),\"\")","v":""}]
[null,{"$f":"IFERROR(VLOOKUP($A1224,[1]البيانات!$B$2:$L$350,11,FALSE),\"\")","v":""}]
[null,{"$f":"IFERROR(VLOOKUP($A1225,[1]البيانات!$B$2:$L$350,11,FALSE),\"\")","v":""}]
[null,{"$f":"IFERROR(VLOOKUP($A1226,[1]البيانات!$B$2:$L$350,11,FALSE),\"\")","v":""}]
[null,{"$f":"IFERROR(VLOOKUP($A1227,[1]البيانات!$B$2:$L$350,11,FALSE),\"\")","v":""}]
[null,{"$f":"IFERROR(VLOOKUP($A1228,[1]البيانات!$B$2:$L$350,11,FALSE),\"\")","v":""}]
[null,{"$f":"IFERROR(VLOOKUP($A1229,[1]البيانات!$B$2:$L$350,11,FALSE),\"\")","v":""}]
[null,{"$f":"IFERROR(VLOOKUP($A1230,[1]البيانات!$B$2:$L$350,11,FALSE),\"\")","v":""}]
[null,{"$f":"IFERROR(VLOOKUP($A1231,[1]البيانات!$B$2:$L$350,11,FALSE),\"\")","v":""}]
[null,{"$f":"IFERROR(VLOOKUP($A1232,[1]البيانات!$B$2:$L$350,11,FALSE),\"\")","v":""}]
[null,{"$f":"IFERROR(VLOOKUP($A1233,[1]البيانات!$B$2:$L$350,11,FALSE),\"\")","v":""}]
[null,{"$f":"IFERROR(VLOOKUP($A1234,[1]البيانات!$B$2:$L$350,11,FALSE),\"\")","v":""}]
[null,{"$f":"IFERROR(VLOOKUP($A1235,[1]البيانات!$B$2:$L$350,11,FALSE),\"\")","v":""}]
[null,{"$f":"IFERROR(VLOOKUP($A1236,[1]البيانات!$B$2:$L$350,11,FALSE),\"\")","v":""}]
[null,{"$f":"IFERROR(VLOOKUP($A1237,[1]البيانات!$B$2:$L$350,11,FALSE),\"\")","v":""}]
[null,{"$f":"IFERROR(VLOOKUP($A1238,[1]البيانات!$B$2:$L$350,11,FALSE),\"\")","v":""}]
[null,{"$f":"IFERROR(VLOOKUP($A1239,[1]البيانات!$B$2:$L$350,11,FALSE),\"\")","v":""}]
[null,{"$f":"IFERROR(VLOOKUP($A1240,[1]البيانات!$B$2:$L$350,11,FALSE),\"\")","v":""}]
[null,{"$f":"IFERROR(VLOOKUP($A1241,[1]البيانات!$B$2:$L$350,11,FALSE),\"\")","v":""}]
[null,{"$f":"IFERROR(VLOOKUP($A1242,[1]البيانات!$B$2:$L$350,11,FALSE),\"\")","v":""}]
[null,{"$f":"IFERROR(VLOOKUP($A1243,[1]البيانات!$B$2:$L$350,11,FALSE),\"\")","v":""}]
[null,{"$f":"IFERROR(VLOOKUP($A1244,[1]البيانات!$B$2:$L$350,11,FALSE),\"\")","v":""}]
[null,{"$f":"IFERROR(VLOOKUP($A1245,[1]البيانات!$B$2:$L$350,11,FALSE),\"\")","v":""}]
[null,{"$f":"IFERROR(VLOOKUP($A1246,[1]البيانات!$B$2:$L$350,11,FALSE),\"\")","v":""}]
[null,{"$f":"IFERROR(VLOOKUP($A1247,[1]البيانات!$B$2:$L$350,11,FALSE),\"\")","v":""}]
[null,{"$f":"IFERROR(VLOOKUP($A1248,[1]البيانات!$B$2:$L$350,11,FALSE),\"\")","v":""}]
[null,{"$f":"IFERROR(VLOOKUP($A1249,[1]البيانات!$B$2:$L$350,11,FALSE),\"\")","v":""}]
[null,{"$f":"IFERROR(VLOOKUP($A1250,[1]البيانات!$B$2:$L$350,11,FALSE),\"\")","v":""}]
[null,{"$f":"IFERROR(VLOOKUP($A1251,[1]البيانات!$B$2:$L$350,11,FALSE),\"\")","v":""}]
[null,{"$f":"IFERROR(VLOOKUP($A1252,[1]البيانات!$B$2:$L$350,11,FALSE),\"\")","v":""}]
[null,{"$f":"IFERROR(VLOOKUP($A1253,[1]البيانات!$B$2:$L$350,11,FALSE),\"\")","v":""}]
[null,{"$f":"IFERROR(VLOOKUP($A1254,[1]البيانات!$B$2:$L$350,11,FALSE),\"\")","v":""}]
[null,{"$f":"IFERROR(VLOOKUP($A1255,[1]البيانات!$B$2:$L$350,11,FALSE),\"\")","v":""}]
[null,{"$f":"IFERROR(VLOOKUP($A1256,[1]البيانات!$B$2:$L$350,11,FALSE),\"\")","v":""}]
[null,{"$f":"IFERROR(VLOOKUP($A1257,[1]البيانات!$B$2:$L$350,11,FALSE),\"\")","v":""}]
[null,{"$f":"IFERROR(VLOOKUP($A1258,[1]البيانات!$B$2:$L$350,11,FALSE),\"\")","v":""}]
[null,{"$f":"IFERROR(VLOOKUP($A1259,[1]البيانات!$B$2:$L$350,11,FALSE),\"\")","v":""}]
[null,{"$f":"IFERROR(VLOOKUP($A1260,[1]البيانات!$B$2:$L$350,11,FALSE),\"\")","v":""}]
[null,{"$f":"IFERROR(VLOOKUP($A1261,[1]البيانات!$B$2:$L$350,11,FALSE),\"\")","v":""}]
[null,{"$f":"IFERROR(VLOOKUP($A1262,[1]البيانات!$B$2:$L$350,11,FALSE),\"\")","v":""}]
[null,{"$f":"IFERROR(VLOOKUP($A1263,[1]البيانات!$B$2:$L$350,11,FALSE),\"\")","v":""}]
[null,{"$f":"IFERROR(VLOOKUP($A1264,[1]البيانات!$B$2:$L$350,11,FALSE),\"\")","v":""}]
[null,{"$f":"IFERROR(VLOOKUP($A1265,[1]البيانات!$B$2:$L$350,11,FALSE),\"\")","v":""}]
[null,{"$f":"IFERROR(VLOOKUP($A1266,[1]البيانات!$B$2:$L$350,11,FALSE),\"\")","v":""}]
[null,{"$f":"IFERROR(VLOOKUP($A1267,[1]البيانات!$B$2:$L$350,11,FALSE),\"\")","v":""}]
[null,{"$f":"IFERROR(VLOOKUP($A1268,[1]البيانات!$B$2:$L$350,11,FALSE),\"\")","v":""}]
[null,{"$f":"IFERROR(VLOOKUP($A1269,[1]البيانات!$B$2:$L$350,11,FALSE),\"\")","v":""}]
[null,{"$f":"IFERROR(VLOOKUP($A1270,[1]البيانات!$B$2:$L$350,11,FALSE),\"\")","v":""}]
[null,{"$f":"IFERROR(VLOOKUP($A1271,[1]البيانات!$B$2:$L$350,11,FALSE),\"\")","v":""}]
[null,{"$f":"IFERROR(VLOOKUP($A1272,[1]البيانات!$B$2:$L$350,11,FALSE),\"\")","v":""}]
[null,{"$f":"IFERROR(VLOOKUP($A1273,[1]البيانات!$B$2:$L$350,11,FALSE),\"\")","v":""}]
[null,{"$f":"IFERROR(VLOOKUP($A1274,[1]البيانات!$B$2:$L$350,11,FALSE),\"\")","v":""}]
[null,{"$f":"IFERROR(VLOOKUP($A1275,[1]البيانات!$B$2:$L$350,11,FALSE),\"\")","v":""}]
[null,{"$f":"IFERROR(VLOOKUP($A1276,[1]البيانات!$B$2:$L$350,11,FALSE),\"\")","v":""}]
[null,{"$f":"IFERROR(VLOOKUP($A1277,[1]البيانات!$B$2:$L$350,11,FALSE),\"\")","v":""}]
[null,{"$f":"IFERROR(VLOOKUP($A1278,[1]البيانات!$B$2:$L$350,11,FALSE),\"\")","v":""}]
[null,{"$f":"IFERROR(VLOOKUP($A1279,[1]البيانات!$B$2:$L$350,11,FALSE),\"\")","v":""}]
[null,{"$f":"IFERROR(VLOOKUP($A1280,[1]البيانات!$B$2:$L$350,11,FALSE),\"\")","v":""}]
[null,{"$f":"IFERROR(VLOOKUP($A1281,[1]البيانات!$B$2:$L$350,11,FALSE),\"\")","v":""}]
[null,{"$f":"IFERROR(VLOOKUP($A1282,[1]البيانات!$B$2:$L$350,11,FALSE),\"\")","v":""}]
[null,{"$f":"IFERROR(VLOOKUP($A1283,[1]البيانات!$B$2:$L$350,11,FALSE),\"\")","v":""}]
[null,{"$f":"IFERROR(VLOOKUP($A1284,[1]البيانات!$B$2:$L$350,11,FALSE),\"\")","v":""}]
[null,{"$f":"IFERROR(VLOOKUP($A1285,[1]البيانات!$B$2:$L$350,11,FALSE),\"\")","v":""}]
[null,{"$f":"IFERROR(VLOOKUP($A1286,[1]البيانات!$B$2:$L$350,11,FALSE),\"\")","v":""}]
[null,{"$f":"IFERROR(VLOOKUP($A1287,[1]البيانات!$B$2:$L$350,11,FALSE),\"\")","v":""}]
[null,{"$f":"IFERROR(VLOOKUP($A1288,[1]البيانات!$B$2:$L$350,11,FALSE),\"\")","v":""}]
[null,{"$f":"IFERROR(VLOOKUP($A1289,[1]البيانات!$B$2:$L$350,11,FALSE),\"\")","v":""}]
[null,{"$f":"IFERROR(VLOOKUP($A1290,[1]البيانات!$B$2:$L$350,11,FALSE),\"\")","v":""}]
[null,{"$f":"IFERROR(VLOOKUP($A1291,[1]البيانات!$B$2:$L$350,11,FALSE),\"\")","v":""}]
[null,{"$f":"IFERROR(VLOOKUP($A1292,[1]البيانات!$B$2:$L$350,11,FALSE),\"\")","v":""}]
[null,{"$f":"IFERROR(VLOOKUP($A1293,[1]البيانات!$B$2:$L$350,11,FALSE),\"\")","v":""}]
[null,{"$f":"IFERROR(VLOOKUP($A1294,[1]البيانات!$B$2:$L$350,11,FALSE),\"\")","v":""}]
[null,{"$f":"IFERROR(VLOOKUP($A1295,[1]البيانات!$B$2:$L$350,11,FALSE),\"\")","v":""}]
[null,{"$f":"IFERROR(VLOOKUP($A1296,[1]البيانات!$B$2:$L$350,11,FALSE),\"\")","v":""}]
[null,{"$f":"IFERROR(VLOOKUP($A1297,[1]البيانات!$B$2:$L$350,11,FALSE),\"\")","v":""}]
[null,{"$f":"IFERROR(VLOOKUP($A1298,[1]البيانات!$B$2:$L$350,11,FALSE),\"\")","v":""}]
[null,{"$f":"IFERROR(VLOOKUP($A1299,[1]البيانات!$B$2:$L$350,11,FALSE),\"\")","v":""}]
[null,{"$f":"IFERROR(VLOOKUP($A1300,[1]البيانات!$B$2:$L$350,11,FALSE),\"\")","v":""}]
[null,{"$f":"IFERROR(VLOOKUP($A1301,[1]البيانات!$B$2:$L$350,11,FALSE),\"\")","v":""}]
[null,{"$f":"IFERROR(VLOOKUP($A1302,[1]البيانات!$B$2:$L$350,11,FALSE),\"\")","v":""}]
[null,{"$f":"IFERROR(VLOOKUP($A1303,[1]البيانات!$B$2:$L$350,11,FALSE),\"\")","v":""}]
[null,{"$f":"IFERROR(VLOOKUP($A1304,[1]البيانات!$B$2:$L$350,11,FALSE),\"\")","v":""}]
[null,{"$f":"IFERROR(VLOOKUP($A1305,[1]البيانات!$B$2:$L$350,11,FALSE),\"\")","v":""}]
[null,{"$f":"IFERROR(VLOOKUP($A1306,[1]البيانات!$B$2:$L$350,11,FALSE),\"\")","v":""}]
[null,{"$f":"IFERROR(VLOOKUP($A1307,[1]البيانات!$B$2:$L$350,11,FALSE),\"\")","v":""}]
[null,{"$f":"IFERROR(VLOOKUP($A1308,[1]البيانات!$B$2:$L$350,11,FALSE),\"\")","v":""}]
[null,{"$f":"IFERROR(VLOOKUP($A1309,[1]البيانات!$B$2:$L$350,11,FALSE),\"\")","v":""}]
[null,{"$f":"IFERROR(VLOOKUP($A1310,[1]البيانات!$B$2:$L$350,11,FALSE),\"\")","v":""}]
[null,{"$f":"IFERROR(VLOOKUP($A1311,[1]البيانات!$B$2:$L$350,11,FALSE),\"\")","v":""}]
[null,{"$f":"IFERROR(VLOOKUP($A1312,[1]البيانات!$B$2:$L$350,11,FALSE),\"\")","v":""}]
[null,{"$f":"IFERROR(VLOOKUP($A1313,[1]البيانات!$B$2:$L$350,11,FALSE),\"\")","v":""}]
[null,{"$f":"IFERROR(VLOOKUP($A1314,[1]البيانات!$B$2:$L$350,11,FALSE),\"\")","v":""}]
[null,{"$f":"IFERROR(VLOOKUP($A1315,[1]البيانات!$B$2:$L$350,11,FALSE),\"\")","v":""}]
[null,{"$f":"IFERROR(VLOOKUP($A1316,[1]البيانات!$B$2:$L$350,11,FALSE),\"\")","v":""}]
[null,{"$f":"IFERROR(VLOOKUP($A1317,[1]البيانات!$B$2:$L$350,11,FALSE),\"\")","v":""}]
[null,{"$f":"IFERROR(VLOOKUP($A1318,[1]البيانات!$B$2:$L$350,11,FALSE),\"\")","v":""}]
[null,{"$f":"IFERROR(VLOOKUP($A1319,[1]البيانات!$B$2:$L$350,11,FALSE),\"\")","v":""}]
[null,{"$f":"IFERROR(VLOOKUP($A1320,[1]البيانات!$B$2:$L$350,11,FALSE),\"\")","v":""}]
[null,{"$f":"IFERROR(VLOOKUP($A1321,[1]البيانات!$B$2:$L$350,11,FALSE),\"\")","v":""}]
[null,{"$f":"IFERROR(VLOOKUP($A1322,[1]البيانات!$B$2:$L$350,11,FALSE),\"\")","v":""}]
[null,{"$f":"IFERROR(VLOOKUP($A1323,[1]البيانات!$B$2:$L$350,11,FALSE),\"\")","v":""}]
[null,{"$f":"IFERROR(VLOOKUP($A1324,[1]البيانات!$B$2:$L$350,11,FALSE),\"\")","v":""}]
[null,{"$f":"IFERROR(VLOOKUP($A1325,[1]البيانات!$B$2:$L$350,11,FALSE),\"\")","v":""}]
[null,{"$f":"IFERROR(VLOOKUP($A1326,[1]البيانات!$B$2:$L$350,11,FALSE),\"\")","v":""}]
[null,{"$f":"IFERROR(VLOOKUP($A1327,[1]البيانات!$B$2:$L$350,11,FALSE),\"\")","v":""}]
[null,{"$f":"IFERROR(VLOOKUP($A1328,[1]البيانات!$B$2:$L$350,11,FALSE),\"\")","v":""}]
[null,{"$f":"IFERROR(VLOOKUP($A1329,[1]البيانات!$B$2:$L$350,11,FALSE),\"\")","v":""}]
[null,{"$f":"IFERROR(VLOOKUP($A1330,[1]البيانات!$B$2:$L$350,11,FALSE),\"\")","v":""}]
[null,{"$f":"IFERROR(VLOOKUP($A1331,[1]البيانات!$B$2:$L$350,11,FALSE),\"\")","v":""}]
[null,{"$f":"IFERROR(VLOOKUP($A1332,[1]البيانات!$B$2:$L$350,11,FALSE),\"\")","v":""}]
[null,{"$f":"IFERROR(VLOOKUP($A1333,[1]البيانات!$B$2:$L$350,11,FALSE),\"\")","v":""}]
[null,{"$f":"IFERROR(VLOOKUP($A1334,[1]البيانات!$B$2:$L$350,11,FALSE),\"\")","v":""}]
[null,{"$f":"IFERROR(VLOOKUP($A1335,[1]البيانات!$B$2:$L$350,11,FALSE),\"\")","v":""}]
[null,{"$f":"IFERROR(VLOOKUP($A1336,[1]البيانات!$B$2:$L$350,11,FALSE),\"\")","v":""}]
[null,{"$f":"IFERROR(VLOOKUP($A1337,[1]البيانات!$B$2:$L$350,11,FALSE),\"\")","v":""}]
[null,{"$f":"IFERROR(VLOOKUP($A1338,[1]البيانات!$B$2:$L$350,11,FALSE),\"\")","v":""}]
[null,{"$f":"IFERROR(VLOOKUP($A1339,[1]البيانات!$B$2:$L$350,11,FALSE),\"\")","v":""}]
[null,{"$f":"IFERROR(VLOOKUP($A1340,[1]البيانات!$B$2:$L$350,11,FALSE),\"\")","v":""}]
[null,{"$f":"IFERROR(VLOOKUP($A1341,[1]البيانات!$B$2:$L$350,11,FALSE),\"\")","v":""}]
[null,{"$f":"IFERROR(VLOOKUP($A1342,[1]البيانات!$B$2:$L$350,11,FALSE),\"\")","v":""}]
[null,{"$f":"IFERROR(VLOOKUP($A1343,[1]البيانات!$B$2:$L$350,11,FALSE),\"\")","v":""}]
[null,{"$f":"IFERROR(VLOOKUP($A1344,[1]البيانات!$B$2:$L$350,11,FALSE),\"\")","v":""}]
[null,{"$f":"IFERROR(VLOOKUP($A1345,[1]البيانات!$B$2:$L$350,11,FALSE),\"\")","v":""}]
[null,{"$f":"IFERROR(VLOOKUP($A1346,[1]البيانات!$B$2:$L$350,11,FALSE),\"\")","v":""}]
[null,{"$f":"IFERROR(VLOOKUP($A1347,[1]البيانات!$B$2:$L$350,11,FALSE),\"\")","v":""}]
[null,{"$f":"IFERROR(VLOOKUP($A1348,[1]البيانات!$B$2:$L$350,11,FALSE),\"\")","v":""}]
[null,{"$f":"IFERROR(VLOOKUP($A1349,[1]البيانات!$B$2:$L$350,11,FALSE),\"\")","v":""}]
[null,{"$f":"IFERROR(VLOOKUP($A1350,[1]البيانات!$B$2:$L$350,11,FALSE),\"\")","v":""}]
[null,{"$f":"IFERROR(VLOOKUP($A1351,[1]البيانات!$B$2:$L$350,11,FALSE),\"\")","v":""}]
[null,{"$f":"IFERROR(VLOOKUP($A1352,[1]البيانات!$B$2:$L$350,11,FALSE),\"\")","v":""}]
[null,{"$f":"IFERROR(VLOOKUP($A1353,[1]البيانات!$B$2:$L$350,11,FALSE),\"\")","v":""}]
[null,{"$f":"IFERROR(VLOOKUP($A1354,[1]البيانات!$B$2:$L$350,11,FALSE),\"\")","v":""}]
[null,{"$f":"IFERROR(VLOOKUP($A1355,[1]البيانات!$B$2:$L$350,11,FALSE),\"\")","v":""}]
[null,{"$f":"IFERROR(VLOOKUP($A1356,[1]البيانات!$B$2:$L$350,11,FALSE),\"\")","v":""}]
[null,{"$f":"IFERROR(VLOOKUP($A1357,[1]البيانات!$B$2:$L$350,11,FALSE),\"\")","v":""}]
[null,{"$f":"IFERROR(VLOOKUP($A1358,[1]البيانات!$B$2:$L$350,11,FALSE),\"\")","v":""}]
[null,{"$f":"IFERROR(VLOOKUP($A1359,[1]البيانات!$B$2:$L$350,11,FALSE),\"\")","v":""}]
[null,{"$f":"IFERROR(VLOOKUP($A1360,[1]البيانات!$B$2:$L$350,11,FALSE),\"\")","v":""}]
[null,{"$f":"IFERROR(VLOOKUP($A1361,[1]البيانات!$B$2:$L$350,11,FALSE),\"\")","v":""}]
[null,{"$f":"IFERROR(VLOOKUP($A1362,[1]البيانات!$B$2:$L$350,11,FALSE),\"\")","v":""}]
[null,{"$f":"IFERROR(VLOOKUP($A1363,[1]البيانات!$B$2:$L$350,11,FALSE),\"\")","v":""}]
[null,{"$f":"IFERROR(VLOOKUP($A1364,[1]البيانات!$B$2:$L$350,11,FALSE),\"\")","v":""}]
[null,{"$f":"IFERROR(VLOOKUP($A1365,[1]البيانات!$B$2:$L$350,11,FALSE),\"\")","v":""}]
[null,{"$f":"IFERROR(VLOOKUP($A1366,[1]البيانات!$B$2:$L$350,11,FALSE),\"\")","v":""}]
[null,{"$f":"IFERROR(VLOOKUP($A1367,[1]البيانات!$B$2:$L$350,11,FALSE),\"\")","v":""}]
[null,{"$f":"IFERROR(VLOOKUP($A1368,[1]البيانات!$B$2:$L$350,11,FALSE),\"\")","v":""}]
[null,{"$f":"IFERROR(VLOOKUP($A1369,[1]البيانات!$B$2:$L$350,11,FALSE),\"\")","v":""}]
[null,{"$f":"IFERROR(VLOOKUP($A1370,[1]البيانات!$B$2:$L$350,11,FALSE),\"\")","v":""}]
[null,{"$f":"IFERROR(VLOOKUP($A1371,[1]البيانات!$B$2:$L$350,11,FALSE),\"\")","v":""}]
[null,{"$f":"IFERROR(VLOOKUP($A1372,[1]البيانات!$B$2:$L$350,11,FALSE),\"\")","v":""}]
[null,{"$f":"IFERROR(VLOOKUP($A1373,[1]البيانات!$B$2:$L$350,11,FALSE),\"\")","v":""}]
[null,{"$f":"IFERROR(VLOOKUP($A1374,[1]البيانات!$B$2:$L$350,11,FALSE),\"\")","v":""}]
[null,{"$f":"IFERROR(VLOOKUP($A1375,[1]البيانات!$B$2:$L$350,11,FALSE),\"\")","v":""}]
[null,{"$f":"IFERROR(VLOOKUP($A1376,[1]البيانات!$B$2:$L$350,11,FALSE),\"\")","v":""}]
[null,{"$f":"IFERROR(VLOOKUP($A1377,[1]البيانات!$B$2:$L$350,11,FALSE),\"\")","v":""}]
[null,{"$f":"IFERROR(VLOOKUP($A1378,[1]البيانات!$B$2:$L$350,11,FALSE),\"\")","v":""}]
[null,{"$f":"IFERROR(VLOOKUP($A1379,[1]البيانات!$B$2:$L$350,11,FALSE),\"\")","v":""}]
[null,{"$f":"IFERROR(VLOOKUP($A1380,[1]البيانات!$B$2:$L$350,11,FALSE),\"\")","v":""}]
[null,{"$f":"IFERROR(VLOOKUP($A1381,[1]البيانات!$B$2:$L$350,11,FALSE),\"\")","v":""}]
[null,{"$f":"IFERROR(VLOOKUP($A1382,[1]البيانات!$B$2:$L$350,11,FALSE),\"\")","v":""}]
[null,{"$f":"IFERROR(VLOOKUP($A1383,[1]البيانات!$B$2:$L$350,11,FALSE),\"\")","v":""}]
[null,{"$f":"IFERROR(VLOOKUP($A1384,[1]البيانات!$B$2:$L$350,11,FALSE),\"\")","v":""}]
[null,{"$f":"IFERROR(VLOOKUP($A1385,[1]البيانات!$B$2:$L$350,11,FALSE),\"\")","v":""}]
[null,{"$f":"IFERROR(VLOOKUP($A1386,[1]البيانات!$B$2:$L$350,11,FALSE),\"\")","v":""}]
[null,{"$f":"IFERROR(VLOOKUP($A1387,[1]البيانات!$B$2:$L$350,11,FALSE),\"\")","v":""}]
[null,{"$f":"IFERROR(VLOOKUP($A1388,[1]البيانات!$B$2:$L$350,11,FALSE),\"\")","v":""}]
[null,{"$f":"IFERROR(VLOOKUP($A1389,[1]البيانات!$B$2:$L$350,11,FALSE),\"\")","v":""}]
[null,{"$f":"IFERROR(VLOOKUP($A1390,[1]البيانات!$B$2:$L$350,11,FALSE),\"\")","v":""}]
[null,{"$f":"IFERROR(VLOOKUP($A1391,[1]البيانات!$B$2:$L$350,11,FALSE),\"\")","v":""}]
[null,{"$f":"IFERROR(VLOOKUP($A1392,[1]البيانات!$B$2:$L$350,11,FALSE),\"\")","v":""}]
[null,{"$f":"IFERROR(VLOOKUP($A1393,[1]البيانات!$B$2:$L$350,11,FALSE),\"\")","v":""}]
[null,{"$f":"IFERROR(VLOOKUP($A1394,[1]البيانات!$B$2:$L$350,11,FALSE),\"\")","v":""}]
[null,{"$f":"IFERROR(VLOOKUP($A1395,[1]البيانات!$B$2:$L$350,11,FALSE),\"\")","v":""}]
[null,{"$f":"IFERROR(VLOOKUP($A1396,[1]البيانات!$B$2:$L$350,11,FALSE),\"\")","v":""}]
[null,{"$f":"IFERROR(VLOOKUP($A1397,[1]البيانات!$B$2:$L$350,11,FALSE),\"\")","v":""}]
[null,{"$f":"IFERROR(VLOOKUP($A1398,[1]البيانات!$B$2:$L$350,11,FALSE),\"\")","v":""}]
[null,{"$f":"IFERROR(VLOOKUP($A1399,[1]البيانات!$B$2:$L$350,11,FALSE),\"\")","v":""}]
[null,{"$f":"IFERROR(VLOOKUP($A1400,[1]البيانات!$B$2:$L$350,11,FALSE),\"\")","v":""}]
[null,{"$f":"IFERROR(VLOOKUP($A1401,[1]البيانات!$B$2:$L$350,11,FALSE),\"\")","v":""}]
[null,{"$f":"IFERROR(VLOOKUP($A1402,[1]البيانات!$B$2:$L$350,11,FALSE),\"\")","v":""}]
[null,{"$f":"IFERROR(VLOOKUP($A1403,[1]البيانات!$B$2:$L$350,11,FALSE),\"\")","v":""}]
[null,{"$f":"IFERROR(VLOOKUP($A1404,[1]البيانات!$B$2:$L$350,11,FALSE),\"\")","v":""}]
[null,{"$f":"IFERROR(VLOOKUP($A1405,[1]البيانات!$B$2:$L$350,11,FALSE),\"\")","v":""}]
[null,{"$f":"IFERROR(VLOOKUP($A1406,[1]البيانات!$B$2:$L$350,11,FALSE),\"\")","v":""}]
[null,{"$f":"IFERROR(VLOOKUP($A1407,[1]البيانات!$B$2:$L$350,11,FALSE),\"\")","v":""}]
[null,{"$f":"IFERROR(VLOOKUP($A1408,[1]البيانات!$B$2:$L$350,11,FALSE),\"\")","v":""}]
[null,{"$f":"IFERROR(VLOOKUP($A1409,[1]البيانات!$B$2:$L$350,11,FALSE),\"\")","v":""}]
[null,{"$f":"IFERROR(VLOOKUP($A1410,[1]البيانات!$B$2:$L$350,11,FALSE),\"\")","v":""}]
[null,{"$f":"IFERROR(VLOOKUP($A1411,[1]البيانات!$B$2:$L$350,11,FALSE),\"\")","v":""}]
[null,{"$f":"IFERROR(VLOOKUP($A1412,[1]البيانات!$B$2:$L$350,11,FALSE),\"\")","v":""}]
[null,{"$f":"IFERROR(VLOOKUP($A1413,[1]البيانات!$B$2:$L$350,11,FALSE),\"\")","v":""}]
[null,{"$f":"IFERROR(VLOOKUP($A1414,[1]البيانات!$B$2:$L$350,11,FALSE),\"\")","v":""}]
[null,{"$f":"IFERROR(VLOOKUP($A1415,[1]البيانات!$B$2:$L$350,11,FALSE),\"\")","v":""}]
[null,{"$f":"IFERROR(VLOOKUP($A1416,[1]البيانات!$B$2:$L$350,11,FALSE),\"\")","v":""}]
[null,{"$f":"IFERROR(VLOOKUP($A1417,[1]البيانات!$B$2:$L$350,11,FALSE),\"\")","v":""}]
[null,{"$f":"IFERROR(VLOOKUP($A1418,[1]البيانات!$B$2:$L$350,11,FALSE),\"\")","v":""}]
[null,{"$f":"IFERROR(VLOOKUP($A1419,[1]البيانات!$B$2:$L$350,11,FALSE),\"\")","v":""}]
[null,{"$f":"IFERROR(VLOOKUP($A1420,[1]البيانات!$B$2:$L$350,11,FALSE),\"\")","v":""}]
[null,{"$f":"IFERROR(VLOOKUP($A1421,[1]البيانات!$B$2:$L$350,11,FALSE),\"\")","v":""}]
[null,{"$f":"IFERROR(VLOOKUP($A1422,[1]البيانات!$B$2:$L$350,11,FALSE),\"\")","v":""}]
[null,{"$f":"IFERROR(VLOOKUP($A1423,[1]البيانات!$B$2:$L$350,11,FALSE),\"\")","v":""}]
[null,{"$f":"IFERROR(VLOOKUP($A1424,[1]البيانات!$B$2:$L$350,11,FALSE),\"\")","v":""}]
[null,{"$f":"IFERROR(VLOOKUP($A1425,[1]البيانات!$B$2:$L$350,11,FALSE),\"\")","v":""}]
[null,{"$f":"IFERROR(VLOOKUP($A1426,[1]البيانات!$B$2:$L$350,11,FALSE),\"\")","v":""}]
[null,{"$f":"IFERROR(VLOOKUP($A1427,[1]البيانات!$B$2:$L$350,11,FALSE),\"\")","v":""}]
[null,{"$f":"IFERROR(VLOOKUP($A1428,[1]البيانات!$B$2:$L$350,11,FALSE),\"\")","v":""}]
[null,{"$f":"IFERROR(VLOOKUP($A1429,[1]البيانات!$B$2:$L$350,11,FALSE),\"\")","v":""}]
[null,{"$f":"IFERROR(VLOOKUP($A1430,[1]البيانات!$B$2:$L$350,11,FALSE),\"\")","v":""}]
[null,{"$f":"IFERROR(VLOOKUP($A1431,[1]البيانات!$B$2:$L$350,11,FALSE),\"\")","v":""}]
[null,{"$f":"IFERROR(VLOOKUP($A1432,[1]البيانات!$B$2:$L$350,11,FALSE),\"\")","v":""}]
[null,{"$f":"IFERROR(VLOOKUP($A1433,[1]البيانات!$B$2:$L$350,11,FALSE),\"\")","v":""}]
[null,{"$f":"IFERROR(VLOOKUP($A1434,[1]البيانات!$B$2:$L$350,11,FALSE),\"\")","v":""}]
[null,{"$f":"IFERROR(VLOOKUP($A1435,[1]البيانات!$B$2:$L$350,11,FALSE),\"\")","v":""}]
[null,{"$f":"IFERROR(VLOOKUP($A1436,[1]البيانات!$B$2:$L$350,11,FALSE),\"\")","v":""}]
[null,{"$f":"IFERROR(VLOOKUP($A1437,[1]البيانات!$B$2:$L$350,11,FALSE),\"\")","v":""}]
[null,{"$f":"IFERROR(VLOOKUP($A1438,[1]البيانات!$B$2:$L$350,11,FALSE),\"\")","v":""}]
[null,{"$f":"IFERROR(VLOOKUP($A1439,[1]البيانات!$B$2:$L$350,11,FALSE),\"\")","v":""}]
[null,{"$f":"IFERROR(VLOOKUP($A1440,[1]البيانات!$B$2:$L$350,11,FALSE),\"\")","v":""}]
[null,{"$f":"IFERROR(VLOOKUP($A1441,[1]البيانات!$B$2:$L$350,11,FALSE),\"\")","v":""}]
[null,{"$f":"IFERROR(VLOOKUP($A1442,[1]البيانات!$B$2:$L$350,11,FALSE),\"\")","v":""}]
[null,{"$f":"IFERROR(VLOOKUP($A1443,[1]البيانات!$B$2:$L$350,11,FALSE),\"\")","v":""}]
[null,{"$f":"IFERROR(VLOOKUP($A1444,[1]البيانات!$B$2:$L$350,11,FALSE),\"\")","v":""}]
[null,{"$f":"IFERROR(VLOOKUP($A1445,[1]البيانات!$B$2:$L$350,11,FALSE),\"\")","v":""}]
[null,{"$f":"IFERROR(VLOOKUP($A1446,[1]البيانات!$B$2:$L$350,11,FALSE),\"\")","v":""}]
[null,{"$f":"IFERROR(VLOOKUP($A1447,[1]البيانات!$B$2:$L$350,11,FALSE),\"\")","v":""}]
[null,{"$f":"IFERROR(VLOOKUP($A1448,[1]البيانات!$B$2:$L$350,11,FALSE),\"\")","v":""}]
[null,{"$f":"IFERROR(VLOOKUP($A1449,[1]البيانات!$B$2:$L$350,11,FALSE),\"\")","v":""}]
[null,{"$f":"IFERROR(VLOOKUP($A1450,[1]البيانات!$B$2:$L$350,11,FALSE),\"\")","v":""}]
[null,{"$f":"IFERROR(VLOOKUP($A1451,[1]البيانات!$B$2:$L$350,11,FALSE),\"\")","v":""}]
[null,{"$f":"IFERROR(VLOOKUP($A1452,[1]البيانات!$B$2:$L$350,11,FALSE),\"\")","v":""}]
[null,{"$f":"IFERROR(VLOOKUP($A1453,[1]البيانات!$B$2:$L$350,11,FALSE),\"\")","v":""}]
[null,{"$f":"IFERROR(VLOOKUP($A1454,[1]البيانات!$B$2:$L$350,11,FALSE),\"\")","v":""}]
[null,{"$f":"IFERROR(VLOOKUP($A1455,[1]البيانات!$B$2:$L$350,11,FALSE),\"\")","v":""}]
[null,{"$f":"IFERROR(VLOOKUP($A1456,[1]البيانات!$B$2:$L$350,11,FALSE),\"\")","v":""}]
[null,{"$f":"IFERROR(VLOOKUP($A1457,[1]البيانات!$B$2:$L$350,11,FALSE),\"\")","v":""}]
[null,{"$f":"IFERROR(VLOOKUP($A1458,[1]البيانات!$B$2:$L$350,11,FALSE),\"\")","v":""}]
[null,{"$f":"IFERROR(VLOOKUP($A1459,[1]البيانات!$B$2:$L$350,11,FALSE),\"\")","v":""}]
[null,{"$f":"IFERROR(VLOOKUP($A1460,[1]البيانات!$B$2:$L$350,11,FALSE),\"\")","v":""}]
[null,{"$f":"IFERROR(VLOOKUP($A1461,[1]البيانات!$B$2:$L$350,11,FALSE),\"\")","v":""}]
[null,{"$f":"IFERROR(VLOOKUP($A1462,[1]البيانات!$B$2:$L$350,11,FALSE),\"\")","v":""}]
[null,{"$f":"IFERROR(VLOOKUP($A1463,[1]البيانات!$B$2:$L$350,11,FALSE),\"\")","v":""}]
[null,{"$f":"IFERROR(VLOOKUP($A1464,[1]البيانات!$B$2:$L$350,11,FALSE),\"\")","v":""}]
[null,{"$f":"IFERROR(VLOOKUP($A1465,[1]البيانات!$B$2:$L$350,11,FALSE),\"\")","v":""}]
[null,{"$f":"IFERROR(VLOOKUP($A1466,[1]البيانات!$B$2:$L$350,11,FALSE),\"\")","v":""}]
[null,{"$f":"IFERROR(VLOOKUP($A1467,[1]البيانات!$B$2:$L$350,11,FALSE),\"\")","v":""}]
[null,{"$f":"IFERROR(VLOOKUP($A1468,[1]البيانات!$B$2:$L$350,11,FALSE),\"\")","v":""}]
[null,{"$f":"IFERROR(VLOOKUP($A1469,[1]البيانات!$B$2:$L$350,11,FALSE),\"\")","v":""}]
[null,{"$f":"IFERROR(VLOOKUP($A1470,[1]البيانات!$B$2:$L$350,11,FALSE),\"\")","v":""}]
[null,{"$f":"IFERROR(VLOOKUP($A1471,[1]البيانات!$B$2:$L$350,11,FALSE),\"\")","v":""}]
[null,{"$f":"IFERROR(VLOOKUP($A1472,[1]البيانات!$B$2:$L$350,11,FALSE),\"\")","v":""}]
[null,{"$f":"IFERROR(VLOOKUP($A1473,[1]البيانات!$B$2:$L$350,11,FALSE),\"\")","v":""}]
[null,{"$f":"IFERROR(VLOOKUP($A1474,[1]البيانات!$B$2:$L$350,11,FALSE),\"\")","v":""}]
[null,{"$f":"IFERROR(VLOOKUP($A1475,[1]البيانات!$B$2:$L$350,11,FALSE),\"\")","v":""}]
[null,{"$f":"IFERROR(VLOOKUP($A1476,[1]البيانات!$B$2:$L$350,11,FALSE),\"\")","v":""}]
[null,{"$f":"IFERROR(VLOOKUP($A1477,[1]البيانات!$B$2:$L$350,11,FALSE),\"\")","v":""}]
[null,{"$f":"IFERROR(VLOOKUP($A1478,[1]البيانات!$B$2:$L$350,11,FALSE),\"\")","v":""}]
[null,{"$f":"IFERROR(VLOOKUP($A1479,[1]البيانات!$B$2:$L$350,11,FALSE),\"\")","v":""}]
[null,{"$f":"IFERROR(VLOOKUP($A1480,[1]البيانات!$B$2:$L$350,11,FALSE),\"\")","v":""}]
[null,{"$f":"IFERROR(VLOOKUP($A1481,[1]البيانات!$B$2:$L$350,11,FALSE),\"\")","v":""}]
[null,{"$f":"IFERROR(VLOOKUP($A1482,[1]البيانات!$B$2:$L$350,11,FALSE),\"\")","v":""}]
[null,{"$f":"IFERROR(VLOOKUP($A1483,[1]البيانات!$B$2:$L$350,11,FALSE),\"\")","v":""}]
[null,{"$f":"IFERROR(VLOOKUP($A1484,[1]البيانات!$B$2:$L$350,11,FALSE),\"\")","v":""}]
[null,{"$f":"IFERROR(VLOOKUP($A1485,[1]البيانات!$B$2:$L$350,11,FALSE),\"\")","v":""}]
[null,{"$f":"IFERROR(VLOOKUP($A1486,[1]البيانات!$B$2:$L$350,11,FALSE),\"\")","v":""}]
[null,{"$f":"IFERROR(VLOOKUP($A1487,[1]البيانات!$B$2:$L$350,11,FALSE),\"\")","v":""}]
[null,{"$f":"IFERROR(VLOOKUP($A1488,[1]البيانات!$B$2:$L$350,11,FALSE),\"\")","v":""}]
[null,{"$f":"IFERROR(VLOOKUP($A1489,[1]البيانات!$B$2:$L$350,11,FALSE),\"\")","v":""}]
[null,{"$f":"IFERROR(VLOOKUP($A1490,[1]البيانات!$B$2:$L$350,11,FALSE),\"\")","v":""}]
[null,{"$f":"IFERROR(VLOOKUP($A1491,[1]البيانات!$B$2:$L$350,11,FALSE),\"\")","v":""}]
[null,{"$f":"IFERROR(VLOOKUP($A1492,[1]البيانات!$B$2:$L$350,11,FALSE),\"\")","v":""}]
[null,{"$f":"IFERROR(VLOOKUP($A1493,[1]البيانات!$B$2:$L$350,11,FALSE),\"\")","v":""}]
[null,{"$f":"IFERROR(VLOOKUP($A1494,[1]البيانات!$B$2:$L$350,11,FALSE),\"\")","v":""}]
[null,{"$f":"IFERROR(VLOOKUP($A1495,[1]البيانات!$B$2:$L$350,11,FALSE),\"\")","v":""}]
[null,{"$f":"IFERROR(VLOOKUP($A1496,[1]البيانات!$B$2:$L$350,11,FALSE),\"\")","v":""}]
[null,{"$f":"IFERROR(VLOOKUP($A1497,[1]البيانات!$B$2:$L$350,11,FALSE),\"\")","v":""}]
[null,{"$f":"IFERROR(VLOOKUP($A1498,[1]البيانات!$B$2:$L$350,11,FALSE),\"\")","v":""}]
[null,{"$f":"IFERROR(VLOOKUP($A1499,[1]البيانات!$B$2:$L$350,11,FALSE),\"\")","v":""}]
[null,{"$f":"IFERROR(VLOOKUP($A1500,[1]البيانات!$B$2:$L$350,11,FALSE),\"\")","v":""}]
[null,{"$f":"IFERROR(VLOOKUP($A1501,[1]البيانات!$B$2:$L$350,11,FALSE),\"\")","v":""}]
[null,{"$f":"IFERROR(VLOOKUP($A1502,[1]البيانات!$B$2:$L$350,11,FALSE),\"\")","v":""}]
[null,{"$f":"IFERROR(VLOOKUP($A1503,[1]البيانات!$B$2:$L$350,11,FALSE),\"\")","v":""}]
[null,{"$f":"IFERROR(VLOOKUP($A1504,[1]البيانات!$B$2:$L$350,11,FALSE),\"\")","v":""}]
[null,{"$f":"IFERROR(VLOOKUP($A1505,[1]البيانات!$B$2:$L$350,11,FALSE),\"\")","v":""}]
[null,{"$f":"IFERROR(VLOOKUP($A1506,[1]البيانات!$B$2:$L$350,11,FALSE),\"\")","v":""}]
[null,{"$f":"IFERROR(VLOOKUP($A1507,[1]البيانات!$B$2:$L$350,11,FALSE),\"\")","v":""}]
[null,{"$f":"IFERROR(VLOOKUP($A1508,[1]البيانات!$B$2:$L$350,11,FALSE),\"\")","v":""}]
[null,{"$f":"IFERROR(VLOOKUP($A1509,[1]البيانات!$B$2:$L$350,11,FALSE),\"\")","v":""}]
[null,{"$f":"IFERROR(VLOOKUP($A1510,[1]البيانات!$B$2:$L$350,11,FALSE),\"\")","v":""}]
[null,{"$f":"IFERROR(VLOOKUP($A1511,[1]البيانات!$B$2:$L$350,11,FALSE),\"\")","v":""}]
[null,{"$f":"IFERROR(VLOOKUP($A1512,[1]البيانات!$B$2:$L$350,11,FALSE),\"\")","v":""}]
[null,{"$f":"IFERROR(VLOOKUP($A1513,[1]البيانات!$B$2:$L$350,11,FALSE),\"\")","v":""}]
[null,{"$f":"IFERROR(VLOOKUP($A1514,[1]البيانات!$B$2:$L$350,11,FALSE),\"\")","v":""}]
[null,{"$f":"IFERROR(VLOOKUP($A1515,[1]البيانات!$B$2:$L$350,11,FALSE),\"\")","v":""}]
[null,{"$f":"IFERROR(VLOOKUP($A1516,[1]البيانات!$B$2:$L$350,11,FALSE),\"\")","v":""}]
[null,{"$f":"IFERROR(VLOOKUP($A1517,[1]البيانات!$B$2:$L$350,11,FALSE),\"\")","v":""}]
[null,{"$f":"IFERROR(VLOOKUP($A1518,[1]البيانات!$B$2:$L$350,11,FALSE),\"\")","v":""}]
[null,{"$f":"IFERROR(VLOOKUP($A1519,[1]البيانات!$B$2:$L$350,11,FALSE),\"\")","v":""}]
[null,{"$f":"IFERROR(VLOOKUP($A1520,[1]البيانات!$B$2:$L$350,11,FALSE),\"\")","v":""}]
[null,{"$f":"IFERROR(VLOOKUP($A1521,[1]البيانات!$B$2:$L$350,11,FALSE),\"\")","v":""}]
[null,{"$f":"IFERROR(VLOOKUP($A1522,[1]البيانات!$B$2:$L$350,11,FALSE),\"\")","v":""}]
[null,{"$f":"IFERROR(VLOOKUP($A1523,[1]البيانات!$B$2:$L$350,11,FALSE),\"\")","v":""}]
[null,{"$f":"IFERROR(VLOOKUP($A1524,[1]البيانات!$B$2:$L$350,11,FALSE),\"\")","v":""}]
[null,{"$f":"IFERROR(VLOOKUP($A1525,[1]البيانات!$B$2:$L$350,11,FALSE),\"\")","v":""}]
[null,{"$f":"IFERROR(VLOOKUP($A1526,[1]البيانات!$B$2:$L$350,11,FALSE),\"\")","v":""}]
[null,{"$f":"IFERROR(VLOOKUP($A1527,[1]البيانات!$B$2:$L$350,11,FALSE),\"\")","v":""}]
[null,{"$f":"IFERROR(VLOOKUP($A1528,[1]البيانات!$B$2:$L$350,11,FALSE),\"\")","v":""}]
[null,{"$f":"IFERROR(VLOOKUP($A1529,[1]البيانات!$B$2:$L$350,11,FALSE),\"\")","v":""}]
[null,{"$f":"IFERROR(VLOOKUP($A1530,[1]البيانات!$B$2:$L$350,11,FALSE),\"\")","v":""}]
[null,{"$f":"IFERROR(VLOOKUP($A1531,[1]البيانات!$B$2:$L$350,11,FALSE),\"\")","v":""}]
[null,{"$f":"IFERROR(VLOOKUP($A1532,[1]البيانات!$B$2:$L$350,11,FALSE),\"\")","v":""}]
[null,{"$f":"IFERROR(VLOOKUP($A1533,[1]البيانات!$B$2:$L$350,11,FALSE),\"\")","v":""}]
[null,{"$f":"IFERROR(VLOOKUP($A1534,[1]البيانات!$B$2:$L$350,11,FALSE),\"\")","v":""}]
[null,{"$f":"IFERROR(VLOOKUP($A1535,[1]البيانات!$B$2:$L$350,11,FALSE),\"\")","v":""}]
[null,{"$f":"IFERROR(VLOOKUP($A1536,[1]البيانات!$B$2:$L$350,11,FALSE),\"\")","v":""}]
[null,{"$f":"IFERROR(VLOOKUP($A1537,[1]البيانات!$B$2:$L$350,11,FALSE),\"\")","v":""}]
[null,{"$f":"IFERROR(VLOOKUP($A1538,[1]البيانات!$B$2:$L$350,11,FALSE),\"\")","v":""}]
[null,{"$f":"IFERROR(VLOOKUP($A1539,[1]البيانات!$B$2:$L$350,11,FALSE),\"\")","v":""}]
[null,{"$f":"IFERROR(VLOOKUP($A1540,[1]البيانات!$B$2:$L$350,11,FALSE),\"\")","v":""}]
[null,{"$f":"IFERROR(VLOOKUP($A1541,[1]البيانات!$B$2:$L$350,11,FALSE),\"\")","v":""}]
[null,{"$f":"IFERROR(VLOOKUP($A1542,[1]البيانات!$B$2:$L$350,11,FALSE),\"\")","v":""}]
[null,{"$f":"IFERROR(VLOOKUP($A1543,[1]البيانات!$B$2:$L$350,11,FALSE),\"\")","v":""}]
[null,{"$f":"IFERROR(VLOOKUP($A1544,[1]البيانات!$B$2:$L$350,11,FALSE),\"\")","v":""}]
[null,{"$f":"IFERROR(VLOOKUP($A1545,[1]البيانات!$B$2:$L$350,11,FALSE),\"\")","v":""}]
[null,{"$f":"IFERROR(VLOOKUP($A1546,[1]البيانات!$B$2:$L$350,11,FALSE),\"\")","v":""}]
[null,{"$f":"IFERROR(VLOOKUP($A1547,[1]البيانات!$B$2:$L$350,11,FALSE),\"\")","v":""}]
[null,{"$f":"IFERROR(VLOOKUP($A1548,[1]البيانات!$B$2:$L$350,11,FALSE),\"\")","v":""}]
[null,{"$f":"IFERROR(VLOOKUP($A1549,[1]البيانات!$B$2:$L$350,11,FALSE),\"\")","v":""}]
[null,{"$f":"IFERROR(VLOOKUP($A1550,[1]البيانات!$B$2:$L$350,11,FALSE),\"\")","v":""}]
[null,{"$f":"IFERROR(VLOOKUP($A1551,[1]البيانات!$B$2:$L$350,11,FALSE),\"\")","v":""}]
[null,{"$f":"IFERROR(VLOOKUP($A1552,[1]البيانات!$B$2:$L$350,11,FALSE),\"\")","v":""}]
[null,{"$f":"IFERROR(VLOOKUP($A1553,[1]البيانات!$B$2:$L$350,11,FALSE),\"\")","v":""}]
[null,{"$f":"IFERROR(VLOOKUP($A1554,[1]البيانات!$B$2:$L$350,11,FALSE),\"\")","v":""}]
[null,{"$f":"IFERROR(VLOOKUP($A1555,[1]البيانات!$B$2:$L$350,11,FALSE),\"\")","v":""}]
[null,{"$f":"IFERROR(VLOOKUP($A1556,[1]البيانات!$B$2:$L$350,11,FALSE),\"\")","v":""}]
[null,{"$f":"IFERROR(VLOOKUP($A1557,[1]البيانات!$B$2:$L$350,11,FALSE),\"\")","v":""}]
[null,{"$f":"IFERROR(VLOOKUP($A1558,[1]البيانات!$B$2:$L$350,11,FALSE),\"\")","v":""}]
[null,{"$f":"IFERROR(VLOOKUP($A1559,[1]البيانات!$B$2:$L$350,11,FALSE),\"\")","v":""}]
[null,{"$f":"IFERROR(VLOOKUP($A1560,[1]البيانات!$B$2:$L$350,11,FALSE),\"\")","v":""}]
[null,{"$f":"IFERROR(VLOOKUP($A1561,[1]البيانات!$B$2:$L$350,11,FALSE),\"\")","v":""}]
[null,{"$f":"IFERROR(VLOOKUP($A1562,[1]البيانات!$B$2:$L$350,11,FALSE),\"\")","v":""}]
[null,{"$f":"IFERROR(VLOOKUP($A1563,[1]البيانات!$B$2:$L$350,11,FALSE),\"\")","v":""}]
[null,{"$f":"IFERROR(VLOOKUP($A1564,[1]البيانات!$B$2:$L$350,11,FALSE),\"\")","v":""}]
[null,{"$f":"IFERROR(VLOOKUP($A1565,[1]البيانات!$B$2:$L$350,11,FALSE),\"\")","v":""}]
[null,{"$f":"IFERROR(VLOOKUP($A1566,[1]البيانات!$B$2:$L$350,11,FALSE),\"\")","v":""}]
[null,{"$f":"IFERROR(VLOOKUP($A1567,[1]البيانات!$B$2:$L$350,11,FALSE),\"\")","v":""}]
[null,{"$f":"IFERROR(VLOOKUP($A1568,[1]البيانات!$B$2:$L$350,11,FALSE),\"\")","v":""}]
[null,{"$f":"IFERROR(VLOOKUP($A1569,[1]البيانات!$B$2:$L$350,11,FALSE),\"\")","v":""}]
[null,{"$f":"IFERROR(VLOOKUP($A1570,[1]البيانات!$B$2:$L$350,11,FALSE),\"\")","v":""}]
[null,{"$f":"IFERROR(VLOOKUP($A1571,[1]البيانات!$B$2:$L$350,11,FALSE),\"\")","v":""}]
[null,{"$f":"IFERROR(VLOOKUP($A1572,[1]البيانات!$B$2:$L$350,11,FALSE),\"\")","v":""}]
[null,{"$f":"IFERROR(VLOOKUP($A1573,[1]البيانات!$B$2:$L$350,11,FALSE),\"\")","v":""}]
[null,{"$f":"IFERROR(VLOOKUP($A1574,[1]البيانات!$B$2:$L$350,11,FALSE),\"\")","v":""}]
[null,{"$f":"IFERROR(VLOOKUP($A1575,[1]البيانات!$B$2:$L$350,11,FALSE),\"\")","v":""}]
[null,{"$f":"IFERROR(VLOOKUP($A1576,[1]البيانات!$B$2:$L$350,11,FALSE),\"\")","v":""}]
[null,{"$f":"IFERROR(VLOOKUP($A1577,[1]البيانات!$B$2:$L$350,11,FALSE),\"\")","v":""}]
[null,{"$f":"IFERROR(VLOOKUP($A1578,[1]البيانات!$B$2:$L$350,11,FALSE),\"\")","v":""}]
[null,{"$f":"IFERROR(VLOOKUP($A1579,[1]البيانات!$B$2:$L$350,11,FALSE),\"\")","v":""}]
[null,{"$f":"IFERROR(VLOOKUP($A1580,[1]البيانات!$B$2:$L$350,11,FALSE),\"\")","v":""}]
[null,{"$f":"IFERROR(VLOOKUP($A1581,[1]البيانات!$B$2:$L$350,11,FALSE),\"\")","v":""}]
[null,{"$f":"IFERROR(VLOOKUP($A1582,[1]البيانات!$B$2:$L$350,11,FALSE),\"\")","v":""}]
[null,{"$f":"IFERROR(VLOOKUP($A1583,[1]البيانات!$B$2:$L$350,11,FALSE),\"\")","v":""}]
[null,{"$f":"IFERROR(VLOOKUP($A1584,[1]البيانات!$B$2:$L$350,11,FALSE),\"\")","v":""}]
[null,{"$f":"IFERROR(VLOOKUP($A1585,[1]البيانات!$B$2:$L$350,11,FALSE),\"\")","v":""}]
[null,{"$f":"IFERROR(VLOOKUP($A1586,[1]البيانات!$B$2:$L$350,11,FALSE),\"\")","v":""}]
[null,{"$f":"IFERROR(VLOOKUP($A1587,[1]البيانات!$B$2:$L$350,11,FALSE),\"\")","v":""}]
[null,{"$f":"IFERROR(VLOOKUP($A1588,[1]البيانات!$B$2:$L$350,11,FALSE),\"\")","v":""}]
[null,{"$f":"IFERROR(VLOOKUP($A1589,[1]البيانات!$B$2:$L$350,11,FALSE),\"\")","v":""}]
[null,{"$f":"IFERROR(VLOOKUP($A1590,[1]البيانات!$B$2:$L$350,11,FALSE),\"\")","v":""}]
[null,{"$f":"IFERROR(VLOOKUP($A1591,[1]البيانات!$B$2:$L$350,11,FALSE),\"\")","v":""}]
[null,{"$f":"IFERROR(VLOOKUP($A1592,[1]البيانات!$B$2:$L$350,11,FALSE),\"\")","v":""}]
[null,{"$f":"IFERROR(VLOOKUP($A1593,[1]البيانات!$B$2:$L$350,11,FALSE),\"\")","v":""}]
[null,{"$f":"IFERROR(VLOOKUP($A1594,[1]البيانات!$B$2:$L$350,11,FALSE),\"\")","v":""}]
[null,{"$f":"IFERROR(VLOOKUP($A1595,[1]البيانات!$B$2:$L$350,11,FALSE),\"\")","v":""}]
[null,{"$f":"IFERROR(VLOOKUP($A1596,[1]البيانات!$B$2:$L$350,11,FALSE),\"\")","v":""}]
[null,{"$f":"IFERROR(VLOOKUP($A1597,[1]البيانات!$B$2:$L$350,11,FALSE),\"\")","v":""}]
[null,{"$f":"IFERROR(VLOOKUP($A1598,[1]البيانات!$B$2:$L$350,11,FALSE),\"\")","v":""}]
[null,{"$f":"IFERROR(VLOOKUP($A1599,[1]البيانات!$B$2:$L$350,11,FALSE),\"\")","v":""}]
[null,{"$f":"IFERROR(VLOOKUP($A1600,[1]البيانات!$B$2:$L$350,11,FALSE),\"\")","v":""}]
[null,{"$f":"IFERROR(VLOOKUP($A1601,[1]البيانات!$B$2:$L$350,11,FALSE),\"\")","v":""}]
[null,{"$f":"IFERROR(VLOOKUP($A1602,[1]البيانات!$B$2:$L$350,11,FALSE),\"\")","v":""}]
[null,{"$f":"IFERROR(VLOOKUP($A1603,[1]البيانات!$B$2:$L$350,11,FALSE),\"\")","v":""}]
[null,{"$f":"IFERROR(VLOOKUP($A1604,[1]البيانات!$B$2:$L$350,11,FALSE),\"\")","v":""}]
[null,{"$f":"IFERROR(VLOOKUP($A1605,[1]البيانات!$B$2:$L$350,11,FALSE),\"\")","v":""}]
[null,{"$f":"IFERROR(VLOOKUP($A1606,[1]البيانات!$B$2:$L$350,11,FALSE),\"\")","v":""}]
[null,{"$f":"IFERROR(VLOOKUP($A1607,[1]البيانات!$B$2:$L$350,11,FALSE),\"\")","v":""}]
[null,{"$f":"IFERROR(VLOOKUP($A1608,[1]البيانات!$B$2:$L$350,11,FALSE),\"\")","v":""}]
[null,{"$f":"IFERROR(VLOOKUP($A1609,[1]البيانات!$B$2:$L$350,11,FALSE),\"\")","v":""}]
[null,{"$f":"IFERROR(VLOOKUP($A1610,[1]البيانات!$B$2:$L$350,11,FALSE),\"\")","v":""}]
[null,{"$f":"IFERROR(VLOOKUP($A1611,[1]البيانات!$B$2:$L$350,11,FALSE),\"\")","v":""}]
[null,{"$f":"IFERROR(VLOOKUP($A1612,[1]البيانات!$B$2:$L$350,11,FALSE),\"\")","v":""}]
[null,{"$f":"IFERROR(VLOOKUP($A1613,[1]البيانات!$B$2:$L$350,11,FALSE),\"\")","v":""}]
[null,{"$f":"IFERROR(VLOOKUP($A1614,[1]البيانات!$B$2:$L$350,11,FALSE),\"\")","v":""}]
[null,{"$f":"IFERROR(VLOOKUP($A1615,[1]البيانات!$B$2:$L$350,11,FALSE),\"\")","v":""}]
[null,{"$f":"IFERROR(VLOOKUP($A1616,[1]البيانات!$B$2:$L$350,11,FALSE),\"\")","v":""}]
[null,{"$f":"IFERROR(VLOOKUP($A1617,[1]البيانات!$B$2:$L$350,11,FALSE),\"\")","v":""}]
[null,{"$f":"IFERROR(VLOOKUP($A1618,[1]البيانات!$B$2:$L$350,11,FALSE),\"\")","v":""}]
[null,{"$f":"IFERROR(VLOOKUP($A1619,[1]البيانات!$B$2:$L$350,11,FALSE),\"\")","v":""}]
[null,{"$f":"IFERROR(VLOOKUP($A1620,[1]البيانات!$B$2:$L$350,11,FALSE),\"\")","v":""}]
[null,{"$f":"IFERROR(VLOOKUP($A1621,[1]البيانات!$B$2:$L$350,11,FALSE),\"\")","v":""}]
[null,{"$f":"IFERROR(VLOOKUP($A1622,[1]البيانات!$B$2:$L$350,11,FALSE),\"\")","v":""}]
[null,{"$f":"IFERROR(VLOOKUP($A1623,[1]البيانات!$B$2:$L$350,11,FALSE),\"\")","v":""}]
[null,{"$f":"IFERROR(VLOOKUP($A1624,[1]البيانات!$B$2:$L$350,11,FALSE),\"\")","v":""}]
[null,{"$f":"IFERROR(VLOOKUP($A1625,[1]البيانات!$B$2:$L$350,11,FALSE),\"\")","v":""}]
[null,{"$f":"IFERROR(VLOOKUP($A1626,[1]البيانات!$B$2:$L$350,11,FALSE),\"\")","v":""}]
[null,{"$f":"IFERROR(VLOOKUP($A1627,[1]البيانات!$B$2:$L$350,11,FALSE),\"\")","v":""}]
[null,{"$f":"IFERROR(VLOOKUP($A1628,[1]البيانات!$B$2:$L$350,11,FALSE),\"\")","v":""}]
[null,{"$f":"IFERROR(VLOOKUP($A1629,[1]البيانات!$B$2:$L$350,11,FALSE),\"\")","v":""}]
[null,{"$f":"IFERROR(VLOOKUP($A1630,[1]البيانات!$B$2:$L$350,11,FALSE),\"\")","v":""}]
[null,{"$f":"IFERROR(VLOOKUP($A1631,[1]البيانات!$B$2:$L$350,11,FALSE),\"\")","v":""}]
[null,{"$f":"IFERROR(VLOOKUP($A1632,[1]البيانات!$B$2:$L$350,11,FALSE),\"\")","v":""}]
[null,{"$f":"IFERROR(VLOOKUP($A1633,[1]البيانات!$B$2:$L$350,11,FALSE),\"\")","v":""}]
[null,{"$f":"IFERROR(VLOOKUP($A1634,[1]البيانات!$B$2:$L$350,11,FALSE),\"\")","v":""}]
[null,{"$f":"IFERROR(VLOOKUP($A1635,[1]البيانات!$B$2:$L$350,11,FALSE),\"\")","v":""}]
[null,{"$f":"IFERROR(VLOOKUP($A1636,[1]البيانات!$B$2:$L$350,11,FALSE),\"\")","v":""}]
[null,{"$f":"IFERROR(VLOOKUP($A1637,[1]البيانات!$B$2:$L$350,11,FALSE),\"\")","v":""}]
[null,{"$f":"IFERROR(VLOOKUP($A1638,[1]البيانات!$B$2:$L$350,11,FALSE),\"\")","v":""}]
[null,{"$f":"IFERROR(VLOOKUP($A1639,[1]البيانات!$B$2:$L$350,11,FALSE),\"\")","v":""}]
[null,{"$f":"IFERROR(VLOOKUP($A1640,[1]البيانات!$B$2:$L$350,11,FALSE),\"\")","v":""}]
[null,{"$f":"IFERROR(VLOOKUP($A1641,[1]البيانات!$B$2:$L$350,11,FALSE),\"\")","v":""}]
[null,{"$f":"IFERROR(VLOOKUP($A1642,[1]البيانات!$B$2:$L$350,11,FALSE),\"\")","v":""}]
[null,{"$f":"IFERROR(VLOOKUP($A1643,[1]البيانات!$B$2:$L$350,11,FALSE),\"\")","v":""}]
[null,{"$f":"IFERROR(VLOOKUP($A1644,[1]البيانات!$B$2:$L$350,11,FALSE),\"\")","v":""}]
[null,{"$f":"IFERROR(VLOOKUP($A1645,[1]البيانات!$B$2:$L$350,11,FALSE),\"\")","v":""}]
[null,{"$f":"IFERROR(VLOOKUP($A1646,[1]البيانات!$B$2:$L$350,11,FALSE),\"\")","v":""}]
[null,{"$f":"IFERROR(VLOOKUP($A1647,[1]البيانات!$B$2:$L$350,11,FALSE),\"\")","v":""}]
[null,{"$f":"IFERROR(VLOOKUP($A1648,[1]البيانات!$B$2:$L$350,11,FALSE),\"\")","v":""}]
[null,{"$f":"IFERROR(VLOOKUP($A1649,[1]البيانات!$B$2:$L$350,11,FALSE),\"\")","v":""}]
[null,{"$f":"IFERROR(VLOOKUP($A1650,[1]البيانات!$B$2:$L$350,11,FALSE),\"\")","v":""}]
[null,{"$f":"IFERROR(VLOOKUP($A1651,[1]البيانات!$B$2:$L$350,11,FALSE),\"\")","v":""}]
[null,{"$f":"IFERROR(VLOOKUP($A1652,[1]البيانات!$B$2:$L$350,11,FALSE),\"\")","v":""}]
[null,{"$f":"IFERROR(VLOOKUP($A1653,[1]البيانات!$B$2:$L$350,11,FALSE),\"\")","v":""}]
[null,{"$f":"IFERROR(VLOOKUP($A1654,[1]البيانات!$B$2:$L$350,11,FALSE),\"\")","v":""}]
[null,{"$f":"IFERROR(VLOOKUP($A1655,[1]البيانات!$B$2:$L$350,11,FALSE),\"\")","v":""}]
[null,{"$f":"IFERROR(VLOOKUP($A1656,[1]البيانات!$B$2:$L$350,11,FALSE),\"\")","v":""}]
[null,{"$f":"IFERROR(VLOOKUP($A1657,[1]البيانات!$B$2:$L$350,11,FALSE),\"\")","v":""}]
[null,{"$f":"IFERROR(VLOOKUP($A1658,[1]البيانات!$B$2:$L$350,11,FALSE),\"\")","v":""}]
[null,{"$f":"IFERROR(VLOOKUP($A1659,[1]البيانات!$B$2:$L$350,11,FALSE),\"\")","v":""}]
[null,{"$f":"IFERROR(VLOOKUP($A1660,[1]البيانات!$B$2:$L$350,11,FALSE),\"\")","v":""}]
[null,{"$f":"IFERROR(VLOOKUP($A1661,[1]البيانات!$B$2:$L$350,11,FALSE),\"\")","v":""}]
[null,{"$f":"IFERROR(VLOOKUP($A1662,[1]البيانات!$B$2:$L$350,11,FALSE),\"\")","v":""}]
[null,{"$f":"IFERROR(VLOOKUP($A1663,[1]البيانات!$B$2:$L$350,11,FALSE),\"\")","v":""}]
[null,{"$f":"IFERROR(VLOOKUP($A1664,[1]البيانات!$B$2:$L$350,11,FALSE),\"\")","v":""}]
[null,{"$f":"IFERROR(VLOOKUP($A1665,[1]البيانات!$B$2:$L$350,11,FALSE),\"\")","v":""}]
[null,{"$f":"IFERROR(VLOOKUP($A1666,[1]البيانات!$B$2:$L$350,11,FALSE),\"\")","v":""}]
[null,{"$f":"IFERROR(VLOOKUP($A1667,[1]البيانات!$B$2:$L$350,11,FALSE),\"\")","v":""}]
[null,{"$f":"IFERROR(VLOOKUP($A1668,[1]البيانات!$B$2:$L$350,11,FALSE),\"\")","v":""}]
[null,{"$f":"IFERROR(VLOOKUP($A1669,[1]البيانات!$B$2:$L$350,11,FALSE),\"\")","v":""}]
[null,{"$f":"IFERROR(VLOOKUP($A1670,[1]البيانات!$B$2:$L$350,11,FALSE),\"\")","v":""}]
[null,{"$f":"IFERROR(VLOOKUP($A1671,[1]البيانات!$B$2:$L$350,11,FALSE),\"\")","v":""}]
[null,{"$f":"IFERROR(VLOOKUP($A1672,[1]البيانات!$B$2:$L$350,11,FALSE),\"\")","v":""}]
[null,{"$f":"IFERROR(VLOOKUP($A1673,[1]البيانات!$B$2:$L$350,11,FALSE),\"\")","v":""}]
[null,{"$f":"IFERROR(VLOOKUP($A1674,[1]البيانات!$B$2:$L$350,11,FALSE),\"\")","v":""}]
[null,{"$f":"IFERROR(VLOOKUP($A1675,[1]البيانات!$B$2:$L$350,11,FALSE),\"\")","v":""}]
[null,{"$f":"IFERROR(VLOOKUP($A1676,[1]البيانات!$B$2:$L$350,11,FALSE),\"\")","v":""}]
[null,{"$f":"IFERROR(VLOOKUP($A1677,[1]البيانات!$B$2:$L$350,11,FALSE),\"\")","v":""}]
[null,{"$f":"IFERROR(VLOOKUP($A1678,[1]البيانات!$B$2:$L$350,11,FALSE),\"\")","v":""}]
[null,{"$f":"IFERROR(VLOOKUP($A1679,[1]البيانات!$B$2:$L$350,11,FALSE),\"\")","v":""}]
[null,{"$f":"IFERROR(VLOOKUP($A1680,[1]البيانات!$B$2:$L$350,11,FALSE),\"\")","v":""}]
[null,{"$f":"IFERROR(VLOOKUP($A1681,[1]البيانات!$B$2:$L$350,11,FALSE),\"\")","v":""}]
[null,{"$f":"IFERROR(VLOOKUP($A1682,[1]البيانات!$B$2:$L$350,11,FALSE),\"\")","v":""}]
[null,{"$f":"IFERROR(VLOOKUP($A1683,[1]البيانات!$B$2:$L$350,11,FALSE),\"\")","v":""}]
[null,{"$f":"IFERROR(VLOOKUP($A1684,[1]البيانات!$B$2:$L$350,11,FALSE),\"\")","v":""}]
[null,{"$f":"IFERROR(VLOOKUP($A1685,[1]البيانات!$B$2:$L$350,11,FALSE),\"\")","v":""}]
[null,{"$f":"IFERROR(VLOOKUP($A1686,[1]البيانات!$B$2:$L$350,11,FALSE),\"\")","v":""}]
[null,{"$f":"IFERROR(VLOOKUP($A1687,[1]البيانات!$B$2:$L$350,11,FALSE),\"\")","v":""}]
[null,{"$f":"IFERROR(VLOOKUP($A1688,[1]البيانات!$B$2:$L$350,11,FALSE),\"\")","v":""}]
[null,{"$f":"IFERROR(VLOOKUP($A1689,[1]البيانات!$B$2:$L$350,11,FALSE),\"\")","v":""}]
[null,{"$f":"IFERROR(VLOOKUP($A1690,[1]البيانات!$B$2:$L$350,11,FALSE),\"\")","v":""}]
[null,{"$f":"IFERROR(VLOOKUP($A1691,[1]البيانات!$B$2:$L$350,11,FALSE),\"\")","v":""}]
[null,{"$f":"IFERROR(VLOOKUP($A1692,[1]البيانات!$B$2:$L$350,11,FALSE),\"\")","v":""}]
[null,{"$f":"IFERROR(VLOOKUP($A1693,[1]البيانات!$B$2:$L$350,11,FALSE),\"\")","v":""}]
[null,{"$f":"IFERROR(VLOOKUP($A1694,[1]البيانات!$B$2:$L$350,11,FALSE),\"\")","v":""}]
[null,{"$f":"IFERROR(VLOOKUP($A1695,[1]البيانات!$B$2:$L$350,11,FALSE),\"\")","v":""}]
[null,{"$f":"IFERROR(VLOOKUP($A1696,[1]البيانات!$B$2:$L$350,11,FALSE),\"\")","v":""}]
[null,{"$f":"IFERROR(VLOOKUP($A1697,[1]البيانات!$B$2:$L$350,11,FALSE),\"\")","v":""}]
[null,{"$f":"IFERROR(VLOOKUP($A1698,[1]البيانات!$B$2:$L$350,11,FALSE),\"\")","v":""}]
[null,{"$f":"IFERROR(VLOOKUP($A1699,[1]البيانات!$B$2:$L$350,11,FALSE),\"\")","v":""}]
[null,{"$f":"IFERROR(VLOOKUP($A1700,[1]البيانات!$B$2:$L$350,11,FALSE),\"\")","v":""}]
[null,{"$f":"IFERROR(VLOOKUP($A1701,[1]البيانات!$B$2:$L$350,11,FALSE),\"\")","v":""}]
[null,{"$f":"IFERROR(VLOOKUP($A1702,[1]البيانات!$B$2:$L$350,11,FALSE),\"\")","v":""}]
[null,{"$f":"IFERROR(VLOOKUP($A1703,[1]البيانات!$B$2:$L$350,11,FALSE),\"\")","v":""}]
[null,{"$f":"IFERROR(VLOOKUP($A1704,[1]البيانات!$B$2:$L$350,11,FALSE),\"\")","v":""}]
[null,{"$f":"IFERROR(VLOOKUP($A1705,[1]البيانات!$B$2:$L$350,11,FALSE),\"\")","v":""}]
[null,{"$f":"IFERROR(VLOOKUP($A1706,[1]البيانات!$B$2:$L$350,11,FALSE),\"\")","v":""}]
[null,{"$f":"IFERROR(VLOOKUP($A1707,[1]البيانات!$B$2:$L$350,11,FALSE),\"\")","v":""}]
[null,{"$f":"IFERROR(VLOOKUP($A1708,[1]البيانات!$B$2:$L$350,11,FALSE),\"\")","v":""}]
[null,{"$f":"IFERROR(VLOOKUP($A1709,[1]البيانات!$B$2:$L$350,11,FALSE),\"\")","v":""}]
[null,{"$f":"IFERROR(VLOOKUP($A1710,[1]البيانات!$B$2:$L$350,11,FALSE),\"\")","v":""}]
[null,{"$f":"IFERROR(VLOOKUP($A1711,[1]البيانات!$B$2:$L$350,11,FALSE),\"\")","v":""}]
[null,{"$f":"IFERROR(VLOOKUP($A1712,[1]البيانات!$B$2:$L$350,11,FALSE),\"\")","v":""}]
[null,{"$f":"IFERROR(VLOOKUP($A1713,[1]البيانات!$B$2:$L$350,11,FALSE),\"\")","v":""}]
[null,{"$f":"IFERROR(VLOOKUP($A1714,[1]البيانات!$B$2:$L$350,11,FALSE),\"\")","v":""}]
[null,{"$f":"IFERROR(VLOOKUP($A1715,[1]البيانات!$B$2:$L$350,11,FALSE),\"\")","v":""}]
[null,{"$f":"IFERROR(VLOOKUP($A1716,[1]البيانات!$B$2:$L$350,11,FALSE),\"\")","v":""}]
[null,{"$f":"IFERROR(VLOOKUP($A1717,[1]البيانات!$B$2:$L$350,11,FALSE),\"\")","v":""}]
[null,{"$f":"IFERROR(VLOOKUP($A1718,[1]البيانات!$B$2:$L$350,11,FALSE),\"\")","v":""}]
[null,{"$f":"IFERROR(VLOOKUP($A1719,[1]البيانات!$B$2:$L$350,11,FALSE),\"\")","v":""}]
[null,{"$f":"IFERROR(VLOOKUP($A1720,[1]البيانات!$B$2:$L$350,11,FALSE),\"\")","v":""}]
[null,{"$f":"IFERROR(VLOOKUP($A1721,[1]البيانات!$B$2:$L$350,11,FALSE),\"\")","v":""}]
[null,{"$f":"IFERROR(VLOOKUP($A1722,[1]البيانات!$B$2:$L$350,11,FALSE),\"\")","v":""}]
[null,{"$f":"IFERROR(VLOOKUP($A1723,[1]البيانات!$B$2:$L$350,11,FALSE),\"\")","v":""}]
[null,{"$f":"IFERROR(VLOOKUP($A1724,[1]البيانات!$B$2:$L$350,11,FALSE),\"\")","v":""}]
[null,{"$f":"IFERROR(VLOOKUP($A1725,[1]البيانات!$B$2:$L$350,11,FALSE),\"\")","v":""}]
[null,{"$f":"IFERROR(VLOOKUP($A1726,[1]البيانات!$B$2:$L$350,11,FALSE),\"\")","v":""}]
[null,{"$f":"IFERROR(VLOOKUP($A1727,[1]البيانات!$B$2:$L$350,11,FALSE),\"\")","v":""}]
[null,{"$f":"IFERROR(VLOOKUP($A1728,[1]البيانات!$B$2:$L$350,11,FALSE),\"\")","v":""}]
[null,{"$f":"IFERROR(VLOOKUP($A1729,[1]البيانات!$B$2:$L$350,11,FALSE),\"\")","v":""}]
[null,{"$f":"IFERROR(VLOOKUP($A1730,[1]البيانات!$B$2:$L$350,11,FALSE),\"\")","v":""}]
[null,{"$f":"IFERROR(VLOOKUP($A1731,[1]البيانات!$B$2:$L$350,11,FALSE),\"\")","v":""}]
[null,{"$f":"IFERROR(VLOOKUP($A1732,[1]البيانات!$B$2:$L$350,11,FALSE),\"\")","v":""}]
[null,{"$f":"IFERROR(VLOOKUP($A1733,[1]البيانات!$B$2:$L$350,11,FALSE),\"\")","v":""}]
[null,{"$f":"IFERROR(VLOOKUP($A1734,[1]البيانات!$B$2:$L$350,11,FALSE),\"\")","v":""}]
[null,{"$f":"IFERROR(VLOOKUP($A1735,[1]البيانات!$B$2:$L$350,11,FALSE),\"\")","v":""}]
[null,{"$f":"IFERROR(VLOOKUP($A1736,[1]البيانات!$B$2:$L$350,11,FALSE),\"\")","v":""}]
[null,{"$f":"IFERROR(VLOOKUP($A1737,[1]البيانات!$B$2:$L$350,11,FALSE),\"\")","v":""}]
[null,{"$f":"IFERROR(VLOOKUP($A1738,[1]البيانات!$B$2:$L$350,11,FALSE),\"\")","v":""}]
[null,{"$f":"IFERROR(VLOOKUP($A1739,[1]البيانات!$B$2:$L$350,11,FALSE),\"\")","v":""}]
[null,{"$f":"IFERROR(VLOOKUP($A1740,[1]البيانات!$B$2:$L$350,11,FALSE),\"\")","v":""}]
[null,{"$f":"IFERROR(VLOOKUP($A1741,[1]البيانات!$B$2:$L$350,11,FALSE),\"\")","v":""}]
[null,{"$f":"IFERROR(VLOOKUP($A1742,[1]البيانات!$B$2:$L$350,11,FALSE),\"\")","v":""}]
[null,{"$f":"IFERROR(VLOOKUP($A1743,[1]البيانات!$B$2:$L$350,11,FALSE),\"\")","v":""}]
[null,{"$f":"IFERROR(VLOOKUP($A1744,[1]البيانات!$B$2:$L$350,11,FALSE),\"\")","v":""}]
[null,{"$f":"IFERROR(VLOOKUP($A1745,[1]البيانات!$B$2:$L$350,11,FALSE),\"\")","v":""}]
[null,{"$f":"IFERROR(VLOOKUP($A1746,[1]البيانات!$B$2:$L$350,11,FALSE),\"\")","v":""}]
[null,{"$f":"IFERROR(VLOOKUP($A1747,[1]البيانات!$B$2:$L$350,11,FALSE),\"\")","v":""}]
[null,{"$f":"IFERROR(VLOOKUP($A1748,[1]البيانات!$B$2:$L$350,11,FALSE),\"\")","v":""}]
[null,{"$f":"IFERROR(VLOOKUP($A1749,[1]البيانات!$B$2:$L$350,11,FALSE),\"\")","v":""}]
[null,{"$f":"IFERROR(VLOOKUP($A1750,[1]البيانات!$B$2:$L$350,11,FALSE),\"\")","v":""}]
[null,{"$f":"IFERROR(VLOOKUP($A1751,[1]البيانات!$B$2:$L$350,11,FALSE),\"\")","v":""}]
[null,{"$f":"IFERROR(VLOOKUP($A1752,[1]البيانات!$B$2:$L$350,11,FALSE),\"\")","v":""}]
[null,{"$f":"IFERROR(VLOOKUP($A1753,[1]البيانات!$B$2:$L$350,11,FALSE),\"\")","v":""}]
[null,{"$f":"IFERROR(VLOOKUP($A1754,[1]البيانات!$B$2:$L$350,11,FALSE),\"\")","v":""}]
[null,{"$f":"IFERROR(VLOOKUP($A1755,[1]البيانات!$B$2:$L$350,11,FALSE),\"\")","v":""}]
[null,{"$f":"IFERROR(VLOOKUP($A1756,[1]البيانات!$B$2:$L$350,11,FALSE),\"\")","v":""}]
[null,{"$f":"IFERROR(VLOOKUP($A1757,[1]البيانات!$B$2:$L$350,11,FALSE),\"\")","v":""}]
[null,{"$f":"IFERROR(VLOOKUP($A1758,[1]البيانات!$B$2:$L$350,11,FALSE),\"\")","v":""}]
[null,{"$f":"IFERROR(VLOOKUP($A1759,[1]البيانات!$B$2:$L$350,11,FALSE),\"\")","v":""}]
[null,{"$f":"IFERROR(VLOOKUP($A1760,[1]البيانات!$B$2:$L$350,11,FALSE),\"\")","v":""}]
[null,{"$f":"IFERROR(VLOOKUP($A1761,[1]البيانات!$B$2:$L$350,11,FALSE),\"\")","v":""}]
[null,{"$f":"IFERROR(VLOOKUP($A1762,[1]البيانات!$B$2:$L$350,11,FALSE),\"\")","v":""}]
[null,{"$f":"IFERROR(VLOOKUP($A1763,[1]البيانات!$B$2:$L$350,11,FALSE),\"\")","v":""}]
[null,{"$f":"IFERROR(VLOOKUP($A1764,[1]البيانات!$B$2:$L$350,11,FALSE),\"\")","v":""}]
[null,{"$f":"IFERROR(VLOOKUP($A1765,[1]البيانات!$B$2:$L$350,11,FALSE),\"\")","v":""}]
[null,{"$f":"IFERROR(VLOOKUP($A1766,[1]البيانات!$B$2:$L$350,11,FALSE),\"\")","v":""}]
[null,{"$f":"IFERROR(VLOOKUP($A1767,[1]البيانات!$B$2:$L$350,11,FALSE),\"\")","v":""}]
[null,{"$f":"IFERROR(VLOOKUP($A1768,[1]البيانات!$B$2:$L$350,11,FALSE),\"\")","v":""}]
[null,{"$f":"IFERROR(VLOOKUP($A1769,[1]البيانات!$B$2:$L$350,11,FALSE),\"\")","v":""}]
[null,{"$f":"IFERROR(VLOOKUP($A1770,[1]البيانات!$B$2:$L$350,11,FALSE),\"\")","v":""}]
[null,{"$f":"IFERROR(VLOOKUP($A1771,[1]البيانات!$B$2:$L$350,11,FALSE),\"\")","v":""}]
[null,{"$f":"IFERROR(VLOOKUP($A1772,[1]البيانات!$B$2:$L$350,11,FALSE),\"\")","v":""}]
[null,{"$f":"IFERROR(VLOOKUP($A1773,[1]البيانات!$B$2:$L$350,11,FALSE),\"\")","v":""}]
[null,{"$f":"IFERROR(VLOOKUP($A1774,[1]البيانات!$B$2:$L$350,11,FALSE),\"\")","v":""}]
[null,{"$f":"IFERROR(VLOOKUP($A1775,[1]البيانات!$B$2:$L$350,11,FALSE),\"\")","v":""}]
[null,{"$f":"IFERROR(VLOOKUP($A1776,[1]البيانات!$B$2:$L$350,11,FALSE),\"\")","v":""}]
[null,{"$f":"IFERROR(VLOOKUP($A1777,[1]البيانات!$B$2:$L$350,11,FALSE),\"\")","v":""}]
[null,{"$f":"IFERROR(VLOOKUP($A1778,[1]البيانات!$B$2:$L$350,11,FALSE),\"\")","v":""}]
[null,{"$f":"IFERROR(VLOOKUP($A1779,[1]البيانات!$B$2:$L$350,11,FALSE),\"\")","v":""}]
[null,{"$f":"IFERROR(VLOOKUP($A1780,[1]البيانات!$B$2:$L$350,11,FALSE),\"\")","v":""}]
[null,{"$f":"IFERROR(VLOOKUP($A1781,[1]البيانات!$B$2:$L$350,11,FALSE),\"\")","v":""}]
[null,{"$f":"IFERROR(VLOOKUP($A1782,[1]البيانات!$B$2:$L$350,11,FALSE),\"\")","v":""}]
[null,{"$f":"IFERROR(VLOOKUP($A1783,[1]البيانات!$B$2:$L$350,11,FALSE),\"\")","v":""}]
[null,{"$f":"IFERROR(VLOOKUP($A1784,[1]البيانات!$B$2:$L$350,11,FALSE),\"\")","v":""}]
[null,{"$f":"IFERROR(VLOOKUP($A1785,[1]البيانات!$B$2:$L$350,11,FALSE),\"\")","v":""}]
[null,{"$f":"IFERROR(VLOOKUP($A1786,[1]البيانات!$B$2:$L$350,11,FALSE),\"\")","v":""}]
[null,{"$f":"IFERROR(VLOOKUP($A1787,[1]البيانات!$B$2:$L$350,11,FALSE),\"\")","v":""}]
[null,{"$f":"IFERROR(VLOOKUP($A1788,[1]البيانات!$B$2:$L$350,11,FALSE),\"\")","v":""}]
[null,{"$f":"IFERROR(VLOOKUP($A1789,[1]البيانات!$B$2:$L$350,11,FALSE),\"\")","v":""}]
[null,{"$f":"IFERROR(VLOOKUP($A1790,[1]البيانات!$B$2:$L$350,11,FALSE),\"\")","v":""}]
[null,{"$f":"IFERROR(VLOOKUP($A1791,[1]البيانات!$B$2:$L$350,11,FALSE),\"\")","v":""}]
[null,{"$f":"IFERROR(VLOOKUP($A1792,[1]البيانات!$B$2:$L$350,11,FALSE),\"\")","v":""}]
[null,{"$f":"IFERROR(VLOOKUP($A1793,[1]البيانات!$B$2:$L$350,11,FALSE),\"\")","v":""}]
[null,{"$f":"IFERROR(VLOOKUP($A1794,[1]البيانات!$B$2:$L$350,11,FALSE),\"\")","v":""}]
[null,{"$f":"IFERROR(VLOOKUP($A1795,[1]البيانات!$B$2:$L$350,11,FALSE),\"\")","v":""}]
[null,{"$f":"IFERROR(VLOOKUP($A1796,[1]البيانات!$B$2:$L$350,11,FALSE),\"\")","v":""}]
[null,{"$f":"IFERROR(VLOOKUP($A1797,[1]البيانات!$B$2:$L$350,11,FALSE),\"\")","v":""}]
[null,{"$f":"IFERROR(VLOOKUP($A1798,[1]البيانات!$B$2:$L$350,11,FALSE),\"\")","v":""}]
[null,{"$f":"IFERROR(VLOOKUP($A1799,[1]البيانات!$B$2:$L$350,11,FALSE),\"\")","v":""}]
[null,{"$f":"IFERROR(VLOOKUP($A1800,[1]البيانات!$B$2:$L$350,11,FALSE),\"\")","v":""}]
[null,{"$f":"IFERROR(VLOOKUP($A1801,[1]البيانات!$B$2:$L$350,11,FALSE),\"\")","v":""}]
[null,{"$f":"IFERROR(VLOOKUP($A1802,[1]البيانات!$B$2:$L$350,11,FALSE),\"\")","v":""}]
[null,{"$f":"IFERROR(VLOOKUP($A1803,[1]البيانات!$B$2:$L$350,11,FALSE),\"\")","v":""}]
[null,{"$f":"IFERROR(VLOOKUP($A1804,[1]البيانات!$B$2:$L$350,11,FALSE),\"\")","v":""}]
[null,{"$f":"IFERROR(VLOOKUP($A1805,[1]البيانات!$B$2:$L$350,11,FALSE),\"\")","v":""}]
[null,{"$f":"IFERROR(VLOOKUP($A1806,[1]البيانات!$B$2:$L$350,11,FALSE),\"\")","v":""}]
[null,{"$f":"IFERROR(VLOOKUP($A1807,[1]البيانات!$B$2:$L$350,11,FALSE),\"\")","v":""}]
[null,{"$f":"IFERROR(VLOOKUP($A1808,[1]البيانات!$B$2:$L$350,11,FALSE),\"\")","v":""}]
[null,{"$f":"IFERROR(VLOOKUP($A1809,[1]البيانات!$B$2:$L$350,11,FALSE),\"\")","v":""}]
[null,{"$f":"IFERROR(VLOOKUP($A1810,[1]البيانات!$B$2:$L$350,11,FALSE),\"\")","v":""}]
[null,{"$f":"IFERROR(VLOOKUP($A1811,[1]البيانات!$B$2:$L$350,11,FALSE),\"\")","v":""}]
[null,{"$f":"IFERROR(VLOOKUP($A1812,[1]البيانات!$B$2:$L$350,11,FALSE),\"\")","v":""}]
[null,{"$f":"IFERROR(VLOOKUP($A1813,[1]البيانات!$B$2:$L$350,11,FALSE),\"\")","v":""}]
[null,{"$f":"IFERROR(VLOOKUP($A1814,[1]البيانات!$B$2:$L$350,11,FALSE),\"\")","v":""}]
[null,{"$f":"IFERROR(VLOOKUP($A1815,[1]البيانات!$B$2:$L$350,11,FALSE),\"\")","v":""}]
[null,{"$f":"IFERROR(VLOOKUP($A1816,[1]البيانات!$B$2:$L$350,11,FALSE),\"\")","v":""}]
[null,{"$f":"IFERROR(VLOOKUP($A1817,[1]البيانات!$B$2:$L$350,11,FALSE),\"\")","v":""}]
[null,{"$f":"IFERROR(VLOOKUP($A1818,[1]البيانات!$B$2:$L$350,11,FALSE),\"\")","v":""}]
[null,{"$f":"IFERROR(VLOOKUP($A1819,[1]البيانات!$B$2:$L$350,11,FALSE),\"\")","v":""}]
[null,{"$f":"IFERROR(VLOOKUP($A1820,[1]البيانات!$B$2:$L$350,11,FALSE),\"\")","v":""}]
[null,{"$f":"IFERROR(VLOOKUP($A1821,[1]البيانات!$B$2:$L$350,11,FALSE),\"\")","v":""}]
[null,{"$f":"IFERROR(VLOOKUP($A1822,[1]البيانات!$B$2:$L$350,11,FALSE),\"\")","v":""}]
[null,{"$f":"IFERROR(VLOOKUP($A1823,[1]البيانات!$B$2:$L$350,11,FALSE),\"\")","v":""}]
[null,{"$f":"IFERROR(VLOOKUP($A1824,[1]البيانات!$B$2:$L$350,11,FALSE),\"\")","v":""}]
[null,{"$f":"IFERROR(VLOOKUP($A1825,[1]البيانات!$B$2:$L$350,11,FALSE),\"\")","v":""}]
[null,{"$f":"IFERROR(VLOOKUP($A1826,[1]البيانات!$B$2:$L$350,11,FALSE),\"\")","v":""}]
[null,{"$f":"IFERROR(VLOOKUP($A1827,[1]البيانات!$B$2:$L$350,11,FALSE),\"\")","v":""}]
[null,{"$f":"IFERROR(VLOOKUP($A1828,[1]البيانات!$B$2:$L$350,11,FALSE),\"\")","v":""}]
[null,{"$f":"IFERROR(VLOOKUP($A1829,[1]البيانات!$B$2:$L$350,11,FALSE),\"\")","v":""}]
[null,{"$f":"IFERROR(VLOOKUP($A1830,[1]البيانات!$B$2:$L$350,11,FALSE),\"\")","v":""}]
[null,{"$f":"IFERROR(VLOOKUP($A1831,[1]البيانات!$B$2:$L$350,11,FALSE),\"\")","v":""}]
[null,{"$f":"IFERROR(VLOOKUP($A1832,[1]البيانات!$B$2:$L$350,11,FALSE),\"\")","v":""}]
[null,{"$f":"IFERROR(VLOOKUP($A1833,[1]البيانات!$B$2:$L$350,11,FALSE),\"\")","v":""}]
[null,{"$f":"IFERROR(VLOOKUP($A1834,[1]البيانات!$B$2:$L$350,11,FALSE),\"\")","v":""}]
[null,{"$f":"IFERROR(VLOOKUP($A1835,[1]البيانات!$B$2:$L$350,11,FALSE),\"\")","v":""}]
[null,{"$f":"IFERROR(VLOOKUP($A1836,[1]البيانات!$B$2:$L$350,11,FALSE),\"\")","v":""}]
[null,{"$f":"IFERROR(VLOOKUP($A1837,[1]البيانات!$B$2:$L$350,11,FALSE),\"\")","v":""}]
[null,{"$f":"IFERROR(VLOOKUP($A1838,[1]البيانات!$B$2:$L$350,11,FALSE),\"\")","v":""}]
[null,{"$f":"IFERROR(VLOOKUP($A1839,[1]البيانات!$B$2:$L$350,11,FALSE),\"\")","v":""}]
[null,{"$f":"IFERROR(VLOOKUP($A1840,[1]البيانات!$B$2:$L$350,11,FALSE),\"\")","v":""}]
[null,{"$f":"IFERROR(VLOOKUP($A1841,[1]البيانات!$B$2:$L$350,11,FALSE),\"\")","v":""}]
[null,{"$f":"IFERROR(VLOOKUP($A1842,[1]البيانات!$B$2:$L$350,11,FALSE),\"\")","v":""}]
[null,{"$f":"IFERROR(VLOOKUP($A1843,[1]البيانات!$B$2:$L$350,11,FALSE),\"\")","v":""}]
[null,{"$f":"IFERROR(VLOOKUP($A1844,[1]البيانات!$B$2:$L$350,11,FALSE),\"\")","v":""}]
[null,{"$f":"IFERROR(VLOOKUP($A1845,[1]البيانات!$B$2:$L$350,11,FALSE),\"\")","v":""}]
[null,{"$f":"IFERROR(VLOOKUP($A1846,[1]البيانات!$B$2:$L$350,11,FALSE),\"\")","v":""}]
[null,{"$f":"IFERROR(VLOOKUP($A1847,[1]البيانات!$B$2:$L$350,11,FALSE),\"\")","v":""}]
[null,{"$f":"IFERROR(VLOOKUP($A1848,[1]البيانات!$B$2:$L$350,11,FALSE),\"\")","v":""}]
[null,{"$f":"IFERROR(VLOOKUP($A1849,[1]البيانات!$B$2:$L$350,11,FALSE),\"\")","v":""}]
[null,{"$f":"IFERROR(VLOOKUP($A1850,[1]البيانات!$B$2:$L$350,11,FALSE),\"\")","v":""}]
[null,{"$f":"IFERROR(VLOOKUP($A1851,[1]البيانات!$B$2:$L$350,11,FALSE),\"\")","v":""}]
[null,{"$f":"IFERROR(VLOOKUP($A1852,[1]البيانات!$B$2:$L$350,11,FALSE),\"\")","v":""}]
[null,{"$f":"IFERROR(VLOOKUP($A1853,[1]البيانات!$B$2:$L$350,11,FALSE),\"\")","v":""}]
[null,{"$f":"IFERROR(VLOOKUP($A1854,[1]البيانات!$B$2:$L$350,11,FALSE),\"\")","v":""}]
[null,{"$f":"IFERROR(VLOOKUP($A1855,[1]البيانات!$B$2:$L$350,11,FALSE),\"\")","v":""}]
[null,{"$f":"IFERROR(VLOOKUP($A1856,[1]البيانات!$B$2:$L$350,11,FALSE),\"\")","v":""}]
[null,{"$f":"IFERROR(VLOOKUP($A1857,[1]البيانات!$B$2:$L$350,11,FALSE),\"\")","v":""}]
[null,{"$f":"IFERROR(VLOOKUP($A1858,[1]البيانات!$B$2:$L$350,11,FALSE),\"\")","v":""}]
[null,{"$f":"IFERROR(VLOOKUP($A1859,[1]البيانات!$B$2:$L$350,11,FALSE),\"\")","v":""}]
[null,{"$f":"IFERROR(VLOOKUP($A1860,[1]البيانات!$B$2:$L$350,11,FALSE),\"\")","v":""}]
[null,{"$f":"IFERROR(VLOOKUP($A1861,[1]البيانات!$B$2:$L$350,11,FALSE),\"\")","v":""}]
[null,{"$f":"IFERROR(VLOOKUP($A1862,[1]البيانات!$B$2:$L$350,11,FALSE),\"\")","v":""}]
[null,{"$f":"IFERROR(VLOOKUP($A1863,[1]البيانات!$B$2:$L$350,11,FALSE),\"\")","v":""}]
[null,{"$f":"IFERROR(VLOOKUP($A1864,[1]البيانات!$B$2:$L$350,11,FALSE),\"\")","v":""}]
[null,{"$f":"IFERROR(VLOOKUP($A1865,[1]البيانات!$B$2:$L$350,11,FALSE),\"\")","v":""}]
[null,{"$f":"IFERROR(VLOOKUP($A1866,[1]البيانات!$B$2:$L$350,11,FALSE),\"\")","v":""}]
[null,{"$f":"IFERROR(VLOOKUP($A1867,[1]البيانات!$B$2:$L$350,11,FALSE),\"\")","v":""}]
[null,{"$f":"IFERROR(VLOOKUP($A1868,[1]البيانات!$B$2:$L$350,11,FALSE),\"\")","v":""}]
[null,{"$f":"IFERROR(VLOOKUP($A1869,[1]البيانات!$B$2:$L$350,11,FALSE),\"\")","v":""}]
[null,{"$f":"IFERROR(VLOOKUP($A1870,[1]البيانات!$B$2:$L$350,11,FALSE),\"\")","v":""}]
[null,{"$f":"IFERROR(VLOOKUP($A1871,[1]البيانات!$B$2:$L$350,11,FALSE),\"\")","v":""}]
[null,{"$f":"IFERROR(VLOOKUP($A1872,[1]البيانات!$B$2:$L$350,11,FALSE),\"\")","v":""}]
[null,{"$f":"IFERROR(VLOOKUP($A1873,[1]البيانات!$B$2:$L$350,11,FALSE),\"\")","v":""}]
[null,{"$f":"IFERROR(VLOOKUP($A1874,[1]البيانات!$B$2:$L$350,11,FALSE),\"\")","v":""}]
[null,{"$f":"IFERROR(VLOOKUP($A1875,[1]البيانات!$B$2:$L$350,11,FALSE),\"\")","v":""}]
[null,{"$f":"IFERROR(VLOOKUP($A1876,[1]البيانات!$B$2:$L$350,11,FALSE),\"\")","v":""}]
[null,{"$f":"IFERROR(VLOOKUP($A1877,[1]البيانات!$B$2:$L$350,11,FALSE),\"\")","v":""}]
[null,{"$f":"IFERROR(VLOOKUP($A1878,[1]البيانات!$B$2:$L$350,11,FALSE),\"\")","v":""}]
[null,{"$f":"IFERROR(VLOOKUP($A1879,[1]البيانات!$B$2:$L$350,11,FALSE),\"\")","v":""}]
[null,{"$f":"IFERROR(VLOOKUP($A1880,[1]البيانات!$B$2:$L$350,11,FALSE),\"\")","v":""}]
[null,{"$f":"IFERROR(VLOOKUP($A1881,[1]البيانات!$B$2:$L$350,11,FALSE),\"\")","v":""}]
[null,{"$f":"IFERROR(VLOOKUP($A1882,[1]البيانات!$B$2:$L$350,11,FALSE),\"\")","v":""}]
[null,{"$f":"IFERROR(VLOOKUP($A1883,[1]البيانات!$B$2:$L$350,11,FALSE),\"\")","v":""}]
[null,{"$f":"IFERROR(VLOOKUP($A1884,[1]البيانات!$B$2:$L$350,11,FALSE),\"\")","v":""}]
[null,{"$f":"IFERROR(VLOOKUP($A1885,[1]البيانات!$B$2:$L$350,11,FALSE),\"\")","v":""}]
[null,{"$f":"IFERROR(VLOOKUP($A1886,[1]البيانات!$B$2:$L$350,11,FALSE),\"\")","v":""}]
[null,{"$f":"IFERROR(VLOOKUP($A1887,[1]البيانات!$B$2:$L$350,11,FALSE),\"\")","v":""}]
[null,{"$f":"IFERROR(VLOOKUP($A1888,[1]البيانات!$B$2:$L$350,11,FALSE),\"\")","v":""}]
[null,{"$f":"IFERROR(VLOOKUP($A1889,[1]البيانات!$B$2:$L$350,11,FALSE),\"\")","v":""}]
[null,{"$f":"IFERROR(VLOOKUP($A1890,[1]البيانات!$B$2:$L$350,11,FALSE),\"\")","v":""}]
[null,{"$f":"IFERROR(VLOOKUP($A1891,[1]البيانات!$B$2:$L$350,11,FALSE),\"\")","v":""}]
[null,{"$f":"IFERROR(VLOOKUP($A1892,[1]البيانات!$B$2:$L$350,11,FALSE),\"\")","v":""}]
[null,{"$f":"IFERROR(VLOOKUP($A1893,[1]البيانات!$B$2:$L$350,11,FALSE),\"\")","v":""}]
[null,{"$f":"IFERROR(VLOOKUP($A1894,[1]البيانات!$B$2:$L$350,11,FALSE),\"\")","v":""}]
[null,{"$f":"IFERROR(VLOOKUP($A1895,[1]البيانات!$B$2:$L$350,11,FALSE),\"\")","v":""}]
[null,{"$f":"IFERROR(VLOOKUP($A1896,[1]البيانات!$B$2:$L$350,11,FALSE),\"\")","v":""}]
[null,{"$f":"IFERROR(VLOOKUP($A1897,[1]البيانات!$B$2:$L$350,11,FALSE),\"\")","v":""}]
[null,{"$f":"IFERROR(VLOOKUP($A1898,[1]البيانات!$B$2:$L$350,11,FALSE),\"\")","v":""}]
[null,{"$f":"IFERROR(VLOOKUP($A1899,[1]البيانات!$B$2:$L$350,11,FALSE),\"\")","v":""}]
[null,{"$f":"IFERROR(VLOOKUP($A1900,[1]البيانات!$B$2:$L$350,11,FALSE),\"\")","v":""}]
[null,{"$f":"IFERROR(VLOOKUP($A1901,[1]البيانات!$B$2:$L$350,11,FALSE),\"\")","v":""}]
[null,{"$f":"IFERROR(VLOOKUP($A1902,[1]البيانات!$B$2:$L$350,11,FALSE),\"\")","v":""}]
[null,{"$f":"IFERROR(VLOOKUP($A1903,[1]البيانات!$B$2:$L$350,11,FALSE),\"\")","v":""}]
[null,{"$f":"IFERROR(VLOOKUP($A1904,[1]البيانات!$B$2:$L$350,11,FALSE),\"\")","v":""}]
[null,{"$f":"IFERROR(VLOOKUP($A1905,[1]البيانات!$B$2:$L$350,11,FALSE),\"\")","v":""}]
[null,{"$f":"IFERROR(VLOOKUP($A1906,[1]البيانات!$B$2:$L$350,11,FALSE),\"\")","v":""}]
[null,{"$f":"IFERROR(VLOOKUP($A1907,[1]البيانات!$B$2:$L$350,11,FALSE),\"\")","v":""}]
[null,{"$f":"IFERROR(VLOOKUP($A1908,[1]البيانات!$B$2:$L$350,11,FALSE),\"\")","v":""}]
[null,{"$f":"IFERROR(VLOOKUP($A1909,[1]البيانات!$B$2:$L$350,11,FALSE),\"\")","v":""}]
[null,{"$f":"IFERROR(VLOOKUP($A1910,[1]البيانات!$B$2:$L$350,11,FALSE),\"\")","v":""}]
[null,{"$f":"IFERROR(VLOOKUP($A1911,[1]البيانات!$B$2:$L$350,11,FALSE),\"\")","v":""}]
[null,{"$f":"IFERROR(VLOOKUP($A1912,[1]البيانات!$B$2:$L$350,11,FALSE),\"\")","v":""}]
[null,{"$f":"IFERROR(VLOOKUP($A1913,[1]البيانات!$B$2:$L$350,11,FALSE),\"\")","v":""}]
[null,{"$f":"IFERROR(VLOOKUP($A1914,[1]البيانات!$B$2:$L$350,11,FALSE),\"\")","v":""}]
[null,{"$f":"IFERROR(VLOOKUP($A1915,[1]البيانات!$B$2:$L$350,11,FALSE),\"\")","v":""}]
[null,{"$f":"IFERROR(VLOOKUP($A1916,[1]البيانات!$B$2:$L$350,11,FALSE),\"\")","v":""}]
[null,{"$f":"IFERROR(VLOOKUP($A1917,[1]البيانات!$B$2:$L$350,11,FALSE),\"\")","v":""}]
[null,{"$f":"IFERROR(VLOOKUP($A1918,[1]البيانات!$B$2:$L$350,11,FALSE),\"\")","v":""}]
[null,{"$f":"IFERROR(VLOOKUP($A1919,[1]البيانات!$B$2:$L$350,11,FALSE),\"\")","v":""}]
[null,{"$f":"IFERROR(VLOOKUP($A1920,[1]البيانات!$B$2:$L$350,11,FALSE),\"\")","v":""}]
[null,{"$f":"IFERROR(VLOOKUP($A1921,[1]البيانات!$B$2:$L$350,11,FALSE),\"\")","v":""}]
[null,{"$f":"IFERROR(VLOOKUP($A1922,[1]البيانات!$B$2:$L$350,11,FALSE),\"\")","v":""}]
[null,{"$f":"IFERROR(VLOOKUP($A1923,[1]البيانات!$B$2:$L$350,11,FALSE),\"\")","v":""}]
[null,{"$f":"IFERROR(VLOOKUP($A1924,[1]البيانات!$B$2:$L$350,11,FALSE),\"\")","v":""}]
[null,{"$f":"IFERROR(VLOOKUP($A1925,[1]البيانات!$B$2:$L$350,11,FALSE),\"\")","v":""}]
[null,{"$f":"IFERROR(VLOOKUP($A1926,[1]البيانات!$B$2:$L$350,11,FALSE),\"\")","v":""}]
[null,{"$f":"IFERROR(VLOOKUP($A1927,[1]البيانات!$B$2:$L$350,11,FALSE),\"\")","v":""}]
[null,{"$f":"IFERROR(VLOOKUP($A1928,[1]البيانات!$B$2:$L$350,11,FALSE),\"\")","v":""}]
[null,{"$f":"IFERROR(VLOOKUP($A1929,[1]البيانات!$B$2:$L$350,11,FALSE),\"\")","v":""}]
[null,{"$f":"IFERROR(VLOOKUP($A1930,[1]البيانات!$B$2:$L$350,11,FALSE),\"\")","v":""}]
[null,{"$f":"IFERROR(VLOOKUP($A1931,[1]البيانات!$B$2:$L$350,11,FALSE),\"\")","v":""}]
[null,{"$f":"IFERROR(VLOOKUP($A1932,[1]البيانات!$B$2:$L$350,11,FALSE),\"\")","v":""}]
[null,{"$f":"IFERROR(VLOOKUP($A1933,[1]البيانات!$B$2:$L$350,11,FALSE),\"\")","v":""}]
[null,{"$f":"IFERROR(VLOOKUP($A1934,[1]البيانات!$B$2:$L$350,11,FALSE),\"\")","v":""}]
[null,{"$f":"IFERROR(VLOOKUP($A1935,[1]البيانات!$B$2:$L$350,11,FALSE),\"\")","v":""}]
[null,{"$f":"IFERROR(VLOOKUP($A1936,[1]البيانات!$B$2:$L$350,11,FALSE),\"\")","v":""}]
[null,{"$f":"IFERROR(VLOOKUP($A1937,[1]البيانات!$B$2:$L$350,11,FALSE),\"\")","v":""}]
[null,{"$f":"IFERROR(VLOOKUP($A1938,[1]البيانات!$B$2:$L$350,11,FALSE),\"\")","v":""}]
[null,{"$f":"IFERROR(VLOOKUP($A1939,[1]البيانات!$B$2:$L$350,11,FALSE),\"\")","v":""}]
[null,{"$f":"IFERROR(VLOOKUP($A1940,[1]البيانات!$B$2:$L$350,11,FALSE),\"\")","v":""}]
[null,{"$f":"IFERROR(VLOOKUP($A1941,[1]البيانات!$B$2:$L$350,11,FALSE),\"\")","v":""}]
[null,{"$f":"IFERROR(VLOOKUP($A1942,[1]البيانات!$B$2:$L$350,11,FALSE),\"\")","v":""}]
[null,{"$f":"IFERROR(VLOOKUP($A1943,[1]البيانات!$B$2:$L$350,11,FALSE),\"\")","v":""}]
[null,{"$f":"IFERROR(VLOOKUP($A1944,[1]البيانات!$B$2:$L$350,11,FALSE),\"\")","v":""}]
[null,{"$f":"IFERROR(VLOOKUP($A1945,[1]البيانات!$B$2:$L$350,11,FALSE),\"\")","v":""}]
[null,{"$f":"IFERROR(VLOOKUP($A1946,[1]البيانات!$B$2:$L$350,11,FALSE),\"\")","v":""}]
[null,{"$f":"IFERROR(VLOOKUP($A1947,[1]البيانات!$B$2:$L$350,11,FALSE),\"\")","v":""}]
[null,{"$f":"IFERROR(VLOOKUP($A1948,[1]البيانات!$B$2:$L$350,11,FALSE),\"\")","v":""}]
[null,{"$f":"IFERROR(VLOOKUP($A1949,[1]البيانات!$B$2:$L$350,11,FALSE),\"\")","v":""}]
[null,{"$f":"IFERROR(VLOOKUP($A1950,[1]البيانات!$B$2:$L$350,11,FALSE),\"\")","v":""}]
[null,{"$f":"IFERROR(VLOOKUP($A1951,[1]البيانات!$B$2:$L$350,11,FALSE),\"\")","v":""}]
[null,{"$f":"IFERROR(VLOOKUP($A1952,[1]البيانات!$B$2:$L$350,11,FALSE),\"\")","v":""}]
[null,{"$f":"IFERROR(VLOOKUP($A1953,[1]البيانات!$B$2:$L$350,11,FALSE),\"\")","v":""}]
[null,{"$f":"IFERROR(VLOOKUP($A1954,[1]البيانات!$B$2:$L$350,11,FALSE),\"\")","v":""}]
[null,{"$f":"IFERROR(VLOOKUP($A1955,[1]البيانات!$B$2:$L$350,11,FALSE),\"\")","v":""}]
[null,{"$f":"IFERROR(VLOOKUP($A1956,[1]البيانات!$B$2:$L$350,11,FALSE),\"\")","v":""}]
[null,{"$f":"IFERROR(VLOOKUP($A1957,[1]البيانات!$B$2:$L$350,11,FALSE),\"\")","v":""}]
[null,{"$f":"IFERROR(VLOOKUP($A1958,[1]البيانات!$B$2:$L$350,11,FALSE),\"\")","v":""}]
[null,{"$f":"IFERROR(VLOOKUP($A1959,[1]البيانات!$B$2:$L$350,11,FALSE),\"\")","v":""}]
[null,{"$f":"IFERROR(VLOOKUP($A1960,[1]البيانات!$B$2:$L$350,11,FALSE),\"\")","v":""}]
[null,{"$f":"IFERROR(VLOOKUP($A1961,[1]البيانات!$B$2:$L$350,11,FALSE),\"\")","v":""}]
[null,{"$f":"IFERROR(VLOOKUP($A1962,[1]البيانات!$B$2:$L$350,11,FALSE),\"\")","v":""}]
[null,{"$f":"IFERROR(VLOOKUP($A1963,[1]البيانات!$B$2:$L$350,11,FALSE),\"\")","v":""}]
[null,{"$f":"IFERROR(VLOOKUP($A1964,[1]البيانات!$B$2:$L$350,11,FALSE),\"\")","v":""}]
[null,{"$f":"IFERROR(VLOOKUP($A1965,[1]البيانات!$B$2:$L$350,11,FALSE),\"\")","v":""}]
[null,{"$f":"IFERROR(VLOOKUP($A1966,[1]البيانات!$B$2:$L$350,11,FALSE),\"\")","v":""}]
[null,{"$f":"IFERROR(VLOOKUP($A1967,[1]البيانات!$B$2:$L$350,11,FALSE),\"\")","v":""}]
[null,{"$f":"IFERROR(VLOOKUP($A1968,[1]البيانات!$B$2:$L$350,11,FALSE),\"\")","v":""}]
[null,{"$f":"IFERROR(VLOOKUP($A1969,[1]البيانات!$B$2:$L$350,11,FALSE),\"\")","v":""}]
[null,{"$f":"IFERROR(VLOOKUP($A1970,[1]البيانات!$B$2:$L$350,11,FALSE),\"\")","v":""}]
[null,{"$f":"IFERROR(VLOOKUP($A1971,[1]البيانات!$B$2:$L$350,11,FALSE),\"\")","v":""}]
[null,{"$f":"IFERROR(VLOOKUP($A1972,[1]البيانات!$B$2:$L$350,11,FALSE),\"\")","v":""}]
[null,{"$f":"IFERROR(VLOOKUP($A1973,[1]البيانات!$B$2:$L$350,11,FALSE),\"\")","v":""}]
[null,{"$f":"IFERROR(VLOOKUP($A1974,[1]البيانات!$B$2:$L$350,11,FALSE),\"\")","v":""}]
[null,{"$f":"IFERROR(VLOOKUP($A1975,[1]البيانات!$B$2:$L$350,11,FALSE),\"\")","v":""}]
[null,{"$f":"IFERROR(VLOOKUP($A1976,[1]البيانات!$B$2:$L$350,11,FALSE),\"\")","v":""}]
[null,{"$f":"IFERROR(VLOOKUP($A1977,[1]البيانات!$B$2:$L$350,11,FALSE),\"\")","v":""}]
[null,{"$f":"IFERROR(VLOOKUP($A1978,[1]البيانات!$B$2:$L$350,11,FALSE),\"\")","v":""}]
[null,{"$f":"IFERROR(VLOOKUP($A1979,[1]البيانات!$B$2:$L$350,11,FALSE),\"\")","v":""}]
[null,{"$f":"IFERROR(VLOOKUP($A1980,[1]البيانات!$B$2:$L$350,11,FALSE),\"\")","v":""}]
[null,{"$f":"IFERROR(VLOOKUP($A1981,[1]البيانات!$B$2:$L$350,11,FALSE),\"\")","v":""}]
[null,{"$f":"IFERROR(VLOOKUP($A1982,[1]البيانات!$B$2:$L$350,11,FALSE),\"\")","v":""}]
[null,{"$f":"IFERROR(VLOOKUP($A1983,[1]البيانات!$B$2:$L$350,11,FALSE),\"\")","v":""}]
[null,{"$f":"IFERROR(VLOOKUP($A1984,[1]البيانات!$B$2:$L$350,11,FALSE),\"\")","v":""}]
[null,{"$f":"IFERROR(VLOOKUP($A1985,[1]البيانات!$B$2:$L$350,11,FALSE),\"\")","v":""}]
[null,{"$f":"IFERROR(VLOOKUP($A1986,[1]البيانات!$B$2:$L$350,11,FALSE),\"\")","v":""}]
[null,{"$f":"IFERROR(VLOOKUP($A1987,[1]البيانات!$B$2:$L$350,11,FALSE),\"\")","v":""}]
[null,{"$f":"IFERROR(VLOOKUP($A1988,[1]البيانات!$B$2:$L$350,11,FALSE),\"\")","v":""}]
[null,{"$f":"IFERROR(VLOOKUP($A1989,[1]البيانات!$B$2:$L$350,11,FALSE),\"\")","v":""}]
[null,{"$f":"IFERROR(VLOOKUP($A1990,[1]البيانات!$B$2:$L$350,11,FALSE),\"\")","v":""}]
[null,{"$f":"IFERROR(VLOOKUP($A1991,[1]البيانات!$B$2:$L$350,11,FALSE),\"\")","v":""}]
[null,{"$f":"IFERROR(VLOOKUP($A1992,[1]البيانات!$B$2:$L$350,11,FALSE),\"\")","v":""}]
[null,{"$f":"IFERROR(VLOOKUP($A1993,[1]البيانات!$B$2:$L$350,11,FALSE),\"\")","v":""}]
[null,{"$f":"IFERROR(VLOOKUP($A1994,[1]البيانات!$B$2:$L$350,11,FALSE),\"\")","v":""}]
[null,{"$f":"IFERROR(VLOOKUP($A1995,[1]البيانات!$B$2:$L$350,11,FALSE),\"\")","v":""}]
[null,{"$f":"IFERROR(VLOOKUP($A1996,[1]البيانات!$B$2:$L$350,11,FALSE),\"\")","v":""}]
[null,{"$f":"IFERROR(VLOOKUP($A1997,[1]البيانات!$B$2:$L$350,11,FALSE),\"\")","v":""}]
[null,{"$f":"IFERROR(VLOOKUP($A1998,[1]البيانات!$B$2:$L$350,11,FALSE),\"\")","v":""}]
[null,{"$f":"IFERROR(VLOOKUP($A1999,[1]البيانات!$B$2:$L$350,11,FALSE),\"\")","v":""}]
[null,{"$f":"IFERROR(VLOOKUP($A2000,[1]البيانات!$B$2:$L$350,11,FALSE),\"\")","v":""}]
[null,{"$f":"IFERROR(VLOOKUP($A2001,[1]البيانات!$B$2:$L$350,11,FALSE),\"\")","v":""}]
[null,{"$f":"IFERROR(VLOOKUP($A2002,[1]البيانات!$B$2:$L$350,11,FALSE),\"\")","v":""}]
[null,{"$f":"IFERROR(VLOOKUP($A2003,[1]البيانات!$B$2:$L$350,11,FALSE),\"\")","v":""}]
[null,{"$f":"IFERROR(VLOOKUP($A2004,[1]البيانات!$B$2:$L$350,11,FALSE),\"\")","v":""}]
[null,{"$f":"IFERROR(VLOOKUP($A2005,[1]البيانات!$B$2:$L$350,11,FALSE),\"\")","v":""}]
[null,{"$f":"IFERROR(VLOOKUP($A2006,[1]البيانات!$B$2:$L$350,11,FALSE),\"\")","v":""}]
[null,{"$f":"IFERROR(VLOOKUP($A2007,[1]البيانات!$B$2:$L$350,11,FALSE),\"\")","v":""}]
[null,{"$f":"IFERROR(VLOOKUP($A2008,[1]البيانات!$B$2:$L$350,11,FALSE),\"\")","v":""}]
[null,{"$f":"IFERROR(VLOOKUP($A2009,[1]البيانات!$B$2:$L$350,11,FALSE),\"\")","v":""}]
[null,{"$f":"IFERROR(VLOOKUP($A2010,[1]البيانات!$B$2:$L$350,11,FALSE),\"\")","v":""}]
[null,{"$f":"IFERROR(VLOOKUP($A2011,[1]البيانات!$B$2:$L$350,11,FALSE),\"\")","v":""}]
[null,{"$f":"IFERROR(VLOOKUP($A2012,[1]البيانات!$B$2:$L$350,11,FALSE),\"\")","v":""}]
[null,{"$f":"IFERROR(VLOOKUP($A2013,[1]البيانات!$B$2:$L$350,11,FALSE),\"\")","v":""}]
[null,{"$f":"IFERROR(VLOOKUP($A2014,[1]البيانات!$B$2:$L$350,11,FALSE),\"\")","v":""}]
[null,{"$f":"IFERROR(VLOOKUP($A2015,[1]البيانات!$B$2:$L$350,11,FALSE),\"\")","v":""}]
[null,{"$f":"IFERROR(VLOOKUP($A2016,[1]البيانات!$B$2:$L$350,11,FALSE),\"\")","v":""}]
[null,{"$f":"IFERROR(VLOOKUP($A2017,[1]البيانات!$B$2:$L$350,11,FALSE),\"\")","v":""}]
[null,{"$f":"IFERROR(VLOOKUP($A2018,[1]البيانات!$B$2:$L$350,11,FALSE),\"\")","v":""}]
[null,{"$f":"IFERROR(VLOOKUP($A2019,[1]البيانات!$B$2:$L$350,11,FALSE),\"\")","v":""}]
[null,{"$f":"IFERROR(VLOOKUP($A2020,[1]البيانات!$B$2:$L$350,11,FALSE),\"\")","v":""}]
[null,{"$f":"IFERROR(VLOOKUP($A2021,[1]البيانات!$B$2:$L$350,11,FALSE),\"\")","v":""}]
[null,{"$f":"IFERROR(VLOOKUP($A2022,[1]البيانات!$B$2:$L$350,11,FALSE),\"\")","v":""}]
[null,{"$f":"IFERROR(VLOOKUP($A2023,[1]البيانات!$B$2:$L$350,11,FALSE),\"\")","v":""}]
[null,{"$f":"IFERROR(VLOOKUP($A2024,[1]البيانات!$B$2:$L$350,11,FALSE),\"\")","v":""}]
[null,{"$f":"IFERROR(VLOOKUP($A2025,[1]البيانات!$B$2:$L$350,11,FALSE),\"\")","v":""}]
[null,{"$f":"IFERROR(VLOOKUP($A2026,[1]البيانات!$B$2:$L$350,11,FALSE),\"\")","v":""}]
[null,{"$f":"IFERROR(VLOOKUP($A2027,[1]البيانات!$B$2:$L$350,11,FALSE),\"\")","v":""}]
[null,{"$f":"IFERROR(VLOOKUP($A2028,[1]البيانات!$B$2:$L$350,11,FALSE),\"\")","v":""}]
[null,{"$f":"IFERROR(VLOOKUP($A2029,[1]البيانات!$B$2:$L$350,11,FALSE),\"\")","v":""}]
[null,{"$f":"IFERROR(VLOOKUP($A2030,[1]البيانات!$B$2:$L$350,11,FALSE),\"\")","v":""}]
[null,{"$f":"IFERROR(VLOOKUP($A2031,[1]البيانات!$B$2:$L$350,11,FALSE),\"\")","v":""}]
[null,{"$f":"IFERROR(VLOOKUP($A2032,[1]البيانات!$B$2:$L$350,11,FALSE),\"\")","v":""}]
[null,{"$f":"IFERROR(VLOOKUP($A2033,[1]البيانات!$B$2:$L$350,11,FALSE),\"\")","v":""}]
[null,{"$f":"IFERROR(VLOOKUP($A2034,[1]البيانات!$B$2:$L$350,11,FALSE),\"\")","v":""}]
[null,{"$f":"IFERROR(VLOOKUP($A2035,[1]البيانات!$B$2:$L$350,11,FALSE),\"\")","v":""}]
[null,{"$f":"IFERROR(VLOOKUP($A2036,[1]البيانات!$B$2:$L$350,11,FALSE),\"\")","v":""}]
[null,{"$f":"IFERROR(VLOOKUP($A2037,[1]البيانات!$B$2:$L$350,11,FALSE),\"\")","v":""}]
[null,{"$f":"IFERROR(VLOOKUP($A2038,[1]البيانات!$B$2:$L$350,11,FALSE),\"\")","v":""}]
[null,{"$f":"IFERROR(VLOOKUP($A2039,[1]البيانات!$B$2:$L$350,11,FALSE),\"\")","v":""}]
[null,{"$f":"IFERROR(VLOOKUP($A2040,[1]البيانات!$B$2:$L$350,11,FALSE),\"\")","v":""}]
[null,{"$f":"IFERROR(VLOOKUP($A2041,[1]البيانات!$B$2:$L$350,11,FALSE),\"\")","v":""}]
[null,{"$f":"IFERROR(VLOOKUP($A2042,[1]البيانات!$B$2:$L$350,11,FALSE),\"\")","v":""}]
[null,{"$f":"IFERROR(VLOOKUP($A2043,[1]البيانات!$B$2:$L$350,11,FALSE),\"\")","v":""}]
[null,{"$f":"IFERROR(VLOOKUP($A2044,[1]البيانات!$B$2:$L$350,11,FALSE),\"\")","v":""}]
[null,{"$f":"IFERROR(VLOOKUP($A2045,[1]البيانات!$B$2:$L$350,11,FALSE),\"\")","v":""}]
[null,{"$f":"IFERROR(VLOOKUP($A2046,[1]البيانات!$B$2:$L$350,11,FALSE),\"\")","v":""}]
[null,{"$f":"IFERROR(VLOOKUP($A2047,[1]البيانات!$B$2:$L$350,11,FALSE),\"\")","v":""}]
[null,{"$f":"IFERROR(VLOOKUP($A2048,[1]البيانات!$B$2:$L$350,11,FALSE),\"\")","v":""}]
[null,{"$f":"IFERROR(VLOOKUP($A2049,[1]البيانات!$B$2:$L$350,11,FALSE),\"\")","v":""}]
[null,{"$f":"IFERROR(VLOOKUP($A2050,[1]البيانات!$B$2:$L$350,11,FALSE),\"\")","v":""}]
[null,{"$f":"IFERROR(VLOOKUP($A2051,[1]البيانات!$B$2:$L$350,11,FALSE),\"\")","v":""}]
[null,{"$f":"IFERROR(VLOOKUP($A2052,[1]البيانات!$B$2:$L$350,11,FALSE),\"\")","v":""}]
[null,{"$f":"IFERROR(VLOOKUP($A2053,[1]البيانات!$B$2:$L$350,11,FALSE),\"\")","v":""}]
[null,{"$f":"IFERROR(VLOOKUP($A2054,[1]البيانات!$B$2:$L$350,11,FALSE),\"\")","v":""}]
[null,{"$f":"IFERROR(VLOOKUP($A2055,[1]البيانات!$B$2:$L$350,11,FALSE),\"\")","v":""}]
[null,{"$f":"IFERROR(VLOOKUP($A2056,[1]البيانات!$B$2:$L$350,11,FALSE),\"\")","v":""}]
[null,{"$f":"IFERROR(VLOOKUP($A2057,[1]البيانات!$B$2:$L$350,11,FALSE),\"\")","v":""}]
[null,{"$f":"IFERROR(VLOOKUP($A2058,[1]البيانات!$B$2:$L$350,11,FALSE),\"\")","v":""}]
[null,{"$f":"IFERROR(VLOOKUP($A2059,[1]البيانات!$B$2:$L$350,11,FALSE),\"\")","v":""}]
[null,{"$f":"IFERROR(VLOOKUP($A2060,[1]البيانات!$B$2:$L$350,11,FALSE),\"\")","v":""}]
[null,{"$f":"IFERROR(VLOOKUP($A2061,[1]البيانات!$B$2:$L$350,11,FALSE),\"\")","v":""}]
[null,{"$f":"IFERROR(VLOOKUP($A2062,[1]البيانات!$B$2:$L$350,11,FALSE),\"\")","v":""}]
[null,{"$f":"IFERROR(VLOOKUP($A2063,[1]البيانات!$B$2:$L$350,11,FALSE),\"\")","v":""}]
[null,{"$f":"IFERROR(VLOOKUP($A2064,[1]البيانات!$B$2:$L$350,11,FALSE),\"\")","v":""}]
[null,{"$f":"IFERROR(VLOOKUP($A2065,[1]البيانات!$B$2:$L$350,11,FALSE),\"\")","v":""}]
[null,{"$f":"IFERROR(VLOOKUP($A2066,[1]البيانات!$B$2:$L$350,11,FALSE),\"\")","v":""}]
[null,{"$f":"IFERROR(VLOOKUP($A2067,[1]البيانات!$B$2:$L$350,11,FALSE),\"\")","v":""}]
[null,{"$f":"IFERROR(VLOOKUP($A2068,[1]البيانات!$B$2:$L$350,11,FALSE),\"\")","v":""}]
[null,{"$f":"IFERROR(VLOOKUP($A2069,[1]البيانات!$B$2:$L$350,11,FALSE),\"\")","v":""}]
[null,{"$f":"IFERROR(VLOOKUP($A2070,[1]البيانات!$B$2:$L$350,11,FALSE),\"\")","v":""}]
[null,{"$f":"IFERROR(VLOOKUP($A2071,[1]البيانات!$B$2:$L$350,11,FALSE),\"\")","v":""}]
[null,{"$f":"IFERROR(VLOOKUP($A2072,[1]البيانات!$B$2:$L$350,11,FALSE),\"\")","v":""}]
[null,{"$f":"IFERROR(VLOOKUP($A2073,[1]البيانات!$B$2:$L$350,11,FALSE),\"\")","v":""}]
[null,{"$f":"IFERROR(VLOOKUP($A2074,[1]البيانات!$B$2:$L$350,11,FALSE),\"\")","v":""}]
[null,{"$f":"IFERROR(VLOOKUP($A2075,[1]البيانات!$B$2:$L$350,11,FALSE),\"\")","v":""}]
[null,{"$f":"IFERROR(VLOOKUP($A2076,[1]البيانات!$B$2:$L$350,11,FALSE),\"\")","v":""}]
[null,{"$f":"IFERROR(VLOOKUP($A2077,[1]البيانات!$B$2:$L$350,11,FALSE),\"\")","v":""}]
[null,{"$f":"IFERROR(VLOOKUP($A2078,[1]البيانات!$B$2:$L$350,11,FALSE),\"\")","v":""}]
[null,{"$f":"IFERROR(VLOOKUP($A2079,[1]البيانات!$B$2:$L$350,11,FALSE),\"\")","v":""}]
[null,{"$f":"IFERROR(VLOOKUP($A2080,[1]البيانات!$B$2:$L$350,11,FALSE),\"\")","v":""}]
[null,{"$f":"IFERROR(VLOOKUP($A2081,[1]البيانات!$B$2:$L$350,11,FALSE),\"\")","v":""}]
[null,{"$f":"IFERROR(VLOOKUP($A2082,[1]البيانات!$B$2:$L$350,11,FALSE),\"\")","v":""}]
[null,{"$f":"IFERROR(VLOOKUP($A2083,[1]البيانات!$B$2:$L$350,11,FALSE),\"\")","v":""}]
[null,{"$f":"IFERROR(VLOOKUP($A2084,[1]البيانات!$B$2:$L$350,11,FALSE),\"\")","v":""}]
[null,{"$f":"IFERROR(VLOOKUP($A2085,[1]البيانات!$B$2:$L$350,11,FALSE),\"\")","v":""}]
[null,{"$f":"IFERROR(VLOOKUP($A2086,[1]البيانات!$B$2:$L$350,11,FALSE),\"\")","v":""}]
[null,{"$f":"IFERROR(VLOOKUP($A2087,[1]البيانات!$B$2:$L$350,11,FALSE),\"\")","v":""}]
[null,{"$f":"IFERROR(VLOOKUP($A2088,[1]البيانات!$B$2:$L$350,11,FALSE),\"\")","v":""}]
[null,{"$f":"IFERROR(VLOOKUP($A2089,[1]البيانات!$B$2:$L$350,11,FALSE),\"\")","v":""}]
[null,{"$f":"IFERROR(VLOOKUP($A2090,[1]البيانات!$B$2:$L$350,11,FALSE),\"\")","v":""}]
[null,{"$f":"IFERROR(VLOOKUP($A2091,[1]البيانات!$B$2:$L$350,11,FALSE),\"\")","v":""}]
[null,{"$f":"IFERROR(VLOOKUP($A2092,[1]البيانات!$B$2:$L$350,11,FALSE),\"\")","v":""}]
[null,{"$f":"IFERROR(VLOOKUP($A2093,[1]البيانات!$B$2:$L$350,11,FALSE),\"\")","v":""}]
[null,{"$f":"IFERROR(VLOOKUP($A2094,[1]البيانات!$B$2:$L$350,11,FALSE),\"\")","v":""}]
[null,{"$f":"IFERROR(VLOOKUP($A2095,[1]البيانات!$B$2:$L$350,11,FALSE),\"\")","v":""}]
[null,{"$f":"IFERROR(VLOOKUP($A2096,[1]البيانات!$B$2:$L$350,11,FALSE),\"\")","v":""}]
[null,{"$f":"IFERROR(VLOOKUP($A2097,[1]البيانات!$B$2:$L$350,11,FALSE),\"\")","v":""}]
[null,{"$f":"IFERROR(VLOOKUP($A2098,[1]البيانات!$B$2:$L$350,11,FALSE),\"\")","v":""}]
[null,{"$f":"IFERROR(VLOOKUP($A2099,[1]البيانات!$B$2:$L$350,11,FALSE),\"\")","v":""}]
[null,{"$f":"IFERROR(VLOOKUP($A2100,[1]البيانات!$B$2:$L$350,11,FALSE),\"\")","v":""}]
[null,{"$f":"IFERROR(VLOOKUP($A2101,[1]البيانات!$B$2:$L$350,11,FALSE),\"\")","v":""}]
[null,{"$f":"IFERROR(VLOOKUP($A2102,[1]البيانات!$B$2:$L$350,11,FALSE),\"\")","v":""}]
[null,{"$f":"IFERROR(VLOOKUP($A2103,[1]البيانات!$B$2:$L$350,11,FALSE),\"\")","v":""}]
[null,{"$f":"IFERROR(VLOOKUP($A2104,[1]البيانات!$B$2:$L$350,11,FALSE),\"\")","v":""}]
[null,{"$f":"IFERROR(VLOOKUP($A2105,[1]البيانات!$B$2:$L$350,11,FALSE),\"\")","v":""}]
[null,{"$f":"IFERROR(VLOOKUP($A2106,[1]البيانات!$B$2:$L$350,11,FALSE),\"\")","v":""}]
[null,{"$f":"IFERROR(VLOOKUP($A2107,[1]البيانات!$B$2:$L$350,11,FALSE),\"\")","v":""}]
[null,{"$f":"IFERROR(VLOOKUP($A2108,[1]البيانات!$B$2:$L$350,11,FALSE),\"\")","v":""}]
[null,{"$f":"IFERROR(VLOOKUP($A2109,[1]البيانات!$B$2:$L$350,11,FALSE),\"\")","v":""}]
[null,{"$f":"IFERROR(VLOOKUP($A2110,[1]البيانات!$B$2:$L$350,11,FALSE),\"\")","v":""}]
[null,{"$f":"IFERROR(VLOOKUP($A2111,[1]البيانات!$B$2:$L$350,11,FALSE),\"\")","v":""}]
[null,{"$f":"IFERROR(VLOOKUP($A2112,[1]البيانات!$B$2:$L$350,11,FALSE),\"\")","v":""}]
[null,{"$f":"IFERROR(VLOOKUP($A2113,[1]البيانات!$B$2:$L$350,11,FALSE),\"\")","v":""}]
[null,{"$f":"IFERROR(VLOOKUP($A2114,[1]البيانات!$B$2:$L$350,11,FALSE),\"\")","v":""}]
[null,{"$f":"IFERROR(VLOOKUP($A2115,[1]البيانات!$B$2:$L$350,11,FALSE),\"\")","v":""}]
[null,{"$f":"IFERROR(VLOOKUP($A2116,[1]البيانات!$B$2:$L$350,11,FALSE),\"\")","v":""}]
[null,{"$f":"IFERROR(VLOOKUP($A2117,[1]البيانات!$B$2:$L$350,11,FALSE),\"\")","v":""}]
[null,{"$f":"IFERROR(VLOOKUP($A2118,[1]البيانات!$B$2:$L$350,11,FALSE),\"\")","v":""}]
[null,{"$f":"IFERROR(VLOOKUP($A2119,[1]البيانات!$B$2:$L$350,11,FALSE),\"\")","v":""}]
[null,{"$f":"IFERROR(VLOOKUP($A2120,[1]البيانات!$B$2:$L$350,11,FALSE),\"\")","v":""}]
[null,{"$f":"IFERROR(VLOOKUP($A2121,[1]البيانات!$B$2:$L$350,11,FALSE),\"\")","v":""}]
[null,{"$f":"IFERROR(VLOOKUP($A2122,[1]البيانات!$B$2:$L$350,11,FALSE),\"\")","v":""}]
[null,{"$f":"IFERROR(VLOOKUP($A2123,[1]البيانات!$B$2:$L$350,11,FALSE),\"\")","v":""}]
[null,{"$f":"IFERROR(VLOOKUP($A2124,[1]البيانات!$B$2:$L$350,11,FALSE),\"\")","v":""}]
[null,{"$f":"IFERROR(VLOOKUP($A2125,[1]البيانات!$B$2:$L$350,11,FALSE),\"\")","v":""}]
[null,{"$f":"IFERROR(VLOOKUP($A2126,[1]البيانات!$B$2:$L$350,11,FALSE),\"\")","v":""}]
[null,{"$f":"IFERROR(VLOOKUP($A2127,[1]البيانات!$B$2:$L$350,11,FALSE),\"\")","v":""}]
[null,{"$f":"IFERROR(VLOOKUP($A2128,[1]البيانات!$B$2:$L$350,11,FALSE),\"\")","v":""}]
[null,{"$f":"IFERROR(VLOOKUP($A2129,[1]البيانات!$B$2:$L$350,11,FALSE),\"\")","v":""}]
[null,{"$f":"IFERROR(VLOOKUP($A2130,[1]البيانات!$B$2:$L$350,11,FALSE),\"\")","v":""}]
[null,{"$f":"IFERROR(VLOOKUP($A2131,[1]البيانات!$B$2:$L$350,11,FALSE),\"\")","v":""}]
[null,{"$f":"IFERROR(VLOOKUP($A2132,[1]البيانات!$B$2:$L$350,11,FALSE),\"\")","v":""}]
[null,{"$f":"IFERROR(VLOOKUP($A2133,[1]البيانات!$B$2:$L$350,11,FALSE),\"\")","v":""}]
[null,{"$f":"IFERROR(VLOOKUP($A2134,[1]البيانات!$B$2:$L$350,11,FALSE),\"\")","v":""}]
[null,{"$f":"IFERROR(VLOOKUP($A2135,[1]البيانات!$B$2:$L$350,11,FALSE),\"\")","v":""}]
[null,{"$f":"IFERROR(VLOOKUP($A2136,[1]البيانات!$B$2:$L$350,11,FALSE),\"\")","v":""}]
[null,{"$f":"IFERROR(VLOOKUP($A2137,[1]البيانات!$B$2:$L$350,11,FALSE),\"\")","v":""}]
[null,{"$f":"IFERROR(VLOOKUP($A2138,[1]البيانات!$B$2:$L$350,11,FALSE),\"\")","v":""}]
[null,{"$f":"IFERROR(VLOOKUP($A2139,[1]البيانات!$B$2:$L$350,11,FALSE),\"\")","v":""}]
[null,{"$f":"IFERROR(VLOOKUP($A2140,[1]البيانات!$B$2:$L$350,11,FALSE),\"\")","v":""}]
[null,{"$f":"IFERROR(VLOOKUP($A2141,[1]البيانات!$B$2:$L$350,11,FALSE),\"\")","v":""}]
[null,{"$f":"IFERROR(VLOOKUP($A2142,[1]البيانات!$B$2:$L$350,11,FALSE),\"\")","v":""}]
[null,{"$f":"IFERROR(VLOOKUP($A2143,[1]البيانات!$B$2:$L$350,11,FALSE),\"\")","v":""}]
[null,{"$f":"IFERROR(VLOOKUP($A2144,[1]البيانات!$B$2:$L$350,11,FALSE),\"\")","v":""}]
[null,{"$f":"IFERROR(VLOOKUP($A2145,[1]البيانات!$B$2:$L$350,11,FALSE),\"\")","v":""}]
[null,{"$f":"IFERROR(VLOOKUP($A2146,[1]البيانات!$B$2:$L$350,11,FALSE),\"\")","v":""}]
[null,{"$f":"IFERROR(VLOOKUP($A2147,[1]البيانات!$B$2:$L$350,11,FALSE),\"\")","v":""}]
[null,{"$f":"IFERROR(VLOOKUP($A2148,[1]البيانات!$B$2:$L$350,11,FALSE),\"\")","v":""}]
[null,{"$f":"IFERROR(VLOOKUP($A2149,[1]البيانات!$B$2:$L$350,11,FALSE),\"\")","v":""}]
[null,{"$f":"IFERROR(VLOOKUP($A2150,[1]البيانات!$B$2:$L$350,11,FALSE),\"\")","v":""}]
[null,{"$f":"IFERROR(VLOOKUP($A2151,[1]البيانات!$B$2:$L$350,11,FALSE),\"\")","v":""}]
[null,{"$f":"IFERROR(VLOOKUP($A2152,[1]البيانات!$B$2:$L$350,11,FALSE),\"\")","v":""}]
[null,{"$f":"IFERROR(VLOOKUP($A2153,[1]البيانات!$B$2:$L$350,11,FALSE),\"\")","v":""}]
[null,{"$f":"IFERROR(VLOOKUP($A2154,[1]البيانات!$B$2:$L$350,11,FALSE),\"\")","v":""}]
[null,{"$f":"IFERROR(VLOOKUP($A2155,[1]البيانات!$B$2:$L$350,11,FALSE),\"\")","v":""}]
[null,{"$f":"IFERROR(VLOOKUP($A2156,[1]البيانات!$B$2:$L$350,11,FALSE),\"\")","v":""}]
[null,{"$f":"IFERROR(VLOOKUP($A2157,[1]البيانات!$B$2:$L$350,11,FALSE),\"\")","v":""}]
[null,{"$f":"IFERROR(VLOOKUP($A2158,[1]البيانات!$B$2:$L$350,11,FALSE),\"\")","v":""}]
[null,{"$f":"IFERROR(VLOOKUP($A2159,[1]البيانات!$B$2:$L$350,11,FALSE),\"\")","v":""}]
[null,{"$f":"IFERROR(VLOOKUP($A2160,[1]البيانات!$B$2:$L$350,11,FALSE),\"\")","v":""}]
[null,{"$f":"IFERROR(VLOOKUP($A2161,[1]البيانات!$B$2:$L$350,11,FALSE),\"\")","v":""}]
[null,{"$f":"IFERROR(VLOOKUP($A2162,[1]البيانات!$B$2:$L$350,11,FALSE),\"\")","v":""}]
[null,{"$f":"IFERROR(VLOOKUP($A2163,[1]البيانات!$B$2:$L$350,11,FALSE),\"\")","v":""}]
[null,{"$f":"IFERROR(VLOOKUP($A2164,[1]البيانات!$B$2:$L$350,11,FALSE),\"\")","v":""}]
[null,{"$f":"IFERROR(VLOOKUP($A2165,[1]البيانات!$B$2:$L$350,11,FALSE),\"\")","v":""}]
[null,{"$f":"IFERROR(VLOOKUP($A2166,[1]البيانات!$B$2:$L$350,11,FALSE),\"\")","v":""}]
[null,{"$f":"IFERROR(VLOOKUP($A2167,[1]البيانات!$B$2:$L$350,11,FALSE),\"\")","v":""}]
[null,{"$f":"IFERROR(VLOOKUP($A2168,[1]البيانات!$B$2:$L$350,11,FALSE),\"\")","v":""}]
[null,{"$f":"IFERROR(VLOOKUP($A2169,[1]البيانات!$B$2:$L$350,11,FALSE),\"\")","v":""}]
[null,{"$f":"IFERROR(VLOOKUP($A2170,[1]البيانات!$B$2:$L$350,11,FALSE),\"\")","v":""}]
[null,{"$f":"IFERROR(VLOOKUP($A2171,[1]البيانات!$B$2:$L$350,11,FALSE),\"\")","v":""}]
[null,{"$f":"IFERROR(VLOOKUP($A2172,[1]البيانات!$B$2:$L$350,11,FALSE),\"\")","v":""}]
[null,{"$f":"IFERROR(VLOOKUP($A2173,[1]البيانات!$B$2:$L$350,11,FALSE),\"\")","v":""}]
[null,{"$f":"IFERROR(VLOOKUP($A2174,[1]البيانات!$B$2:$L$350,11,FALSE),\"\")","v":""}]
[null,{"$f":"IFERROR(VLOOKUP($A2175,[1]البيانات!$B$2:$L$350,11,FALSE),\"\")","v":""}]
[null,{"$f":"IFERROR(VLOOKUP($A2176,[1]البيانات!$B$2:$L$350,11,FALSE),\"\")","v":""}]
[null,{"$f":"IFERROR(VLOOKUP($A2177,[1]البيانات!$B$2:$L$350,11,FALSE),\"\")","v":""}]
[null,{"$f":"IFERROR(VLOOKUP($A2178,[1]البيانات!$B$2:$L$350,11,FALSE),\"\")","v":""}]
[null,{"$f":"IFERROR(VLOOKUP($A2179,[1]البيانات!$B$2:$L$350,11,FALSE),\"\")","v":""}]
[null,{"$f":"IFERROR(VLOOKUP($A2180,[1]البيانات!$B$2:$L$350,11,FALSE),\"\")","v":""}]
[null,{"$f":"IFERROR(VLOOKUP($A2181,[1]البيانات!$B$2:$L$350,11,FALSE),\"\")","v":""}]
[null,{"$f":"IFERROR(VLOOKUP($A2182,[1]البيانات!$B$2:$L$350,11,FALSE),\"\")","v":""}]
[null,{"$f":"IFERROR(VLOOKUP($A2183,[1]البيانات!$B$2:$L$350,11,FALSE),\"\")","v":""}]
[null,{"$f":"IFERROR(VLOOKUP($A2184,[1]البيانات!$B$2:$L$350,11,FALSE),\"\")","v":""}]
[null,{"$f":"IFERROR(VLOOKUP($A2185,[1]البيانات!$B$2:$L$350,11,FALSE),\"\")","v":""}]
[null,{"$f":"IFERROR(VLOOKUP($A2186,[1]البيانات!$B$2:$L$350,11,FALSE),\"\")","v":""}]
[null,{"$f":"IFERROR(VLOOKUP($A2187,[1]البيانات!$B$2:$L$350,11,FALSE),\"\")","v":""}]
[null,{"$f":"IFERROR(VLOOKUP($A2188,[1]البيانات!$B$2:$L$350,11,FALSE),\"\")","v":""}]
[null,{"$f":"IFERROR(VLOOKUP($A2189,[1]البيانات!$B$2:$L$350,11,FALSE),\"\")","v":""}]
[null,{"$f":"IFERROR(VLOOKUP($A2190,[1]البيانات!$B$2:$L$350,11,FALSE),\"\")","v":""}]
[null,{"$f":"IFERROR(VLOOKUP($A2191,[1]البيانات!$B$2:$L$350,11,FALSE),\"\")","v":""}]
[null,{"$f":"IFERROR(VLOOKUP($A2192,[1]البيانات!$B$2:$L$350,11,FALSE),\"\")","v":""}]
[null,{"$f":"IFERROR(VLOOKUP($A2193,[1]البيانات!$B$2:$L$350,11,FALSE),\"\")","v":""}]
[null,{"$f":"IFERROR(VLOOKUP($A2194,[1]البيانات!$B$2:$L$350,11,FALSE),\"\")","v":""}]
[null,{"$f":"IFERROR(VLOOKUP($A2195,[1]البيانات!$B$2:$L$350,11,FALSE),\"\")","v":""}]
[null,{"$f":"IFERROR(VLOOKUP($A2196,[1]البيانات!$B$2:$L$350,11,FALSE),\"\")","v":""}]
[null,{"$f":"IFERROR(VLOOKUP($A2197,[1]البيانات!$B$2:$L$350,11,FALSE),\"\")","v":""}]
[null,{"$f":"IFERROR(VLOOKUP($A2198,[1]البيانات!$B$2:$L$350,11,FALSE),\"\")","v":""}]
[null,{"$f":"IFERROR(VLOOKUP($A2199,[1]البيانات!$B$2:$L$350,11,FALSE),\"\")","v":""}]
[null,{"$f":"IFERROR(VLOOKUP($A2200,[1]البيانات!$B$2:$L$350,11,FALSE),\"\")","v":""}]
[null,{"$f":"IFERROR(VLOOKUP($A2201,[1]البيانات!$B$2:$L$350,11,FALSE),\"\")","v":""}]
[null,{"$f":"IFERROR(VLOOKUP($A2202,[1]البيانات!$B$2:$L$350,11,FALSE),\"\")","v":""}]
[null,{"$f":"IFERROR(VLOOKUP($A2203,[1]البيانات!$B$2:$L$350,11,FALSE),\"\")","v":""}]
[null,{"$f":"IFERROR(VLOOKUP($A2204,[1]البيانات!$B$2:$L$350,11,FALSE),\"\")","v":""}]
[null,{"$f":"IFERROR(VLOOKUP($A2205,[1]البيانات!$B$2:$L$350,11,FALSE),\"\")","v":""}]
[null,{"$f":"IFERROR(VLOOKUP($A2206,[1]البيانات!$B$2:$L$350,11,FALSE),\"\")","v":""}]
[null,{"$f":"IFERROR(VLOOKUP($A2207,[1]البيانات!$B$2:$L$350,11,FALSE),\"\")","v":""}]
[null,{"$f":"IFERROR(VLOOKUP($A2208,[1]البيانات!$B$2:$L$350,11,FALSE),\"\")","v":""}]
[null,{"$f":"IFERROR(VLOOKUP($A2209,[1]البيانات!$B$2:$L$350,11,FALSE),\"\")","v":""}]
[null,{"$f":"IFERROR(VLOOKUP($A2210,[1]البيانات!$B$2:$L$350,11,FALSE),\"\")","v":""}]
[null,{"$f":"IFERROR(VLOOKUP($A2211,[1]البيانات!$B$2:$L$350,11,FALSE),\"\")","v":""}]
[null,{"$f":"IFERROR(VLOOKUP($A2212,[1]البيانات!$B$2:$L$350,11,FALSE),\"\")","v":""}]
[null,{"$f":"IFERROR(VLOOKUP($A2213,[1]البيانات!$B$2:$L$350,11,FALSE),\"\")","v":""}]
[null,{"$f":"IFERROR(VLOOKUP($A2214,[1]البيانات!$B$2:$L$350,11,FALSE),\"\")","v":""}]
[null,{"$f":"IFERROR(VLOOKUP($A2215,[1]البيانات!$B$2:$L$350,11,FALSE),\"\")","v":""}]
[null,{"$f":"IFERROR(VLOOKUP($A2216,[1]البيانات!$B$2:$L$350,11,FALSE),\"\")","v":""}]
[null,{"$f":"IFERROR(VLOOKUP($A2217,[1]البيانات!$B$2:$L$350,11,FALSE),\"\")","v":""}]
[null,{"$f":"IFERROR(VLOOKUP($A2218,[1]البيانات!$B$2:$L$350,11,FALSE),\"\")","v":""}]
[null,{"$f":"IFERROR(VLOOKUP($A2219,[1]البيانات!$B$2:$L$350,11,FALSE),\"\")","v":""}]
[null,{"$f":"IFERROR(VLOOKUP($A2220,[1]البيانات!$B$2:$L$350,11,FALSE),\"\")","v":""}]
[null,{"$f":"IFERROR(VLOOKUP($A2221,[1]البيانات!$B$2:$L$350,11,FALSE),\"\")","v":""}]
[null,{"$f":"IFERROR(VLOOKUP($A2222,[1]البيانات!$B$2:$L$350,11,FALSE),\"\")","v":""}]
[null,{"$f":"IFERROR(VLOOKUP($A2223,[1]البيانات!$B$2:$L$350,11,FALSE),\"\")","v":""}]
[null,{"$f":"IFERROR(VLOOKUP($A2224,[1]البيانات!$B$2:$L$350,11,FALSE),\"\")","v":""}]
[null,{"$f":"IFERROR(VLOOKUP($A2225,[1]البيانات!$B$2:$L$350,11,FALSE),\"\")","v":""}]
[null,{"$f":"IFERROR(VLOOKUP($A2226,[1]البيانات!$B$2:$L$350,11,FALSE),\"\")","v":""}]
[null,{"$f":"IFERROR(VLOOKUP($A2227,[1]البيانات!$B$2:$L$350,11,FALSE),\"\")","v":""}]
[null,{"$f":"IFERROR(VLOOKUP($A2228,[1]البيانات!$B$2:$L$350,11,FALSE),\"\")","v":""}]
[null,{"$f":"IFERROR(VLOOKUP($A2229,[1]البيانات!$B$2:$L$350,11,FALSE),\"\")","v":""}]
[null,{"$f":"IFERROR(VLOOKUP($A2230,[1]البيانات!$B$2:$L$350,11,FALSE),\"\")","v":""}]
[null,{"$f":"IFERROR(VLOOKUP($A2231,[1]البيانات!$B$2:$L$350,11,FALSE),\"\")","v":""}]
[null,{"$f":"IFERROR(VLOOKUP($A2232,[1]البيانات!$B$2:$L$350,11,FALSE),\"\")","v":""}]
[null,{"$f":"IFERROR(VLOOKUP($A2233,[1]البيانات!$B$2:$L$350,11,FALSE),\"\")","v":""}]
[null,{"$f":"IFERROR(VLOOKUP($A2234,[1]البيانات!$B$2:$L$350,11,FALSE),\"\")","v":""}]
[null,{"$f":"IFERROR(VLOOKUP($A2235,[1]البيانات!$B$2:$L$350,11,FALSE),\"\")","v":""}]
[null,{"$f":"IFERROR(VLOOKUP($A2236,[1]البيانات!$B$2:$L$350,11,FALSE),\"\")","v":""}]
[null,{"$f":"IFERROR(VLOOKUP($A2237,[1]البيانات!$B$2:$L$350,11,FALSE),\"\")","v":""}]
[null,{"$f":"IFERROR(VLOOKUP($A2238,[1]البيانات!$B$2:$L$350,11,FALSE),\"\")","v":""}]
[null,{"$f":"IFERROR(VLOOKUP($A2239,[1]البيانات!$B$2:$L$350,11,FALSE),\"\")","v":""}]
[null,{"$f":"IFERROR(VLOOKUP($A2240,[1]البيانات!$B$2:$L$350,11,FALSE),\"\")","v":""}]
[null,{"$f":"IFERROR(VLOOKUP($A2241,[1]البيانات!$B$2:$L$350,11,FALSE),\"\")","v":""}]
[null,{"$f":"IFERROR(VLOOKUP($A2242,[1]البيانات!$B$2:$L$350,11,FALSE),\"\")","v":""}]
[null,{"$f":"IFERROR(VLOOKUP($A2243,[1]البيانات!$B$2:$L$350,11,FALSE),\"\")","v":""}]
[null,{"$f":"IFERROR(VLOOKUP($A2244,[1]البيانات!$B$2:$L$350,11,FALSE),\"\")","v":""}]
[null,{"$f":"IFERROR(VLOOKUP($A2245,[1]البيانات!$B$2:$L$350,11,FALSE),\"\")","v":""}]
[null,{"$f":"IFERROR(VLOOKUP($A2246,[1]البيانات!$B$2:$L$350,11,FALSE),\"\")","v":""}]
[null,{"$f":"IFERROR(VLOOKUP($A2247,[1]البيانات!$B$2:$L$350,11,FALSE),\"\")","v":""}]
[null,{"$f":"IFERROR(VLOOKUP($A2248,[1]البيانات!$B$2:$L$350,11,FALSE),\"\")","v":""}]
[null,{"$f":"IFERROR(VLOOKUP($A2249,[1]البيانات!$B$2:$L$350,11,FALSE),\"\")","v":""}]
[null,{"$f":"IFERROR(VLOOKUP($A2250,[1]البيانات!$B$2:$L$350,11,FALSE),\"\")","v":""}]
[null,{"$f":"IFERROR(VLOOKUP($A2251,[1]البيانات!$B$2:$L$350,11,FALSE),\"\")","v":""}]
[null,{"$f":"IFERROR(VLOOKUP($A2252,[1]البيانات!$B$2:$L$350,11,FALSE),\"\")","v":""}]
[null,{"$f":"IFERROR(VLOOKUP($A2253,[1]البيانات!$B$2:$L$350,11,FALSE),\"\")","v":""}]
[null,{"$f":"IFERROR(VLOOKUP($A2254,[1]البيانات!$B$2:$L$350,11,FALSE),\"\")","v":""}]
[null,{"$f":"IFERROR(VLOOKUP($A2255,[1]البيانات!$B$2:$L$350,11,FALSE),\"\")","v":""}]
[null,{"$f":"IFERROR(VLOOKUP($A2256,[1]البيانات!$B$2:$L$350,11,FALSE),\"\")","v":""}]
[null,{"$f":"IFERROR(VLOOKUP($A2257,[1]البيانات!$B$2:$L$350,11,FALSE),\"\")","v":""}]
[null,{"$f":"IFERROR(VLOOKUP($A2258,[1]البيانات!$B$2:$L$350,11,FALSE),\"\")","v":""}]
[null,{"$f":"IFERROR(VLOOKUP($A2259,[1]البيانات!$B$2:$L$350,11,FALSE),\"\")","v":""}]
[null,{"$f":"IFERROR(VLOOKUP($A2260,[1]البيانات!$B$2:$L$350,11,FALSE),\"\")","v":""}]
[null,{"$f":"IFERROR(VLOOKUP($A2261,[1]البيانات!$B$2:$L$350,11,FALSE),\"\")","v":""}]
[null,{"$f":"IFERROR(VLOOKUP($A2262,[1]البيانات!$B$2:$L$350,11,FALSE),\"\")","v":""}]
[null,{"$f":"IFERROR(VLOOKUP($A2263,[1]البيانات!$B$2:$L$350,11,FALSE),\"\")","v":""}]
[null,{"$f":"IFERROR(VLOOKUP($A2264,[1]البيانات!$B$2:$L$350,11,FALSE),\"\")","v":""}]
[null,{"$f":"IFERROR(VLOOKUP($A2265,[1]البيانات!$B$2:$L$350,11,FALSE),\"\")","v":""}]
[null,{"$f":"IFERROR(VLOOKUP($A2266,[1]البيانات!$B$2:$L$350,11,FALSE),\"\")","v":""}]
[null,{"$f":"IFERROR(VLOOKUP($A2267,[1]البيانات!$B$2:$L$350,11,FALSE),\"\")","v":""}]
[null,{"$f":"IFERROR(VLOOKUP($A2268,[1]البيانات!$B$2:$L$350,11,FALSE),\"\")","v":""}]
[null,{"$f":"IFERROR(VLOOKUP($A2269,[1]البيانات!$B$2:$L$350,11,FALSE),\"\")","v":""}]
[null,{"$f":"IFERROR(VLOOKUP($A2270,[1]البيانات!$B$2:$L$350,11,FALSE),\"\")","v":""}]
[null,{"$f":"IFERROR(VLOOKUP($A2271,[1]البيانات!$B$2:$L$350,11,FALSE),\"\")","v":""}]
[null,{"$f":"IFERROR(VLOOKUP($A2272,[1]البيانات!$B$2:$L$350,11,FALSE),\"\")","v":""}]
[null,{"$f":"IFERROR(VLOOKUP($A2273,[1]البيانات!$B$2:$L$350,11,FALSE),\"\")","v":""}]
[null,{"$f":"IFERROR(VLOOKUP($A2274,[1]البيانات!$B$2:$L$350,11,FALSE),\"\")","v":""}]
[null,{"$f":"IFERROR(VLOOKUP($A2275,[1]البيانات!$B$2:$L$350,11,FALSE),\"\")","v":""}]
[null,{"$f":"IFERROR(VLOOKUP($A2276,[1]البيانات!$B$2:$L$350,11,FALSE),\"\")","v":""}]
[null,{"$f":"IFERROR(VLOOKUP($A2277,[1]البيانات!$B$2:$L$350,11,FALSE),\"\")","v":""}]
[null,{"$f":"IFERROR(VLOOKUP($A2278,[1]البيانات!$B$2:$L$350,11,FALSE),\"\")","v":""}]
[null,{"$f":"IFERROR(VLOOKUP($A2279,[1]البيانات!$B$2:$L$350,11,FALSE),\"\")","v":""}]
[null,{"$f":"IFERROR(VLOOKUP($A2280,[1]البيانات!$B$2:$L$350,11,FALSE),\"\")","v":""}]
[null,{"$f":"IFERROR(VLOOKUP($A2281,[1]البيانات!$B$2:$L$350,11,FALSE),\"\")","v":""}]
[null,{"$f":"IFERROR(VLOOKUP($A2282,[1]البيانات!$B$2:$L$350,11,FALSE),\"\")","v":""}]
[null,{"$f":"IFERROR(VLOOKUP($A2283,[1]البيانات!$B$2:$L$350,11,FALSE),\"\")","v":""}]
[null,{"$f":"IFERROR(VLOOKUP($A2284,[1]البيانات!$B$2:$L$350,11,FALSE),\"\")","v":""}]
[null,{"$f":"IFERROR(VLOOKUP($A2285,[1]البيانات!$B$2:$L$350,11,FALSE),\"\")","v":""}]
[null,{"$f":"IFERROR(VLOOKUP($A2286,[1]البيانات!$B$2:$L$350,11,FALSE),\"\")","v":""}]
[null,{"$f":"IFERROR(VLOOKUP($A2287,[1]البيانات!$B$2:$L$350,11,FALSE),\"\")","v":""}]
[null,{"$f":"IFERROR(VLOOKUP($A2288,[1]البيانات!$B$2:$L$350,11,FALSE),\"\")","v":""}]
[null,{"$f":"IFERROR(VLOOKUP($A2289,[1]البيانات!$B$2:$L$350,11,FALSE),\"\")","v":""}]
[null,{"$f":"IFERROR(VLOOKUP($A2290,[1]البيانات!$B$2:$L$350,11,FALSE),\"\")","v":""}]
[null,{"$f":"IFERROR(VLOOKUP($A2291,[1]البيانات!$B$2:$L$350,11,FALSE),\"\")","v":""}]
[null,{"$f":"IFERROR(VLOOKUP($A2292,[1]البيانات!$B$2:$L$350,11,FALSE),\"\")","v":""}]
[null,{"$f":"IFERROR(VLOOKUP($A2293,[1]البيانات!$B$2:$L$350,11,FALSE),\"\")","v":""}]
[null,{"$f":"IFERROR(VLOOKUP($A2294,[1]البيانات!$B$2:$L$350,11,FALSE),\"\")","v":""}]
[null,{"$f":"IFERROR(VLOOKUP($A2295,[1]البيانات!$B$2:$L$350,11,FALSE),\"\")","v":""}]
[null,{"$f":"IFERROR(VLOOKUP($A2296,[1]البيانات!$B$2:$L$350,11,FALSE),\"\")","v":""}]
[null,{"$f":"IFERROR(VLOOKUP($A2297,[1]البيانات!$B$2:$L$350,11,FALSE),\"\")","v":""}]
[null,{"$f":"IFERROR(VLOOKUP($A2298,[1]البيانات!$B$2:$L$350,11,FALSE),\"\")","v":""}]
[null,{"$f":"IFERROR(VLOOKUP($A2299,[1]البيانات!$B$2:$L$350,11,FALSE),\"\")","v":""}]
[null,{"$f":"IFERROR(VLOOKUP($A2300,[1]البيانات!$B$2:$L$350,11,FALSE),\"\")","v":""}]
[null,{"$f":"IFERROR(VLOOKUP($A2301,[1]البيانات!$B$2:$L$350,11,FALSE),\"\")","v":""}]
[null,{"$f":"IFERROR(VLOOKUP($A2302,[1]البيانات!$B$2:$L$350,11,FALSE),\"\")","v":""}]
[null,{"$f":"IFERROR(VLOOKUP($A2303,[1]البيانات!$B$2:$L$350,11,FALSE),\"\")","v":""}]
[null,{"$f":"IFERROR(VLOOKUP($A2304,[1]البيانات!$B$2:$L$350,11,FALSE),\"\")","v":""}]
[null,{"$f":"IFERROR(VLOOKUP($A2305,[1]البيانات!$B$2:$L$350,11,FALSE),\"\")","v":""}]
[null,{"$f":"IFERROR(VLOOKUP($A2306,[1]البيانات!$B$2:$L$350,11,FALSE),\"\")","v":""}]
[null,{"$f":"IFERROR(VLOOKUP($A2307,[1]البيانات!$B$2:$L$350,11,FALSE),\"\")","v":""}]
[null,{"$f":"IFERROR(VLOOKUP($A2308,[1]البيانات!$B$2:$L$350,11,FALSE),\"\")","v":""}]
[null,{"$f":"IFERROR(VLOOKUP($A2309,[1]البيانات!$B$2:$L$350,11,FALSE),\"\")","v":""}]
[null,{"$f":"IFERROR(VLOOKUP($A2310,[1]البيانات!$B$2:$L$350,11,FALSE),\"\")","v":""}]
[null,{"$f":"IFERROR(VLOOKUP($A2311,[1]البيانات!$B$2:$L$350,11,FALSE),\"\")","v":""}]

{"sheet":"البيانات","index":1,"n_rows":443,"n_cols":21,"rows_kept":443,"cut":false,"hidden":false,"merged":[]}
["ت","قياس الكابينة","MDFنوع الخشب"," شريط PVC","ظهر( طبقة الفايبر)","مسند بلاستك","سعر MDF","سعر PVC","سعر الظهر","سعر المسند","مواد تشغيل ","الأجمالي",null,null,"السعر ","المبلغ ",null,null,null,null,{"$f":"INDEX(MyFindData,SMALL(IF(ISNUMBER(SEARCH(FindText,MyFindData)),ROW(MyFindData),\"\"),ROW())-ROW(INDEX(MyFindData,1,1))+1)","v":"AB 1*10*10"}]
[1,"AB 1*10*10",23,25.6,45,4,{"$f":"IF(C2=\"\",\"\",VLOOKUP($G$1,$O$1:$P$6,2,0)*C2)","v":170.20000000000002},{"$f":"IF(D2=\"\",\"\",VLOOKUP($H$1,$O$1:$P$6,2,0)*D2)","v":3.5840000000000005},{"$f":"IF(E2=\"\",\"\",VLOOKUP($I$1,$O$1:$P$6,2,0)*E2)","v":160.65},{"$f":"IF(F2=\"\",\"\",VLOOKUP($J$1,$O$1:$P$6,2,0)*F2)","v":0.6},null,{"$f":"SUM(G2:K2)","v":335.03400000000005},null,null,"سعر MDF",7.4,null,null,null,null,"AB 1*10*11"]
[2,"AB 1*10*11","1.99",13.92,0.56999999999999995,7,{"$f":"IF(C3=\"\",\"\",VLOOKUP($G$1,$O$1:$P$6,2,0)*C3)","v":14.726000000000001},{"$f":"IF(D3=\"\",\"\",VLOOKUP($H$1,$O$1:$P$6,2,0)*D3)","v":1.9488000000000001},{"$f":"IF(E3=\"\",\"\",VLOOKUP($I$1,$O$1:$P$6,2,0)*E3)","v":2.0348999999999999},{"$f":"IF(F3=\"\",\"\",VLOOKUP($J$1,$O$1:$P$6,2,0)*F3)","v":1.05},null,{"$f":"SUM(G3:K3)","v":19.759700000000002},null,null,"سعر PVC",0.14000000000000001,null,null,null,null,"AB 1*10*12"]
[3,"AB 1*10*12","1.85",13.12,0.5,6,13.690000000000001,1.8368,1.7849999999999999,0.89999999999999991,null,18.2118,null,null,"سعر الظهر",3.57,null,null,null,null,"AB 1*10*13"]
[4,"AB 1*10*13","1.85",13.12,0.5,4,13.690000000000001,1.8368,1.7849999999999999,0.6,null,17.911800000000003,null,null,"سعر المسند",0.15,null,null,null,null,"AB 1*10*14"]
[5,"AB 1*10*14","1.72",12.32,0.44,4,12.728,1.7248000000000001,1.5708,0.6,null,16.6236,null,null,"مواد تشغيل ",0,null,null,null,null,"AB 1*10*15"]
[6,"AB 1*10*15","1.59",11.52,0.37,7,{"$f":"IF(C7=\"\",\"\",VLOOKUP($G$1,$O$1:$P$6,2,0)*C7)","v":11.766000000000002},1.6128,1.3209,1.05,null,15.749700000000002,null,null,null,null,null,null,null,null,"AB 1*10*16"]
[7,"AB 1*10*16","1.45",10.72,0.31,4,{"$f":"IF(C8=\"\",\"\",VLOOKUP($G$1,$O$1:$P$6,2,0)*C8)","v":10.73},1.5008000000000001,1.1067,0.6,null,13.9375,null,null,null,null,null,null,null,null,{"$error":"#NUM!"}]
[null,null,null,null,null,null,null,null,null,null,null,null,null,null,null,null,null,null,null,null,{"$error":"#NUM!"}]
[null,null,null,null,null,null,null,null,null,null,null,null,null,null,null,null,null,null,null,null,{"$error":"#NUM!"}]
[null,null,null,null,null,null,null,null,null,null,null,null,null,null,null,null,null,null,null,null,{"$error":"#NUM!"}]
[null,null,null,null,null,null,null,null,null,null,null,null,null,null,null,null,null,null,null,null,{"$error":"#NUM!"}]
[null,null,null,null,null,null,null,null,null,null,null,null,null,null,null,null,null,null,null,null,{"$error":"#NUM!"}]
[null,null,null,null,null,null,null,null,null,null,null,null,null,null,null,null,null,null,null,null,{"$error":"#NUM!"}]
[null,null,null,null,null,null,null,null,null,null,null,null,null,null,null,null,null,null,null,null,{"$error":"#NUM!"}]
[null,null,null,null,null,null,null,null,null,null,null,null,null,null,null,null,null,null,null,null,{"$error":"#NUM!"}]
[null,null,null,null,null,null,null,null,null,null,null,null,null,null,null,null,null,null,null,null,{"$error":"#NUM!"}]
[null,null,null,null,null,null,null,null,null,null,null,null,null,null,null,null,null,null,null,null,{"$error":"#NUM!"}]
[null,null,null,null,null,null,null,null,null,null,null,null,null,null,null,null,null,null,null,null,{"$error":"#NUM!"}]
[null,null,null,null,null,null,null,null,null,null,null,null,null,null,null,null,null,null,null,null,{"$error":"#NUM!"}]
[null,null,null,null,null,null,null,null,null,null,null,null,null,null,null,null,null,null,null,null,{"$error":"#NUM!"}]
[null,null,null,null,null,null,null,null,null,null,null,null,null,null,null,null,null,null,null,null,{"$error":"#NUM!"}]
[null,null,null,null,null,null,null,null,null,null,null,null,null,null,null,null,null,null,null,null,{"$error":"#NUM!"}]
[null,null,null,null,null,null,null,null,null,null,null,null,null,null,null,null,null,null,null,null,{"$error":"#NUM!"}]
[null,null,null,null,null,null,null,null,null,null,null,null,null,null,null,null,null,null,null,null,{"$error":"#NUM!"}]
[null,null,null,null,null,null,null,null,null,null,null,null,null,null,null,null,null,null,null,null,{"$error":"#NUM!"}]
[null,null,null,null,null,null,null,null,null,null,null,null,null,null,null,null,null,null,null,null,{"$error":"#NUM!"}]
[null,null,null,null,null,null,null,null,null,null,null,null,null,null,null,null,null,null,null,null,{"$error":"#NUM!"}]
[null,null,null,null,null,null,null,null,null,null,null,null,null,null,null,null,null,null,null,null,{"$error":"#NUM!"}]
[null,null,null,null,null,null,null,null,null,null,null,null,null,null,null,null,null,null,null,null,{"$error":"#NUM!"}]
[null,null,null,null,null,null,null,null,null,null,null,null,null,null,null,null,null,null,null,null,{"$error":"#NUM!"}]
[null,null,null,null,null,null,null,null,null,null,null,null,null,null,null,null,null,null,null,null,{"$error":"#NUM!"}]
[null,null,null,null,null,null,null,null,null,null,null,null,null,null,null,null,null,null,null,null,{"$error":"#NUM!"}]
[null,null,null,null,null,null,null,null,null,null,null,null,null,null,null,null,null,null,null,null,{"$error":"#NUM!"}]
[null,null,null,null,null,null,null,null,null,null,null,null,null,null,null,null,null,null,null,null,{"$error":"#NUM!"}]
[null,null,null,null,null,null,null,null,null,null,null,null,null,null,null,null,null,null,null,null,{"$error":"#NUM!"}]
[null,null,null,null,null,null,null,null,null,null,null,null,null,null,null,null,null,null,null,null,{"$error":"#NUM!"}]
[null,null,null,null,null,null,null,null,null,null,null,null,null,null,null,null,null,null,null,null,{"$error":"#NUM!"}]
[null,null,null,null,null,null,null,null,null,null,null,null,null,null,null,null,null,null,null,null,{"$error":"#NUM!"}]
[null,null,null,null,null,null,null,null,null,null,null,null,null,null,null,null,null,null,null,null,{"$error":"#NUM!"}]
[null,null,null,null,null,null,null,null,null,null,null,null,null,null,null,null,null,null,null,null,{"$error":"#NUM!"}]
[null,null,null,null,null,null,null,null,null,null,null,null,null,null,null,null,null,null,null,null,{"$error":"#NUM!"}]
[null,null,null,null,null,null,null,null,null,null,null,null,null,null,null,null,null,null,null,null,{"$error":"#NUM!"}]
[null,null,null,null,null,null,null,null,null,null,null,null,null,null,null,null,null,null,null,null,{"$error":"#NUM!"}]
[null,null,null,null,null,null,null,null,null,null,null,null,null,null,null,null,null,null,null,null,{"$error":"#NUM!"}]
[null,null,null,null,null,null,null,null,null,null,null,null,null,null,null,null,null,null,null,null,{"$error":"#NUM!"}]
[null,null,null,null,null,null,null,null,null,null,null,null,null,null,null,null,null,null,null,null,{"$error":"#NUM!"}]
[null,null,null,null,null,null,null,null,null,null,null,null,null,null,null,null,null,null,null,null,{"$error":"#NUM!"}]
[null,null,null,null,null,null,null,null,null,null,null,null,null,null,null,null,null,null,null,null,{"$error":"#NUM!"}]
[null,null,null,null,null,null,null,null,null,null,null,null,null,null,null,null,null,null,null,null,{"$error":"#NUM!"}]
[null,null,null,null,null,null,null,null,null,null,null,null,null,null,null,null,null,null,null,null,{"$error":"#NUM!"}]
[null,null,null,null,null,null,null,null,null,null,null,null,null,null,null,null,null,null,null,null,{"$error":"#NUM!"}]
[null,null,null,null,null,null,null,null,null,null,null,null,null,null,null,null,null,null,null,null,{"$error":"#NUM!"}]
[null,null,null,null,null,null,null,null,null,null,null,null,null,null,null,null,null,null,null,null,{"$error":"#NUM!"}]
[null,null,null,null,null,null,null,null,null,null,null,null,null,null,null,null,null,null,null,null,{"$error":"#NUM!"}]
[null,null,null,null,null,null,null,null,null,null,null,null,null,null,null,null,null,null,null,null,{"$error":"#NUM!"}]
[null,null,null,null,null,null,null,null,null,null,null,null,null,null,null,null,null,null,null,null,{"$error":"#NUM!"}]
[null,null,null,null,null,null,null,null,null,null,null,null,null,null,null,null,null,null,null,null,{"$error":"#NUM!"}]
[null,null,null,null,null,null,null,null,null,null,null,null,null,null,null,null,null,null,null,null,{"$error":"#NUM!"}]
[null,null,null,null,null,null,null,null,null,null,null,null,null,null,null,null,null,null,null,null,{"$error":"#NUM!"}]
[null,null,null,null,null,null,null,null,null,null,null,null,null,null,null,null,null,null,null,null,{"$error":"#NUM!"}]
[null,null,null,null,null,null,null,null,null,null,null,null,null,null,null,null,null,null,null,null,{"$error":"#NUM!"}]
[null,null,null,null,null,null,null,null,null,null,null,null,null,null,null,null,null,null,null,null,{"$error":"#NUM!"}]
[null,null,null,null,null,null,null,null,null,null,null,null,null,null,null,null,null,null,null,null,{"$error":"#NUM!"}]
[null,null,null,null,null,null,null,null,null,null,null,null,null,null,null,null,null,null,null,null,{"$error":"#NUM!"}]
[null,null,null,null,null,null,null,null,null,null,null,null,null,null,null,null,null,null,null,null,{"$error":"#NUM!"}]
[null,null,null,null,null,null,null,null,null,null,null,null,null,null,null,null,null,null,null,null,{"$error":"#NUM!"}]
[null,null,null,null,null,null,null,null,null,null,null,null,null,null,null,null,null,null,null,null,{"$error":"#NUM!"}]
[null,null,null,null,null,null,null,null,null,null,null,null,null,null,null,null,null,null,null,null,{"$error":"#NUM!"}]
[null,null,null,null,null,null,null,null,null,null,null,null,null,null,null,null,null,null,null,null,{"$error":"#NUM!"}]
[null,null,null,null,null,null,null,null,null,null,null,null,null,null,null,null,null,null,null,null,{"$error":"#NUM!"}]
[null,null,null,null,null,null,null,null,null,null,null,null,null,null,null,null,null,null,null,null,{"$error":"#NUM!"}]
[null,null,null,null,null,null,null,null,null,null,null,null,null,null,null,null,null,null,null,null,{"$error":"#NUM!"}]
[null,null,null,null,null,null,null,null,null,null,null,null,null,null,null,null,null,null,null,null,{"$error":"#NUM!"}]
[null,null,null,null,null,null,null,null,null,null,null,null,null,null,null,null,null,null,null,null,{"$error":"#NUM!"}]
[null,null,null,null,null,null,null,null,null,null,null,null,null,null,null,null,null,null,null,null,{"$error":"#NUM!"}]
[null,null,null,null,null,null,null,null,null,null,null,null,null,null,null,null,null,null,null,null,{"$error":"#NUM!"}]
[null,null,null,null,null,null,null,null,null,null,null,null,null,null,null,null,null,null,null,null,{"$error":"#NUM!"}]
[null,null,null,null,null,null,null,null,null,null,null,null,null,null,null,null,null,null,null,null,{"$error":"#NUM!"}]
[null,null,null,null,null,null,null,null,null,null,null,null,null,null,null,null,null,null,null,null,{"$error":"#NUM!"}]
[null,null,null,null,null,null,null,null,null,null,null,null,null,null,null,null,null,null,null,null,{"$error":"#NUM!"}]
[null,null,null,null,null,null,null,null,null,null,null,null,null,null,null,null,null,null,null,null,{"$error":"#NUM!"}]
[null,null,null,null,null,null,null,null,null,null,null,null,null,null,null,null,null,null,null,null,{"$error":"#NUM!"}]
[null,null,null,null,null,null,null,null,null,null,null,null,null,null,null,null,null,null,null,null,{"$error":"#NUM!"}]
[null,null,null,null,null,null,null,null,null,null,null,null,null,null,null,null,null,null,null,null,{"$error":"#NUM!"}]
[null,null,null,null,null,null,null,null,null,null,null,null,null,null,null,null,null,null,null,null,{"$error":"#NUM!"}]
[null,null,null,null,null,null,null,null,null,null,null,null,null,null,null,null,null,null,null,null,{"$error":"#NUM!"}]
[null,null,null,null,null,null,null,null,null,null,null,null,null,null,null,null,null,null,null,null,{"$error":"#NUM!"}]
[null,null,null,null,null,null,null,null,null,null,null,null,null,null,null,null,null,null,null,null,{"$error":"#NUM!"}]
[null,null,null,null,null,null,null,null,null,null,null,null,null,null,null,null,null,null,null,null,{"$error":"#NUM!"}]
[null,null,null,null,null,null,null,null,null,null,null,null,null,null,null,null,null,null,null,null,{"$error":"#NUM!"}]
[null,null,null,null,null,null,null,null,null,null,null,null,null,null,null,null,null,null,null,null,{"$error":"#NUM!"}]
[null,null,null,null,null,null,null,null,null,null,null,null,null,null,null,null,null,null,null,null,{"$error":"#NUM!"}]
[null,null,null,null,null,null,null,null,null,null,null,null,null,null,null,null,null,null,null,null,{"$error":"#NUM!"}]
[null,null,null,null,null,null,null,null,null,null,null,null,null,null,null,null,null,null,null,null,{"$error":"#NUM!"}]
[null,null,null,null,null,null,null,null,null,null,null,null,null,null,null,null,null,null,null,null,{"$error":"#NUM!"}]
[null,null,null,null,null,null,null,null,null,null,null,null,null,null,null,null,null,null,null,null,{"$error":"#NUM!"}]
[null,null,null,null,null,null,null,null,null,null,null,null,null,null,null,null,null,null,null,null,{"$error":"#NUM!"}]
[null,null,null,null,null,null,null,null,null,null,null,null,null,null,null,null,null,null,null,null,{"$error":"#NUM!"}]
[null,null,null,null,null,null,null,null,null,null,null,null,null,null,null,null,null,null,null,null,{"$error":"#NUM!"}]
[null,null,null,null,null,null,null,null,null,null,null,null,null,null,null,null,null,null,null,null,{"$error":"#NUM!"}]
[null,null,null,null,null,null,null,null,null,null,null,null,null,null,null,null,null,null,null,null,{"$error":"#NUM!"}]
[null,null,null,null,null,null,null,null,null,null,null,null,null,null,null,null,null,null,null,null,{"$error":"#NUM!"}]
[null,null,null,null,null,null,null,null,null,null,null,null,null,null,null,null,null,null,null,null,{"$error":"#NUM!"}]
[null,null,null,null,null,null,null,null,null,null,null,null,null,null,null,null,null,null,null,null,{"$error":"#NUM!"}]
[null,null,null,null,null,null,null,null,null,null,null,null,null,null,null,null,null,null,null,null,{"$error":"#NUM!"}]
[null,null,null,null,null,null,null,null,null,null,null,null,null,null,null,null,null,null,null,null,{"$error":"#NUM!"}]
[null,null,null,null,null,null,null,null,null,null,null,null,null,null,null,null,null,null,null,null,{"$error":"#NUM!"}]
[null,null,null,null,null,null,null,null,null,null,null,null,null,null,null,null,null,null,null,null,{"$error":"#NUM!"}]
[null,null,null,null,null,null,null,null,null,null,null,null,null,null,null,null,null,null,null,null,{"$error":"#NUM!"}]
[null,null,null,null,null,null,null,null,null,null,null,null,null,null,null,null,null,null,null,null,{"$error":"#NUM!"}]
[null,null,null,null,null,null,null,null,null,null,null,null,null,null,null,null,null,null,null,null,{"$error":"#NUM!"}]
[null,null,null,null,null,null,null,null,null,null,null,null,null,null,null,null,null,null,null,null,{"$error":"#NUM!"}]
[null,null,null,null,null,null,null,null,null,null,null,null,null,null,null,null,null,null,null,null,{"$error":"#NUM!"}]
[null,null,null,null,null,null,null,null,null,null,null,null,null,null,null,null,null,null,null,null,{"$error":"#NUM!"}]
[null,null,null,null,null,null,null,null,null,null,null,null,null,null,null,null,null,null,null,null,{"$error":"#NUM!"}]
[null,null,null,null,null,null,null,null,null,null,null,null,null,null,null,null,null,null,null,null,{"$error":"#NUM!"}]
[null,null,null,null,null,null,null,null,null,null,null,null,null,null,null,null,null,null,null,null,{"$error":"#NUM!"}]
[null,null,null,null,null,null,null,null,null,null,null,null,null,null,null,null,null,null,null,null,{"$error":"#NUM!"}]
[null,null,null,null,null,null,null,null,null,null,null,null,null,null,null,null,null,null,null,null,{"$error":"#NUM!"}]
[null,null,null,null,null,null,null,null,null,null,null,null,null,null,null,null,null,null,null,null,{"$error":"#NUM!"}]
[null,null,null,null,null,null,null,null,null,null,null,null,null,null,null,null,null,null,null,null,{"$error":"#NUM!"}]
[null,null,null,null,null,null,null,null,null,null,null,null,null,null,null,null,null,null,null,null,{"$error":"#NUM!"}]
[null,null,null,null,null,null,null,null,null,null,null,null,null,null,null,null,null,null,null,null,{"$error":"#NUM!"}]
[null,null,null,null,null,null,null,null,null,null,null,null,null,null,null,null,null,null,null,null,{"$error":"#NUM!"}]
[null,null,null,null,null,null,null,null,null,null,null,null,null,null,null,null,null,null,null,null,{"$error":"#NUM!"}]
[null,null,null,null,null,null,null,null,null,null,null,null,null,null,null,null,null,null,null,null,{"$error":"#NUM!"}]
[null,null,null,null,null,null,null,null,null,null,null,null,null,null,null,null,null,null,null,null,{"$error":"#NUM!"}]
[null,null,null,null,null,null,null,null,null,null,null,null,null,null,null,null,null,null,null,null,{"$error":"#NUM!"}]
[null,null,null,null,null,null,null,null,null,null,null,null,null,null,null,null,null,null,null,null,{"$error":"#NUM!"}]
[null,null,null,null,null,null,null,null,null,null,null,null,null,null,null,null,null,null,null,null,{"$error":"#NUM!"}]
[null,null,null,null,null,null,null,null,null,null,null,null,null,null,null,null,null,null,null,null,{"$error":"#NUM!"}]
[null,null,null,null,null,null,null,null,null,null,null,null,null,null,null,null,null,null,null,null,{"$error":"#NUM!"}]
[null,null,null,null,null,null,null,null,null,null,null,null,null,null,null,null,null,null,null,null,{"$error":"#NUM!"}]
[null,null,null,null,null,null,null,null,null,null,null,null,null,null,null,null,null,null,null,null,{"$error":"#NUM!"}]
[null,null,null,null,null,null,null,null,null,null,null,null,null,null,null,null,null,null,null,null,{"$error":"#NUM!"}]
[null,null,null,null,null,null,null,null,null,null,null,null,null,null,null,null,null,null,null,null,{"$error":"#NUM!"}]
[null,null,null,null,null,null,null,null,null,null,null,null,null,null,null,null,null,null,null,null,{"$error":"#NUM!"}]
[null,null,null,null,null,null,null,null,null,null,null,null,null,null,null,null,null,null,null,null,{"$error":"#NUM!"}]
[null,null,null,null,null,null,null,null,null,null,null,null,null,null,null,null,null,null,null,null,{"$error":"#NUM!"}]
[null,null,null,null,null,null,null,null,null,null,null,null,null,null,null,null,null,null,null,null,{"$error":"#NUM!"}]
[null,null,null,null,null,null,null,null,null,null,null,null,null,null,null,null,null,null,null,null,{"$error":"#NUM!"}]
[null,null,null,null,null,null,null,null,null,null,null,null,null,null,null,null,null,null,null,null,{"$error":"#NUM!"}]
[null,null,null,null,null,null,null,null,null,null,null,null,null,null,null,null,null,null,null,null,{"$error":"#NUM!"}]
[null,null,null,null,null,null,null,null,null,null,null,null,null,null,null,null,null,null,null,null,{"$error":"#NUM!"}]
[null,null,null,null,null,null,null,null,null,null,null,null,null,null,null,null,null,null,null,null,{"$error":"#NUM!"}]
[null,null,null,null,null,null,null,null,null,null,null,null,null,null,null,null,null,null,null,null,{"$error":"#NUM!"}]
[null,null,null,null,null,null,null,null,null,null,null,null,null,null,null,null,null,null,null,null,{"$error":"#NUM!"}]
[null,null,null,null,null,null,null,null,null,null,null,null,null,null,null,null,null,null,null,null,{"$error":"#NUM!"}]
[null,null,null,null,null,null,null,null,null,null,null,null,null,null,null,null,null,null,null,null,{"$error":"#NUM!"}]
[null,null,null,null,null,null,null,null,null,null,null,null,null,null,null,null,null,null,null,null,{"$error":"#NUM!"}]
[null,null,null,null,null,null,null,null,null,null,null,null,null,null,null,null,null,null,null,null,{"$error":"#NUM!"}]
[null,null,null,null,null,null,null,null,null,null,null,null,null,null,null,null,null,null,null,null,{"$error":"#NUM!"}]
[null,null,null,null,null,null,null,null,null,null,null,null,null,null,null,null,null,null,null,null,{"$error":"#NUM!"}]
[null,null,null,null,null,null,null,null,null,null,null,null,null,null,null,null,null,null,null,null,{"$error":"#NUM!"}]
[null,null,null,null,null,null,null,null,null,null,null,null,null,null,null,null,null,null,null,null,{"$error":"#NUM!"}]
[null,null,null,null,null,null,null,null,null,null,null,null,null,null,null,null,null,null,null,null,{"$error":"#NUM!"}]
[null,null,null,null,null,null,null,null,null,null,null,null,null,null,null,null,null,null,null,null,{"$error":"#NUM!"}]
[null,null,null,null,null,null,null,null,null,null,null,null,null,null,null,null,null,null,null,null,{"$error":"#NUM!"}]
[null,null,null,null,null,null,null,null,null,null,null,null,null,null,null,null,null,null,null,null,{"$error":"#NUM!"}]
[null,null,null,null,null,null,null,null,null,null,null,null,null,null,null,null,null,null,null,null,{"$error":"#NUM!"}]
[null,null,null,null,null,null,null,null,null,null,null,null,null,null,null,null,null,null,null,null,{"$error":"#NUM!"}]
[null,null,null,null,null,null,null,null,null,null,null,null,null,null,null,null,null,null,null,null,{"$error":"#NUM!"}]
[null,null,null,null,null,null,null,null,null,null,null,null,null,null,null,null,null,null,null,null,{"$error":"#NUM!"}]
[null,null,null,null,null,null,null,null,null,null,null,null,null,null,null,null,null,null,null,null,{"$error":"#NUM!"}]
[null,null,null,null,null,null,null,null,null,null,null,null,null,null,null,null,null,null,null,null,{"$error":"#NUM!"}]
[null,null,null,null,null,null,null,null,null,null,null,null,null,null,null,null,null,null,null,null,{"$error":"#NUM!"}]
[null,null,null,null,null,null,null,null,null,null,null,null,null,null,null,null,null,null,null,null,{"$error":"#NUM!"}]
[null,null,null,null,null,null,null,null,null,null,null,null,null,null,null,null,null,null,null,null,{"$error":"#NUM!"}]
[null,null,null,null,null,null,null,null,null,null,null,null,null,null,null,null,null,null,null,null,{"$error":"#NUM!"}]
[null,null,null,null,null,null,null,null,null,null,null,null,null,null,null,null,null,null,null,null,{"$error":"#NUM!"}]
[null,null,null,null,null,null,null,null,null,null,null,null,null,null,null,null,null,null,null,null,{"$error":"#NUM!"}]
[null,null,null,null,null,null,null,null,null,null,null,null,null,null,null,null,null,null,null,null,{"$error":"#NUM!"}]
[null,null,null,null,null,null,null,null,null,null,null,null,null,null,null,null,null,null,null,null,{"$error":"#NUM!"}]
[null,null,null,null,null,null,null,null,null,null,null,null,null,null,null,null,null,null,null,null,{"$error":"#NUM!"}]
[null,null,null,null,null,null,null,null,null,null,null,null,null,null,null,null,null,null,null,null,{"$error":"#NUM!"}]
[null,null,null,null,null,null,null,null,null,null,null,null,null,null,null,null,null,null,null,null,{"$error":"#NUM!"}]
[null,null,null,null,null,null,null,null,null,null,null,null,null,null,null,null,null,null,null,null,{"$error":"#NUM!"}]
[null,null,null,null,null,null,null,null,null,null,null,null,null,null,null,null,null,null,null,null,{"$error":"#NUM!"}]
[null,null,null,null,null,null,null,null,null,null,null,null,null,null,null,null,null,null,null,null,{"$error":"#NUM!"}]
[null,null,null,null,null,null,null,null,null,null,null,null,null,null,null,null,null,null,null,null,{"$error":"#NUM!"}]
[null,null,null,null,null,null,null,null,null,null,null,null,null,null,null,null,null,null,null,null,{"$error":"#NUM!"}]
[null,null,null,null,null,null,null,null,null,null,null,null,null,null,null,null,null,null,null,null,{"$error":"#NUM!"}]
[null,null,null,null,null,null,null,null,null,null,null,null,null,null,null,null,null,null,null,null,{"$error":"#NUM!"}]
[null,null,null,null,null,null,null,null,null,null,null,null,null,null,null,null,null,null,null,null,{"$error":"#NUM!"}]
[null,null,null,null,null,null,null,null,null,null,null,null,null,null,null,null,null,null,null,null,{"$error":"#NUM!"}]
[null,null,null,null,null,null,null,null,null,null,null,null,null,null,null,null,null,null,null,null,{"$error":"#NUM!"}]
[null,null,null,null,null,null,null,null,null,null,null,null,null,null,null,null,null,null,null,null,{"$error":"#NUM!"}]
[null,null,null,null,null,null,null,null,null,null,null,null,null,null,null,null,null,null,null,null,{"$error":"#NUM!"}]
[null,null,null,null,null,null,null,null,null,null,null,null,null,null,null,null,null,null,null,null,{"$error":"#NUM!"}]
[null,null,null,null,null,null,null,null,null,null,null,null,null,null,null,null,null,null,null,null,{"$error":"#NUM!"}]
[null,null,null,null,null,null,null,null,null,null,null,null,null,null,null,null,null,null,null,null,{"$error":"#NUM!"}]
[null,null,null,null,null,null,null,null,null,null,null,null,null,null,null,null,null,null,null,null,{"$error":"#NUM!"}]
[null,null,null,null,null,null,null,null,null,null,null,null,null,null,null,null,null,null,null,null,{"$error":"#NUM!"}]
[null,null,null,null,null,null,null,null,null,null,null,null,null,null,null,null,null,null,null,null,{"$error":"#NUM!"}]
[null,null,null,null,null,null,null,null,null,null,null,null,null,null,null,null,null,null,null,null,{"$error":"#NUM!"}]
[null,null,null,null,null,null,null,null,null,null,null,null,null,null,null,null,null,null,null,null,{"$error":"#NUM!"}]
[null,null,null,null,null,null,null,null,null,null,null,null,null,null,null,null,null,null,null,null,{"$error":"#NUM!"}]
[null,null,null,null,null,null,null,null,null,null,null,null,null,null,null,null,null,null,null,null,{"$error":"#NUM!"}]
[null,null,null,null,null,null,null,null,null,null,null,null,null,null,null,null,null,null,null,null,{"$error":"#NUM!"}]
[null,null,null,null,null,null,null,null,null,null,null,null,null,null,null,null,null,null,null,null,{"$f":"INDEX(MyFindData,SMALL(IF(ISNUMBER(SEARCH(FindText,MyFindData)),ROW(MyFindData),\"\"),ROW())-ROW(INDEX(MyFindData,1,1))+1)","v":{"$error":"#NUM!"}}]
[null,null,null,null,null,null,null,null,null,null,null,null,null,null,null,null,null,null,null,null,{"$f":"INDEX(MyFindData,SMALL(IF(ISNUMBER(SEARCH(FindText,MyFindData)),ROW(MyFindData),\"\"),ROW())-ROW(INDEX(MyFindData,1,1))+1)","v":{"$error":"#NUM!"}}]
[null,null,null,null,null,null,null,null,null,null,null,null,null,null,null,null,null,null,null,null,{"$f":"INDEX(MyFindData,SMALL(IF(ISNUMBER(SEARCH(FindText,MyFindData)),ROW(MyFindData),\"\"),ROW())-ROW(INDEX(MyFindData,1,1))+1)","v":{"$error":"#NUM!"}}]
[null,null,null,null,null,null,null,null,null,null,null,null,null,null,null,null,null,null,null,null,{"$f":"INDEX(MyFindData,SMALL(IF(ISNUMBER(SEARCH(FindText,MyFindData)),ROW(MyFindData),\"\"),ROW())-ROW(INDEX(MyFindData,1,1))+1)","v":{"$error":"#NUM!"}}]
[null,null,null,null,null,null,null,null,null,null,null,null,null,null,null,null,null,null,null,null,{"$f":"INDEX(MyFindData,SMALL(IF(ISNUMBER(SEARCH(FindText,MyFindData)),ROW(MyFindData),\"\"),ROW())-ROW(INDEX(MyFindData,1,1))+1)","v":{"$error":"#NUM!"}}]
[null,null,null,null,null,null,null,null,null,null,null,null,null,null,null,null,null,null,null,null,{"$f":"INDEX(MyFindData,SMALL(IF(ISNUMBER(SEARCH(FindText,MyFindData)),ROW(MyFindData),\"\"),ROW())-ROW(INDEX(MyFindData,1,1))+1)","v":{"$error":"#NUM!"}}]
[null,null,null,null,null,null,null,null,null,null,null,null,null,null,null,null,null,null,null,null,{"$f":"INDEX(MyFindData,SMALL(IF(ISNUMBER(SEARCH(FindText,MyFindData)),ROW(MyFindData),\"\"),ROW())-ROW(INDEX(MyFindData,1,1))+1)","v":{"$error":"#NUM!"}}]
[null,null,null,null,null,null,null,null,null,null,null,null,null,null,null,null,null,null,null,null,{"$f":"INDEX(MyFindData,SMALL(IF(ISNUMBER(SEARCH(FindText,MyFindData)),ROW(MyFindData),\"\"),ROW())-ROW(INDEX(MyFindData,1,1))+1)","v":{"$error":"#NUM!"}}]
[null,null,null,null,null,null,null,null,null,null,null,null,null,null,null,null,null,null,null,null,{"$f":"INDEX(MyFindData,SMALL(IF(ISNUMBER(SEARCH(FindText,MyFindData)),ROW(MyFindData),\"\"),ROW())-ROW(INDEX(MyFindData,1,1))+1)","v":{"$error":"#NUM!"}}]
[null,null,null,null,null,null,null,null,null,null,null,null,null,null,null,null,null,null,null,null,{"$f":"INDEX(MyFindData,SMALL(IF(ISNUMBER(SEARCH(FindText,MyFindData)),ROW(MyFindData),\"\"),ROW())-ROW(INDEX(MyFindData,1,1))+1)","v":{"$error":"#NUM!"}}]
[null,null,null,null,null,null,null,null,null,null,null,null,null,null,null,null,null,null,null,null,{"$f":"INDEX(MyFindData,SMALL(IF(ISNUMBER(SEARCH(FindText,MyFindData)),ROW(MyFindData),\"\"),ROW())-ROW(INDEX(MyFindData,1,1))+1)","v":{"$error":"#NUM!"}}]
[null,null,null,null,null,null,null,null,null,null,null,null,null,null,null,null,null,null,null,null,{"$f":"INDEX(MyFindData,SMALL(IF(ISNUMBER(SEARCH(FindText,MyFindData)),ROW(MyFindData),\"\"),ROW())-ROW(INDEX(MyFindData,1,1))+1)","v":{"$error":"#NUM!"}}]
[null,null,null,null,null,null,null,null,null,null,null,null,null,null,null,null,null,null,null,null,{"$f":"INDEX(MyFindData,SMALL(IF(ISNUMBER(SEARCH(FindText,MyFindData)),ROW(MyFindData),\"\"),ROW())-ROW(INDEX(MyFindData,1,1))+1)","v":{"$error":"#NUM!"}}]
[null,null,null,null,null,null,null,null,null,null,null,null,null,null,null,null,null,null,null,null,{"$f":"INDEX(MyFindData,SMALL(IF(ISNUMBER(SEARCH(FindText,MyFindData)),ROW(MyFindData),\"\"),ROW())-ROW(INDEX(MyFindData,1,1))+1)","v":{"$error":"#NUM!"}}]
[null,null,null,null,null,null,null,null,null,null,null,null,null,null,null,null,null,null,null,null,{"$f":"INDEX(MyFindData,SMALL(IF(ISNUMBER(SEARCH(FindText,MyFindData)),ROW(MyFindData),\"\"),ROW())-ROW(INDEX(MyFindData,1,1))+1)","v":{"$error":"#NUM!"}}]
[null,null,null,null,null,null,null,null,null,null,null,null,null,null,null,null,null,null,null,null,{"$f":"INDEX(MyFindData,SMALL(IF(ISNUMBER(SEARCH(FindText,MyFindData)),ROW(MyFindData),\"\"),ROW())-ROW(INDEX(MyFindData,1,1))+1)","v":{"$error":"#NUM!"}}]
[null,null,null,null,null,null,null,null,null,null,null,null,null,null,null,null,null,null,null,null,{"$f":"INDEX(MyFindData,SMALL(IF(ISNUMBER(SEARCH(FindText,MyFindData)),ROW(MyFindData),\"\"),ROW())-ROW(INDEX(MyFindData,1,1))+1)","v":{"$error":"#NUM!"}}]
[null,null,null,null,null,null,null,null,null,null,null,null,null,null,null,null,null,null,null,null,{"$f":"INDEX(MyFindData,SMALL(IF(ISNUMBER(SEARCH(FindText,MyFindData)),ROW(MyFindData),\"\"),ROW())-ROW(INDEX(MyFindData,1,1))+1)","v":{"$error":"#NUM!"}}]
[null,null,null,null,null,null,null,null,null,null,null,null,null,null,null,null,null,null,null,null,{"$f":"INDEX(MyFindData,SMALL(IF(ISNUMBER(SEARCH(FindText,MyFindData)),ROW(MyFindData),\"\"),ROW())-ROW(INDEX(MyFindData,1,1))+1)","v":{"$error":"#NUM!"}}]
[null,null,null,null,null,null,null,null,null,null,null,null,null,null,null,null,null,null,null,null,{"$f":"INDEX(MyFindData,SMALL(IF(ISNUMBER(SEARCH(FindText,MyFindData)),ROW(MyFindData),\"\"),ROW())-ROW(INDEX(MyFindData,1,1))+1)","v":{"$error":"#NUM!"}}]
[null,null,null,null,null,null,null,null,null,null,null,null,null,null,null,null,null,null,null,null,{"$f":"INDEX(MyFindData,SMALL(IF(ISNUMBER(SEARCH(FindText,MyFindData)),ROW(MyFindData),\"\"),ROW())-ROW(INDEX(MyFindData,1,1))+1)","v":{"$error":"#NUM!"}}]
[null,null,null,null,null,null,null,null,null,null,null,null,null,null,null,null,null,null,null,null,{"$f":"INDEX(MyFindData,SMALL(IF(ISNUMBER(SEARCH(FindText,MyFindData)),ROW(MyFindData),\"\"),ROW())-ROW(INDEX(MyFindData,1,1))+1)","v":{"$error":"#NUM!"}}]
[null,null,null,null,null,null,null,null,null,null,null,null,null,null,null,null,null,null,null,null,{"$f":"INDEX(MyFindData,SMALL(IF(ISNUMBER(SEARCH(FindText,MyFindData)),ROW(MyFindData),\"\"),ROW())-ROW(INDEX(MyFindData,1,1))+1)","v":{"$error":"#NUM!"}}]
[null,null,null,null,null,null,null,null,null,null,null,null,null,null,null,null,null,null,null,null,{"$f":"INDEX(MyFindData,SMALL(IF(ISNUMBER(SEARCH(FindText,MyFindData)),ROW(MyFindData),\"\"),ROW())-ROW(INDEX(MyFindData,1,1))+1)","v":{"$error":"#NUM!"}}]
[null,null,null,null,null,null,null,null,null,null,null,null,null,null,null,null,null,null,null,null,{"$f":"INDEX(MyFindData,SMALL(IF(ISNUMBER(SEARCH(FindText,MyFindData)),ROW(MyFindData),\"\"),ROW())-ROW(INDEX(MyFindData,1,1))+1)","v":{"$error":"#NUM!"}}]
[null,null,null,null,null,null,null,null,null,null,null,null,null,null,null,null,null,null,null,null,{"$f":"INDEX(MyFindData,SMALL(IF(ISNUMBER(SEARCH(FindText,MyFindData)),ROW(MyFindData),\"\"),ROW())-ROW(INDEX(MyFindData,1,1))+1)","v":{"$error":"#NUM!"}}]
[null,null,null,null,null,null,null,null,null,null,null,null,null,null,null,null,null,null,null,null,{"$f":"INDEX(MyFindData,SMALL(IF(ISNUMBER(SEARCH(FindText,MyFindData)),ROW(MyFindData),\"\"),ROW())-ROW(INDEX(MyFindData,1,1))+1)","v":{"$error":"#NUM!"}}]
[null,null,null,null,null,null,null,null,null,null,null,null,null,null,null,null,null,null,null,null,{"$f":"INDEX(MyFindData,SMALL(IF(ISNUMBER(SEARCH(FindText,MyFindData)),ROW(MyFindData),\"\"),ROW())-ROW(INDEX(MyFindData,1,1))+1)","v":{"$error":"#NUM!"}}]
[null,null,null,null,null,null,null,null,null,null,null,null,null,null,null,null,null,null,null,null,{"$f":"INDEX(MyFindData,SMALL(IF(ISNUMBER(SEARCH(FindText,MyFindData)),ROW(MyFindData),\"\"),ROW())-ROW(INDEX(MyFindData,1,1))+1)","v":{"$error":"#NUM!"}}]
[null,null,null,null,null,null,null,null,null,null,null,null,null,null,null,null,null,null,null,null,{"$f":"INDEX(MyFindData,SMALL(IF(ISNUMBER(SEARCH(FindText,MyFindData)),ROW(MyFindData),\"\"),ROW())-ROW(INDEX(MyFindData,1,1))+1)","v":{"$error":"#NUM!"}}]
[null,null,null,null,null,null,null,null,null,null,null,null,null,null,null,null,null,null,null,null,{"$f":"INDEX(MyFindData,SMALL(IF(ISNUMBER(SEARCH(FindText,MyFindData)),ROW(MyFindData),\"\"),ROW())-ROW(INDEX(MyFindData,1,1))+1)","v":{"$error":"#NUM!"}}]
[null,null,null,null,null,null,null,null,null,null,null,null,null,null,null,null,null,null,null,null,{"$f":"INDEX(MyFindData,SMALL(IF(ISNUMBER(SEARCH(FindText,MyFindData)),ROW(MyFindData),\"\"),ROW())-ROW(INDEX(MyFindData,1,1))+1)","v":{"$error":"#NUM!"}}]
[null,null,null,null,null,null,null,null,null,null,null,null,null,null,null,null,null,null,null,null,{"$f":"INDEX(MyFindData,SMALL(IF(ISNUMBER(SEARCH(FindText,MyFindData)),ROW(MyFindData),\"\"),ROW())-ROW(INDEX(MyFindData,1,1))+1)","v":{"$error":"#NUM!"}}]
[null,null,null,null,null,null,null,null,null,null,null,null,null,null,null,null,null,null,null,null,{"$f":"INDEX(MyFindData,SMALL(IF(ISNUMBER(SEARCH(FindText,MyFindData)),ROW(MyFindData),\"\"),ROW())-ROW(INDEX(MyFindData,1,1))+1)","v":{"$error":"#NUM!"}}]
[null,null,null,null,null,null,null,null,null,null,null,null,null,null,null,null,null,null,null,null,{"$f":"INDEX(MyFindData,SMALL(IF(ISNUMBER(SEARCH(FindText,MyFindData)),ROW(MyFindData),\"\"),ROW())-ROW(INDEX(MyFindData,1,1))+1)","v":{"$error":"#NUM!"}}]
[null,null,null,null,null,null,null,null,null,null,null,null,null,null,null,null,null,null,null,null,{"$f":"INDEX(MyFindData,SMALL(IF(ISNUMBER(SEARCH(FindText,MyFindData)),ROW(MyFindData),\"\"),ROW())-ROW(INDEX(MyFindData,1,1))+1)","v":{"$error":"#NUM!"}}]
[null,null,null,null,null,null,null,null,null,null,null,null,null,null,null,null,null,null,null,null,{"$f":"INDEX(MyFindData,SMALL(IF(ISNUMBER(SEARCH(FindText,MyFindData)),ROW(MyFindData),\"\"),ROW())-ROW(INDEX(MyFindData,1,1))+1)","v":{"$error":"#NUM!"}}]
[null,null,null,null,null,null,null,null,null,null,null,null,null,null,null,null,null,null,null,null,{"$f":"INDEX(MyFindData,SMALL(IF(ISNUMBER(SEARCH(FindText,MyFindData)),ROW(MyFindData),\"\"),ROW())-ROW(INDEX(MyFindData,1,1))+1)","v":{"$error":"#NUM!"}}]
[null,null,null,null,null,null,null,null,null,null,null,null,null,null,null,null,null,null,null,null,{"$f":"INDEX(MyFindData,SMALL(IF(ISNUMBER(SEARCH(FindText,MyFindData)),ROW(MyFindData),\"\"),ROW())-ROW(INDEX(MyFindData,1,1))+1)","v":{"$error":"#NUM!"}}]
[null,null,null,null,null,null,null,null,null,null,null,null,null,null,null,null,null,null,null,null,{"$f":"INDEX(MyFindData,SMALL(IF(ISNUMBER(SEARCH(FindText,MyFindData)),ROW(MyFindData),\"\"),ROW())-ROW(INDEX(MyFindData,1,1))+1)","v":{"$error":"#NUM!"}}]
[null,null,null,null,null,null,null,null,null,null,null,null,null,null,null,null,null,null,null,null,{"$f":"INDEX(MyFindData,SMALL(IF(ISNUMBER(SEARCH(FindText,MyFindData)),ROW(MyFindData),\"\"),ROW())-ROW(INDEX(MyFindData,1,1))+1)","v":{"$error":"#NUM!"}}]
[null,null,null,null,null,null,null,null,null,null,null,null,null,null,null,null,null,null,null,null,{"$f":"INDEX(MyFindData,SMALL(IF(ISNUMBER(SEARCH(FindText,MyFindData)),ROW(MyFindData),\"\"),ROW())-ROW(INDEX(MyFindData,1,1))+1)","v":{"$error":"#NUM!"}}]
[null,null,null,null,null,null,null,null,null,null,null,null,null,null,null,null,null,null,null,null,{"$f":"INDEX(MyFindData,SMALL(IF(ISNUMBER(SEARCH(FindText,MyFindData)),ROW(MyFindData),\"\"),ROW())-ROW(INDEX(MyFindData,1,1))+1)","v":{"$error":"#NUM!"}}]
[null,null,null,null,null,null,null,null,null,null,null,null,null,null,null,null,null,null,null,null,{"$f":"INDEX(MyFindData,SMALL(IF(ISNUMBER(SEARCH(FindText,MyFindData)),ROW(MyFindData),\"\"),ROW())-ROW(INDEX(MyFindData,1,1))+1)","v":{"$error":"#NUM!"}}]
[null,null,null,null,null,null,null,null,null,null,null,null,null,null,null,null,null,null,null,null,{"$f":"INDEX(MyFindData,SMALL(IF(ISNUMBER(SEARCH(FindText,MyFindData)),ROW(MyFindData),\"\"),ROW())-ROW(INDEX(MyFindData,1,1))+1)","v":{"$error":"#NUM!"}}]
[null,null,null,null,null,null,null,null,null,null,null,null,null,null,null,null,null,null,null,null,{"$f":"INDEX(MyFindData,SMALL(IF(ISNUMBER(SEARCH(FindText,MyFindData)),ROW(MyFindData),\"\"),ROW())-ROW(INDEX(MyFindData,1,1))+1)","v":{"$error":"#NUM!"}}]
[null,null,null,null,null,null,null,null,null,null,null,null,null,null,null,null,null,null,null,null,{"$f":"INDEX(MyFindData,SMALL(IF(ISNUMBER(SEARCH(FindText,MyFindData)),ROW(MyFindData),\"\"),ROW())-ROW(INDEX(MyFindData,1,1))+1)","v":{"$error":"#NUM!"}}]
[null,null,null,null,null,null,null,null,null,null,null,null,null,null,null,null,null,null,null,null,{"$f":"INDEX(MyFindData,SMALL(IF(ISNUMBER(SEARCH(FindText,MyFindData)),ROW(MyFindData),\"\"),ROW())-ROW(INDEX(MyFindData,1,1))+1)","v":{"$error":"#NUM!"}}]
[null,null,null,null,null,null,null,null,null,null,null,null,null,null,null,null,null,null,null,null,{"$f":"INDEX(MyFindData,SMALL(IF(ISNUMBER(SEARCH(FindText,MyFindData)),ROW(MyFindData),\"\"),ROW())-ROW(INDEX(MyFindData,1,1))+1)","v":{"$error":"#NUM!"}}]
[null,null,null,null,null,null,null,null,null,null,null,null,null,null,null,null,null,null,null,null,{"$f":"INDEX(MyFindData,SMALL(IF(ISNUMBER(SEARCH(FindText,MyFindData)),ROW(MyFindData),\"\"),ROW())-ROW(INDEX(MyFindData,1,1))+1)","v":{"$error":"#NUM!"}}]
[null,null,null,null,null,null,null,null,null,null,null,null,null,null,null,null,null,null,null,null,{"$f":"INDEX(MyFindData,SMALL(IF(ISNUMBER(SEARCH(FindText,MyFindData)),ROW(MyFindData),\"\"),ROW())-ROW(INDEX(MyFindData,1,1))+1)","v":{"$error":"#NUM!"}}]
[null,null,null,null,null,null,null,null,null,null,null,null,null,null,null,null,null,null,null,null,{"$f":"INDEX(MyFindData,SMALL(IF(ISNUMBER(SEARCH(FindText,MyFindData)),ROW(MyFindData),\"\"),ROW())-ROW(INDEX(MyFindData,1,1))+1)","v":{"$error":"#NUM!"}}]
[null,null,null,null,null,null,null,null,null,null,null,null,null,null,null,null,null,null,null,null,{"$f":"INDEX(MyFindData,SMALL(IF(ISNUMBER(SEARCH(FindText,MyFindData)),ROW(MyFindData),\"\"),ROW())-ROW(INDEX(MyFindData,1,1))+1)","v":{"$error":"#NUM!"}}]
[null,null,null,null,null,null,null,null,null,null,null,null,null,null,null,null,null,null,null,null,{"$f":"INDEX(MyFindData,SMALL(IF(ISNUMBER(SEARCH(FindText,MyFindData)),ROW(MyFindData),\"\"),ROW())-ROW(INDEX(MyFindData,1,1))+1)","v":{"$error":"#NUM!"}}]
[null,null,null,null,null,null,null,null,null,null,null,null,null,null,null,null,null,null,null,null,{"$f":"INDEX(MyFindData,SMALL(IF(ISNUMBER(SEARCH(FindText,MyFindData)),ROW(MyFindData),\"\"),ROW())-ROW(INDEX(MyFindData,1,1))+1)","v":{"$error":"#NUM!"}}]
[null,null,null,null,null,null,null,null,null,null,null,null,null,null,null,null,null,null,null,null,{"$f":"INDEX(MyFindData,SMALL(IF(ISNUMBER(SEARCH(FindText,MyFindData)),ROW(MyFindData),\"\"),ROW())-ROW(INDEX(MyFindData,1,1))+1)","v":{"$error":"#NUM!"}}]
[null,null,null,null,null,null,null,null,null,null,null,null,null,null,null,null,null,null,null,null,{"$f":"INDEX(MyFindData,SMALL(IF(ISNUMBER(SEARCH(FindText,MyFindData)),ROW(MyFindData),\"\"),ROW())-ROW(INDEX(MyFindData,1,1))+1)","v":{"$error":"#NUM!"}}]
[null,null,null,null,null,null,null,null,null,null,null,null,null,null,null,null,null,null,null,null,{"$f":"INDEX(MyFindData,SMALL(IF(ISNUMBER(SEARCH(FindText,MyFindData)),ROW(MyFindData),\"\"),ROW())-ROW(INDEX(MyFindData,1,1))+1)","v":{"$error":"#NUM!"}}]
[null,null,null,null,null,null,null,null,null,null,null,null,null,null,null,null,null,null,null,null,{"$f":"INDEX(MyFindData,SMALL(IF(ISNUMBER(SEARCH(FindText,MyFindData)),ROW(MyFindData),\"\"),ROW())-ROW(INDEX(MyFindData,1,1))+1)","v":{"$error":"#NUM!"}}]
[null,null,null,null,null,null,null,null,null,null,null,null,null,null,null,null,null,null,null,null,{"$f":"INDEX(MyFindData,SMALL(IF(ISNUMBER(SEARCH(FindText,MyFindData)),ROW(MyFindData),\"\"),ROW())-ROW(INDEX(MyFindData,1,1))+1)","v":{"$error":"#NUM!"}}]
[null,null,null,null,null,null,null,null,null,null,null,null,null,null,null,null,null,null,null,null,{"$f":"INDEX(MyFindData,SMALL(IF(ISNUMBER(SEARCH(FindText,MyFindData)),ROW(MyFindData),\"\"),ROW())-ROW(INDEX(MyFindData,1,1))+1)","v":{"$error":"#NUM!"}}]
[null,null,null,null,null,null,null,null,null,null,null,null,null,null,null,null,null,null,null,null,{"$f":"INDEX(MyFindData,SMALL(IF(ISNUMBER(SEARCH(FindText,MyFindData)),ROW(MyFindData),\"\"),ROW())-ROW(INDEX(MyFindData,1,1))+1)","v":{"$error":"#NUM!"}}]
[null,null,null,null,null,null,null,null,null,null,null,null,null,null,null,null,null,null,null,null,{"$f":"INDEX(MyFindData,SMALL(IF(ISNUMBER(SEARCH(FindText,MyFindData)),ROW(MyFindData),\"\"),ROW())-ROW(INDEX(MyFindData,1,1))+1)","v":{"$error":"#NUM!"}}]
[null,null,null,null,null,null,null,null,null,null,null,null,null,null,null,null,null,null,null,null,{"$f":"INDEX(MyFindData,SMALL(IF(ISNUMBER(SEARCH(FindText,MyFindData)),ROW(MyFindData),\"\"),ROW())-ROW(INDEX(MyFindData,1,1))+1)","v":{"$error":"#NUM!"}}]
[null,null,null,null,null,null,null,null,null,null,null,null,null,null,null,null,null,null,null,null,{"$f":"INDEX(MyFindData,SMALL(IF(ISNUMBER(SEARCH(FindText,MyFindData)),ROW(MyFindData),\"\"),ROW())-ROW(INDEX(MyFindData,1,1))+1)","v":{"$error":"#NUM!"}}]
[null,null,null,null,null,null,null,null,null,null,null,null,null,null,null,null,null,null,null,null,{"$f":"INDEX(MyFindData,SMALL(IF(ISNUMBER(SEARCH(FindText,MyFindData)),ROW(MyFindData),\"\"),ROW())-ROW(INDEX(MyFindData,1,1))+1)","v":{"$error":"#NUM!"}}]
[null,null,null,null,null,null,null,null,null,null,null,null,null,null,null,null,null,null,null,null,{"$f":"INDEX(MyFindData,SMALL(IF(ISNUMBER(SEARCH(FindText,MyFindData)),ROW(MyFindData),\"\"),ROW())-ROW(INDEX(MyFindData,1,1))+1)","v":{"$error":"#NUM!"}}]
[null,null,null,null,null,null,null,null,null,null,null,null,null,null,null,null,null,null,null,null,{"$f":"INDEX(MyFindData,SMALL(IF(ISNUMBER(SEARCH(FindText,MyFindData)),ROW(MyFindData),\"\"),ROW())-ROW(INDEX(MyFindData,1,1))+1)","v":{"$error":"#NUM!"}}]
[null,null,null,null,null,null,null,null,null,null,null,null,null,null,null,null,null,null,null,null,{"$f":"INDEX(MyFindData,SMALL(IF(ISNUMBER(SEARCH(FindText,MyFindData)),ROW(MyFindData),\"\"),ROW())-ROW(INDEX(MyFindData,1,1))+1)","v":{"$error":"#NUM!"}}]
[null,null,null,null,null,null,null,null,null,null,null,null,null,null,null,null,null,null,null,null,{"$f":"INDEX(MyFindData,SMALL(IF(ISNUMBER(SEARCH(FindText,MyFindData)),ROW(MyFindData),\"\"),ROW())-ROW(INDEX(MyFindData,1,1))+1)","v":{"$error":"#NUM!"}}]
[null,null,null,null,null,null,null,null,null,null,null,null,null,null,null,null,null,null,null,null,{"$f":"INDEX(MyFindData,SMALL(IF(ISNUMBER(SEARCH(FindText,MyFindData)),ROW(MyFindData),\"\"),ROW())-ROW(INDEX(MyFindData,1,1))+1)","v":{"$error":"#NUM!"}}]
[null,null,null,null,null,null,null,null,null,null,null,null,null,null,null,null,null,null,null,null,{"$f":"INDEX(MyFindData,SMALL(IF(ISNUMBER(SEARCH(FindText,MyFindData)),ROW(MyFindData),\"\"),ROW())-ROW(INDEX(MyFindData,1,1))+1)","v":{"$error":"#NUM!"}}]
[null,null,null,null,null,null,null,null,null,null,null,null,null,null,null,null,null,null,null,null,{"$f":"INDEX(MyFindData,SMALL(IF(ISNUMBER(SEARCH(FindText,MyFindData)),ROW(MyFindData),\"\"),ROW())-ROW(INDEX(MyFindData,1,1))+1)","v":{"$error":"#NUM!"}}]
[null,null,null,null,null,null,null,null,null,null,null,null,null,null,null,null,null,null,null,null,{"$f":"INDEX(MyFindData,SMALL(IF(ISNUMBER(SEARCH(FindText,MyFindData)),ROW(MyFindData),\"\"),ROW())-ROW(INDEX(MyFindData,1,1))+1)","v":{"$error":"#NUM!"}}]
[null,null,null,null,null,null,null,null,null,null,null,null,null,null,null,null,null,null,null,null,{"$f":"INDEX(MyFindData,SMALL(IF(ISNUMBER(SEARCH(FindText,MyFindData)),ROW(MyFindData),\"\"),ROW())-ROW(INDEX(MyFindData,1,1))+1)","v":{"$error":"#NUM!"}}]
[null,null,null,null,null,null,null,null,null,null,null,null,null,null,null,null,null,null,null,null,{"$f":"INDEX(MyFindData,SMALL(IF(ISNUMBER(SEARCH(FindText,MyFindData)),ROW(MyFindData),\"\"),ROW())-ROW(INDEX(MyFindData,1,1))+1)","v":{"$error":"#NUM!"}}]
[null,null,null,null,null,null,null,null,null,null,null,null,null,null,null,null,null,null,null,null,{"$f":"INDEX(MyFindData,SMALL(IF(ISNUMBER(SEARCH(FindText,MyFindData)),ROW(MyFindData),\"\"),ROW())-ROW(INDEX(MyFindData,1,1))+1)","v":{"$error":"#NUM!"}}]
[null,null,null,null,null,null,null,null,null,null,null,null,null,null,null,null,null,null,null,null,{"$f":"INDEX(MyFindData,SMALL(IF(ISNUMBER(SEARCH(FindText,MyFindData)),ROW(MyFindData),\"\"),ROW())-ROW(INDEX(MyFindData,1,1))+1)","v":{"$error":"#NUM!"}}]
[null,null,null,null,null,null,null,null,null,null,null,null,null,null,null,null,null,null,null,null,{"$f":"INDEX(MyFindData,SMALL(IF(ISNUMBER(SEARCH(FindText,MyFindData)),ROW(MyFindData),\"\"),ROW())-ROW(INDEX(MyFindData,1,1))+1)","v":{"$error":"#NUM!"}}]
[null,null,null,null,null,null,null,null,null,null,null,null,null,null,null,null,null,null,null,null,{"$f":"INDEX(MyFindData,SMALL(IF(ISNUMBER(SEARCH(FindText,MyFindData)),ROW(MyFindData),\"\"),ROW())-ROW(INDEX(MyFindData,1,1))+1)","v":{"$error":"#NUM!"}}]
[null,null,null,null,null,null,null,null,null,null,null,null,null,null,null,null,null,null,null,null,{"$f":"INDEX(MyFindData,SMALL(IF(ISNUMBER(SEARCH(FindText,MyFindData)),ROW(MyFindData),\"\"),ROW())-ROW(INDEX(MyFindData,1,1))+1)","v":{"$error":"#NUM!"}}]
[null,null,null,null,null,null,null,null,null,null,null,null,null,null,null,null,null,null,null,null,{"$f":"INDEX(MyFindData,SMALL(IF(ISNUMBER(SEARCH(FindText,MyFindData)),ROW(MyFindData),\"\"),ROW())-ROW(INDEX(MyFindData,1,1))+1)","v":{"$error":"#NUM!"}}]
[null,null,null,null,null,null,null,null,null,null,null,null,null,null,null,null,null,null,null,null,{"$f":"INDEX(MyFindData,SMALL(IF(ISNUMBER(SEARCH(FindText,MyFindData)),ROW(MyFindData),\"\"),ROW())-ROW(INDEX(MyFindData,1,1))+1)","v":{"$error":"#NUM!"}}]
[null,null,null,null,null,null,null,null,null,null,null,null,null,null,null,null,null,null,null,null,{"$f":"INDEX(MyFindData,SMALL(IF(ISNUMBER(SEARCH(FindText,MyFindData)),ROW(MyFindData),\"\"),ROW())-ROW(INDEX(MyFindData,1,1))+1)","v":{"$error":"#NUM!"}}]
[null,null,null,null,null,null,null,null,null,null,null,null,null,null,null,null,null,null,null,null,{"$f":"INDEX(MyFindData,SMALL(IF(ISNUMBER(SEARCH(FindText,MyFindData)),ROW(MyFindData),\"\"),ROW())-ROW(INDEX(MyFindData,1,1))+1)","v":{"$error":"#NUM!"}}]
[null,null,null,null,null,null,null,null,null,null,null,null,null,null,null,null,null,null,null,null,{"$f":"INDEX(MyFindData,SMALL(IF(ISNUMBER(SEARCH(FindText,MyFindData)),ROW(MyFindData),\"\"),ROW())-ROW(INDEX(MyFindData,1,1))+1)","v":{"$error":"#NUM!"}}]
[null,null,null,null,null,null,null,null,null,null,null,null,null,null,null,null,null,null,null,null,{"$f":"INDEX(MyFindData,SMALL(IF(ISNUMBER(SEARCH(FindText,MyFindData)),ROW(MyFindData),\"\"),ROW())-ROW(INDEX(MyFindData,1,1))+1)","v":{"$error":"#NUM!"}}]
[null,null,null,null,null,null,null,null,null,null,null,null,null,null,null,null,null,null,null,null,{"$f":"INDEX(MyFindData,SMALL(IF(ISNUMBER(SEARCH(FindText,MyFindData)),ROW(MyFindData),\"\"),ROW())-ROW(INDEX(MyFindData,1,1))+1)","v":{"$error":"#NUM!"}}]
[null,null,null,null,null,null,null,null,null,null,null,null,null,null,null,null,null,null,null,null,{"$f":"INDEX(MyFindData,SMALL(IF(ISNUMBER(SEARCH(FindText,MyFindData)),ROW(MyFindData),\"\"),ROW())-ROW(INDEX(MyFindData,1,1))+1)","v":{"$error":"#NUM!"}}]
[null,null,null,null,null,null,null,null,null,null,null,null,null,null,null,null,null,null,null,null,{"$f":"INDEX(MyFindData,SMALL(IF(ISNUMBER(SEARCH(FindText,MyFindData)),ROW(MyFindData),\"\"),ROW())-ROW(INDEX(MyFindData,1,1))+1)","v":{"$error":"#NUM!"}}]
[null,null,null,null,null,null,null,null,null,null,null,null,null,null,null,null,null,null,null,null,{"$f":"INDEX(MyFindData,SMALL(IF(ISNUMBER(SEARCH(FindText,MyFindData)),ROW(MyFindData),\"\"),ROW())-ROW(INDEX(MyFindData,1,1))+1)","v":{"$error":"#NUM!"}}]
[null,null,null,null,null,null,null,null,null,null,null,null,null,null,null,null,null,null,null,null,{"$f":"INDEX(MyFindData,SMALL(IF(ISNUMBER(SEARCH(FindText,MyFindData)),ROW(MyFindData),\"\"),ROW())-ROW(INDEX(MyFindData,1,1))+1)","v":{"$error":"#NUM!"}}]
[null,null,null,null,null,null,null,null,null,null,null,null,null,null,null,null,null,null,null,null,{"$f":"INDEX(MyFindData,SMALL(IF(ISNUMBER(SEARCH(FindText,MyFindData)),ROW(MyFindData),\"\"),ROW())-ROW(INDEX(MyFindData,1,1))+1)","v":{"$error":"#NUM!"}}]
[null,null,null,null,null,null,null,null,null,null,null,null,null,null,null,null,null,null,null,null,{"$f":"INDEX(MyFindData,SMALL(IF(ISNUMBER(SEARCH(FindText,MyFindData)),ROW(MyFindData),\"\"),ROW())-ROW(INDEX(MyFindData,1,1))+1)","v":{"$error":"#NUM!"}}]
[null,null,null,null,null,null,null,null,null,null,null,null,null,null,null,null,null,null,null,null,{"$f":"INDEX(MyFindData,SMALL(IF(ISNUMBER(SEARCH(FindText,MyFindData)),ROW(MyFindData),\"\"),ROW())-ROW(INDEX(MyFindData,1,1))+1)","v":{"$error":"#NUM!"}}]
[null,null,null,null,null,null,null,null,null,null,null,null,null,null,null,null,null,null,null,null,{"$f":"INDEX(MyFindData,SMALL(IF(ISNUMBER(SEARCH(FindText,MyFindData)),ROW(MyFindData),\"\"),ROW())-ROW(INDEX(MyFindData,1,1))+1)","v":{"$error":"#NUM!"}}]
[null,null,null,null,null,null,null,null,null,null,null,null,null,null,null,null,null,null,null,null,{"$f":"INDEX(MyFindData,SMALL(IF(ISNUMBER(SEARCH(FindText,MyFindData)),ROW(MyFindData),\"\"),ROW())-ROW(INDEX(MyFindData,1,1))+1)","v":{"$error":"#NUM!"}}]
[null,null,null,null,null,null,null,null,null,null,null,null,null,null,null,null,null,null,null,null,{"$f":"INDEX(MyFindData,SMALL(IF(ISNUMBER(SEARCH(FindText,MyFindData)),ROW(MyFindData),\"\"),ROW())-ROW(INDEX(MyFindData,1,1))+1)","v":{"$error":"#NUM!"}}]
[null,null,null,null,null,null,null,null,null,null,null,null,null,null,null,null,null,null,null,null,{"$f":"INDEX(MyFindData,SMALL(IF(ISNUMBER(SEARCH(FindText,MyFindData)),ROW(MyFindData),\"\"),ROW())-ROW(INDEX(MyFindData,1,1))+1)","v":{"$error":"#NUM!"}}]
[null,null,null,null,null,null,null,null,null,null,null,null,null,null,null,null,null,null,null,null,{"$f":"INDEX(MyFindData,SMALL(IF(ISNUMBER(SEARCH(FindText,MyFindData)),ROW(MyFindData),\"\"),ROW())-ROW(INDEX(MyFindData,1,1))+1)","v":{"$error":"#NUM!"}}]
[null,null,null,null,null,null,null,null,null,null,null,null,null,null,null,null,null,null,null,null,{"$f":"INDEX(MyFindData,SMALL(IF(ISNUMBER(SEARCH(FindText,MyFindData)),ROW(MyFindData),\"\"),ROW())-ROW(INDEX(MyFindData,1,1))+1)","v":{"$error":"#NUM!"}}]
[null,null,null,null,null,null,null,null,null,null,null,null,null,null,null,null,null,null,null,null,{"$f":"INDEX(MyFindData,SMALL(IF(ISNUMBER(SEARCH(FindText,MyFindData)),ROW(MyFindData),\"\"),ROW())-ROW(INDEX(MyFindData,1,1))+1)","v":{"$error":"#NUM!"}}]
[null,null,null,null,null,null,null,null,null,null,null,null,null,null,null,null,null,null,null,null,{"$f":"INDEX(MyFindData,SMALL(IF(ISNUMBER(SEARCH(FindText,MyFindData)),ROW(MyFindData),\"\"),ROW())-ROW(INDEX(MyFindData,1,1))+1)","v":{"$error":"#NUM!"}}]
[null,null,null,null,null,null,null,null,null,null,null,null,null,null,null,null,null,null,null,null,{"$f":"INDEX(MyFindData,SMALL(IF(ISNUMBER(SEARCH(FindText,MyFindData)),ROW(MyFindData),\"\"),ROW())-ROW(INDEX(MyFindData,1,1))+1)","v":{"$error":"#NUM!"}}]
[null,null,null,null,null,null,null,null,null,null,null,null,null,null,null,null,null,null,null,null,{"$f":"INDEX(MyFindData,SMALL(IF(ISNUMBER(SEARCH(FindText,MyFindData)),ROW(MyFindData),\"\"),ROW())-ROW(INDEX(MyFindData,1,1))+1)","v":{"$error":"#NUM!"}}]
[null,null,null,null,null,null,null,null,null,null,null,null,null,null,null,null,null,null,null,null,{"$f":"INDEX(MyFindData,SMALL(IF(ISNUMBER(SEARCH(FindText,MyFindData)),ROW(MyFindData),\"\"),ROW())-ROW(INDEX(MyFindData,1,1))+1)","v":{"$error":"#NUM!"}}]
[null,null,null,null,null,null,null,null,null,null,null,null,null,null,null,null,null,null,null,null,{"$f":"INDEX(MyFindData,SMALL(IF(ISNUMBER(SEARCH(FindText,MyFindData)),ROW(MyFindData),\"\"),ROW())-ROW(INDEX(MyFindData,1,1))+1)","v":{"$error":"#NUM!"}}]
[null,null,null,null,null,null,null,null,null,null,null,null,null,null,null,null,null,null,null,null,{"$f":"INDEX(MyFindData,SMALL(IF(ISNUMBER(SEARCH(FindText,MyFindData)),ROW(MyFindData),\"\"),ROW())-ROW(INDEX(MyFindData,1,1))+1)","v":{"$error":"#NUM!"}}]
[null,null,null,null,null,null,null,null,null,null,null,null,null,null,null,null,null,null,null,null,{"$f":"INDEX(MyFindData,SMALL(IF(ISNUMBER(SEARCH(FindText,MyFindData)),ROW(MyFindData),\"\"),ROW())-ROW(INDEX(MyFindData,1,1))+1)","v":{"$error":"#NUM!"}}]
[null,null,null,null,null,null,null,null,null,null,null,null,null,null,null,null,null,null,null,null,{"$f":"INDEX(MyFindData,SMALL(IF(ISNUMBER(SEARCH(FindText,MyFindData)),ROW(MyFindData),\"\"),ROW())-ROW(INDEX(MyFindData,1,1))+1)","v":{"$error":"#NUM!"}}]
[null,null,null,null,null,null,null,null,null,null,null,null,null,null,null,null,null,null,null,null,{"$f":"INDEX(MyFindData,SMALL(IF(ISNUMBER(SEARCH(FindText,MyFindData)),ROW(MyFindData),\"\"),ROW())-ROW(INDEX(MyFindData,1,1))+1)","v":{"$error":"#NUM!"}}]
[null,null,null,null,null,null,null,null,null,null,null,null,null,null,null,null,null,null,null,null,{"$f":"INDEX(MyFindData,SMALL(IF(ISNUMBER(SEARCH(FindText,MyFindData)),ROW(MyFindData),\"\"),ROW())-ROW(INDEX(MyFindData,1,1))+1)","v":{"$error":"#NUM!"}}]
[null,null,null,null,null,null,null,null,null,null,null,null,null,null,null,null,null,null,null,null,{"$f":"INDEX(MyFindData,SMALL(IF(ISNUMBER(SEARCH(FindText,MyFindData)),ROW(MyFindData),\"\"),ROW())-ROW(INDEX(MyFindData,1,1))+1)","v":{"$error":"#NUM!"}}]
[null,null,null,null,null,null,null,null,null,null,null,null,null,null,null,null,null,null,null,null,{"$f":"INDEX(MyFindData,SMALL(IF(ISNUMBER(SEARCH(FindText,MyFindData)),ROW(MyFindData),\"\"),ROW())-ROW(INDEX(MyFindData,1,1))+1)","v":{"$error":"#NUM!"}}]
[null,null,null,null,null,null,null,null,null,null,null,null,null,null,null,null,null,null,null,null,{"$f":"INDEX(MyFindData,SMALL(IF(ISNUMBER(SEARCH(FindText,MyFindData)),ROW(MyFindData),\"\"),ROW())-ROW(INDEX(MyFindData,1,1))+1)","v":{"$error":"#NUM!"}}]
[null,null,null,null,null,null,null,null,null,null,null,null,null,null,null,null,null,null,null,null,{"$f":"INDEX(MyFindData,SMALL(IF(ISNUMBER(SEARCH(FindText,MyFindData)),ROW(MyFindData),\"\"),ROW())-ROW(INDEX(MyFindData,1,1))+1)","v":{"$error":"#NUM!"}}]
[null,null,null,null,null,null,null,null,null,null,null,null,null,null,null,null,null,null,null,null,{"$f":"INDEX(MyFindData,SMALL(IF(ISNUMBER(SEARCH(FindText,MyFindData)),ROW(MyFindData),\"\"),ROW())-ROW(INDEX(MyFindData,1,1))+1)","v":{"$error":"#NUM!"}}]
[null,null,null,null,null,null,null,null,null,null,null,null,null,null,null,null,null,null,null,null,{"$f":"INDEX(MyFindData,SMALL(IF(ISNUMBER(SEARCH(FindText,MyFindData)),ROW(MyFindData),\"\"),ROW())-ROW(INDEX(MyFindData,1,1))+1)","v":{"$error":"#NUM!"}}]
[null,null,null,null,null,null,null,null,null,null,null,null,null,null,null,null,null,null,null,null,{"$f":"INDEX(MyFindData,SMALL(IF(ISNUMBER(SEARCH(FindText,MyFindData)),ROW(MyFindData),\"\"),ROW())-ROW(INDEX(MyFindData,1,1))+1)","v":{"$error":"#NUM!"}}]
[null,null,null,null,null,null,null,null,null,null,null,null,null,null,null,null,null,null,null,null,{"$f":"INDEX(MyFindData,SMALL(IF(ISNUMBER(SEARCH(FindText,MyFindData)),ROW(MyFindData),\"\"),ROW())-ROW(INDEX(MyFindData,1,1))+1)","v":{"$error":"#NUM!"}}]
[null,null,null,null,null,null,null,null,null,null,null,null,null,null,null,null,null,null,null,null,{"$f":"INDEX(MyFindData,SMALL(IF(ISNUMBER(SEARCH(FindText,MyFindData)),ROW(MyFindData),\"\"),ROW())-ROW(INDEX(MyFindData,1,1))+1)","v":{"$error":"#NUM!"}}]
[null,null,null,null,null,null,null,null,null,null,null,null,null,null,null,null,null,null,null,null,{"$f":"INDEX(MyFindData,SMALL(IF(ISNUMBER(SEARCH(FindText,MyFindData)),ROW(MyFindData),\"\"),ROW())-ROW(INDEX(MyFindData,1,1))+1)","v":{"$error":"#NUM!"}}]
[null,null,null,null,null,null,null,null,null,null,null,null,null,null,null,null,null,null,null,null,{"$f":"INDEX(MyFindData,SMALL(IF(ISNUMBER(SEARCH(FindText,MyFindData)),ROW(MyFindData),\"\"),ROW())-ROW(INDEX(MyFindData,1,1))+1)","v":{"$error":"#NUM!"}}]
[null,null,null,null,null,null,null,null,null,null,null,null,null,null,null,null,null,null,null,null,{"$f":"INDEX(MyFindData,SMALL(IF(ISNUMBER(SEARCH(FindText,MyFindData)),ROW(MyFindData),\"\"),ROW())-ROW(INDEX(MyFindData,1,1))+1)","v":{"$error":"#NUM!"}}]
[null,null,null,null,null,null,null,null,null,null,null,null,null,null,null,null,null,null,null,null,{"$f":"INDEX(MyFindData,SMALL(IF(ISNUMBER(SEARCH(FindText,MyFindData)),ROW(MyFindData),\"\"),ROW())-ROW(INDEX(MyFindData,1,1))+1)","v":{"$error":"#NUM!"}}]
[null,null,null,null,null,null,null,null,null,null,null,null,null,null,null,null,null,null,null,null,{"$f":"INDEX(MyFindData,SMALL(IF(ISNUMBER(SEARCH(FindText,MyFindData)),ROW(MyFindData),\"\"),ROW())-ROW(INDEX(MyFindData,1,1))+1)","v":{"$error":"#NUM!"}}]
[null,null,null,null,null,null,null,null,null,null,null,null,null,null,null,null,null,null,null,null,{"$f":"INDEX(MyFindData,SMALL(IF(ISNUMBER(SEARCH(FindText,MyFindData)),ROW(MyFindData),\"\"),ROW())-ROW(INDEX(MyFindData,1,1))+1)","v":{"$error":"#NUM!"}}]
[null,null,null,null,null,null,null,null,null,null,null,null,null,null,null,null,null,null,null,null,{"$f":"INDEX(MyFindData,SMALL(IF(ISNUMBER(SEARCH(FindText,MyFindData)),ROW(MyFindData),\"\"),ROW())-ROW(INDEX(MyFindData,1,1))+1)","v":{"$error":"#NUM!"}}]
[null,null,null,null,null,null,null,null,null,null,null,null,null,null,null,null,null,null,null,null,{"$f":"INDEX(MyFindData,SMALL(IF(ISNUMBER(SEARCH(FindText,MyFindData)),ROW(MyFindData),\"\"),ROW())-ROW(INDEX(MyFindData,1,1))+1)","v":{"$error":"#NUM!"}}]
[null,null,null,null,null,null,null,null,null,null,null,null,null,null,null,null,null,null,null,null,{"$f":"INDEX(MyFindData,SMALL(IF(ISNUMBER(SEARCH(FindText,MyFindData)),ROW(MyFindData),\"\"),ROW())-ROW(INDEX(MyFindData,1,1))+1)","v":{"$error":"#NUM!"}}]
[null,null,null,null,null,null,null,null,null,null,null,null,null,null,null,null,null,null,null,null,{"$f":"INDEX(MyFindData,SMALL(IF(ISNUMBER(SEARCH(FindText,MyFindData)),ROW(MyFindData),\"\"),ROW())-ROW(INDEX(MyFindData,1,1))+1)","v":{"$error":"#NUM!"}}]
[null,null,null,null,null,null,null,null,null,null,null,null,null,null,null,null,null,null,null,null,{"$f":"INDEX(MyFindData,SMALL(IF(ISNUMBER(SEARCH(FindText,MyFindData)),ROW(MyFindData),\"\"),ROW())-ROW(INDEX(MyFindData,1,1))+1)","v":{"$error":"#NUM!"}}]
[null,null,null,null,null,null,null,null,null,null,null,null,null,null,null,null,null,null,null,null,{"$f":"INDEX(MyFindData,SMALL(IF(ISNUMBER(SEARCH(FindText,MyFindData)),ROW(MyFindData),\"\"),ROW())-ROW(INDEX(MyFindData,1,1))+1)","v":{"$error":"#NUM!"}}]
[null,null,null,null,null,null,null,null,null,null,null,null,null,null,null,null,null,null,null,null,{"$f":"INDEX(MyFindData,SMALL(IF(ISNUMBER(SEARCH(FindText,MyFindData)),ROW(MyFindData),\"\"),ROW())-ROW(INDEX(MyFindData,1,1))+1)","v":{"$error":"#NUM!"}}]
[null,null,null,null,null,null,null,null,null,null,null,null,null,null,null,null,null,null,null,null,{"$f":"INDEX(MyFindData,SMALL(IF(ISNUMBER(SEARCH(FindText,MyFindData)),ROW(MyFindData),\"\"),ROW())-ROW(INDEX(MyFindData,1,1))+1)","v":{"$error":"#NUM!"}}]
[null,null,null,null,null,null,null,null,null,null,null,null,null,null,null,null,null,null,null,null,{"$f":"INDEX(MyFindData,SMALL(IF(ISNUMBER(SEARCH(FindText,MyFindData)),ROW(MyFindData),\"\"),ROW())-ROW(INDEX(MyFindData,1,1))+1)","v":{"$error":"#NUM!"}}]
[null,null,null,null,null,null,null,null,null,null,null,null,null,null,null,null,null,null,null,null,{"$f":"INDEX(MyFindData,SMALL(IF(ISNUMBER(SEARCH(FindText,MyFindData)),ROW(MyFindData),\"\"),ROW())-ROW(INDEX(MyFindData,1,1))+1)","v":{"$error":"#NUM!"}}]
[null,null,null,null,null,null,null,null,null,null,null,null,null,null,null,null,null,null,null,null,{"$f":"INDEX(MyFindData,SMALL(IF(ISNUMBER(SEARCH(FindText,MyFindData)),ROW(MyFindData),\"\"),ROW())-ROW(INDEX(MyFindData,1,1))+1)","v":{"$error":"#NUM!"}}]
[null,null,null,null,null,null,null,null,null,null,null,null,null,null,null,null,null,null,null,null,{"$f":"INDEX(MyFindData,SMALL(IF(ISNUMBER(SEARCH(FindText,MyFindData)),ROW(MyFindData),\"\"),ROW())-ROW(INDEX(MyFindData,1,1))+1)","v":{"$error":"#NUM!"}}]
[null,null,null,null,null,null,null,null,null,null,null,null,null,null,null,null,null,null,null,null,{"$f":"INDEX(MyFindData,SMALL(IF(ISNUMBER(SEARCH(FindText,MyFindData)),ROW(MyFindData),\"\"),ROW())-ROW(INDEX(MyFindData,1,1))+1)","v":{"$error":"#NUM!"}}]
[null,null,null,null,null,null,null,null,null,null,null,null,null,null,null,null,null,null,null,null,{"$f":"INDEX(MyFindData,SMALL(IF(ISNUMBER(SEARCH(FindText,MyFindData)),ROW(MyFindData),\"\"),ROW())-ROW(INDEX(MyFindData,1,1))+1)","v":{"$error":"#NUM!"}}]
[null,null,null,null,null,null,null,null,null,null,null,null,null,null,null,null,null,null,null,null,{"$f":"INDEX(MyFindData,SMALL(IF(ISNUMBER(SEARCH(FindText,MyFindData)),ROW(MyFindData),\"\"),ROW())-ROW(INDEX(MyFindData,1,1))+1)","v":{"$error":"#NUM!"}}]
[null,null,null,null,null,null,null,null,null,null,null,null,null,null,null,null,null,null,null,null,{"$f":"INDEX(MyFindData,SMALL(IF(ISNUMBER(SEARCH(FindText,MyFindData)),ROW(MyFindData),\"\"),ROW())-ROW(INDEX(MyFindData,1,1))+1)","v":{"$error":"#NUM!"}}]
[null,null,null,null,null,null,null,null,null,null,null,null,null,null,null,null,null,null,null,null,{"$f":"INDEX(MyFindData,SMALL(IF(ISNUMBER(SEARCH(FindText,MyFindData)),ROW(MyFindData),\"\"),ROW())-ROW(INDEX(MyFindData,1,1))+1)","v":{"$error":"#NUM!"}}]
[null,null,null,null,null,null,null,null,null,null,null,null,null,null,null,null,null,null,null,null,{"$f":"INDEX(MyFindData,SMALL(IF(ISNUMBER(SEARCH(FindText,MyFindData)),ROW(MyFindData),\"\"),ROW())-ROW(INDEX(MyFindData,1,1))+1)","v":{"$error":"#NUM!"}}]
[null,null,null,null,null,null,null,null,null,null,null,null,null,null,null,null,null,null,null,null,{"$f":"INDEX(MyFindData,SMALL(IF(ISNUMBER(SEARCH(FindText,MyFindData)),ROW(MyFindData),\"\"),ROW())-ROW(INDEX(MyFindData,1,1))+1)","v":{"$error":"#NUM!"}}]
[null,null,null,null,null,null,null,null,null,null,null,null,null,null,null,null,null,null,null,null,{"$f":"INDEX(MyFindData,SMALL(IF(ISNUMBER(SEARCH(FindText,MyFindData)),ROW(MyFindData),\"\"),ROW())-ROW(INDEX(MyFindData,1,1))+1)","v":{"$error":"#NUM!"}}]
[null,null,null,null,null,null,null,null,null,null,null,null,null,null,null,null,null,null,null,null,{"$f":"INDEX(MyFindData,SMALL(IF(ISNUMBER(SEARCH(FindText,MyFindData)),ROW(MyFindData),\"\"),ROW())-ROW(INDEX(MyFindData,1,1))+1)","v":{"$error":"#NUM!"}}]
[null,null,null,null,null,null,null,null,null,null,null,null,null,null,null,null,null,null,null,null,{"$f":"INDEX(MyFindData,SMALL(IF(ISNUMBER(SEARCH(FindText,MyFindData)),ROW(MyFindData),\"\"),ROW())-ROW(INDEX(MyFindData,1,1))+1)","v":{"$error":"#NUM!"}}]
[null,null,null,null,null,null,null,null,null,null,null,null,null,null,null,null,null,null,null,null,{"$f":"INDEX(MyFindData,SMALL(IF(ISNUMBER(SEARCH(FindText,MyFindData)),ROW(MyFindData),\"\"),ROW())-ROW(INDEX(MyFindData,1,1))+1)","v":{"$error":"#NUM!"}}]
[null,null,null,null,null,null,null,null,null,null,null,null,null,null,null,null,null,null,null,null,{"$f":"INDEX(MyFindData,SMALL(IF(ISNUMBER(SEARCH(FindText,MyFindData)),ROW(MyFindData),\"\"),ROW())-ROW(INDEX(MyFindData,1,1))+1)","v":{"$error":"#NUM!"}}]
[null,null,null,null,null,null,null,null,null,null,null,null,null,null,null,null,null,null,null,null,{"$f":"INDEX(MyFindData,SMALL(IF(ISNUMBER(SEARCH(FindText,MyFindData)),ROW(MyFindData),\"\"),ROW())-ROW(INDEX(MyFindData,1,1))+1)","v":{"$error":"#NUM!"}}]
[null,null,null,null,null,null,null,null,null,null,null,null,null,null,null,null,null,null,null,null,{"$f":"INDEX(MyFindData,SMALL(IF(ISNUMBER(SEARCH(FindText,MyFindData)),ROW(MyFindData),\"\"),ROW())-ROW(INDEX(MyFindData,1,1))+1)","v":{"$error":"#NUM!"}}]
[null,null,null,null,null,null,null,null,null,null,null,null,null,null,null,null,null,null,null,null,{"$f":"INDEX(MyFindData,SMALL(IF(ISNUMBER(SEARCH(FindText,MyFindData)),ROW(MyFindData),\"\"),ROW())-ROW(INDEX(MyFindData,1,1))+1)","v":{"$error":"#NUM!"}}]
[null,null,null,null,null,null,null,null,null,null,null,null,null,null,null,null,null,null,null,null,{"$f":"INDEX(MyFindData,SMALL(IF(ISNUMBER(SEARCH(FindText,MyFindData)),ROW(MyFindData),\"\"),ROW())-ROW(INDEX(MyFindData,1,1))+1)","v":{"$error":"#NUM!"}}]
[null,null,null,null,null,null,null,null,null,null,null,null,null,null,null,null,null,null,null,null,{"$f":"INDEX(MyFindData,SMALL(IF(ISNUMBER(SEARCH(FindText,MyFindData)),ROW(MyFindData),\"\"),ROW())-ROW(INDEX(MyFindData,1,1))+1)","v":{"$error":"#NUM!"}}]
[null,null,null,null,null,null,null,null,null,null,null,null,null,null,null,null,null,null,null,null,{"$f":"INDEX(MyFindData,SMALL(IF(ISNUMBER(SEARCH(FindText,MyFindData)),ROW(MyFindData),\"\"),ROW())-ROW(INDEX(MyFindData,1,1))+1)","v":{"$error":"#NUM!"}}]
[null,null,null,null,null,null,null,null,null,null,null,null,null,null,null,null,null,null,null,null,{"$f":"INDEX(MyFindData,SMALL(IF(ISNUMBER(SEARCH(FindText,MyFindData)),ROW(MyFindData),\"\"),ROW())-ROW(INDEX(MyFindData,1,1))+1)","v":{"$error":"#NUM!"}}]
[null,null,null,null,null,null,null,null,null,null,null,null,null,null,null,null,null,null,null,null,{"$f":"INDEX(MyFindData,SMALL(IF(ISNUMBER(SEARCH(FindText,MyFindData)),ROW(MyFindData),\"\"),ROW())-ROW(INDEX(MyFindData,1,1))+1)","v":{"$error":"#NUM!"}}]
[null,null,null,null,null,null,null,null,null,null,null,null,null,null,null,null,null,null,null,null,{"$f":"INDEX(MyFindData,SMALL(IF(ISNUMBER(SEARCH(FindText,MyFindData)),ROW(MyFindData),\"\"),ROW())-ROW(INDEX(MyFindData,1,1))+1)","v":{"$error":"#NUM!"}}]
[null,null,null,null,null,null,null,null,null,null,null,null,null,null,null,null,null,null,null,null,{"$f":"INDEX(MyFindData,SMALL(IF(ISNUMBER(SEARCH(FindText,MyFindData)),ROW(MyFindData),\"\"),ROW())-ROW(INDEX(MyFindData,1,1))+1)","v":{"$error":"#NUM!"}}]
[null,null,null,null,null,null,null,null,null,null,null,null,null,null,null,null,null,null,null,null,{"$f":"INDEX(MyFindData,SMALL(IF(ISNUMBER(SEARCH(FindText,MyFindData)),ROW(MyFindData),\"\"),ROW())-ROW(INDEX(MyFindData,1,1))+1)","v":{"$error":"#NUM!"}}]
[null,null,null,null,null,null,null,null,null,null,null,null,null,null,null,null,null,null,null,null,{"$f":"INDEX(MyFindData,SMALL(IF(ISNUMBER(SEARCH(FindText,MyFindData)),ROW(MyFindData),\"\"),ROW())-ROW(INDEX(MyFindData,1,1))+1)","v":{"$error":"#NUM!"}}]
[null,null,null,null,null,null,null,null,null,null,null,null,null,null,null,null,null,null,null,null,{"$f":"INDEX(MyFindData,SMALL(IF(ISNUMBER(SEARCH(FindText,MyFindData)),ROW(MyFindData),\"\"),ROW())-ROW(INDEX(MyFindData,1,1))+1)","v":{"$error":"#NUM!"}}]
[null,null,null,null,null,null,null,null,null,null,null,null,null,null,null,null,null,null,null,null,{"$f":"INDEX(MyFindData,SMALL(IF(ISNUMBER(SEARCH(FindText,MyFindData)),ROW(MyFindData),\"\"),ROW())-ROW(INDEX(MyFindData,1,1))+1)","v":{"$error":"#NUM!"}}]
[null,null,null,null,null,null,null,null,null,null,null,null,null,null,null,null,null,null,null,null,{"$f":"INDEX(MyFindData,SMALL(IF(ISNUMBER(SEARCH(FindText,MyFindData)),ROW(MyFindData),\"\"),ROW())-ROW(INDEX(MyFindData,1,1))+1)","v":{"$error":"#NUM!"}}]
[null,null,null,null,null,null,null,null,null,null,null,null,null,null,null,null,null,null,null,null,{"$f":"INDEX(MyFindData,SMALL(IF(ISNUMBER(SEARCH(FindText,MyFindData)),ROW(MyFindData),\"\"),ROW())-ROW(INDEX(MyFindData,1,1))+1)","v":{"$error":"#NUM!"}}]
[null,null,null,null,null,null,null,null,null,null,null,null,null,null,null,null,null,null,null,null,{"$f":"INDEX(MyFindData,SMALL(IF(ISNUMBER(SEARCH(FindText,MyFindData)),ROW(MyFindData),\"\"),ROW())-ROW(INDEX(MyFindData,1,1))+1)","v":{"$error":"#NUM!"}}]
[null,null,null,null,null,null,null,null,null,null,null,null,null,null,null,null,null,null,null,null,{"$f":"INDEX(MyFindData,SMALL(IF(ISNUMBER(SEARCH(FindText,MyFindData)),ROW(MyFindData),\"\"),ROW())-ROW(INDEX(MyFindData,1,1))+1)","v":{"$error":"#NUM!"}}]
[null,null,null,null,null,null,null,null,null,null,null,null,null,null,null,null,null,null,null,null,{"$f":"INDEX(MyFindData,SMALL(IF(ISNUMBER(SEARCH(FindText,MyFindData)),ROW(MyFindData),\"\"),ROW())-ROW(INDEX(MyFindData,1,1))+1)","v":{"$error":"#NUM!"}}]
[null,null,null,null,null,null,null,null,null,null,null,null,null,null,null,null,null,null,null,null,{"$f":"INDEX(MyFindData,SMALL(IF(ISNUMBER(SEARCH(FindText,MyFindData)),ROW(MyFindData),\"\"),ROW())-ROW(INDEX(MyFindData,1,1))+1)","v":{"$error":"#NUM!"}}]
[null,null,null,null,null,null,null,null,null,null,null,null,null,null,null,null,null,null,null,null,{"$f":"INDEX(MyFindData,SMALL(IF(ISNUMBER(SEARCH(FindText,MyFindData)),ROW(MyFindData),\"\"),ROW())-ROW(INDEX(MyFindData,1,1))+1)","v":{"$error":"#NUM!"}}]
[null,null,null,null,null,null,null,null,null,null,null,null,null,null,null,null,null,null,null,null,{"$f":"INDEX(MyFindData,SMALL(IF(ISNUMBER(SEARCH(FindText,MyFindData)),ROW(MyFindData),\"\"),ROW())-ROW(INDEX(MyFindData,1,1))+1)","v":{"$error":"#NUM!"}}]
[null,null,null,null,null,null,null,null,null,null,null,null,null,null,null,null,null,null,null,null,{"$f":"INDEX(MyFindData,SMALL(IF(ISNUMBER(SEARCH(FindText,MyFindData)),ROW(MyFindData),\"\"),ROW())-ROW(INDEX(MyFindData,1,1))+1)","v":{"$error":"#NUM!"}}]
[null,null,null,null,null,null,null,null,null,null,null,null,null,null,null,null,null,null,null,null,{"$f":"INDEX(MyFindData,SMALL(IF(ISNUMBER(SEARCH(FindText,MyFindData)),ROW(MyFindData),\"\"),ROW())-ROW(INDEX(MyFindData,1,1))+1)","v":{"$error":"#NUM!"}}]
[null,null,null,null,null,null,null,null,null,null,null,null,null,null,null,null,null,null,null,null,{"$f":"INDEX(MyFindData,SMALL(IF(ISNUMBER(SEARCH(FindText,MyFindData)),ROW(MyFindData),\"\"),ROW())-ROW(INDEX(MyFindData,1,1))+1)","v":{"$error":"#NUM!"}}]
[null,null,null,null,null,null,null,null,null,null,null,null,null,null,null,null,null,null,null,null,{"$f":"INDEX(MyFindData,SMALL(IF(ISNUMBER(SEARCH(FindText,MyFindData)),ROW(MyFindData),\"\"),ROW())-ROW(INDEX(MyFindData,1,1))+1)","v":{"$error":"#NUM!"}}]
[null,null,null,null,null,null,null,null,null,null,null,null,null,null,null,null,null,null,null,null,{"$f":"INDEX(MyFindData,SMALL(IF(ISNUMBER(SEARCH(FindText,MyFindData)),ROW(MyFindData),\"\"),ROW())-ROW(INDEX(MyFindData,1,1))+1)","v":{"$error":"#NUM!"}}]
[null,null,null,null,null,null,null,null,null,null,null,null,null,null,null,null,null,null,null,null,{"$f":"INDEX(MyFindData,SMALL(IF(ISNUMBER(SEARCH(FindText,MyFindData)),ROW(MyFindData),\"\"),ROW())-ROW(INDEX(MyFindData,1,1))+1)","v":{"$error":"#NUM!"}}]
[null,null,null,null,null,null,null,null,null,null,null,null,null,null,null,null,null,null,null,null,{"$f":"INDEX(MyFindData,SMALL(IF(ISNUMBER(SEARCH(FindText,MyFindData)),ROW(MyFindData),\"\"),ROW())-ROW(INDEX(MyFindData,1,1))+1)","v":{"$error":"#NUM!"}}]
[null,null,null,null,null,null,null,null,null,null,null,null,null,null,null,null,null,null,null,null,{"$f":"INDEX(MyFindData,SMALL(IF(ISNUMBER(SEARCH(FindText,MyFindData)),ROW(MyFindData),\"\"),ROW())-ROW(INDEX(MyFindData,1,1))+1)","v":{"$error":"#NUM!"}}]
[null,null,null,null,null,null,null,null,null,null,null,null,null,null,null,null,null,null,null,null,{"$f":"INDEX(MyFindData,SMALL(IF(ISNUMBER(SEARCH(FindText,MyFindData)),ROW(MyFindData),\"\"),ROW())-ROW(INDEX(MyFindData,1,1))+1)","v":{"$error":"#NUM!"}}]
[null,null,null,null,null,null,null,null,null,null,null,null,null,null,null,null,null,null,null,null,{"$f":"INDEX(MyFindData,SMALL(IF(ISNUMBER(SEARCH(FindText,MyFindData)),ROW(MyFindData),\"\"),ROW())-ROW(INDEX(MyFindData,1,1))+1)","v":{"$error":"#NUM!"}}]
[null,null,null,null,null,null,null,null,null,null,null,null,null,null,null,null,null,null,null,null,{"$f":"INDEX(MyFindData,SMALL(IF(ISNUMBER(SEARCH(FindText,MyFindData)),ROW(MyFindData),\"\"),ROW())-ROW(INDEX(MyFindData,1,1))+1)","v":{"$error":"#NUM!"}}]
[null,null,null,null,null,null,null,null,null,null,null,null,null,null,null,null,null,null,null,null,{"$f":"INDEX(MyFindData,SMALL(IF(ISNUMBER(SEARCH(FindText,MyFindData)),ROW(MyFindData),\"\"),ROW())-ROW(INDEX(MyFindData,1,1))+1)","v":{"$error":"#NUM!"}}]
[null,null,null,null,null,null,null,null,null,null,null,null,null,null,null,null,null,null,null,null,{"$f":"INDEX(MyFindData,SMALL(IF(ISNUMBER(SEARCH(FindText,MyFindData)),ROW(MyFindData),\"\"),ROW())-ROW(INDEX(MyFindData,1,1))+1)","v":{"$error":"#NUM!"}}]
[null,null,null,null,null,null,null,null,null,null,null,null,null,null,null,null,null,null,null,null,{"$f":"INDEX(MyFindData,SMALL(IF(ISNUMBER(SEARCH(FindText,MyFindData)),ROW(MyFindData),\"\"),ROW())-ROW(INDEX(MyFindData,1,1))+1)","v":{"$error":"#NUM!"}}]
[null,null,null,null,null,null,null,null,null,null,null,null,null,null,null,null,null,null,null,null,{"$f":"INDEX(MyFindData,SMALL(IF(ISNUMBER(SEARCH(FindText,MyFindData)),ROW(MyFindData),\"\"),ROW())-ROW(INDEX(MyFindData,1,1))+1)","v":{"$error":"#NUM!"}}]
[null,null,null,null,null,null,null,null,null,null,null,null,null,null,null,null,null,null,null,null,{"$f":"INDEX(MyFindData,SMALL(IF(ISNUMBER(SEARCH(FindText,MyFindData)),ROW(MyFindData),\"\"),ROW())-ROW(INDEX(MyFindData,1,1))+1)","v":{"$error":"#NUM!"}}]
[null,null,null,null,null,null,null,null,null,null,null,null,null,null,null,null,null,null,null,null,{"$f":"INDEX(MyFindData,SMALL(IF(ISNUMBER(SEARCH(FindText,MyFindData)),ROW(MyFindData),\"\"),ROW())-ROW(INDEX(MyFindData,1,1))+1)","v":{"$error":"#NUM!"}}]
[null,null,null,null,null,null,null,null,null,null,null,null,null,null,null,null,null,null,null,null,{"$f":"INDEX(MyFindData,SMALL(IF(ISNUMBER(SEARCH(FindText,MyFindData)),ROW(MyFindData),\"\"),ROW())-ROW(INDEX(MyFindData,1,1))+1)","v":{"$error":"#NUM!"}}]
[null,null,null,null,null,null,null,null,null,null,null,null,null,null,null,null,null,null,null,null,{"$f":"INDEX(MyFindData,SMALL(IF(ISNUMBER(SEARCH(FindText,MyFindData)),ROW(MyFindData),\"\"),ROW())-ROW(INDEX(MyFindData,1,1))+1)","v":{"$error":"#NUM!"}}]
[null,null,null,null,null,null,null,null,null,null,null,null,null,null,null,null,null,null,null,null,{"$f":"INDEX(MyFindData,SMALL(IF(ISNUMBER(SEARCH(FindText,MyFindData)),ROW(MyFindData),\"\"),ROW())-ROW(INDEX(MyFindData,1,1))+1)","v":{"$error":"#NUM!"}}]
[null,null,null,null,null,null,null,null,null,null,null,null,null,null,null,null,null,null,null,null,{"$f":"INDEX(MyFindData,SMALL(IF(ISNUMBER(SEARCH(FindText,MyFindData)),ROW(MyFindData),\"\"),ROW())-ROW(INDEX(MyFindData,1,1))+1)","v":{"$error":"#NUM!"}}]
[null,null,null,null,null,null,null,null,null,null,null,null,null,null,null,null,null,null,null,null,{"$f":"INDEX(MyFindData,SMALL(IF(ISNUMBER(SEARCH(FindText,MyFindData)),ROW(MyFindData),\"\"),ROW())-ROW(INDEX(MyFindData,1,1))+1)","v":{"$error":"#NUM!"}}]
[null,null,null,null,null,null,null,null,null,null,null,null,null,null,null,null,null,null,null,null,{"$f":"INDEX(MyFindData,SMALL(IF(ISNUMBER(SEARCH(FindText,MyFindData)),ROW(MyFindData),\"\"),ROW())-ROW(INDEX(MyFindData,1,1))+1)","v":{"$error":"#NUM!"}}]
[null,null,null,null,null,null,null,null,null,null,null,null,null,null,null,null,null,null,null,null,{"$f":"INDEX(MyFindData,SMALL(IF(ISNUMBER(SEARCH(FindText,MyFindData)),ROW(MyFindData),\"\"),ROW())-ROW(INDEX(MyFindData,1,1))+1)","v":{"$error":"#NUM!"}}]
[null,null,null,null,null,null,null,null,null,null,null,null,null,null,null,null,null,null,null,null,{"$f":"INDEX(MyFindData,SMALL(IF(ISNUMBER(SEARCH(FindText,MyFindData)),ROW(MyFindData),\"\"),ROW())-ROW(INDEX(MyFindData,1,1))+1)","v":{"$error":"#NUM!"}}]
[null,null,null,null,null,null,null,null,null,null,null,null,null,null,null,null,null,null,null,null,{"$f":"INDEX(MyFindData,SMALL(IF(ISNUMBER(SEARCH(FindText,MyFindData)),ROW(MyFindData),\"\"),ROW())-ROW(INDEX(MyFindData,1,1))+1)","v":{"$error":"#NUM!"}}]
[null,null,null,null,null,null,null,null,null,null,null,null,null,null,null,null,null,null,null,null,{"$f":"INDEX(MyFindData,SMALL(IF(ISNUMBER(SEARCH(FindText,MyFindData)),ROW(MyFindData),\"\"),ROW())-ROW(INDEX(MyFindData,1,1))+1)","v":{"$error":"#NUM!"}}]
[null,null,null,null,null,null,null,null,null,null,null,null,null,null,null,null,null,null,null,null,{"$f":"INDEX(MyFindData,SMALL(IF(ISNUMBER(SEARCH(FindText,MyFindData)),ROW(MyFindData),\"\"),ROW())-ROW(INDEX(MyFindData,1,1))+1)","v":{"$error":"#NUM!"}}]
[null,null,null,null,null,null,null,null,null,null,null,null,null,null,null,null,null,null,null,null,{"$f":"INDEX(MyFindData,SMALL(IF(ISNUMBER(SEARCH(FindText,MyFindData)),ROW(MyFindData),\"\"),ROW())-ROW(INDEX(MyFindData,1,1))+1)","v":{"$error":"#NUM!"}}]
[null,null,null,null,null,null,null,null,null,null,null,null,null,null,null,null,null,null,null,null,{"$f":"INDEX(MyFindData,SMALL(IF(ISNUMBER(SEARCH(FindText,MyFindData)),ROW(MyFindData),\"\"),ROW())-ROW(INDEX(MyFindData,1,1))+1)","v":{"$error":"#NUM!"}}]
[null,null,null,null,null,null,null,null,null,null,null,null,null,null,null,null,null,null,null,null,{"$f":"INDEX(MyFindData,SMALL(IF(ISNUMBER(SEARCH(FindText,MyFindData)),ROW(MyFindData),\"\"),ROW())-ROW(INDEX(MyFindData,1,1))+1)","v":{"$error":"#NUM!"}}]
[null,null,null,null,null,null,null,null,null,null,null,null,null,null,null,null,null,null,null,null,{"$f":"INDEX(MyFindData,SMALL(IF(ISNUMBER(SEARCH(FindText,MyFindData)),ROW(MyFindData),\"\"),ROW())-ROW(INDEX(MyFindData,1,1))+1)","v":{"$error":"#NUM!"}}]
[null,null,null,null,null,null,null,null,null,null,null,null,null,null,null,null,null,null,null,null,{"$f":"INDEX(MyFindData,SMALL(IF(ISNUMBER(SEARCH(FindText,MyFindData)),ROW(MyFindData),\"\"),ROW())-ROW(INDEX(MyFindData,1,1))+1)","v":{"$error":"#NUM!"}}]
[null,null,null,null,null,null,null,null,null,null,null,null,null,null,null,null,null,null,null,null,{"$f":"INDEX(MyFindData,SMALL(IF(ISNUMBER(SEARCH(FindText,MyFindData)),ROW(MyFindData),\"\"),ROW())-ROW(INDEX(MyFindData,1,1))+1)","v":{"$error":"#NUM!"}}]
[null,null,null,null,null,null,null,null,null,null,null,null,null,null,null,null,null,null,null,null,{"$f":"INDEX(MyFindData,SMALL(IF(ISNUMBER(SEARCH(FindText,MyFindData)),ROW(MyFindData),\"\"),ROW())-ROW(INDEX(MyFindData,1,1))+1)","v":{"$error":"#NUM!"}}]
[null,null,null,null,null,null,null,null,null,null,null,null,null,null,null,null,null,null,null,null,{"$f":"INDEX(MyFindData,SMALL(IF(ISNUMBER(SEARCH(FindText,MyFindData)),ROW(MyFindData),\"\"),ROW())-ROW(INDEX(MyFindData,1,1))+1)","v":{"$error":"#NUM!"}}]
[null,null,null,null,null,null,null,null,null,null,null,null,null,null,null,null,null,null,null,null,{"$f":"INDEX(MyFindData,SMALL(IF(ISNUMBER(SEARCH(FindText,MyFindData)),ROW(MyFindData),\"\"),ROW())-ROW(INDEX(MyFindData,1,1))+1)","v":{"$error":"#NUM!"}}]
[null,null,null,null,null,null,null,null,null,null,null,null,null,null,null,null,null,null,null,null,{"$f":"INDEX(MyFindData,SMALL(IF(ISNUMBER(SEARCH(FindText,MyFindData)),ROW(MyFindData),\"\"),ROW())-ROW(INDEX(MyFindData,1,1))+1)","v":{"$error":"#NUM!"}}]
[null,null,null,null,null,null,null,null,null,null,null,null,null,null,null,null,null,null,null,null,{"$f":"INDEX(MyFindData,SMALL(IF(ISNUMBER(SEARCH(FindText,MyFindData)),ROW(MyFindData),\"\"),ROW())-ROW(INDEX(MyFindData,1,1))+1)","v":{"$error":"#NUM!"}}]
[null,null,null,null,null,null,null,null,null,null,null,null,null,null,null,null,null,null,null,null,{"$f":"INDEX(MyFindData,SMALL(IF(ISNUMBER(SEARCH(FindText,MyFindData)),ROW(MyFindData),\"\"),ROW())-ROW(INDEX(MyFindData,1,1))+1)","v":{"$error":"#NUM!"}}]
[null,null,null,null,null,null,null,null,null,null,null,null,null,null,null,null,null,null,null,null,{"$f":"INDEX(MyFindData,SMALL(IF(ISNUMBER(SEARCH(FindText,MyFindData)),ROW(MyFindData),\"\"),ROW())-ROW(INDEX(MyFindData,1,1))+1)","v":{"$error":"#NUM!"}}]
[null,null,null,null,null,null,null,null,null,null,null,null,null,null,null,null,null,null,null,null,{"$f":"INDEX(MyFindData,SMALL(IF(ISNUMBER(SEARCH(FindText,MyFindData)),ROW(MyFindData),\"\"),ROW())-ROW(INDEX(MyFindData,1,1))+1)","v":{"$error":"#NUM!"}}]
[null,null,null,null,null,null,null,null,null,null,null,null,null,null,null,null,null,null,null,null,{"$f":"INDEX(MyFindData,SMALL(IF(ISNUMBER(SEARCH(FindText,MyFindData)),ROW(MyFindData),\"\"),ROW())-ROW(INDEX(MyFindData,1,1))+1)","v":{"$error":"#NUM!"}}]
[null,null,null,null,null,null,null,null,null,null,null,null,null,null,null,null,null,null,null,null,{"$f":"INDEX(MyFindData,SMALL(IF(ISNUMBER(SEARCH(FindText,MyFindData)),ROW(MyFindData),\"\"),ROW())-ROW(INDEX(MyFindData,1,1))+1)","v":{"$error":"#NUM!"}}]
[null,null,null,null,null,null,null,null,null,null,null,null,null,null,null,null,null,null,null,null,{"$f":"INDEX(MyFindData,SMALL(IF(ISNUMBER(SEARCH(FindText,MyFindData)),ROW(MyFindData),\"\"),ROW())-ROW(INDEX(MyFindData,1,1))+1)","v":{"$error":"#NUM!"}}]
[null,null,null,null,null,null,null,null,null,null,null,null,null,null,null,null,null,null,null,null,{"$f":"INDEX(MyFindData,SMALL(IF(ISNUMBER(SEARCH(FindText,MyFindData)),ROW(MyFindData),\"\"),ROW())-ROW(INDEX(MyFindData,1,1))+1)","v":{"$error":"#NUM!"}}]
[null,null,null,null,null,null,null,null,null,null,null,null,null,null,null,null,null,null,null,null,{"$f":"INDEX(MyFindData,SMALL(IF(ISNUMBER(SEARCH(FindText,MyFindData)),ROW(MyFindData),\"\"),ROW())-ROW(INDEX(MyFindData,1,1))+1)","v":{"$error":"#NUM!"}}]
[null,null,null,null,null,null,null,null,null,null,null,null,null,null,null,null,null,null,null,null,{"$f":"INDEX(MyFindData,SMALL(IF(ISNUMBER(SEARCH(FindText,MyFindData)),ROW(MyFindData),\"\"),ROW())-ROW(INDEX(MyFindData,1,1))+1)","v":{"$error":"#NUM!"}}]
[null,null,null,null,null,null,null,null,null,null,null,null,null,null,null,null,null,null,null,null,{"$f":"INDEX(MyFindData,SMALL(IF(ISNUMBER(SEARCH(FindText,MyFindData)),ROW(MyFindData),\"\"),ROW())-ROW(INDEX(MyFindData,1,1))+1)","v":{"$error":"#NUM!"}}]
[null,null,null,null,null,null,null,null,null,null,null,null,null,null,null,null,null,null,null,null,{"$f":"INDEX(MyFindData,SMALL(IF(ISNUMBER(SEARCH(FindText,MyFindData)),ROW(MyFindData),\"\"),ROW())-ROW(INDEX(MyFindData,1,1))+1)","v":{"$error":"#NUM!"}}]
[null,null,null,null,null,null,null,null,null,null,null,null,null,null,null,null,null,null,null,null,{"$f":"INDEX(MyFindData,SMALL(IF(ISNUMBER(SEARCH(FindText,MyFindData)),ROW(MyFindData),\"\"),ROW())-ROW(INDEX(MyFindData,1,1))+1)","v":{"$error":"#NUM!"}}]
[null,null,null,null,null,null,null,null,null,null,null,null,null,null,null,null,null,null,null,null,{"$f":"INDEX(MyFindData,SMALL(IF(ISNUMBER(SEARCH(FindText,MyFindData)),ROW(MyFindData),\"\"),ROW())-ROW(INDEX(MyFindData,1,1))+1)","v":{"$error":"#NUM!"}}]
[null,null,null,null,null,null,null,null,null,null,null,null,null,null,null,null,null,null,null,null,{"$f":"INDEX(MyFindData,SMALL(IF(ISNUMBER(SEARCH(FindText,MyFindData)),ROW(MyFindData),\"\"),ROW())-ROW(INDEX(MyFindData,1,1))+1)","v":{"$error":"#NUM!"}}]
[null,null,null,null,null,null,null,null,null,null,null,null,null,null,null,null,null,null,null,null,{"$f":"INDEX(MyFindData,SMALL(IF(ISNUMBER(SEARCH(FindText,MyFindData)),ROW(MyFindData),\"\"),ROW())-ROW(INDEX(MyFindData,1,1))+1)","v":{"$error":"#NUM!"}}]
[null,null,null,null,null,null,null,null,null,null,null,null,null,null,null,null,null,null,null,null,{"$f":"INDEX(MyFindData,SMALL(IF(ISNUMBER(SEARCH(FindText,MyFindData)),ROW(MyFindData),\"\"),ROW())-ROW(INDEX(MyFindData,1,1))+1)","v":{"$error":"#NUM!"}}]
[null,null,null,null,null,null,null,null,null,null,null,null,null,null,null,null,null,null,null,null,{"$f":"INDEX(MyFindData,SMALL(IF(ISNUMBER(SEARCH(FindText,MyFindData)),ROW(MyFindData),\"\"),ROW())-ROW(INDEX(MyFindData,1,1))+1)","v":{"$error":"#NUM!"}}]
[null,null,null,null,null,null,null,null,null,null,null,null,null,null,null,null,null,null,null,null,{"$f":"INDEX(MyFindData,SMALL(IF(ISNUMBER(SEARCH(FindText,MyFindData)),ROW(MyFindData),\"\"),ROW())-ROW(INDEX(MyFindData,1,1))+1)","v":{"$error":"#NUM!"}}]
[null,null,null,null,null,null,null,null,null,null,null,null,null,null,null,null,null,null,null,null,{"$f":"INDEX(MyFindData,SMALL(IF(ISNUMBER(SEARCH(FindText,MyFindData)),ROW(MyFindData),\"\"),ROW())-ROW(INDEX(MyFindData,1,1))+1)","v":{"$error":"#NUM!"}}]
[null,null,null,null,null,null,null,null,null,null,null,null,null,null,null,null,null,null,null,null,{"$f":"INDEX(MyFindData,SMALL(IF(ISNUMBER(SEARCH(FindText,MyFindData)),ROW(MyFindData),\"\"),ROW())-ROW(INDEX(MyFindData,1,1))+1)","v":{"$error":"#NUM!"}}]
[null,null,null,null,null,null,null,null,null,null,null,null,null,null,null,null,null,null,null,null,{"$f":"INDEX(MyFindData,SMALL(IF(ISNUMBER(SEARCH(FindText,MyFindData)),ROW(MyFindData),\"\"),ROW())-ROW(INDEX(MyFindData,1,1))+1)","v":{"$error":"#NUM!"}}]
[null,null,null,null,null,null,null,null,null,null,null,null,null,null,null,null,null,null,null,null,{"$f":"INDEX(MyFindData,SMALL(IF(ISNUMBER(SEARCH(FindText,MyFindData)),ROW(MyFindData),\"\"),ROW())-ROW(INDEX(MyFindData,1,1))+1)","v":{"$error":"#NUM!"}}]
[null,null,null,null,null,null,null,null,null,null,null,null,null,null,null,null,null,null,null,null,{"$f":"INDEX(MyFindData,SMALL(IF(ISNUMBER(SEARCH(FindText,MyFindData)),ROW(MyFindData),\"\"),ROW())-ROW(INDEX(MyFindData,1,1))+1)","v":{"$error":"#NUM!"}}]
[null,null,null,null,null,null,null,null,null,null,null,null,null,null,null,null,null,null,null,null,{"$f":"INDEX(MyFindData,SMALL(IF(ISNUMBER(SEARCH(FindText,MyFindData)),ROW(MyFindData),\"\"),ROW())-ROW(INDEX(MyFindData,1,1))+1)","v":{"$error":"#NUM!"}}]
[null,null,null,null,null,null,null,null,null,null,null,null,null,null,null,null,null,null,null,null,{"$f":"INDEX(MyFindData,SMALL(IF(ISNUMBER(SEARCH(FindText,MyFindData)),ROW(MyFindData),\"\"),ROW())-ROW(INDEX(MyFindData,1,1))+1)","v":{"$error":"#NUM!"}}]
[null,null,null,null,null,null,null,null,null,null,null,null,null,null,null,null,null,null,null,null,{"$f":"INDEX(MyFindData,SMALL(IF(ISNUMBER(SEARCH(FindText,MyFindData)),ROW(MyFindData),\"\"),ROW())-ROW(INDEX(MyFindData,1,1))+1)","v":{"$error":"#NUM!"}}]
[null,null,null,null,null,null,null,null,null,null,null,null,null,null,null,null,null,null,null,null,{"$f":"INDEX(MyFindData,SMALL(IF(ISNUMBER(SEARCH(FindText,MyFindData)),ROW(MyFindData),\"\"),ROW())-ROW(INDEX(MyFindData,1,1))+1)","v":{"$error":"#NUM!"}}]
[null,null,null,null,null,null,null,null,null,null,null,null,null,null,null,null,null,null,null,null,{"$f":"INDEX(MyFindData,SMALL(IF(ISNUMBER(SEARCH(FindText,MyFindData)),ROW(MyFindData),\"\"),ROW())-ROW(INDEX(MyFindData,1,1))+1)","v":{"$error":"#NUM!"}}]
[null,null,null,null,null,null,null,null,null,null,null,null,null,null,null,null,null,null,null,null,{"$f":"INDEX(MyFindData,SMALL(IF(ISNUMBER(SEARCH(FindText,MyFindData)),ROW(MyFindData),\"\"),ROW())-ROW(INDEX(MyFindData,1,1))+1)","v":{"$error":"#NUM!"}}]
[null,null,null,null,null,null,null,null,null,null,null,null,null,null,null,null,null,null,null,null,{"$f":"INDEX(MyFindData,SMALL(IF(ISNUMBER(SEARCH(FindText,MyFindData)),ROW(MyFindData),\"\"),ROW())-ROW(INDEX(MyFindData,1,1))+1)","v":{"$error":"#NUM!"}}]
[null,null,null,null,null,null,null,null,null,null,null,null,null,null,null,null,null,null,null,null,{"$f":"INDEX(MyFindData,SMALL(IF(ISNUMBER(SEARCH(FindText,MyFindData)),ROW(MyFindData),\"\"),ROW())-ROW(INDEX(MyFindData,1,1))+1)","v":{"$error":"#NUM!"}}]